Workbook

Sheet Meny
D3: Taxebilaga 2 & 3
D4: ver. 5.0
R5: Filtrering:
R6: Du kan ändra filtreringen för att ändra vad som visas. I exemplet till höger så selekterar vi enbart de rader som har timavgift och därmed ska vara i bilaga 3
R7: För att återställa filtrertingen, tryck "Rensa filter i…". De kolumner som har en filtrering har en liten tratt bredvid nerpilen
D8: 1 | E8: Se till att aktivera redigering samt godkänna användningen av makron (se bilder ovan)
E9: Om makron fortfarande inte är aktiverade kan du behöva ändra makroinställningarna.
E10: Enklast är att klicka på följande länk och följa instruktioner för din Office version:
E11: Aktivera eller inaktivera makron i Office-filer
D12: 2 | E12: Ställ in timavgiften
D13: 3 | E13: Gå in på flik Data
D14: 4 | E14: Gå igenom kolumn C och ange om tillsynsbehovet är Högt, Normalt, Lågt eller Sporadiskt
E15: Om verksamhetskoden inte finns i er kommun, väljer ni alternativet "Ej aktuell".
E16: Då kommer verksamhetskoden ej med i bilagan.
E17: Om tillsynsbehovet sätts till "Sporadiskt", så sker debitering enligt bilaga 1.
D18: 5 | E18: Om du vill att några rader med Prövningsnivå U eller UH ska vara med i Bilaga 2, ändra kolumn D till "Fast avgift"
E19: OBS. Om dessa ändras måste en verksamhetskod fyllas i i kolumn A.
E20: Denna ska anges i form av tillägg ..01, ..02, ..03 till huvudkoden i fråga. Är raden gul beror det på att detta inte är gjort!
D21: 9 | E21: Tryck "Uppdatera Taxebilagor
E22: Nya bilagor skapas i separata flikar.

Sheet Planering
C3: Timavgift:
C4: 1000
C6: Planeringskede
D8: Prövningsnivå
B9: Tillsynsbehov | D9: C | E9: H | F9: U | G9: UH | H9: C | I9: H | J9: U | K9: UH | L9: Förklaring
H10: Ange tillsynsbehov | I10: Ange tillsynsbehov | J10: Ange tillsynsbehov | K10: Ange tillsynsbehov
C11: Mycket högt | D11: 20 | E11: 12 | F11: 12 | G11: 12 | H11: =IF(SUBTOTAL(103,$G11),$C11&" ("&D11&" tim/år)","") ->  | I11: =IF(SUBTOTAL(103,$G11),$C11&" ("&E11&" tim/år)","") ->  | L11: Mycket högt innebär mer än 1 besök per år
C12: Högt | D12: 18 | E12: 12 | F12: 12 | G12: 12 | H12: =IF(SUBTOTAL(103,$G12),$C12&" ("&D12&" tim/år)","") -> Högt (18 tim/år) | I12: Högt (12 tim/år) | J12: Högt (12 tim/år) | K12: Högt (12 tim/år)
C13: Normalt | D13: 9 | E13: 6 | F13: 6 | G13: 6 | H13: Normalt (9 tim/år) | I13: Normalt (6 tim/år) | J13: Normalt (6 tim/år) | K13: Normalt (6 tim/år)
C14: Lågt | D14: 6 | E14: 3 | F14: 3 | G14: 3 | H14: Lågt (6 tim/år) | I14: Lågt (3 tim/år) | J14: Lågt (3 tim/år) | K14: Lågt (3 tim/år)
C15: Mycket lågt | D15: 6 | E15: 3 | F15: 3 | G15: 3
C16: Ej frekvensstyrt behov | D16: - | E16: - | F16: - | G16: - | H16: =$C16 -> Ej frekvensstyrt behov | I16: =$C16 -> Ej frekvensstyrt behov | J16: Ej frekvensstyrt behov | K16: Ej frekvensstyrt behov
C17: Ej aktuellt | D17: - | E17: - | F17: - | G17: - | H17: =$C17 -> Ej aktuellt | I17: Ej aktuellt | J17: Ej aktuellt | K17: Ej aktuellt
C20: IUV-tillägg | D20: 20

Sheet Data
B1: Planeringsskede | F1: Finansieringsskede
A2: Verksamhets- kod | B2: Prövn.- nivå | C2: Tillsynsbehov | D2: IUV-tillägg | E2: Timmar | F2: Avgift | G2: Taxebilaga | H2: Kostnad | I2: Kodnr | J2: Bransch | K2: Verksamhet | L2: Beskrivning
A3: ="" ->  | H3: =IFERROR(TableData[[#This Row],[Timmar]]*rngTimpris,"") -> 0 | I3: 1 | J3: JORDBRUK | K3: ="" ->  | L3: VERKSAMHETSGRUPP JORDBRUK
A4: ="" ->  | G4: =IF(COUNTIF(G5:G7,"Bilaga 2")=0,"Bilaga 3",IF(COUNTIF(G5:G7,"Bilaga 3")=0,"Bilaga 2","")) ->  | H4: =IFERROR(TableData[[#This Row],[Timmar]]*rngTimpris,"") -> 0 | I4: 1 | J4: JORDBRUK | K4: Djurhållning | L4: Verksamhetsgrupp Djurhållning
A5: 1.10-i och 1.11 | B5: B | C5: 9 | D5: Nej | E5: 9 | F5: Årlig tillsynsavgift | G5: =IF(TableData[[#This Row],[Avgift]]="Timavgift","Bilaga 3","Bilaga 2") -> Bilaga 2 | H5: =IFERROR(TableData[[#This Row],[Timmar]]*rngTimpris,"") -> 9000 | I5: 1 | J5: JORDBRUK | K5: Djurhållning | L5: ="För en verksamhet som är tillståndspliktig enligt 2 kap. 1 eller 2 § miljöprövningsförordningen är tillsynstiden "&IF(ISNUMBER($E5),$E5,"x")&" timmar."&IF(TableData[[#This Row],[IUV-tillägg]]="Ja"," "&rngIUV,"") -> För en verksamhet som är tillståndspliktig enligt 2 kap. 1 eller 2 § miljöprövningsförordningen är tillsynstiden 9 timmar.
A6: 1.20 | B6: C | C6: Ange tillsynsbehov | E6: =IF(TableData[[#This Row],[Tillsynsbehov]]="Ange tillsynsbehov","Ange tillsynsbehov",IF(SUM(LEN(TableData[[#This Row],[Tillsynsbehov]])-LEN(SUBSTITUTE(TableData[[#This Row],[Tillsynsbehov]], {"0";"1";"2";"3";"4";"5";"6";"7";"8";"9"}, "")))>0, SUMPRODUCT(MID(0&TableData[[#This Row],[Tillsynsbehov]], LARGE(INDEX(ISNUMBER(--MID(TableData[[#This Row],[Tillsynsbehov]],ROW(INDIRECT("$1:$"&LEN(TableData[[#This Row],[Tillsynsbehov]]))),1))* ROW(INDIRECT("$1:$"&LEN(TableData[[#This Row],[Tillsynsbehov]]))),0), ROW(INDIRECT("$1:$"&LEN(TableData[[#This Row],[Tillsynsbehov]]))))+1,1) * 10^ROW(INDIRECT("$1:$"&LEN(TableData[[#This Row],[Tillsynsbehov]])))/10),TableData[[#This Row],[Tillsynsbehov]])) -> Ange tillsynsbehov | F6: Årlig tillsynsavgift | G6: =IF(TableData[[#This Row],[Avgift]]="Timavgift","Bilaga 3","Bilaga 2") -> Bilaga 2 | H6: =IFERROR(TableData[[#This Row],[Timmar]]*rngTimpris,"") ->  | I6: 1 | J6: JORDBRUK | K6: Djurhållning | L6: ="För en verksamhet som är anmälningspliktig enligt 2 kap. 3 § miljöprövningsförordningen är tillsynstiden "&IF(ISNUMBER($E6),$E6,"x")&" timmar."&IF(TableData[[#This Row],[IUV-tillägg]]="Ja"," "&rngIUV,"") -> För en verksamhet som är anmälningspliktig enligt 2 kap. 3 § miljöprövningsförordningen är tillsynstiden x timmar.
B7: U | C7: Ange tillsynsbehov | E7: =IF(TableData[[#This Row],[Tillsynsbehov]]="Ange tillsynsbehov","Ange tillsynsbehov",IF(LEFT(TableData[[#This Row],[Tillsynsbehov]],4)="Högt",INDEX(tblTillsynsTim,1,MATCH(TableData[[#This Row],[Prövn.- nivå]],rngTillsynsNiv,0)),IF(LEFT(TableData[[#This Row],[Tillsynsbehov]],4)="Norm",INDEX(tblTillsynsTim,2,MATCH(TableData[[#This Row],[Prövn.- nivå]],rngTillsynsNiv,0)),IF(LEFT(TableData[[#This Row],[Tillsynsbehov]],4)="Lågt",INDEX(tblTillsynsTim,3,MATCH(TableData[[#This Row],[Prövn.- nivå]],rngTillsynsNiv,0)),IF(LEFT(TableData[[#This Row],[Tillsynsbehov]],4)="Spor",INDEX(tblTillsynsTim,4,MATCH(TableData[[#This Row],[Prövn.- nivå]],rngTillsynsNiv,0)),TableData[[#This Row],[Tillsynsbehov]]))))) -> Ange tillsynsbehov | F7: Timavgift | G7: =IF(TableData[[#This Row],[Avgift]]="Timavgift","Bilaga 3","Bilaga 2") -> Bilaga 3 | H7: =IFERROR(TableData[[#This Row],[Timmar]]*rngTimpris,"") ->  | I7: 1 | J7: JORDBRUK | K7: Djurhållning | L7: ="För verksamheter under anmälningspliktig nivå är tillsynstiden "&IF(ISNUMBER($E7),$E7,"x")&" timmar."&IF(TableData[[#This Row],[IUV-tillägg]]="Ja"," "&rngIUV,"") -> För verksamheter under anmälningspliktig nivå är tillsynstiden x timmar.
A8: ="" ->  | G8: =IF(COUNTIF(G9:G10,"Bilaga 2")=0,"Bilaga 3",IF(COUNTIF(G9:G10,"Bilaga 3")=0,"Bilaga 2","")) ->  | H8: =IFERROR(TableData[[#This Row],[Timmar]]*rngTimpris,"") -> 0 | I8: 1 | J8: JORDBRUK | K8: Uppodling av annan mark än jordbruksmark för jordbruksproduktion | L8: Verksamhetsgrupp Uppodling av annan mark än jordbruksmark för jordbruksproduktion
A9: 1.30 | B9: C | C9: Ange tillsynsbehov | E9: =IF(TableData[[#This Row],[Tillsynsbehov]]="Ange tillsynsbehov","Ange tillsynsbehov",IF(SUM(LEN(TableData[[#This Row],[Tillsynsbehov]])-LEN(SUBSTITUTE(TableData[[#This Row],[Tillsynsbehov]], {"0";"1";"2";"3";"4";"5";"6";"7";"8";"9"}, "")))>0, SUMPRODUCT(MID(0&TableData[[#This Row],[Tillsynsbehov]], LARGE(INDEX(ISNUMBER(--MID(TableData[[#This Row],[Tillsynsbehov]],ROW(INDIRECT("$1:$"&LEN(TableData[[#This Row],[Tillsynsbehov]]))),1))* ROW(INDIRECT("$1:$"&LEN(TableData[[#This Row],[Tillsynsbehov]]))),0), ROW(INDIRECT("$1:$"&LEN(TableData[[#This Row],[Tillsynsbehov]]))))+1,1) * 10^ROW(INDIRECT("$1:$"&LEN(TableData[[#This Row],[Tillsynsbehov]])))/10),TableData[[#This Row],[Tillsynsbehov]])) -> Ange tillsynsbehov | F9: Årlig tillsynsavgift | G9: =IF(TableData[[#This Row],[Avgift]]="Timavgift","Bilaga 3","Bilaga 2") -> Bilaga 2 | H9: =IFERROR(TableData[[#This Row],[Timmar]]*rngTimpris,"") ->  | I9: 1 | J9: JORDBRUK | K9: Uppodling av annan mark än jordbruksmark för jordbruksproduktion | L9: ="För en verksamhet som är anmälningspliktig enligt 2 kap. 4 § miljöprövningsförordningen är tillsynstiden "&IF(ISNUMBER($E9),$E9,"x")&" timmar."&IF(TableData[[#This Row],[IUV-tillägg]]="Ja"," "&rngIUV,"") -> För en verksamhet som är anmälningspliktig enligt 2 kap. 4 § miljöprövningsförordningen är tillsynstiden x timmar.
B10: U | C10: Ange tillsynsbehov | E10: =IF(TableData[[#This Row],[Tillsynsbehov]]="Ange tillsynsbehov","Ange tillsynsbehov",IF(SUM(LEN(TableData[[#This Row],[Tillsynsbehov]])-LEN(SUBSTITUTE(TableData[[#This Row],[Tillsynsbehov]], {"0";"1";"2";"3";"4";"5";"6";"7";"8";"9"}, "")))>0, SUMPRODUCT(MID(0&TableData[[#This Row],[Tillsynsbehov]], LARGE(INDEX(ISNUMBER(--MID(TableData[[#This Row],[Tillsynsbehov]],ROW(INDIRECT("$1:$"&LEN(TableData[[#This Row],[Tillsynsbehov]]))),1))* ROW(INDIRECT("$1:$"&LEN(TableData[[#This Row],[Tillsynsbehov]]))),0), ROW(INDIRECT("$1:$"&LEN(TableData[[#This Row],[Tillsynsbehov]]))))+1,1) * 10^ROW(INDIRECT("$1:$"&LEN(TableData[[#This Row],[Tillsynsbehov]])))/10),TableData[[#This Row],[Tillsynsbehov]])) -> Ange tillsynsbehov | F10: Timavgift | G10: =IF(TableData[[#This Row],[Avgift]]="Timavgift","Bilaga 3","Bilaga 2") -> Bilaga 3 | H10: =IFERROR(TableData[[#This Row],[Timmar]]*rngTimpris,"") ->  | I10: 1 | J10: JORDBRUK | K10: Uppodling av annan mark än jordbruksmark för jordbruksproduktion | L10: ="För verksamheter under anmälningspliktig nivå är tillsynstiden "&IF(ISNUMBER($E10),$E10,"x")&" timmar."&IF(TableData[[#This Row],[IUV-tillägg]]="Ja"," "&rngIUV,"") -> För verksamheter under anmälningspliktig nivå är tillsynstiden x timmar.
A11: ="" ->  | G11: =IF(COUNTIF(G12,"Bilaga 2")=0,"Bilaga 3",IF(COUNTIF(G12,"Bilaga 3")=0,"Bilaga 2","")) -> Bilaga 3 | H11: =IFERROR(TableData[[#This Row],[Timmar]]*rngTimpris,"") -> 0 | I11: 1 | J11: JORDBRUK | K11: Övriga jordbruks- och trädgårdsföretag | L11: Verksamhetsgrupp Övriga jordbruks- och trädgårdsföretag
A12: 1.4001 | B12: U | C12: Ange tillsynsbehov | E12: =IF(TableData[[#This Row],[Tillsynsbehov]]="Ange tillsynsbehov","Ange tillsynsbehov",IF(SUM(LEN(TableData[[#This Row],[Tillsynsbehov]])-LEN(SUBSTITUTE(TableData[[#This Row],[Tillsynsbehov]], {"0";"1";"2";"3";"4";"5";"6";"7";"8";"9"}, "")))>0, SUMPRODUCT(MID(0&TableData[[#This Row],[Tillsynsbehov]], LARGE(INDEX(ISNUMBER(--MID(TableData[[#This Row],[Tillsynsbehov]],ROW(INDIRECT("$1:$"&LEN(TableData[[#This Row],[Tillsynsbehov]]))),1))* ROW(INDIRECT("$1:$"&LEN(TableData[[#This Row],[Tillsynsbehov]]))),0), ROW(INDIRECT("$1:$"&LEN(TableData[[#This Row],[Tillsynsbehov]]))))+1,1) * 10^ROW(INDIRECT("$1:$"&LEN(TableData[[#This Row],[Tillsynsbehov]])))/10),TableData[[#This Row],[Tillsynsbehov]])) -> Ange tillsynsbehov | F12: Timavgift | G12: =IF(TableData[[#This Row],[Avgift]]="Timavgift","Bilaga 3","Bilaga 2") -> Bilaga 3 | H12: =IFERROR(TableData[[#This Row],[Timmar]]*rngTimpris,"") ->  | I12: 1 | J12: JORDBRUK | K12: Övriga jordbruks- och trädgårdsföretag | L12: ="För växthus mm. (SJVFS 2004:62) är tillsynstiden "&IF(ISNUMBER($E12),$E12,"x")&" timmar." -> För växthus mm. (SJVFS 2004:62) är tillsynstiden x timmar.
A13: ="" ->  | G13: =IF(COUNTIF(G14:G16,"Bilaga 2")=0,"Bilaga 3",IF(COUNTIF(G14:G16,"Bilaga 3")=0,"Bilaga 2","")) ->  | H13: =IFERROR(TableData[[#This Row],[Timmar]]*rngTimpris,"") -> 0 | I13: 5 | J13: FISKODLING OCH ÖVERVINTRING AV FISK | K13: ="" ->  | L13: VERKSAMHETSGRUPP FISKODLING OCH ÖVERVINTRING AV FISK
A14: 5.10 | B14: B | C14: 9 | E14: =IF(TableData[[#This Row],[Tillsynsbehov]]="Ange tillsynsbehov","Ange tillsynsbehov",IF(SUM(LEN(TableData[[#This Row],[Tillsynsbehov]])-LEN(SUBSTITUTE(TableData[[#This Row],[Tillsynsbehov]], {"0";"1";"2";"3";"4";"5";"6";"7";"8";"9"}, "")))>0, SUMPRODUCT(MID(0&TableData[[#This Row],[Tillsynsbehov]], LARGE(INDEX(ISNUMBER(--MID(TableData[[#This Row],[Tillsynsbehov]],ROW(INDIRECT("$1:$"&LEN(TableData[[#This Row],[Tillsynsbehov]]))),1))* ROW(INDIRECT("$1:$"&LEN(TableData[[#This Row],[Tillsynsbehov]]))),0), ROW(INDIRECT("$1:$"&LEN(TableData[[#This Row],[Tillsynsbehov]]))))+1,1) * 10^ROW(INDIRECT("$1:$"&LEN(TableData[[#This Row],[Tillsynsbehov]])))/10),"")) -> 9 | F14: Årlig tillsynsavgift | G14: =IF(TableData[[#This Row],[Avgift]]="Timavgift","Bilaga 3","Bilaga 2") -> Bilaga 2 | H14: =IFERROR(TableData[[#This Row],[Timmar]]*rngTimpris,"") -> 9000 | I14: 5 | J14: FISKODLING OCH ÖVERVINTRING AV FISK | K14: ="" ->  | L14: ="För en verksamhet som är tillståndspliktig enligt 3 kap. 1 § miljöprövningsförordningen är tillsynstiden "&IF(ISNUMBER($E14),$E14,"x")&" timmar."&IF(TableData[[#This Row],[IUV-tillägg]]="Ja"," "&rngIUV,"") -> För en verksamhet som är tillståndspliktig enligt 3 kap. 1 § miljöprövningsförordningen är tillsynstiden 9 timmar.
A15: 5.20 | B15: C | C15: Ange tillsynsbehov | E15: =IF(TableData[[#This Row],[Tillsynsbehov]]="Ange tillsynsbehov","Ange tillsynsbehov",IF(SUM(LEN(TableData[[#This Row],[Tillsynsbehov]])-LEN(SUBSTITUTE(TableData[[#This Row],[Tillsynsbehov]], {"0";"1";"2";"3";"4";"5";"6";"7";"8";"9"}, "")))>0, SUMPRODUCT(MID(0&TableData[[#This Row],[Tillsynsbehov]], LARGE(INDEX(ISNUMBER(--MID(TableData[[#This Row],[Tillsynsbehov]],ROW(INDIRECT("$1:$"&LEN(TableData[[#This Row],[Tillsynsbehov]]))),1))* ROW(INDIRECT("$1:$"&LEN(TableData[[#This Row],[Tillsynsbehov]]))),0), ROW(INDIRECT("$1:$"&LEN(TableData[[#This Row],[Tillsynsbehov]]))))+1,1) * 10^ROW(INDIRECT("$1:$"&LEN(TableData[[#This Row],[Tillsynsbehov]])))/10),TableData[[#This Row],[Tillsynsbehov]])) -> Ange tillsynsbehov | F15: Årlig tillsynsavgift | G15: =IF(TableData[[#This Row],[Avgift]]="Timavgift","Bilaga 3","Bilaga 2") -> Bilaga 2 | H15: =IFERROR(TableData[[#This Row],[Timmar]]*rngTimpris,"") ->  | I15: 5 | J15: FISKODLING OCH ÖVERVINTRING AV FISK | K15: ="" ->  | L15: ="För en verksamhet som är anmälningspliktig enligt 3 kap. 2 § miljöprövningsförordningen är tillsynstiden "&IF(ISNUMBER($E15),$E15,"x")&" timmar."&IF(TableData[[#This Row],[IUV-tillägg]]="Ja"," "&rngIUV,"") -> För en verksamhet som är anmälningspliktig enligt 3 kap. 2 § miljöprövningsförordningen är tillsynstiden x timmar.
B16: U | C16: Ange tillsynsbehov | E16: =IF(TableData[[#This Row],[Tillsynsbehov]]="Ange tillsynsbehov","Ange tillsynsbehov",IF(LEFT(TableData[[#This Row],[Tillsynsbehov]],4)="Högt",INDEX(tblTillsynsTim,1,MATCH(TableData[[#This Row],[Prövn.- nivå]],rngTillsynsNiv,0)),IF(LEFT(TableData[[#This Row],[Tillsynsbehov]],4)="Norm",INDEX(tblTillsynsTim,2,MATCH(TableData[[#This Row],[Prövn.- nivå]],rngTillsynsNiv,0)),IF(LEFT(TableData[[#This Row],[Tillsynsbehov]],4)="Lågt",INDEX(tblTillsynsTim,3,MATCH(TableData[[#This Row],[Prövn.- nivå]],rngTillsynsNiv,0)),IF(LEFT(TableData[[#This Row],[Tillsynsbehov]],4)="Spor",INDEX(tblTillsynsTim,4,MATCH(TableData[[#This Row],[Prövn.- nivå]],rngTillsynsNiv,0)),TableData[[#This Row],[Tillsynsbehov]]))))) -> Ange tillsynsbehov | F16: Timavgift | G16: =IF(TableData[[#This Row],[Avgift]]="Timavgift","Bilaga 3","Bilaga 2") -> Bilaga 3 | H16: =IFERROR(TableData[[#This Row],[Timmar]]*rngTimpris,"") ->  | I16: 5 | J16: FISKODLING OCH ÖVERVINTRING AV FISK | K16: ="" ->  | L16: ="För verksamheter under anmälningspliktig nivå är tillsynstiden "&IF(ISNUMBER($E16),$E16,"x")&" timmar."&IF(TableData[[#This Row],[IUV-tillägg]]="Ja"," "&rngIUV,"") -> För verksamheter under anmälningspliktig nivå är tillsynstiden x timmar.
A17: ="" ->  | H17: =IFERROR(TableData[[#This Row],[Timmar]]*rngTimpris,"") -> 0 | I17: 10 | J17: UTVINNING, BRYTNING OCH BEARBETNING AV TORV, OLJA, GAS, KOL, MALM, MINERAL, BERG, NATURGRUS OCH ANNAT | K17: ="" ->  | L17: VERKSAMHETSGRUPP UTVINNING, BRYTNING OCH BEARBETNING AV TORV, OLJA, GAS, KOL, MALM, MINERAL, BERG, NATURGRUS OCH ANNAT
A18: ="" ->  | G18: =IF(COUNTIF(G19:G37,"Bilaga 2")=0,"Bilaga 3",IF(COUNTIF(G19:G37,"Bilaga 3")=0,"Bilaga 2","")) ->  | H18: =IFERROR(TableData[[#This Row],[Timmar]]*rngTimpris,"") -> 0 | I18: 10 | J18: UTVINNING, BRYTNING OCH BEARBETNING AV TORV, OLJA, GAS, KOL, MALM, MINERAL, BERG, NATURGRUS OCH ANNAT | K18: Berg, naturgrus och andra jordarter | L18: Verksamhetsgrupp Berg, naturgrus och andra jordarter
A19: 10.10 | B19: B | C19: 9 | E19: =IF(TableData[[#This Row],[Tillsynsbehov]]="Ange tillsynsbehov","Ange tillsynsbehov",IF(LEFT(TableData[[#This Row],[Tillsynsbehov]],4)="Högt",INDEX(tblTillsynsTim,1,MATCH(TableData[[#This Row],[Prövn.- nivå]],rngTillsynsNiv,0)),IF(LEFT(TableData[[#This Row],[Tillsynsbehov]],4)="Norm",INDEX(tblTillsynsTim,2,MATCH(TableData[[#This Row],[Prövn.- nivå]],rngTillsynsNiv,0)),IF(LEFT(TableData[[#This Row],[Tillsynsbehov]],4)="Lågt",INDEX(tblTillsynsTim,3,MATCH(TableData[[#This Row],[Prövn.- nivå]],rngTillsynsNiv,0)),IF(LEFT(TableData[[#This Row],[Tillsynsbehov]],4)="Spor",INDEX(tblTillsynsTim,4,MATCH(TableData[[#This Row],[Prövn.- nivå]],rngTillsynsNiv,0)),TableData[[#This Row],[Tillsynsbehov]]))))) -> 9 | F19: Årlig tillsynsavgift | G19: =IF(TableData[[#This Row],[Avgift]]="Timavgift","Bilaga 3","Bilaga 2") -> Bilaga 2 | H19: =IFERROR(TableData[[#This Row],[Timmar]]*rngTimpris,"") -> 9000 | I19: 10 | J19: UTVINNING, BRYTNING OCH BEARBETNING AV TORV, OLJA, GAS, KOL, MALM, MINERAL, BERG, NATURGRUS OCH ANNAT | K19: Berg, naturgrus och andra jordarter | L19: ="För en verksamhet som är tillståndspliktig enligt 4 kap. 1 § miljöprövningsförordningen är tillsynstiden "&IF(ISNUMBER($E19),$E19,"x")&" timmar."&IF(TableData[[#This Row],[IUV-tillägg]]="Ja"," "&rngIUV,"") -> För en verksamhet som är tillståndspliktig enligt 4 kap. 1 § miljöprövningsförordningen är tillsynstiden 9 timmar.
A20: 10.11 | B20: B | C20: 18 | E20: =IF(TableData[[#This Row],[Tillsynsbehov]]="Ange tillsynsbehov","Ange tillsynsbehov",IF(LEFT(TableData[[#This Row],[Tillsynsbehov]],4)="Högt",INDEX(tblTillsynsTim,1,MATCH(TableData[[#This Row],[Prövn.- nivå]],rngTillsynsNiv,0)),IF(LEFT(TableData[[#This Row],[Tillsynsbehov]],4)="Norm",INDEX(tblTillsynsTim,2,MATCH(TableData[[#This Row],[Prövn.- nivå]],rngTillsynsNiv,0)),IF(LEFT(TableData[[#This Row],[Tillsynsbehov]],4)="Lågt",INDEX(tblTillsynsTim,3,MATCH(TableData[[#This Row],[Prövn.- nivå]],rngTillsynsNiv,0)),IF(LEFT(TableData[[#This Row],[Tillsynsbehov]],4)="Spor",INDEX(tblTillsynsTim,4,MATCH(TableData[[#This Row],[Prövn.- nivå]],rngTillsynsNiv,0)),TableData[[#This Row],[Tillsynsbehov]]))))) -> 18 | F20: Årlig tillsynsavgift | G20: =IF(TableData[[#This Row],[Avgift]]="Timavgift","Bilaga 3","Bilaga 2") -> Bilaga 2 | H20: =IFERROR(TableData[[#This Row],[Timmar]]*rngTimpris,"") -> 18000 | I20: 10 | J20: UTVINNING, BRYTNING OCH BEARBETNING AV TORV, OLJA, GAS, KOL, MALM, MINERAL, BERG, NATURGRUS OCH ANNAT | K20: Berg, naturgrus och andra jordarter | L20: ="1. För en verksamhet som är tillståndspliktig enligt 4 kap. 2 § miljöprövningsförordningen är tillsynstiden "&IF(ISNUMBER($E20),$E20,"x")&" timmar om tillståndet gäller för mer än 200 000 ton."&IF(TableData[[#This Row],[IUV-tillägg]]="Ja"," "&rngIUV,"") -> 1. För en verksamhet som är tillståndspliktig enligt 4 kap. 2 § miljöprövningsförordningen är tillsynstiden 18 timmar om tillståndet gäller för mer än 200 000 ton.
A21: 10.11 | B21: B | C21: 18 | E21: =IF(TableData[[#This Row],[Tillsynsbehov]]="Ange tillsynsbehov","Ange tillsynsbehov",IF(LEFT(TableData[[#This Row],[Tillsynsbehov]],4)="Högt",INDEX(tblTillsynsTim,1,MATCH(TableData[[#This Row],[Prövn.- nivå]],rngTillsynsNiv,0)),IF(LEFT(TableData[[#This Row],[Tillsynsbehov]],4)="Norm",INDEX(tblTillsynsTim,2,MATCH(TableData[[#This Row],[Prövn.- nivå]],rngTillsynsNiv,0)),IF(LEFT(TableData[[#This Row],[Tillsynsbehov]],4)="Lågt",INDEX(tblTillsynsTim,3,MATCH(TableData[[#This Row],[Prövn.- nivå]],rngTillsynsNiv,0)),IF(LEFT(TableData[[#This Row],[Tillsynsbehov]],4)="Spor",INDEX(tblTillsynsTim,4,MATCH(TableData[[#This Row],[Prövn.- nivå]],rngTillsynsNiv,0)),TableData[[#This Row],[Tillsynsbehov]]))))) -> 18 | F21: Årlig tillsynsavgift | G21: =IF(TableData[[#This Row],[Avgift]]="Timavgift","Bilaga 3","Bilaga 2") -> Bilaga 2 | H21: =IFERROR(TableData[[#This Row],[Timmar]]*rngTimpris,"") -> 18000 | I21: 10 | J21: UTVINNING, BRYTNING OCH BEARBETNING AV TORV, OLJA, GAS, KOL, MALM, MINERAL, BERG, NATURGRUS OCH ANNAT | K21: Berg, naturgrus och andra jordarter | L21: ="2. För en verksamhet som är tillståndspliktig enligt 4 kap. 2 § miljöprövningsförordningen är tillsynstiden "&IF(ISNUMBER($E21),$E21,"x")&" timmar om tillståndet gäller för mer än 50 000 ton men högst 200 000 ton."&IF(TableData[[#This Row],[IUV-tillägg]]="Ja"," "&rngIUV,"") -> 2. För en verksamhet som är tillståndspliktig enligt 4 kap. 2 § miljöprövningsförordningen är tillsynstiden 18 timmar om tillståndet gäller för mer än 50 000 ton men högst 200 000 ton.
A22: 10.11 | B22: B | C22: 9 | E22: =IF(TableData[[#This Row],[Tillsynsbehov]]="Ange tillsynsbehov","Ange tillsynsbehov",IF(LEFT(TableData[[#This Row],[Tillsynsbehov]],4)="Högt",INDEX(tblTillsynsTim,1,MATCH(TableData[[#This Row],[Prövn.- nivå]],rngTillsynsNiv,0)),IF(LEFT(TableData[[#This Row],[Tillsynsbehov]],4)="Norm",INDEX(tblTillsynsTim,2,MATCH(TableData[[#This Row],[Prövn.- nivå]],rngTillsynsNiv,0)),IF(LEFT(TableData[[#This Row],[Tillsynsbehov]],4)="Lågt",INDEX(tblTillsynsTim,3,MATCH(TableData[[#This Row],[Prövn.- nivå]],rngTillsynsNiv,0)),IF(LEFT(TableData[[#This Row],[Tillsynsbehov]],4)="Spor",INDEX(tblTillsynsTim,4,MATCH(TableData[[#This Row],[Prövn.- nivå]],rngTillsynsNiv,0)),TableData[[#This Row],[Tillsynsbehov]]))))) -> 9 | F22: Årlig tillsynsavgift | G22: =IF(TableData[[#This Row],[Avgift]]="Timavgift","Bilaga 3","Bilaga 2") -> Bilaga 2 | H22: =IFERROR(TableData[[#This Row],[Timmar]]*rngTimpris,"") -> 9000 | I22: 10 | J22: UTVINNING, BRYTNING OCH BEARBETNING AV TORV, OLJA, GAS, KOL, MALM, MINERAL, BERG, NATURGRUS OCH ANNAT | K22: Berg, naturgrus och andra jordarter | L22: ="3. För en verksamhet som är tillståndspliktig enligt 4 kap. 2 § miljöprövningsförordningen är tillsynstiden "&IF(ISNUMBER($E22),$E22,"x")&" timmar om tillståndet gäller för mer än 10 000 ton men högst 50 000 ton. "&IF(TableData[[#This Row],[IUV-tillägg]]="Ja"," "&rngIUV,"") -> 3. För en verksamhet som är tillståndspliktig enligt 4 kap. 2 § miljöprövningsförordningen är tillsynstiden 9 timmar om tillståndet gäller för mer än 10 000 ton men högst 50 000 ton.
A23: 10.11 | B23: B | C23: 9 | E23: =IF(TableData[[#This Row],[Tillsynsbehov]]="Ange tillsynsbehov","Ange tillsynsbehov",IF(LEFT(TableData[[#This Row],[Tillsynsbehov]],4)="Högt",INDEX(tblTillsynsTim,1,MATCH(TableData[[#This Row],[Prövn.- nivå]],rngTillsynsNiv,0)),IF(LEFT(TableData[[#This Row],[Tillsynsbehov]],4)="Norm",INDEX(tblTillsynsTim,2,MATCH(TableData[[#This Row],[Prövn.- nivå]],rngTillsynsNiv,0)),IF(LEFT(TableData[[#This Row],[Tillsynsbehov]],4)="Lågt",INDEX(tblTillsynsTim,3,MATCH(TableData[[#This Row],[Prövn.- nivå]],rngTillsynsNiv,0)),IF(LEFT(TableData[[#This Row],[Tillsynsbehov]],4)="Spor",INDEX(tblTillsynsTim,4,MATCH(TableData[[#This Row],[Prövn.- nivå]],rngTillsynsNiv,0)),TableData[[#This Row],[Tillsynsbehov]]))))) -> 9 | F23: Årlig tillsynsavgift | G23: =IF(TableData[[#This Row],[Avgift]]="Timavgift","Bilaga 3","Bilaga 2") -> Bilaga 2 | H23: =IFERROR(TableData[[#This Row],[Timmar]]*rngTimpris,"") -> 9000 | I23: 10 | J23: UTVINNING, BRYTNING OCH BEARBETNING AV TORV, OLJA, GAS, KOL, MALM, MINERAL, BERG, NATURGRUS OCH ANNAT | K23: Berg, naturgrus och andra jordarter | L23: =" 4. För en verksamhet som är tillståndspliktig enligt 4 kap. 2 § miljöprövningsförordningen är tillsynstiden "&IF(ISNUMBER($E23),$E23,"x")&" timmar, om tillståndet gäller för mer än 5 000 ton men högst 10 000 ton."&IF(TableData[[#This Row],[IUV-tillägg]]="Ja"," "&rngIUV,"") -> 4. För en verksamhet som är tillståndspliktig enligt 4 kap. 2 § miljöprövningsförordningen är tillsynstiden 9 timmar, om tillståndet gäller för mer än 5 000 ton men högst 10 000 ton.
A24: 10.11 | B24: B | C24: 6 | E24: =IF(TableData[[#This Row],[Tillsynsbehov]]="Ange tillsynsbehov","Ange tillsynsbehov",IF(LEFT(TableData[[#This Row],[Tillsynsbehov]],4)="Högt",INDEX(tblTillsynsTim,1,MATCH(TableData[[#This Row],[Prövn.- nivå]],rngTillsynsNiv,0)),IF(LEFT(TableData[[#This Row],[Tillsynsbehov]],4)="Norm",INDEX(tblTillsynsTim,2,MATCH(TableData[[#This Row],[Prövn.- nivå]],rngTillsynsNiv,0)),IF(LEFT(TableData[[#This Row],[Tillsynsbehov]],4)="Lågt",INDEX(tblTillsynsTim,3,MATCH(TableData[[#This Row],[Prövn.- nivå]],rngTillsynsNiv,0)),IF(LEFT(TableData[[#This Row],[Tillsynsbehov]],4)="Spor",INDEX(tblTillsynsTim,4,MATCH(TableData[[#This Row],[Prövn.- nivå]],rngTillsynsNiv,0)),TableData[[#This Row],[Tillsynsbehov]]))))) -> 6 | F24: Årlig tillsynsavgift | G24: =IF(TableData[[#This Row],[Avgift]]="Timavgift","Bilaga 3","Bilaga 2") -> Bilaga 2 | H24: =IFERROR(TableData[[#This Row],[Timmar]]*rngTimpris,"") -> 6000 | I24: 10 | J24: UTVINNING, BRYTNING OCH BEARBETNING AV TORV, OLJA, GAS, KOL, MALM, MINERAL, BERG, NATURGRUS OCH ANNAT | K24: Berg, naturgrus och andra jordarter | L24: ="5. För en verksamhet som är tillståndspliktig enligt 4 kap. 2 § miljöprövningsförordningen är tillsynstiden "&IF(ISNUMBER($E24),$E24,"x")&" timmar om tillståndet gäller för mer än 1 000 ton men högst 5 000 ton."&IF(TableData[[#This Row],[IUV-tillägg]]="Ja"," "&rngIUV,"") -> 5. För en verksamhet som är tillståndspliktig enligt 4 kap. 2 § miljöprövningsförordningen är tillsynstiden 6 timmar om tillståndet gäller för mer än 1 000 ton men högst 5 000 ton.
A25: 10.11 | B25: B | C25: 6 | E25: =IF(TableData[[#This Row],[Tillsynsbehov]]="Ange tillsynsbehov","Ange tillsynsbehov",IF(LEFT(TableData[[#This Row],[Tillsynsbehov]],4)="Högt",INDEX(tblTillsynsTim,1,MATCH(TableData[[#This Row],[Prövn.- nivå]],rngTillsynsNiv,0)),IF(LEFT(TableData[[#This Row],[Tillsynsbehov]],4)="Norm",INDEX(tblTillsynsTim,2,MATCH(TableData[[#This Row],[Prövn.- nivå]],rngTillsynsNiv,0)),IF(LEFT(TableData[[#This Row],[Tillsynsbehov]],4)="Lågt",INDEX(tblTillsynsTim,3,MATCH(TableData[[#This Row],[Prövn.- nivå]],rngTillsynsNiv,0)),IF(LEFT(TableData[[#This Row],[Tillsynsbehov]],4)="Spor",INDEX(tblTillsynsTim,4,MATCH(TableData[[#This Row],[Prövn.- nivå]],rngTillsynsNiv,0)),TableData[[#This Row],[Tillsynsbehov]]))))) -> 6 | F25: Årlig tillsynsavgift | G25: =IF(TableData[[#This Row],[Avgift]]="Timavgift","Bilaga 3","Bilaga 2") -> Bilaga 2 | H25: =IFERROR(TableData[[#This Row],[Timmar]]*rngTimpris,"") -> 6000 | I25: 10 | J25: UTVINNING, BRYTNING OCH BEARBETNING AV TORV, OLJA, GAS, KOL, MALM, MINERAL, BERG, NATURGRUS OCH ANNAT | K25: Berg, naturgrus och andra jordarter | L25: ="6. För en verksamhet som är tillståndspliktig enligt 4 kap. 2 § miljöprövningsförordningen är tillsynstiden "&IF(ISNUMBER($E25),$E25,"x")&" timmar om tillståndet inte omfattas av någon av 1-5."&IF(TableData[[#This Row],[IUV-tillägg]]="Ja"," "&rngIUV,"") -> 6. För en verksamhet som är tillståndspliktig enligt 4 kap. 2 § miljöprövningsförordningen är tillsynstiden 6 timmar om tillståndet inte omfattas av någon av 1-5.
A26: 10.20 | B26: B | C26: 9 | E26: =IF(TableData[[#This Row],[Tillsynsbehov]]="Ange tillsynsbehov","Ange tillsynsbehov",IF(LEFT(TableData[[#This Row],[Tillsynsbehov]],4)="Högt",INDEX(tblTillsynsTim,1,MATCH(TableData[[#This Row],[Prövn.- nivå]],rngTillsynsNiv,0)),IF(LEFT(TableData[[#This Row],[Tillsynsbehov]],4)="Norm",INDEX(tblTillsynsTim,2,MATCH(TableData[[#This Row],[Prövn.- nivå]],rngTillsynsNiv,0)),IF(LEFT(TableData[[#This Row],[Tillsynsbehov]],4)="Lågt",INDEX(tblTillsynsTim,3,MATCH(TableData[[#This Row],[Prövn.- nivå]],rngTillsynsNiv,0)),IF(LEFT(TableData[[#This Row],[Tillsynsbehov]],4)="Spor",INDEX(tblTillsynsTim,4,MATCH(TableData[[#This Row],[Prövn.- nivå]],rngTillsynsNiv,0)),TableData[[#This Row],[Tillsynsbehov]]))))) -> 9 | F26: Årlig tillsynsavgift | G26: =IF(TableData[[#This Row],[Avgift]]="Timavgift","Bilaga 3","Bilaga 2") -> Bilaga 2 | H26: =IFERROR(TableData[[#This Row],[Timmar]]*rngTimpris,"") -> 9000 | I26: 10 | J26: UTVINNING, BRYTNING OCH BEARBETNING AV TORV, OLJA, GAS, KOL, MALM, MINERAL, BERG, NATURGRUS OCH ANNAT | K26: Berg, naturgrus och andra jordarter | L26: ="1. För en verksamhet som är tillståndspliktig enligt 4 kap. 3 § miljöprövningsförordningen är tillsynstiden "&IF(ISNUMBER($E26),$E26,"x")&" timmar för täkt av torv."&IF(TableData[[#This Row],[IUV-tillägg]]="Ja"," "&rngIUV,"") -> 1. För en verksamhet som är tillståndspliktig enligt 4 kap. 3 § miljöprövningsförordningen är tillsynstiden 9 timmar för täkt av torv.
A27: 10.20 | B27: B | C27: 18 | E27: =IF(TableData[[#This Row],[Tillsynsbehov]]="Ange tillsynsbehov","Ange tillsynsbehov",IF(LEFT(TableData[[#This Row],[Tillsynsbehov]],4)="Högt",INDEX(tblTillsynsTim,1,MATCH(TableData[[#This Row],[Prövn.- nivå]],rngTillsynsNiv,0)),IF(LEFT(TableData[[#This Row],[Tillsynsbehov]],4)="Norm",INDEX(tblTillsynsTim,2,MATCH(TableData[[#This Row],[Prövn.- nivå]],rngTillsynsNiv,0)),IF(LEFT(TableData[[#This Row],[Tillsynsbehov]],4)="Lågt",INDEX(tblTillsynsTim,3,MATCH(TableData[[#This Row],[Prövn.- nivå]],rngTillsynsNiv,0)),IF(LEFT(TableData[[#This Row],[Tillsynsbehov]],4)="Spor",INDEX(tblTillsynsTim,4,MATCH(TableData[[#This Row],[Prövn.- nivå]],rngTillsynsNiv,0)),TableData[[#This Row],[Tillsynsbehov]]))))) -> 18 | F27: Årlig tillsynsavgift | G27: =IF(TableData[[#This Row],[Avgift]]="Timavgift","Bilaga 3","Bilaga 2") -> Bilaga 2 | H27: =IFERROR(TableData[[#This Row],[Timmar]]*rngTimpris,"") -> 18000 | I27: 10 | J27: UTVINNING, BRYTNING OCH BEARBETNING AV TORV, OLJA, GAS, KOL, MALM, MINERAL, BERG, NATURGRUS OCH ANNAT | K27: Berg, naturgrus och andra jordarter | L27: ="2. För en verksamhet som är tillståndspliktig enligt 4 kap. 3 § miljöprövningsförordningen är tillsynstiden "&IF(ISNUMBER($E27),$E27,"x")&" timmar för annan täkt än som avses i 1, om tillståndet gäller för mer än 200 000 ton."&IF(TableData[[#This Row],[IUV-tillägg]]="Ja"," "&rngIUV,"") -> 2. För en verksamhet som är tillståndspliktig enligt 4 kap. 3 § miljöprövningsförordningen är tillsynstiden 18 timmar för annan täkt än som avses i 1, om tillståndet gäller för mer än 200 000 ton.
A28: 10.20 | B28: B | C28: 18 | E28: =IF(TableData[[#This Row],[Tillsynsbehov]]="Ange tillsynsbehov","Ange tillsynsbehov",IF(LEFT(TableData[[#This Row],[Tillsynsbehov]],4)="Högt",INDEX(tblTillsynsTim,1,MATCH(TableData[[#This Row],[Prövn.- nivå]],rngTillsynsNiv,0)),IF(LEFT(TableData[[#This Row],[Tillsynsbehov]],4)="Norm",INDEX(tblTillsynsTim,2,MATCH(TableData[[#This Row],[Prövn.- nivå]],rngTillsynsNiv,0)),IF(LEFT(TableData[[#This Row],[Tillsynsbehov]],4)="Lågt",INDEX(tblTillsynsTim,3,MATCH(TableData[[#This Row],[Prövn.- nivå]],rngTillsynsNiv,0)),IF(LEFT(TableData[[#This Row],[Tillsynsbehov]],4)="Spor",INDEX(tblTillsynsTim,4,MATCH(TableData[[#This Row],[Prövn.- nivå]],rngTillsynsNiv,0)),TableData[[#This Row],[Tillsynsbehov]]))))) -> 18 | F28: Årlig tillsynsavgift | G28: =IF(TableData[[#This Row],[Avgift]]="Timavgift","Bilaga 3","Bilaga 2") -> Bilaga 2 | H28: =IFERROR(TableData[[#This Row],[Timmar]]*rngTimpris,"") -> 18000 | I28: 10 | J28: UTVINNING, BRYTNING OCH BEARBETNING AV TORV, OLJA, GAS, KOL, MALM, MINERAL, BERG, NATURGRUS OCH ANNAT | K28: Berg, naturgrus och andra jordarter | L28: ="3. För en verksamhet som är tillståndspliktig enligt 4 kap. 3 § miljöprövningsförordningen är tillsynstiden "&IF(ISNUMBER($E28),$E28,"x")&" timmar för annan täkt än som avses i 1, om tillståndet gäller för mer än 50 000 ton men högst 200 000 ton."&IF(TableData[[#This Row],[IUV-tillägg]]="Ja"," "&rngIUV,"") -> 3. För en verksamhet som är tillståndspliktig enligt 4 kap. 3 § miljöprövningsförordningen är tillsynstiden 18 timmar för annan täkt än som avses i 1, om tillståndet gäller för mer än 50 000 ton men högst 200 000 ton.
A29: 10.20 | B29: B | C29: 9 | E29: =IF(TableData[[#This Row],[Tillsynsbehov]]="Ange tillsynsbehov","Ange tillsynsbehov",IF(LEFT(TableData[[#This Row],[Tillsynsbehov]],4)="Högt",INDEX(tblTillsynsTim,1,MATCH(TableData[[#This Row],[Prövn.- nivå]],rngTillsynsNiv,0)),IF(LEFT(TableData[[#This Row],[Tillsynsbehov]],4)="Norm",INDEX(tblTillsynsTim,2,MATCH(TableData[[#This Row],[Prövn.- nivå]],rngTillsynsNiv,0)),IF(LEFT(TableData[[#This Row],[Tillsynsbehov]],4)="Lågt",INDEX(tblTillsynsTim,3,MATCH(TableData[[#This Row],[Prövn.- nivå]],rngTillsynsNiv,0)),IF(LEFT(TableData[[#This Row],[Tillsynsbehov]],4)="Spor",INDEX(tblTillsynsTim,4,MATCH(TableData[[#This Row],[Prövn.- nivå]],rngTillsynsNiv,0)),TableData[[#This Row],[Tillsynsbehov]]))))) -> 9 | F29: Årlig tillsynsavgift | G29: =IF(TableData[[#This Row],[Avgift]]="Timavgift","Bilaga 3","Bilaga 2") -> Bilaga 2 | H29: =IFERROR(TableData[[#This Row],[Timmar]]*rngTimpris,"") -> 9000 | I29: 10 | J29: UTVINNING, BRYTNING OCH BEARBETNING AV TORV, OLJA, GAS, KOL, MALM, MINERAL, BERG, NATURGRUS OCH ANNAT | K29: Berg, naturgrus och andra jordarter | L29: ="4. För en verksamhet som är tillståndspliktig enligt 4 kap. 3 § miljöprövningsförordningen är tillsynstiden "&IF(ISNUMBER($E29),$E29,"x")&" timmar för annan täkt än som avses i 1, om tillståndet gäller för mer än 10 000 ton men högst 50 000 ton."&IF(TableData[[#This Row],[IUV-tillägg]]="Ja"," "&rngIUV,"") -> 4. För en verksamhet som är tillståndspliktig enligt 4 kap. 3 § miljöprövningsförordningen är tillsynstiden 9 timmar för annan täkt än som avses i 1, om tillståndet gäller för mer än 10 000 ton men högst 50 000 ton.
A30: 10.20 | B30: B | C30: 9 | E30: =IF(TableData[[#This Row],[Tillsynsbehov]]="Ange tillsynsbehov","Ange tillsynsbehov",IF(LEFT(TableData[[#This Row],[Tillsynsbehov]],4)="Högt",INDEX(tblTillsynsTim,1,MATCH(TableData[[#This Row],[Prövn.- nivå]],rngTillsynsNiv,0)),IF(LEFT(TableData[[#This Row],[Tillsynsbehov]],4)="Norm",INDEX(tblTillsynsTim,2,MATCH(TableData[[#This Row],[Prövn.- nivå]],rngTillsynsNiv,0)),IF(LEFT(TableData[[#This Row],[Tillsynsbehov]],4)="Lågt",INDEX(tblTillsynsTim,3,MATCH(TableData[[#This Row],[Prövn.- nivå]],rngTillsynsNiv,0)),IF(LEFT(TableData[[#This Row],[Tillsynsbehov]],4)="Spor",INDEX(tblTillsynsTim,4,MATCH(TableData[[#This Row],[Prövn.- nivå]],rngTillsynsNiv,0)),TableData[[#This Row],[Tillsynsbehov]]))))) -> 9 | F30: Årlig tillsynsavgift | G30: =IF(TableData[[#This Row],[Avgift]]="Timavgift","Bilaga 3","Bilaga 2") -> Bilaga 2 | H30: =IFERROR(TableData[[#This Row],[Timmar]]*rngTimpris,"") -> 9000 | I30: 10 | J30: UTVINNING, BRYTNING OCH BEARBETNING AV TORV, OLJA, GAS, KOL, MALM, MINERAL, BERG, NATURGRUS OCH ANNAT | K30: Berg, naturgrus och andra jordarter | L30: ="5. För en verksamhet som är tillståndspliktig enligt 4 kap. 3 § miljöprövningsförordningen är tillsynstiden "&IF(ISNUMBER($E30),$E30,"x")&" timmar för annan täkt än som avses i 1, om tillståndet gäller för mer än 5 000 ton men högst 10 000 ton."&IF(TableData[[#This Row],[IUV-tillägg]]="Ja"," "&rngIUV,"") -> 5. För en verksamhet som är tillståndspliktig enligt 4 kap. 3 § miljöprövningsförordningen är tillsynstiden 9 timmar för annan täkt än som avses i 1, om tillståndet gäller för mer än 5 000 ton men högst 10 000 ton.
A31: 10.20 | B31: B | C31: 6 | E31: =IF(TableData[[#This Row],[Tillsynsbehov]]="Ange tillsynsbehov","Ange tillsynsbehov",IF(LEFT(TableData[[#This Row],[Tillsynsbehov]],4)="Högt",INDEX(tblTillsynsTim,1,MATCH(TableData[[#This Row],[Prövn.- nivå]],rngTillsynsNiv,0)),IF(LEFT(TableData[[#This Row],[Tillsynsbehov]],4)="Norm",INDEX(tblTillsynsTim,2,MATCH(TableData[[#This Row],[Prövn.- nivå]],rngTillsynsNiv,0)),IF(LEFT(TableData[[#This Row],[Tillsynsbehov]],4)="Lågt",INDEX(tblTillsynsTim,3,MATCH(TableData[[#This Row],[Prövn.- nivå]],rngTillsynsNiv,0)),IF(LEFT(TableData[[#This Row],[Tillsynsbehov]],4)="Spor",INDEX(tblTillsynsTim,4,MATCH(TableData[[#This Row],[Prövn.- nivå]],rngTillsynsNiv,0)),TableData[[#This Row],[Tillsynsbehov]]))))) -> 6 | F31: Årlig tillsynsavgift | G31: =IF(TableData[[#This Row],[Avgift]]="Timavgift","Bilaga 3","Bilaga 2") -> Bilaga 2 | H31: =IFERROR(TableData[[#This Row],[Timmar]]*rngTimpris,"") -> 6000 | I31: 10 | J31: UTVINNING, BRYTNING OCH BEARBETNING AV TORV, OLJA, GAS, KOL, MALM, MINERAL, BERG, NATURGRUS OCH ANNAT | K31: Berg, naturgrus och andra jordarter | L31: ="6. För en verksamhet som är tillståndspliktig enligt 4 kap. 3 § miljöprövningsförordningen är tillsynstiden "&IF(ISNUMBER($E31),$E31,"x")&" timmar för annan täkt än som avses i 1, om tillståndet gäller för mer än 1 000 ton men högst 5 000 ton."&IF(TableData[[#This Row],[IUV-tillägg]]="Ja"," "&rngIUV,"") -> 6. För en verksamhet som är tillståndspliktig enligt 4 kap. 3 § miljöprövningsförordningen är tillsynstiden 6 timmar för annan täkt än som avses i 1, om tillståndet gäller för mer än 1 000 ton men högst 5 000 ton.
A32: 10.20 | B32: B | C32: 6 | E32: =IF(TableData[[#This Row],[Tillsynsbehov]]="Ange tillsynsbehov","Ange tillsynsbehov",IF(LEFT(TableData[[#This Row],[Tillsynsbehov]],4)="Högt",INDEX(tblTillsynsTim,1,MATCH(TableData[[#This Row],[Prövn.- nivå]],rngTillsynsNiv,0)),IF(LEFT(TableData[[#This Row],[Tillsynsbehov]],4)="Norm",INDEX(tblTillsynsTim,2,MATCH(TableData[[#This Row],[Prövn.- nivå]],rngTillsynsNiv,0)),IF(LEFT(TableData[[#This Row],[Tillsynsbehov]],4)="Lågt",INDEX(tblTillsynsTim,3,MATCH(TableData[[#This Row],[Prövn.- nivå]],rngTillsynsNiv,0)),IF(LEFT(TableData[[#This Row],[Tillsynsbehov]],4)="Spor",INDEX(tblTillsynsTim,4,MATCH(TableData[[#This Row],[Prövn.- nivå]],rngTillsynsNiv,0)),TableData[[#This Row],[Tillsynsbehov]]))))) -> 6 | F32: Årlig tillsynsavgift | G32: =IF(TableData[[#This Row],[Avgift]]="Timavgift","Bilaga 3","Bilaga 2") -> Bilaga 2 | H32: =IFERROR(TableData[[#This Row],[Timmar]]*rngTimpris,"") -> 6000 | I32: 10 | J32: UTVINNING, BRYTNING OCH BEARBETNING AV TORV, OLJA, GAS, KOL, MALM, MINERAL, BERG, NATURGRUS OCH ANNAT | K32: Berg, naturgrus och andra jordarter | L32: ="7. För en verksamhet som är tillståndspliktig enligt 4 kap. 3 § miljöprövningsförordningen är tillsynstiden "&IF(ISNUMBER($E32),$E32,"x")&" timmar för annan täkt än som avses i 1, om tillståndet inte omfattas av någon av 1-6."&IF(TableData[[#This Row],[IUV-tillägg]]="Ja"," "&rngIUV,"") -> 7. För en verksamhet som är tillståndspliktig enligt 4 kap. 3 § miljöprövningsförordningen är tillsynstiden 6 timmar för annan täkt än som avses i 1, om tillståndet inte omfattas av någon av 1-6.
A33: 10.30 | B33: C | C33: Ange tillsynsbehov | E33: =IF(TableData[[#This Row],[Tillsynsbehov]]="Ange tillsynsbehov","Ange tillsynsbehov",IF(SUM(LEN(TableData[[#This Row],[Tillsynsbehov]])-LEN(SUBSTITUTE(TableData[[#This Row],[Tillsynsbehov]], {"0";"1";"2";"3";"4";"5";"6";"7";"8";"9"}, "")))>0, SUMPRODUCT(MID(0&TableData[[#This Row],[Tillsynsbehov]], LARGE(INDEX(ISNUMBER(--MID(TableData[[#This Row],[Tillsynsbehov]],ROW(INDIRECT("$1:$"&LEN(TableData[[#This Row],[Tillsynsbehov]]))),1))* ROW(INDIRECT("$1:$"&LEN(TableData[[#This Row],[Tillsynsbehov]]))),0), ROW(INDIRECT("$1:$"&LEN(TableData[[#This Row],[Tillsynsbehov]]))))+1,1) * 10^ROW(INDIRECT("$1:$"&LEN(TableData[[#This Row],[Tillsynsbehov]])))/10),TableData[[#This Row],[Tillsynsbehov]])) -> Ange tillsynsbehov | F33: Årlig tillsynsavgift | G33: =IF(TableData[[#This Row],[Avgift]]="Timavgift","Bilaga 3","Bilaga 2") -> Bilaga 2 | H33: =IFERROR(TableData[[#This Row],[Timmar]]*rngTimpris,"") ->  | I33: 10 | J33: UTVINNING, BRYTNING OCH BEARBETNING AV TORV, OLJA, GAS, KOL, MALM, MINERAL, BERG, NATURGRUS OCH ANNAT | K33: Berg, naturgrus och andra jordarter | L33: ="För en verksamhet som är anmälningspliktig enligt 4 kap. 4 § miljöprövningsförordningen är tillsynstiden "&IF(ISNUMBER($E33),$E33,"x")&" timmar."&IF(TableData[[#This Row],[IUV-tillägg]]="Ja"," "&rngIUV,"") -> För en verksamhet som är anmälningspliktig enligt 4 kap. 4 § miljöprövningsförordningen är tillsynstiden x timmar.
A34: 10.40 | B34: C | C34: Ange tillsynsbehov | E34: =IF(TableData[[#This Row],[Tillsynsbehov]]="Ange tillsynsbehov","Ange tillsynsbehov",IF(SUM(LEN(TableData[[#This Row],[Tillsynsbehov]])-LEN(SUBSTITUTE(TableData[[#This Row],[Tillsynsbehov]], {"0";"1";"2";"3";"4";"5";"6";"7";"8";"9"}, "")))>0, SUMPRODUCT(MID(0&TableData[[#This Row],[Tillsynsbehov]], LARGE(INDEX(ISNUMBER(--MID(TableData[[#This Row],[Tillsynsbehov]],ROW(INDIRECT("$1:$"&LEN(TableData[[#This Row],[Tillsynsbehov]]))),1))* ROW(INDIRECT("$1:$"&LEN(TableData[[#This Row],[Tillsynsbehov]]))),0), ROW(INDIRECT("$1:$"&LEN(TableData[[#This Row],[Tillsynsbehov]]))))+1,1) * 10^ROW(INDIRECT("$1:$"&LEN(TableData[[#This Row],[Tillsynsbehov]])))/10),TableData[[#This Row],[Tillsynsbehov]])) -> Ange tillsynsbehov | F34: Årlig tillsynsavgift | G34: =IF(TableData[[#This Row],[Avgift]]="Timavgift","Bilaga 3","Bilaga 2") -> Bilaga 2 | H34: =IFERROR(TableData[[#This Row],[Timmar]]*rngTimpris,"") ->  | I34: 10 | J34: UTVINNING, BRYTNING OCH BEARBETNING AV TORV, OLJA, GAS, KOL, MALM, MINERAL, BERG, NATURGRUS OCH ANNAT | K34: Berg, naturgrus och andra jordarter | L34: ="För en verksamhet som är anmälningspliktig enligt 4 kap. 5 § miljöprövningsförordningen är tillsynstiden "&IF(ISNUMBER($E34),$E34,"x")&" timmar."&IF(TableData[[#This Row],[IUV-tillägg]]="Ja"," "&rngIUV,"") -> För en verksamhet som är anmälningspliktig enligt 4 kap. 5 § miljöprövningsförordningen är tillsynstiden x timmar.
A35: 10.50 | B35: C | C35: Ange tillsynsbehov | E35: =IF(TableData[[#This Row],[Tillsynsbehov]]="Ange tillsynsbehov","Ange tillsynsbehov",IF(SUM(LEN(TableData[[#This Row],[Tillsynsbehov]])-LEN(SUBSTITUTE(TableData[[#This Row],[Tillsynsbehov]], {"0";"1";"2";"3";"4";"5";"6";"7";"8";"9"}, "")))>0, SUMPRODUCT(MID(0&TableData[[#This Row],[Tillsynsbehov]], LARGE(INDEX(ISNUMBER(--MID(TableData[[#This Row],[Tillsynsbehov]],ROW(INDIRECT("$1:$"&LEN(TableData[[#This Row],[Tillsynsbehov]]))),1))* ROW(INDIRECT("$1:$"&LEN(TableData[[#This Row],[Tillsynsbehov]]))),0), ROW(INDIRECT("$1:$"&LEN(TableData[[#This Row],[Tillsynsbehov]]))))+1,1) * 10^ROW(INDIRECT("$1:$"&LEN(TableData[[#This Row],[Tillsynsbehov]])))/10),TableData[[#This Row],[Tillsynsbehov]])) -> Ange tillsynsbehov | F35: Årlig tillsynsavgift | G35: =IF(TableData[[#This Row],[Avgift]]="Timavgift","Bilaga 3","Bilaga 2") -> Bilaga 2 | H35: =IFERROR(TableData[[#This Row],[Timmar]]*rngTimpris,"") ->  | I35: 10 | J35: UTVINNING, BRYTNING OCH BEARBETNING AV TORV, OLJA, GAS, KOL, MALM, MINERAL, BERG, NATURGRUS OCH ANNAT | K35: Berg, naturgrus och andra jordarter | L35: ="För en verksamhet som är anmälningspliktig enligt 4 kap. 6 § miljöprövningsförordningen är tillsynstiden "&IF(ISNUMBER($E35),$E35,"x")&" timmar."&IF(TableData[[#This Row],[IUV-tillägg]]="Ja"," "&rngIUV,"") -> För en verksamhet som är anmälningspliktig enligt 4 kap. 6 § miljöprövningsförordningen är tillsynstiden x timmar.
A36: 10.60 | B36: C | C36: Ange tillsynsbehov | E36: =IF(TableData[[#This Row],[Tillsynsbehov]]="Ange tillsynsbehov","Ange tillsynsbehov",IF(SUM(LEN(TableData[[#This Row],[Tillsynsbehov]])-LEN(SUBSTITUTE(TableData[[#This Row],[Tillsynsbehov]], {"0";"1";"2";"3";"4";"5";"6";"7";"8";"9"}, "")))>0, SUMPRODUCT(MID(0&TableData[[#This Row],[Tillsynsbehov]], LARGE(INDEX(ISNUMBER(--MID(TableData[[#This Row],[Tillsynsbehov]],ROW(INDIRECT("$1:$"&LEN(TableData[[#This Row],[Tillsynsbehov]]))),1))* ROW(INDIRECT("$1:$"&LEN(TableData[[#This Row],[Tillsynsbehov]]))),0), ROW(INDIRECT("$1:$"&LEN(TableData[[#This Row],[Tillsynsbehov]]))))+1,1) * 10^ROW(INDIRECT("$1:$"&LEN(TableData[[#This Row],[Tillsynsbehov]])))/10),TableData[[#This Row],[Tillsynsbehov]])) -> Ange tillsynsbehov | F36: Årlig tillsynsavgift | G36: =IF(TableData[[#This Row],[Avgift]]="Timavgift","Bilaga 3","Bilaga 2") -> Bilaga 2 | H36: =IFERROR(TableData[[#This Row],[Timmar]]*rngTimpris,"") ->  | I36: 10 | J36: UTVINNING, BRYTNING OCH BEARBETNING AV TORV, OLJA, GAS, KOL, MALM, MINERAL, BERG, NATURGRUS OCH ANNAT | K36: Berg, naturgrus och andra jordarter | L36: ="För en verksamhet som är anmälningspliktig enligt 4 kap. 7 § miljöprövningsförordningen är tillsynstiden "&IF(ISNUMBER($E36),$E36,"x")&" timmar."&IF(TableData[[#This Row],[IUV-tillägg]]="Ja"," "&rngIUV,"") -> För en verksamhet som är anmälningspliktig enligt 4 kap. 7 § miljöprövningsförordningen är tillsynstiden x timmar.
B37: U | C37: Ange tillsynsbehov | E37: =IF(TableData[[#This Row],[Tillsynsbehov]]="Ange tillsynsbehov","Ange tillsynsbehov",IF(SUM(LEN(TableData[[#This Row],[Tillsynsbehov]])-LEN(SUBSTITUTE(TableData[[#This Row],[Tillsynsbehov]], {"0";"1";"2";"3";"4";"5";"6";"7";"8";"9"}, "")))>0, SUMPRODUCT(MID(0&TableData[[#This Row],[Tillsynsbehov]], LARGE(INDEX(ISNUMBER(--MID(TableData[[#This Row],[Tillsynsbehov]],ROW(INDIRECT("$1:$"&LEN(TableData[[#This Row],[Tillsynsbehov]]))),1))* ROW(INDIRECT("$1:$"&LEN(TableData[[#This Row],[Tillsynsbehov]]))),0), ROW(INDIRECT("$1:$"&LEN(TableData[[#This Row],[Tillsynsbehov]]))))+1,1) * 10^ROW(INDIRECT("$1:$"&LEN(TableData[[#This Row],[Tillsynsbehov]])))/10),TableData[[#This Row],[Tillsynsbehov]])) -> Ange tillsynsbehov | F37: Timavgift | G37: =IF(TableData[[#This Row],[Avgift]]="Timavgift","Bilaga 3","Bilaga 2") -> Bilaga 3 | H37: =IFERROR(TableData[[#This Row],[Timmar]]*rngTimpris,"") ->  | I37: 10 | J37: UTVINNING, BRYTNING OCH BEARBETNING AV TORV, OLJA, GAS, KOL, MALM, MINERAL, BERG, NATURGRUS OCH ANNAT | K37: Berg, naturgrus och andra jordarter | L37: ="För verksamheter under anmälningspliktig nivå är tillsynstiden "&IF(ISNUMBER($E37),$E37,"x")&" timmar."&IF(TableData[[#This Row],[IUV-tillägg]]="Ja"," "&rngIUV,"") -> För verksamheter under anmälningspliktig nivå är tillsynstiden x timmar.
A38: ="" ->  | G38: =IF(COUNTIF(G39:G43,"Bilaga 2")=0,"Bilaga 3",IF(COUNTIF(G39:G43,"Bilaga 3")=0,"Bilaga 2","")) ->  | H38: =IFERROR(TableData[[#This Row],[Timmar]]*rngTimpris,"") -> 0 | I38: 11 | J38: UTVINNING, BRYTNING OCH BEARBETNING AV TORV, OLJA, GAS, KOL, MALM, MINERAL, BERG, NATURGRUS OCH ANNAT | K38: Råpetroleum, naturgas och kol | L38: Verksamhetsgrupp Råpetroleum, naturgas och kol
A39: 11.10 | B39: A | C39: 30 | E39: =IF(TableData[[#This Row],[Tillsynsbehov]]="Ange tillsynsbehov","Ange tillsynsbehov",IF(LEFT(TableData[[#This Row],[Tillsynsbehov]],4)="Högt",INDEX(tblTillsynsTim,1,MATCH(TableData[[#This Row],[Prövn.- nivå]],rngTillsynsNiv,0)),IF(LEFT(TableData[[#This Row],[Tillsynsbehov]],4)="Norm",INDEX(tblTillsynsTim,2,MATCH(TableData[[#This Row],[Prövn.- nivå]],rngTillsynsNiv,0)),IF(LEFT(TableData[[#This Row],[Tillsynsbehov]],4)="Lågt",INDEX(tblTillsynsTim,3,MATCH(TableData[[#This Row],[Prövn.- nivå]],rngTillsynsNiv,0)),IF(LEFT(TableData[[#This Row],[Tillsynsbehov]],4)="Spor",INDEX(tblTillsynsTim,4,MATCH(TableData[[#This Row],[Prövn.- nivå]],rngTillsynsNiv,0)),TableData[[#This Row],[Tillsynsbehov]]))))) -> 30 | F39: Årlig tillsynsavgift | G39: =IF(TableData[[#This Row],[Avgift]]="Timavgift","Bilaga 3","Bilaga 2") -> Bilaga 2 | H39: =IFERROR(TableData[[#This Row],[Timmar]]*rngTimpris,"") -> 30000 | I39: 11 | J39: UTVINNING, BRYTNING OCH BEARBETNING AV TORV, OLJA, GAS, KOL, MALM, MINERAL, BERG, NATURGRUS OCH ANNAT | K39: Råpetroleum, naturgas och kol | L39: ="För en verksamhet som är tillståndspliktig enligt 4 kap. 8 § miljöprövningsförordningen är tillsynstiden "&IF(ISNUMBER($E39),$E39,"x")&" timmar."&IF(TableData[[#This Row],[IUV-tillägg]]="Ja"," "&rngIUV,"") -> För en verksamhet som är tillståndspliktig enligt 4 kap. 8 § miljöprövningsförordningen är tillsynstiden 30 timmar.
A40: 11.20 | B40: B | C40: 13 | E40: =IF(TableData[[#This Row],[Tillsynsbehov]]="Ange tillsynsbehov","Ange tillsynsbehov",IF(LEFT(TableData[[#This Row],[Tillsynsbehov]],4)="Högt",INDEX(tblTillsynsTim,1,MATCH(TableData[[#This Row],[Prövn.- nivå]],rngTillsynsNiv,0)),IF(LEFT(TableData[[#This Row],[Tillsynsbehov]],4)="Norm",INDEX(tblTillsynsTim,2,MATCH(TableData[[#This Row],[Prövn.- nivå]],rngTillsynsNiv,0)),IF(LEFT(TableData[[#This Row],[Tillsynsbehov]],4)="Lågt",INDEX(tblTillsynsTim,3,MATCH(TableData[[#This Row],[Prövn.- nivå]],rngTillsynsNiv,0)),IF(LEFT(TableData[[#This Row],[Tillsynsbehov]],4)="Spor",INDEX(tblTillsynsTim,4,MATCH(TableData[[#This Row],[Prövn.- nivå]],rngTillsynsNiv,0)),TableData[[#This Row],[Tillsynsbehov]]))))) -> 13 | F40: Årlig tillsynsavgift | G40: =IF(TableData[[#This Row],[Avgift]]="Timavgift","Bilaga 3","Bilaga 2") -> Bilaga 2 | H40: =IFERROR(TableData[[#This Row],[Timmar]]*rngTimpris,"") -> 13000 | I40: 11 | J40: UTVINNING, BRYTNING OCH BEARBETNING AV TORV, OLJA, GAS, KOL, MALM, MINERAL, BERG, NATURGRUS OCH ANNAT | K40: Råpetroleum, naturgas och kol | L40: ="1. För en verksamhet som är tillståndspliktig enligt 4 kap. 9 § miljöprövningsförordningen är tillsynstiden "&IF(ISNUMBER($E40),$E40,"x")&" timmar för utvinning i vattenområde."&IF(TableData[[#This Row],[IUV-tillägg]]="Ja"," "&rngIUV,"") -> 1. För en verksamhet som är tillståndspliktig enligt 4 kap. 9 § miljöprövningsförordningen är tillsynstiden 13 timmar för utvinning i vattenområde.
A41: 11.20 | B41: B | C41: 6 | E41: =IF(TableData[[#This Row],[Tillsynsbehov]]="Ange tillsynsbehov","Ange tillsynsbehov",IF(LEFT(TableData[[#This Row],[Tillsynsbehov]],4)="Högt",INDEX(tblTillsynsTim,1,MATCH(TableData[[#This Row],[Prövn.- nivå]],rngTillsynsNiv,0)),IF(LEFT(TableData[[#This Row],[Tillsynsbehov]],4)="Norm",INDEX(tblTillsynsTim,2,MATCH(TableData[[#This Row],[Prövn.- nivå]],rngTillsynsNiv,0)),IF(LEFT(TableData[[#This Row],[Tillsynsbehov]],4)="Lågt",INDEX(tblTillsynsTim,3,MATCH(TableData[[#This Row],[Prövn.- nivå]],rngTillsynsNiv,0)),IF(LEFT(TableData[[#This Row],[Tillsynsbehov]],4)="Spor",INDEX(tblTillsynsTim,4,MATCH(TableData[[#This Row],[Prövn.- nivå]],rngTillsynsNiv,0)),TableData[[#This Row],[Tillsynsbehov]]))))) -> 6 | F41: Årlig tillsynsavgift | G41: =IF(TableData[[#This Row],[Avgift]]="Timavgift","Bilaga 3","Bilaga 2") -> Bilaga 2 | H41: =IFERROR(TableData[[#This Row],[Timmar]]*rngTimpris,"") -> 6000 | I41: 11 | J41: UTVINNING, BRYTNING OCH BEARBETNING AV TORV, OLJA, GAS, KOL, MALM, MINERAL, BERG, NATURGRUS OCH ANNAT | K41: Råpetroleum, naturgas och kol | L41: ="2. För en verksamhet som är tillståndspliktig enligt 4 kap. 9 § miljöprövningsförordningen är tillsynstiden "&IF(ISNUMBER($E41),$E41,"x")&" timmar för utvinning på land."&IF(TableData[[#This Row],[IUV-tillägg]]="Ja"," "&rngIUV,"") -> 2. För en verksamhet som är tillståndspliktig enligt 4 kap. 9 § miljöprövningsförordningen är tillsynstiden 6 timmar för utvinning på land.
A42: 11.30 | B42: C | C42: Ange tillsynsbehov | E42: =IF(TableData[[#This Row],[Tillsynsbehov]]="Ange tillsynsbehov","Ange tillsynsbehov",IF(SUM(LEN(TableData[[#This Row],[Tillsynsbehov]])-LEN(SUBSTITUTE(TableData[[#This Row],[Tillsynsbehov]], {"0";"1";"2";"3";"4";"5";"6";"7";"8";"9"}, "")))>0, SUMPRODUCT(MID(0&TableData[[#This Row],[Tillsynsbehov]], LARGE(INDEX(ISNUMBER(--MID(TableData[[#This Row],[Tillsynsbehov]],ROW(INDIRECT("$1:$"&LEN(TableData[[#This Row],[Tillsynsbehov]]))),1))* ROW(INDIRECT("$1:$"&LEN(TableData[[#This Row],[Tillsynsbehov]]))),0), ROW(INDIRECT("$1:$"&LEN(TableData[[#This Row],[Tillsynsbehov]]))))+1,1) * 10^ROW(INDIRECT("$1:$"&LEN(TableData[[#This Row],[Tillsynsbehov]])))/10),TableData[[#This Row],[Tillsynsbehov]])) -> Ange tillsynsbehov | F42: Årlig tillsynsavgift | G42: =IF(TableData[[#This Row],[Avgift]]="Timavgift","Bilaga 3","Bilaga 2") -> Bilaga 2 | H42: =IFERROR(TableData[[#This Row],[Timmar]]*rngTimpris,"") ->  | I42: 11 | J42: UTVINNING, BRYTNING OCH BEARBETNING AV TORV, OLJA, GAS, KOL, MALM, MINERAL, BERG, NATURGRUS OCH ANNAT | K42: Råpetroleum, naturgas och kol | L42: ="För en verksamhet som är anmälningspliktig enligt 4 kap. 10 § miljöprövningsförordningen är tillsynstiden "&IF(ISNUMBER($E42),$E42,"x")&" timmar."&IF(TableData[[#This Row],[IUV-tillägg]]="Ja"," "&rngIUV,"") -> För en verksamhet som är anmälningspliktig enligt 4 kap. 10 § miljöprövningsförordningen är tillsynstiden x timmar.
B43: U | C43: Ange tillsynsbehov | E43: =IF(TableData[[#This Row],[Tillsynsbehov]]="Ange tillsynsbehov","Ange tillsynsbehov",IF(SUM(LEN(TableData[[#This Row],[Tillsynsbehov]])-LEN(SUBSTITUTE(TableData[[#This Row],[Tillsynsbehov]], {"0";"1";"2";"3";"4";"5";"6";"7";"8";"9"}, "")))>0, SUMPRODUCT(MID(0&TableData[[#This Row],[Tillsynsbehov]], LARGE(INDEX(ISNUMBER(--MID(TableData[[#This Row],[Tillsynsbehov]],ROW(INDIRECT("$1:$"&LEN(TableData[[#This Row],[Tillsynsbehov]]))),1))* ROW(INDIRECT("$1:$"&LEN(TableData[[#This Row],[Tillsynsbehov]]))),0), ROW(INDIRECT("$1:$"&LEN(TableData[[#This Row],[Tillsynsbehov]]))))+1,1) * 10^ROW(INDIRECT("$1:$"&LEN(TableData[[#This Row],[Tillsynsbehov]])))/10),TableData[[#This Row],[Tillsynsbehov]])) -> Ange tillsynsbehov | F43: Timavgift | G43: =IF(TableData[[#This Row],[Avgift]]="Timavgift","Bilaga 3","Bilaga 2") -> Bilaga 3 | H43: =IFERROR(TableData[[#This Row],[Timmar]]*rngTimpris,"") ->  | I43: 11 | J43: UTVINNING, BRYTNING OCH BEARBETNING AV TORV, OLJA, GAS, KOL, MALM, MINERAL, BERG, NATURGRUS OCH ANNAT | K43: Råpetroleum, naturgas och kol | L43: ="För verksamheter under anmälningspliktig nivå är tillsynstiden "&IF(ISNUMBER($E43),$E43,"x")&" timmar."&IF(TableData[[#This Row],[IUV-tillägg]]="Ja"," "&rngIUV,"") -> För verksamheter under anmälningspliktig nivå är tillsynstiden x timmar.
A44: ="" ->  | G44: Bilaga 2 | H44: =IFERROR(TableData[[#This Row],[Timmar]]*rngTimpris,"") -> 0 | I44: 13 | J44: UTVINNING, BRYTNING OCH BEARBETNING AV TORV, OLJA, GAS, KOL, MALM, MINERAL, BERG, NATURGRUS OCH ANNAT | K44: Malm och mineral | L44: Verksamhetsgrupp Malm och mineral
A45: 13.10 | B45: A | C45: 90 | E45: =IF(TableData[[#This Row],[Tillsynsbehov]]="Ange tillsynsbehov","Ange tillsynsbehov",IF(LEFT(TableData[[#This Row],[Tillsynsbehov]],4)="Högt",INDEX(tblTillsynsTim,1,MATCH(TableData[[#This Row],[Prövn.- nivå]],rngTillsynsNiv,0)),IF(LEFT(TableData[[#This Row],[Tillsynsbehov]],4)="Norm",INDEX(tblTillsynsTim,2,MATCH(TableData[[#This Row],[Prövn.- nivå]],rngTillsynsNiv,0)),IF(LEFT(TableData[[#This Row],[Tillsynsbehov]],4)="Lågt",INDEX(tblTillsynsTim,3,MATCH(TableData[[#This Row],[Prövn.- nivå]],rngTillsynsNiv,0)),IF(LEFT(TableData[[#This Row],[Tillsynsbehov]],4)="Spor",INDEX(tblTillsynsTim,4,MATCH(TableData[[#This Row],[Prövn.- nivå]],rngTillsynsNiv,0)),TableData[[#This Row],[Tillsynsbehov]]))))) -> 90 | F45: Årlig tillsynsavgift | G45: =IF(TableData[[#This Row],[Avgift]]="Timavgift","Bilaga 3","Bilaga 2") -> Bilaga 2 | H45: =IFERROR(TableData[[#This Row],[Timmar]]*rngTimpris,"") -> 90000 | I45: 13 | J45: UTVINNING, BRYTNING OCH BEARBETNING AV TORV, OLJA, GAS, KOL, MALM, MINERAL, BERG, NATURGRUS OCH ANNAT | K45: Malm och mineral | L45: ="1. För en verksamhet som är tillståndspliktig enligt 4 kap. 11 § miljöprövningsförordningen är tillsynstiden "&IF(ISNUMBER($E45),$E45,"x")&" timmar om verksamheten avser järnmalm."&IF(TableData[[#This Row],[IUV-tillägg]]="Ja"," "&rngIUV,"") -> 1. För en verksamhet som är tillståndspliktig enligt 4 kap. 11 § miljöprövningsförordningen är tillsynstiden 90 timmar om verksamheten avser järnmalm.
A46: 13.10 | B46: A | C46: 90 | E46: =IF(TableData[[#This Row],[Tillsynsbehov]]="Ange tillsynsbehov","Ange tillsynsbehov",IF(LEFT(TableData[[#This Row],[Tillsynsbehov]],4)="Högt",INDEX(tblTillsynsTim,1,MATCH(TableData[[#This Row],[Prövn.- nivå]],rngTillsynsNiv,0)),IF(LEFT(TableData[[#This Row],[Tillsynsbehov]],4)="Norm",INDEX(tblTillsynsTim,2,MATCH(TableData[[#This Row],[Prövn.- nivå]],rngTillsynsNiv,0)),IF(LEFT(TableData[[#This Row],[Tillsynsbehov]],4)="Lågt",INDEX(tblTillsynsTim,3,MATCH(TableData[[#This Row],[Prövn.- nivå]],rngTillsynsNiv,0)),IF(LEFT(TableData[[#This Row],[Tillsynsbehov]],4)="Spor",INDEX(tblTillsynsTim,4,MATCH(TableData[[#This Row],[Prövn.- nivå]],rngTillsynsNiv,0)),TableData[[#This Row],[Tillsynsbehov]]))))) -> 90 | F46: Årlig tillsynsavgift | G46: =IF(TableData[[#This Row],[Avgift]]="Timavgift","Bilaga 3","Bilaga 2") -> Bilaga 2 | H46: =IFERROR(TableData[[#This Row],[Timmar]]*rngTimpris,"") -> 90000 | I46: 13 | J46: UTVINNING, BRYTNING OCH BEARBETNING AV TORV, OLJA, GAS, KOL, MALM, MINERAL, BERG, NATURGRUS OCH ANNAT | K46: Malm och mineral | L46: ="2. För en verksamhet som är tillståndspliktig enligt 4 kap. 11 § miljöprövningsförordningen är tillsynstiden "&IF(ISNUMBER($E46),$E46,"x")&" timmar om verksamheten avser kol inom de områden som anges i 4 kap. 5 § miljöbalken."&IF(TableData[[#This Row],[IUV-tillägg]]="Ja"," "&rngIUV,"") -> 2. För en verksamhet som är tillståndspliktig enligt 4 kap. 11 § miljöprövningsförordningen är tillsynstiden 90 timmar om verksamheten avser kol inom de områden som anges i 4 kap. 5 § miljöbalken.
A47: 13.10 | B47: A | C47: 64 | E47: =IF(TableData[[#This Row],[Tillsynsbehov]]="Ange tillsynsbehov","Ange tillsynsbehov",IF(LEFT(TableData[[#This Row],[Tillsynsbehov]],4)="Högt",INDEX(tblTillsynsTim,1,MATCH(TableData[[#This Row],[Prövn.- nivå]],rngTillsynsNiv,0)),IF(LEFT(TableData[[#This Row],[Tillsynsbehov]],4)="Norm",INDEX(tblTillsynsTim,2,MATCH(TableData[[#This Row],[Prövn.- nivå]],rngTillsynsNiv,0)),IF(LEFT(TableData[[#This Row],[Tillsynsbehov]],4)="Lågt",INDEX(tblTillsynsTim,3,MATCH(TableData[[#This Row],[Prövn.- nivå]],rngTillsynsNiv,0)),IF(LEFT(TableData[[#This Row],[Tillsynsbehov]],4)="Spor",INDEX(tblTillsynsTim,4,MATCH(TableData[[#This Row],[Prövn.- nivå]],rngTillsynsNiv,0)),TableData[[#This Row],[Tillsynsbehov]]))))) -> 64 | F47: Årlig tillsynsavgift | G47: =IF(TableData[[#This Row],[Avgift]]="Timavgift","Bilaga 3","Bilaga 2") -> Bilaga 2 | H47: =IFERROR(TableData[[#This Row],[Timmar]]*rngTimpris,"") -> 64000 | I47: 13 | J47: UTVINNING, BRYTNING OCH BEARBETNING AV TORV, OLJA, GAS, KOL, MALM, MINERAL, BERG, NATURGRUS OCH ANNAT | K47: Malm och mineral | L47: ="3. För en verksamhet som är tillståndspliktig enligt 4 kap. 11 § miljöprövningsförordningen är tillsynstiden "&IF(ISNUMBER($E47),$E47,"x")&" timmar om verksamheten avser kol inom de områden som anges i 4 kap. 5 § miljöbalken."&IF(TableData[[#This Row],[IUV-tillägg]]="Ja"," "&rngIUV,"") -> 3. För en verksamhet som är tillståndspliktig enligt 4 kap. 11 § miljöprövningsförordningen är tillsynstiden 64 timmar om verksamheten avser kol inom de områden som anges i 4 kap. 5 § miljöbalken.
A48: 13.10 | B48: A | C48: 227 | E48: =IF(TableData[[#This Row],[Tillsynsbehov]]="Ange tillsynsbehov","Ange tillsynsbehov",IF(LEFT(TableData[[#This Row],[Tillsynsbehov]],4)="Högt",INDEX(tblTillsynsTim,1,MATCH(TableData[[#This Row],[Prövn.- nivå]],rngTillsynsNiv,0)),IF(LEFT(TableData[[#This Row],[Tillsynsbehov]],4)="Norm",INDEX(tblTillsynsTim,2,MATCH(TableData[[#This Row],[Prövn.- nivå]],rngTillsynsNiv,0)),IF(LEFT(TableData[[#This Row],[Tillsynsbehov]],4)="Lågt",INDEX(tblTillsynsTim,3,MATCH(TableData[[#This Row],[Prövn.- nivå]],rngTillsynsNiv,0)),IF(LEFT(TableData[[#This Row],[Tillsynsbehov]],4)="Spor",INDEX(tblTillsynsTim,4,MATCH(TableData[[#This Row],[Prövn.- nivå]],rngTillsynsNiv,0)),TableData[[#This Row],[Tillsynsbehov]]))))) -> 227 | F48: Årlig tillsynsavgift | G48: =IF(TableData[[#This Row],[Avgift]]="Timavgift","Bilaga 3","Bilaga 2") -> Bilaga 2 | H48: =IFERROR(TableData[[#This Row],[Timmar]]*rngTimpris,"") -> 227000 | I48: 13 | J48: UTVINNING, BRYTNING OCH BEARBETNING AV TORV, OLJA, GAS, KOL, MALM, MINERAL, BERG, NATURGRUS OCH ANNAT | K48: Malm och mineral | L48: ="4. För en verksamhet som är tillståndspliktig enligt 4 kap. 11 § miljöprövningsförordningen är tillsynstiden "&IF(ISNUMBER($E48),$E48,"x")&" timmar om verksamheten avser uran- eller toriummalm."&IF(TableData[[#This Row],[IUV-tillägg]]="Ja"," "&rngIUV,"") -> 4. För en verksamhet som är tillståndspliktig enligt 4 kap. 11 § miljöprövningsförordningen är tillsynstiden 227 timmar om verksamheten avser uran- eller toriummalm.
A49: 13.10 | B49: A | C49: 184 | E49: =IF(TableData[[#This Row],[Tillsynsbehov]]="Ange tillsynsbehov","Ange tillsynsbehov",IF(LEFT(TableData[[#This Row],[Tillsynsbehov]],4)="Högt",INDEX(tblTillsynsTim,1,MATCH(TableData[[#This Row],[Prövn.- nivå]],rngTillsynsNiv,0)),IF(LEFT(TableData[[#This Row],[Tillsynsbehov]],4)="Norm",INDEX(tblTillsynsTim,2,MATCH(TableData[[#This Row],[Prövn.- nivå]],rngTillsynsNiv,0)),IF(LEFT(TableData[[#This Row],[Tillsynsbehov]],4)="Lågt",INDEX(tblTillsynsTim,3,MATCH(TableData[[#This Row],[Prövn.- nivå]],rngTillsynsNiv,0)),IF(LEFT(TableData[[#This Row],[Tillsynsbehov]],4)="Spor",INDEX(tblTillsynsTim,4,MATCH(TableData[[#This Row],[Prövn.- nivå]],rngTillsynsNiv,0)),TableData[[#This Row],[Tillsynsbehov]]))))) -> 184 | F49: Årlig tillsynsavgift | G49: =IF(TableData[[#This Row],[Avgift]]="Timavgift","Bilaga 3","Bilaga 2") -> Bilaga 2 | H49: =IFERROR(TableData[[#This Row],[Timmar]]*rngTimpris,"") -> 184000 | I49: 13 | J49: UTVINNING, BRYTNING OCH BEARBETNING AV TORV, OLJA, GAS, KOL, MALM, MINERAL, BERG, NATURGRUS OCH ANNAT | K49: Malm och mineral | L49: ="5. För en verksamhet som är tillståndspliktig enligt 4 kap. 11 § miljöprövningsförordningen är tillsynstiden "&IF(ISNUMBER($E49),$E49,"x")&" timmar, om verksamheten inte omfattas av någon av 1-4."&IF(TableData[[#This Row],[IUV-tillägg]]="Ja"," "&rngIUV,"") -> 5. För en verksamhet som är tillståndspliktig enligt 4 kap. 11 § miljöprövningsförordningen är tillsynstiden 184 timmar, om verksamheten inte omfattas av någon av 1-4.
A50: 13.20-i | B50: A | C50: 90 | D50: Nej | E50: =IF(TableData[[#This Row],[Tillsynsbehov]]="Ange tillsynsbehov","Ange tillsynsbehov",IF(LEFT(TableData[[#This Row],[Tillsynsbehov]],4)="Högt",INDEX(tblTillsynsTim,1,MATCH(TableData[[#This Row],[Prövn.- nivå]],rngTillsynsNiv,0)),IF(LEFT(TableData[[#This Row],[Tillsynsbehov]],4)="Norm",INDEX(tblTillsynsTim,2,MATCH(TableData[[#This Row],[Prövn.- nivå]],rngTillsynsNiv,0)),IF(LEFT(TableData[[#This Row],[Tillsynsbehov]],4)="Lågt",INDEX(tblTillsynsTim,3,MATCH(TableData[[#This Row],[Prövn.- nivå]],rngTillsynsNiv,0)),IF(LEFT(TableData[[#This Row],[Tillsynsbehov]],4)="Spor",INDEX(tblTillsynsTim,4,MATCH(TableData[[#This Row],[Prövn.- nivå]],rngTillsynsNiv,0)),TableData[[#This Row],[Tillsynsbehov]]))))) -> 90 | F50: Årlig tillsynsavgift | G50: =IF(TableData[[#This Row],[Avgift]]="Timavgift","Bilaga 3","Bilaga 2") -> Bilaga 2 | H50: =IFERROR(TableData[[#This Row],[Timmar]]*rngTimpris,"") -> 90000 | I50: 13 | J50: UTVINNING, BRYTNING OCH BEARBETNING AV TORV, OLJA, GAS, KOL, MALM, MINERAL, BERG, NATURGRUS OCH ANNAT | K50: Malm och mineral | L50: ="1. För en verksamhet som är tillståndspliktig enligt 4 kap. 12 § miljöprövningsförordningen är tillsynstiden "&IF(ISNUMBER($E50),$E50,"x")&" timmar om verksamheten avser järnmalm."&IF(TableData[[#This Row],[IUV-tillägg]]="Ja"," "&rngIUV,"") -> 1. För en verksamhet som är tillståndspliktig enligt 4 kap. 12 § miljöprövningsförordningen är tillsynstiden 90 timmar om verksamheten avser järnmalm.
A51: 13.20-i | B51: A | C51: 184 | D51: Nej | E51: =IF(TableData[[#This Row],[Tillsynsbehov]]="Ange tillsynsbehov","Ange tillsynsbehov",IF(LEFT(TableData[[#This Row],[Tillsynsbehov]],4)="Högt",INDEX(tblTillsynsTim,1,MATCH(TableData[[#This Row],[Prövn.- nivå]],rngTillsynsNiv,0)),IF(LEFT(TableData[[#This Row],[Tillsynsbehov]],4)="Norm",INDEX(tblTillsynsTim,2,MATCH(TableData[[#This Row],[Prövn.- nivå]],rngTillsynsNiv,0)),IF(LEFT(TableData[[#This Row],[Tillsynsbehov]],4)="Lågt",INDEX(tblTillsynsTim,3,MATCH(TableData[[#This Row],[Prövn.- nivå]],rngTillsynsNiv,0)),IF(LEFT(TableData[[#This Row],[Tillsynsbehov]],4)="Spor",INDEX(tblTillsynsTim,4,MATCH(TableData[[#This Row],[Prövn.- nivå]],rngTillsynsNiv,0)),TableData[[#This Row],[Tillsynsbehov]]))))) -> 184 | F51: Årlig tillsynsavgift | G51: =IF(TableData[[#This Row],[Avgift]]="Timavgift","Bilaga 3","Bilaga 2") -> Bilaga 2 | H51: =IFERROR(TableData[[#This Row],[Timmar]]*rngTimpris,"") -> 184000 | I51: 13 | J51: UTVINNING, BRYTNING OCH BEARBETNING AV TORV, OLJA, GAS, KOL, MALM, MINERAL, BERG, NATURGRUS OCH ANNAT | K51: Malm och mineral | L51: ="2. För en verksamhet som är tillståndspliktig enligt 4 kap. 12 § miljöprövningsförordningen är tillsynstiden "&IF(ISNUMBER($E51),$E51,"x")&" timmar om verksamheten inte omfattas av 1."&IF(TableData[[#This Row],[IUV-tillägg]]="Ja"," "&rngIUV,"") -> 2. För en verksamhet som är tillståndspliktig enligt 4 kap. 12 § miljöprövningsförordningen är tillsynstiden 184 timmar om verksamheten inte omfattas av 1.
A52: 13.30 | B52: B | C52: 90 | E52: =IF(TableData[[#This Row],[Tillsynsbehov]]="Ange tillsynsbehov","Ange tillsynsbehov",IF(LEFT(TableData[[#This Row],[Tillsynsbehov]],4)="Högt",INDEX(tblTillsynsTim,1,MATCH(TableData[[#This Row],[Prövn.- nivå]],rngTillsynsNiv,0)),IF(LEFT(TableData[[#This Row],[Tillsynsbehov]],4)="Norm",INDEX(tblTillsynsTim,2,MATCH(TableData[[#This Row],[Prövn.- nivå]],rngTillsynsNiv,0)),IF(LEFT(TableData[[#This Row],[Tillsynsbehov]],4)="Lågt",INDEX(tblTillsynsTim,3,MATCH(TableData[[#This Row],[Prövn.- nivå]],rngTillsynsNiv,0)),IF(LEFT(TableData[[#This Row],[Tillsynsbehov]],4)="Spor",INDEX(tblTillsynsTim,4,MATCH(TableData[[#This Row],[Prövn.- nivå]],rngTillsynsNiv,0)),TableData[[#This Row],[Tillsynsbehov]]))))) -> 90 | F52: Årlig tillsynsavgift | G52: =IF(TableData[[#This Row],[Avgift]]="Timavgift","Bilaga 3","Bilaga 2") -> Bilaga 2 | H52: =IFERROR(TableData[[#This Row],[Timmar]]*rngTimpris,"") -> 90000 | I52: 13 | J52: UTVINNING, BRYTNING OCH BEARBETNING AV TORV, OLJA, GAS, KOL, MALM, MINERAL, BERG, NATURGRUS OCH ANNAT | K52: Malm och mineral | L52: ="För en verksamhet som är tillståndspliktig enligt 4 kap. 13 § miljöprövningsförordningen är tillsynstiden "&IF(ISNUMBER($E52),$E52,"x")&" timmar."&IF(TableData[[#This Row],[IUV-tillägg]]="Ja"," "&rngIUV,"") -> För en verksamhet som är tillståndspliktig enligt 4 kap. 13 § miljöprövningsförordningen är tillsynstiden 90 timmar.
A53: 13.40 | B53: A | C53: 90 | E53: =IF(TableData[[#This Row],[Tillsynsbehov]]="Ange tillsynsbehov","Ange tillsynsbehov",IF(LEFT(TableData[[#This Row],[Tillsynsbehov]],4)="Högt",INDEX(tblTillsynsTim,1,MATCH(TableData[[#This Row],[Prövn.- nivå]],rngTillsynsNiv,0)),IF(LEFT(TableData[[#This Row],[Tillsynsbehov]],4)="Norm",INDEX(tblTillsynsTim,2,MATCH(TableData[[#This Row],[Prövn.- nivå]],rngTillsynsNiv,0)),IF(LEFT(TableData[[#This Row],[Tillsynsbehov]],4)="Lågt",INDEX(tblTillsynsTim,3,MATCH(TableData[[#This Row],[Prövn.- nivå]],rngTillsynsNiv,0)),IF(LEFT(TableData[[#This Row],[Tillsynsbehov]],4)="Spor",INDEX(tblTillsynsTim,4,MATCH(TableData[[#This Row],[Prövn.- nivå]],rngTillsynsNiv,0)),TableData[[#This Row],[Tillsynsbehov]]))))) -> 90 | F53: Årlig tillsynsavgift | G53: =IF(TableData[[#This Row],[Avgift]]="Timavgift","Bilaga 3","Bilaga 2") -> Bilaga 2 | H53: =IFERROR(TableData[[#This Row],[Timmar]]*rngTimpris,"") -> 90000 | I53: 13 | J53: UTVINNING, BRYTNING OCH BEARBETNING AV TORV, OLJA, GAS, KOL, MALM, MINERAL, BERG, NATURGRUS OCH ANNAT | K53: Malm och mineral | L53: ="1. För en verksamhet som är tillståndspliktig enligt 4 kap. 14 § miljöprövningsförordningen är tillsynstiden "&IF(ISNUMBER($E53),$E53,"x")&" timmar om verksamheten avser järnmalm. "&IF(TableData[[#This Row],[IUV-tillägg]]="Ja"," "&rngIUV,"") -> 1. För en verksamhet som är tillståndspliktig enligt 4 kap. 14 § miljöprövningsförordningen är tillsynstiden 90 timmar om verksamheten avser järnmalm.
A54: 13.40 | B54: A | C54: 64 | E54: =IF(TableData[[#This Row],[Tillsynsbehov]]="Ange tillsynsbehov","Ange tillsynsbehov",IF(LEFT(TableData[[#This Row],[Tillsynsbehov]],4)="Högt",INDEX(tblTillsynsTim,1,MATCH(TableData[[#This Row],[Prövn.- nivå]],rngTillsynsNiv,0)),IF(LEFT(TableData[[#This Row],[Tillsynsbehov]],4)="Norm",INDEX(tblTillsynsTim,2,MATCH(TableData[[#This Row],[Prövn.- nivå]],rngTillsynsNiv,0)),IF(LEFT(TableData[[#This Row],[Tillsynsbehov]],4)="Lågt",INDEX(tblTillsynsTim,3,MATCH(TableData[[#This Row],[Prövn.- nivå]],rngTillsynsNiv,0)),IF(LEFT(TableData[[#This Row],[Tillsynsbehov]],4)="Spor",INDEX(tblTillsynsTim,4,MATCH(TableData[[#This Row],[Prövn.- nivå]],rngTillsynsNiv,0)),TableData[[#This Row],[Tillsynsbehov]]))))) -> 64 | F54: Årlig tillsynsavgift | G54: =IF(TableData[[#This Row],[Avgift]]="Timavgift","Bilaga 3","Bilaga 2") -> Bilaga 2 | H54: =IFERROR(TableData[[#This Row],[Timmar]]*rngTimpris,"") -> 64000 | I54: 13 | J54: UTVINNING, BRYTNING OCH BEARBETNING AV TORV, OLJA, GAS, KOL, MALM, MINERAL, BERG, NATURGRUS OCH ANNAT | K54: Malm och mineral | L54: ="2. För en verksamhet som är tillståndspliktig enligt 4 kap. 14 § miljöprövningsförordningen är tillsynstiden "&IF(ISNUMBER($E54),$E54,"x")&" timmar om verksamheten avser kol."&IF(TableData[[#This Row],[IUV-tillägg]]="Ja"," "&rngIUV,"") -> 2. För en verksamhet som är tillståndspliktig enligt 4 kap. 14 § miljöprövningsförordningen är tillsynstiden 64 timmar om verksamheten avser kol.
A55: 13.40 | B55: A | C55: 227 | E55: =IF(TableData[[#This Row],[Tillsynsbehov]]="Ange tillsynsbehov","Ange tillsynsbehov",IF(LEFT(TableData[[#This Row],[Tillsynsbehov]],4)="Högt",INDEX(tblTillsynsTim,1,MATCH(TableData[[#This Row],[Prövn.- nivå]],rngTillsynsNiv,0)),IF(LEFT(TableData[[#This Row],[Tillsynsbehov]],4)="Norm",INDEX(tblTillsynsTim,2,MATCH(TableData[[#This Row],[Prövn.- nivå]],rngTillsynsNiv,0)),IF(LEFT(TableData[[#This Row],[Tillsynsbehov]],4)="Lågt",INDEX(tblTillsynsTim,3,MATCH(TableData[[#This Row],[Prövn.- nivå]],rngTillsynsNiv,0)),IF(LEFT(TableData[[#This Row],[Tillsynsbehov]],4)="Spor",INDEX(tblTillsynsTim,4,MATCH(TableData[[#This Row],[Prövn.- nivå]],rngTillsynsNiv,0)),TableData[[#This Row],[Tillsynsbehov]]))))) -> 227 | F55: Årlig tillsynsavgift | G55: =IF(TableData[[#This Row],[Avgift]]="Timavgift","Bilaga 3","Bilaga 2") -> Bilaga 2 | H55: =IFERROR(TableData[[#This Row],[Timmar]]*rngTimpris,"") -> 227000 | I55: 13 | J55: UTVINNING, BRYTNING OCH BEARBETNING AV TORV, OLJA, GAS, KOL, MALM, MINERAL, BERG, NATURGRUS OCH ANNAT | K55: Malm och mineral | L55: ="3. För en verksamhet som är tillståndspliktig enligt 4 kap. 14 § miljöprövningsförordningen är tillsynstiden "&IF(ISNUMBER($E55),$E55,"x")&" timmar om verksamheten avser uran- eller toriummalm."&IF(TableData[[#This Row],[IUV-tillägg]]="Ja"," "&rngIUV,"") -> 3. För en verksamhet som är tillståndspliktig enligt 4 kap. 14 § miljöprövningsförordningen är tillsynstiden 227 timmar om verksamheten avser uran- eller toriummalm.
A56: 13.40 | B56: A | C56: 184 | E56: =IF(TableData[[#This Row],[Tillsynsbehov]]="Ange tillsynsbehov","Ange tillsynsbehov",IF(LEFT(TableData[[#This Row],[Tillsynsbehov]],4)="Högt",INDEX(tblTillsynsTim,1,MATCH(TableData[[#This Row],[Prövn.- nivå]],rngTillsynsNiv,0)),IF(LEFT(TableData[[#This Row],[Tillsynsbehov]],4)="Norm",INDEX(tblTillsynsTim,2,MATCH(TableData[[#This Row],[Prövn.- nivå]],rngTillsynsNiv,0)),IF(LEFT(TableData[[#This Row],[Tillsynsbehov]],4)="Lågt",INDEX(tblTillsynsTim,3,MATCH(TableData[[#This Row],[Prövn.- nivå]],rngTillsynsNiv,0)),IF(LEFT(TableData[[#This Row],[Tillsynsbehov]],4)="Spor",INDEX(tblTillsynsTim,4,MATCH(TableData[[#This Row],[Prövn.- nivå]],rngTillsynsNiv,0)),TableData[[#This Row],[Tillsynsbehov]]))))) -> 184 | F56: Årlig tillsynsavgift | G56: =IF(TableData[[#This Row],[Avgift]]="Timavgift","Bilaga 3","Bilaga 2") -> Bilaga 2 | H56: =IFERROR(TableData[[#This Row],[Timmar]]*rngTimpris,"") -> 184000 | I56: 13 | J56: UTVINNING, BRYTNING OCH BEARBETNING AV TORV, OLJA, GAS, KOL, MALM, MINERAL, BERG, NATURGRUS OCH ANNAT | K56: Malm och mineral | L56: ="4. För en verksamhet som är tillståndspliktig enligt 4 kap. 14 § miljöprövningsförordningen är tillsynstiden "&IF(ISNUMBER($E56),$E56,"x")&" timmar om verksamheten inte omfattas av 1-3."&IF(TableData[[#This Row],[IUV-tillägg]]="Ja"," "&rngIUV,"") -> 4. För en verksamhet som är tillståndspliktig enligt 4 kap. 14 § miljöprövningsförordningen är tillsynstiden 184 timmar om verksamheten inte omfattas av 1-3.
A57: 13.50 | B57: B | C57: 227 | E57: =IF(TableData[[#This Row],[Tillsynsbehov]]="Ange tillsynsbehov","Ange tillsynsbehov",IF(LEFT(TableData[[#This Row],[Tillsynsbehov]],4)="Högt",INDEX(tblTillsynsTim,1,MATCH(TableData[[#This Row],[Prövn.- nivå]],rngTillsynsNiv,0)),IF(LEFT(TableData[[#This Row],[Tillsynsbehov]],4)="Norm",INDEX(tblTillsynsTim,2,MATCH(TableData[[#This Row],[Prövn.- nivå]],rngTillsynsNiv,0)),IF(LEFT(TableData[[#This Row],[Tillsynsbehov]],4)="Lågt",INDEX(tblTillsynsTim,3,MATCH(TableData[[#This Row],[Prövn.- nivå]],rngTillsynsNiv,0)),IF(LEFT(TableData[[#This Row],[Tillsynsbehov]],4)="Spor",INDEX(tblTillsynsTim,4,MATCH(TableData[[#This Row],[Prövn.- nivå]],rngTillsynsNiv,0)),TableData[[#This Row],[Tillsynsbehov]]))))) -> 227 | F57: Årlig tillsynsavgift | G57: =IF(TableData[[#This Row],[Avgift]]="Timavgift","Bilaga 3","Bilaga 2") -> Bilaga 2 | H57: =IFERROR(TableData[[#This Row],[Timmar]]*rngTimpris,"") -> 227000 | I57: 13 | J57: UTVINNING, BRYTNING OCH BEARBETNING AV TORV, OLJA, GAS, KOL, MALM, MINERAL, BERG, NATURGRUS OCH ANNAT | K57: Malm och mineral | L57: ="1. För en verksamhet som är tillståndspliktig enligt 4 kap. 15 § miljöprövningsförordningen är tillsynstiden "&IF(ISNUMBER($E57),$E57,"x")&" timmar om verksamheten avser uran- eller toriummalm."&IF(TableData[[#This Row],[IUV-tillägg]]="Ja"," "&rngIUV,"") -> 1. För en verksamhet som är tillståndspliktig enligt 4 kap. 15 § miljöprövningsförordningen är tillsynstiden 227 timmar om verksamheten avser uran- eller toriummalm.
A58: 13.50 | B58: B | C58: 64 | E58: =IF(TableData[[#This Row],[Tillsynsbehov]]="Ange tillsynsbehov","Ange tillsynsbehov",IF(LEFT(TableData[[#This Row],[Tillsynsbehov]],4)="Högt",INDEX(tblTillsynsTim,1,MATCH(TableData[[#This Row],[Prövn.- nivå]],rngTillsynsNiv,0)),IF(LEFT(TableData[[#This Row],[Tillsynsbehov]],4)="Norm",INDEX(tblTillsynsTim,2,MATCH(TableData[[#This Row],[Prövn.- nivå]],rngTillsynsNiv,0)),IF(LEFT(TableData[[#This Row],[Tillsynsbehov]],4)="Lågt",INDEX(tblTillsynsTim,3,MATCH(TableData[[#This Row],[Prövn.- nivå]],rngTillsynsNiv,0)),IF(LEFT(TableData[[#This Row],[Tillsynsbehov]],4)="Spor",INDEX(tblTillsynsTim,4,MATCH(TableData[[#This Row],[Prövn.- nivå]],rngTillsynsNiv,0)),TableData[[#This Row],[Tillsynsbehov]]))))) -> 64 | F58: Årlig tillsynsavgift | G58: =IF(TableData[[#This Row],[Avgift]]="Timavgift","Bilaga 3","Bilaga 2") -> Bilaga 2 | H58: =IFERROR(TableData[[#This Row],[Timmar]]*rngTimpris,"") -> 64000 | I58: 13 | J58: UTVINNING, BRYTNING OCH BEARBETNING AV TORV, OLJA, GAS, KOL, MALM, MINERAL, BERG, NATURGRUS OCH ANNAT | K58: Malm och mineral | L58: ="2. För en verksamhet som är tillståndspliktig enligt 4 kap. 15 § miljöprövningsförordningen är tillsynstiden "&IF(ISNUMBER($E58),$E58,"x")&" timmar om verksamheten inte omfattas av 1."&IF(TableData[[#This Row],[IUV-tillägg]]="Ja"," "&rngIUV,"") -> 2. För en verksamhet som är tillståndspliktig enligt 4 kap. 15 § miljöprövningsförordningen är tillsynstiden 64 timmar om verksamheten inte omfattas av 1.
A59: 13.60 | B59: B | C59: 64 | E59: =IF(TableData[[#This Row],[Tillsynsbehov]]="Ange tillsynsbehov","Ange tillsynsbehov",IF(LEFT(TableData[[#This Row],[Tillsynsbehov]],4)="Högt",INDEX(tblTillsynsTim,1,MATCH(TableData[[#This Row],[Prövn.- nivå]],rngTillsynsNiv,0)),IF(LEFT(TableData[[#This Row],[Tillsynsbehov]],4)="Norm",INDEX(tblTillsynsTim,2,MATCH(TableData[[#This Row],[Prövn.- nivå]],rngTillsynsNiv,0)),IF(LEFT(TableData[[#This Row],[Tillsynsbehov]],4)="Lågt",INDEX(tblTillsynsTim,3,MATCH(TableData[[#This Row],[Prövn.- nivå]],rngTillsynsNiv,0)),IF(LEFT(TableData[[#This Row],[Tillsynsbehov]],4)="Spor",INDEX(tblTillsynsTim,4,MATCH(TableData[[#This Row],[Prövn.- nivå]],rngTillsynsNiv,0)),TableData[[#This Row],[Tillsynsbehov]]))))) -> 64 | F59: Årlig tillsynsavgift | G59: =IF(TableData[[#This Row],[Avgift]]="Timavgift","Bilaga 3","Bilaga 2") -> Bilaga 2 | H59: =IFERROR(TableData[[#This Row],[Timmar]]*rngTimpris,"") -> 64000 | I59: 13 | J59: UTVINNING, BRYTNING OCH BEARBETNING AV TORV, OLJA, GAS, KOL, MALM, MINERAL, BERG, NATURGRUS OCH ANNAT | K59: Malm och mineral | L59: ="För en verksamhet som är tillståndspliktig enligt 4 kap. 16 § miljöprövningsförordningen är tillsynstiden "&IF(ISNUMBER($E59),$E59,"x")&" timmar."&IF(TableData[[#This Row],[IUV-tillägg]]="Ja"," "&rngIUV,"") -> För en verksamhet som är tillståndspliktig enligt 4 kap. 16 § miljöprövningsförordningen är tillsynstiden 64 timmar.
A60: ="" ->  | G60: =IF(COUNTIF(G61:G62,"Bilaga 2")=0,"Bilaga 3",IF(COUNTIF(G61:G62,"Bilaga 3")=0,"Bilaga 2","")) ->  | H60: =IFERROR(TableData[[#This Row],[Timmar]]*rngTimpris,"") -> 0 | I60: 13 | J60: UTVINNING, BRYTNING OCH BEARBETNING AV TORV, OLJA, GAS, KOL, MALM, MINERAL, BERG, NATURGRUS OCH ANNAT | K60: Annan utvinningsindustri | L60: Verksamhetsgrupp Annan utvinningsindustri
A61: 13.70 | B61: C | C61: Ange tillsynsbehov | E61: =IF(TableData[[#This Row],[Tillsynsbehov]]="Ange tillsynsbehov","Ange tillsynsbehov",IF(SUM(LEN(TableData[[#This Row],[Tillsynsbehov]])-LEN(SUBSTITUTE(TableData[[#This Row],[Tillsynsbehov]], {"0";"1";"2";"3";"4";"5";"6";"7";"8";"9"}, "")))>0, SUMPRODUCT(MID(0&TableData[[#This Row],[Tillsynsbehov]], LARGE(INDEX(ISNUMBER(--MID(TableData[[#This Row],[Tillsynsbehov]],ROW(INDIRECT("$1:$"&LEN(TableData[[#This Row],[Tillsynsbehov]]))),1))* ROW(INDIRECT("$1:$"&LEN(TableData[[#This Row],[Tillsynsbehov]]))),0), ROW(INDIRECT("$1:$"&LEN(TableData[[#This Row],[Tillsynsbehov]]))))+1,1) * 10^ROW(INDIRECT("$1:$"&LEN(TableData[[#This Row],[Tillsynsbehov]])))/10),TableData[[#This Row],[Tillsynsbehov]])) -> Ange tillsynsbehov | F61: Årlig tillsynsavgift | G61: =IF(TableData[[#This Row],[Avgift]]="Timavgift","Bilaga 3","Bilaga 2") -> Bilaga 2 | H61: =IFERROR(TableData[[#This Row],[Timmar]]*rngTimpris,"") ->  | I61: 13 | J61: UTVINNING, BRYTNING OCH BEARBETNING AV TORV, OLJA, GAS, KOL, MALM, MINERAL, BERG, NATURGRUS OCH ANNAT | K61: Annan utvinningsindustri | L61: ="För en verksamhet som är anmälningspliktig enligt 4 kap. 17 § miljöprövningsförordningen är tillsynstiden "&IF(ISNUMBER($E61),$E61,"x")&" timmar."&IF(TableData[[#This Row],[IUV-tillägg]]="Ja"," "&rngIUV,"") -> För en verksamhet som är anmälningspliktig enligt 4 kap. 17 § miljöprövningsförordningen är tillsynstiden x timmar.
B62: U | C62: Ange tillsynsbehov | E62: =IF(TableData[[#This Row],[Tillsynsbehov]]="Ange tillsynsbehov","Ange tillsynsbehov",IF(SUM(LEN(TableData[[#This Row],[Tillsynsbehov]])-LEN(SUBSTITUTE(TableData[[#This Row],[Tillsynsbehov]], {"0";"1";"2";"3";"4";"5";"6";"7";"8";"9"}, "")))>0, SUMPRODUCT(MID(0&TableData[[#This Row],[Tillsynsbehov]], LARGE(INDEX(ISNUMBER(--MID(TableData[[#This Row],[Tillsynsbehov]],ROW(INDIRECT("$1:$"&LEN(TableData[[#This Row],[Tillsynsbehov]]))),1))* ROW(INDIRECT("$1:$"&LEN(TableData[[#This Row],[Tillsynsbehov]]))),0), ROW(INDIRECT("$1:$"&LEN(TableData[[#This Row],[Tillsynsbehov]]))))+1,1) * 10^ROW(INDIRECT("$1:$"&LEN(TableData[[#This Row],[Tillsynsbehov]])))/10),TableData[[#This Row],[Tillsynsbehov]])) -> Ange tillsynsbehov | F62: Timavgift | G62: =IF(TableData[[#This Row],[Avgift]]="Timavgift","Bilaga 3","Bilaga 2") -> Bilaga 3 | H62: =IFERROR(TableData[[#This Row],[Timmar]]*rngTimpris,"") ->  | I62: 13 | J62: UTVINNING, BRYTNING OCH BEARBETNING AV TORV, OLJA, GAS, KOL, MALM, MINERAL, BERG, NATURGRUS OCH ANNAT | K62: Annan utvinningsindustri | L62: ="För verksamheter under anmälningspliktig nivå är tillsynstiden "&IF(ISNUMBER($E62),$E62,"x")&" timmar."&IF(TableData[[#This Row],[IUV-tillägg]]="Ja"," "&rngIUV,"") -> För verksamheter under anmälningspliktig nivå är tillsynstiden x timmar.
A63: ="" ->  | H63: =IFERROR(TableData[[#This Row],[Timmar]]*rngTimpris,"") -> 0 | I63: 15 | J63: LIVSMEDEL OCH FODER | K63: ="" ->  | L63: VERKSAMHETSGRUPP LIVSMEDEL OCH FODER
A64: ="" ->  | G64: =IF(COUNTIF(G65:G69,"Bilaga 2")=0,"Bilaga 3",IF(COUNTIF(G65:G69,"Bilaga 3")=0,"Bilaga 2","")) ->  | H64: =IFERROR(TableData[[#This Row],[Timmar]]*rngTimpris,"") -> 0 | I64: 15 | J64: LIVSMEDEL OCH FODER | K64: Slakterier | L64: Verksamhetsgrupp Slakterier
A65: 15.10-i | B65: B | C65: 90 | D65: Nej | E65: =IF(TableData[[#This Row],[Tillsynsbehov]]="Ange tillsynsbehov","Ange tillsynsbehov",IF(LEFT(TableData[[#This Row],[Tillsynsbehov]],4)="Högt",INDEX(tblTillsynsTim,1,MATCH(TableData[[#This Row],[Prövn.- nivå]],rngTillsynsNiv,0)),IF(LEFT(TableData[[#This Row],[Tillsynsbehov]],4)="Norm",INDEX(tblTillsynsTim,2,MATCH(TableData[[#This Row],[Prövn.- nivå]],rngTillsynsNiv,0)),IF(LEFT(TableData[[#This Row],[Tillsynsbehov]],4)="Lågt",INDEX(tblTillsynsTim,3,MATCH(TableData[[#This Row],[Prövn.- nivå]],rngTillsynsNiv,0)),IF(LEFT(TableData[[#This Row],[Tillsynsbehov]],4)="Spor",INDEX(tblTillsynsTim,4,MATCH(TableData[[#This Row],[Prövn.- nivå]],rngTillsynsNiv,0)),TableData[[#This Row],[Tillsynsbehov]]))))) -> 90 | F65: Årlig tillsynsavgift | G65: =IF(TableData[[#This Row],[Avgift]]="Timavgift","Bilaga 3","Bilaga 2") -> Bilaga 2 | H65: =IFERROR(TableData[[#This Row],[Timmar]]*rngTimpris,"") -> 90000 | I65: 15 | J65: LIVSMEDEL OCH FODER | K65: Slakterier | L65: ="1. För en verksamhet som är tillståndspliktig enligt 5 kap. 1 § miljöprövningsförordningen är tillsynstiden "&IF(ISNUMBER($E65),$E65,"x")&" timmar för produktion baserad på slaktvikt som omfattar mer än 50 000 ton per kalenderår."&IF(TableData[[#This Row],[IUV-tillägg]]="Ja"," "&rngIUV,"") -> 1. För en verksamhet som är tillståndspliktig enligt 5 kap. 1 § miljöprövningsförordningen är tillsynstiden 90 timmar för produktion baserad på slaktvikt som omfattar mer än 50 000 ton per kalenderår.
A66: 15.10-i | B66: B | C66: 30 | D66: Nej | E66: =IF(TableData[[#This Row],[Tillsynsbehov]]="Ange tillsynsbehov","Ange tillsynsbehov",IF(LEFT(TableData[[#This Row],[Tillsynsbehov]],4)="Högt",INDEX(tblTillsynsTim,1,MATCH(TableData[[#This Row],[Prövn.- nivå]],rngTillsynsNiv,0)),IF(LEFT(TableData[[#This Row],[Tillsynsbehov]],4)="Norm",INDEX(tblTillsynsTim,2,MATCH(TableData[[#This Row],[Prövn.- nivå]],rngTillsynsNiv,0)),IF(LEFT(TableData[[#This Row],[Tillsynsbehov]],4)="Lågt",INDEX(tblTillsynsTim,3,MATCH(TableData[[#This Row],[Prövn.- nivå]],rngTillsynsNiv,0)),IF(LEFT(TableData[[#This Row],[Tillsynsbehov]],4)="Spor",INDEX(tblTillsynsTim,4,MATCH(TableData[[#This Row],[Prövn.- nivå]],rngTillsynsNiv,0)),TableData[[#This Row],[Tillsynsbehov]]))))) -> 30 | F66: Årlig tillsynsavgift | G66: =IF(TableData[[#This Row],[Avgift]]="Timavgift","Bilaga 3","Bilaga 2") -> Bilaga 2 | H66: =IFERROR(TableData[[#This Row],[Timmar]]*rngTimpris,"") -> 30000 | I66: 15 | J66: LIVSMEDEL OCH FODER | K66: Slakterier | L66: ="2. För en verksamhet som är tillståndspliktig enligt 5 kap. 1 § miljöprövningsförordningen är tillsynstiden "&IF(ISNUMBER($E66),$E66,"x")&" timmar för produktion som inte omfattas av 1."&IF(TableData[[#This Row],[IUV-tillägg]]="Ja"," "&rngIUV,"") -> 2. För en verksamhet som är tillståndspliktig enligt 5 kap. 1 § miljöprövningsförordningen är tillsynstiden 30 timmar för produktion som inte omfattas av 1.
A67: 15.20 | B67: B | C67: 30 | E67: =IF(TableData[[#This Row],[Tillsynsbehov]]="Ange tillsynsbehov","Ange tillsynsbehov",IF(LEFT(TableData[[#This Row],[Tillsynsbehov]],4)="Högt",INDEX(tblTillsynsTim,1,MATCH(TableData[[#This Row],[Prövn.- nivå]],rngTillsynsNiv,0)),IF(LEFT(TableData[[#This Row],[Tillsynsbehov]],4)="Norm",INDEX(tblTillsynsTim,2,MATCH(TableData[[#This Row],[Prövn.- nivå]],rngTillsynsNiv,0)),IF(LEFT(TableData[[#This Row],[Tillsynsbehov]],4)="Lågt",INDEX(tblTillsynsTim,3,MATCH(TableData[[#This Row],[Prövn.- nivå]],rngTillsynsNiv,0)),IF(LEFT(TableData[[#This Row],[Tillsynsbehov]],4)="Spor",INDEX(tblTillsynsTim,4,MATCH(TableData[[#This Row],[Prövn.- nivå]],rngTillsynsNiv,0)),TableData[[#This Row],[Tillsynsbehov]]))))) -> 30 | F67: Årlig tillsynsavgift | G67: =IF(TableData[[#This Row],[Avgift]]="Timavgift","Bilaga 3","Bilaga 2") -> Bilaga 2 | H67: =IFERROR(TableData[[#This Row],[Timmar]]*rngTimpris,"") -> 30000 | I67: 15 | J67: LIVSMEDEL OCH FODER | K67: Slakterier | L67: ="För en verksamhet som är tillståndspliktig enligt 5 kap. 2 § miljöprövningsförordningen är tillsynstiden "&IF(ISNUMBER($E67),$E67,"x")&" timmar."&IF(TableData[[#This Row],[IUV-tillägg]]="Ja"," "&rngIUV,"") -> För en verksamhet som är tillståndspliktig enligt 5 kap. 2 § miljöprövningsförordningen är tillsynstiden 30 timmar.
A68: 15.30 | B68: C | C68: Ange tillsynsbehov | E68: =IF(TableData[[#This Row],[Tillsynsbehov]]="Ange tillsynsbehov","Ange tillsynsbehov",IF(SUM(LEN(TableData[[#This Row],[Tillsynsbehov]])-LEN(SUBSTITUTE(TableData[[#This Row],[Tillsynsbehov]], {"0";"1";"2";"3";"4";"5";"6";"7";"8";"9"}, "")))>0, SUMPRODUCT(MID(0&TableData[[#This Row],[Tillsynsbehov]], LARGE(INDEX(ISNUMBER(--MID(TableData[[#This Row],[Tillsynsbehov]],ROW(INDIRECT("$1:$"&LEN(TableData[[#This Row],[Tillsynsbehov]]))),1))* ROW(INDIRECT("$1:$"&LEN(TableData[[#This Row],[Tillsynsbehov]]))),0), ROW(INDIRECT("$1:$"&LEN(TableData[[#This Row],[Tillsynsbehov]]))))+1,1) * 10^ROW(INDIRECT("$1:$"&LEN(TableData[[#This Row],[Tillsynsbehov]])))/10),TableData[[#This Row],[Tillsynsbehov]])) -> Ange tillsynsbehov | F68: Årlig tillsynsavgift | G68: =IF(TableData[[#This Row],[Avgift]]="Timavgift","Bilaga 3","Bilaga 2") -> Bilaga 2 | H68: =IFERROR(TableData[[#This Row],[Timmar]]*rngTimpris,"") ->  | I68: 15 | J68: LIVSMEDEL OCH FODER | K68: Slakterier | L68: ="För en verksamhet som är anmälningspliktig enligt 5 kap. 3 § miljöprövningsförordningen är tillsynstiden "&IF(ISNUMBER($E68),$E68,"x")&" timmar."&IF(TableData[[#This Row],[IUV-tillägg]]="Ja"," "&rngIUV,"") -> För en verksamhet som är anmälningspliktig enligt 5 kap. 3 § miljöprövningsförordningen är tillsynstiden x timmar.
B69: U | C69: Ange tillsynsbehov | E69: =IF(TableData[[#This Row],[Tillsynsbehov]]="Ange tillsynsbehov","Ange tillsynsbehov",IF(SUM(LEN(TableData[[#This Row],[Tillsynsbehov]])-LEN(SUBSTITUTE(TableData[[#This Row],[Tillsynsbehov]], {"0";"1";"2";"3";"4";"5";"6";"7";"8";"9"}, "")))>0, SUMPRODUCT(MID(0&TableData[[#This Row],[Tillsynsbehov]], LARGE(INDEX(ISNUMBER(--MID(TableData[[#This Row],[Tillsynsbehov]],ROW(INDIRECT("$1:$"&LEN(TableData[[#This Row],[Tillsynsbehov]]))),1))* ROW(INDIRECT("$1:$"&LEN(TableData[[#This Row],[Tillsynsbehov]]))),0), ROW(INDIRECT("$1:$"&LEN(TableData[[#This Row],[Tillsynsbehov]]))))+1,1) * 10^ROW(INDIRECT("$1:$"&LEN(TableData[[#This Row],[Tillsynsbehov]])))/10),TableData[[#This Row],[Tillsynsbehov]])) -> Ange tillsynsbehov | F69: Timavgift | G69: =IF(TableData[[#This Row],[Avgift]]="Timavgift","Bilaga 3","Bilaga 2") -> Bilaga 3 | H69: =IFERROR(TableData[[#This Row],[Timmar]]*rngTimpris,"") ->  | I69: 15 | J69: LIVSMEDEL OCH FODER | K69: Slakterier | L69: ="För verksamheter under anmälningspliktig nivå är tillsynstiden "&IF(ISNUMBER($E69),$E69,"x")&" timmar."&IF(TableData[[#This Row],[IUV-tillägg]]="Ja"," "&rngIUV,"") -> För verksamheter under anmälningspliktig nivå är tillsynstiden x timmar.
A70: ="" ->  | G70: =IF(COUNTIF(G71:G76,"Bilaga 2")=0,"Bilaga 3",IF(COUNTIF(G71:G76,"Bilaga 3")=0,"Bilaga 2","")) ->  | H70: =IFERROR(TableData[[#This Row],[Timmar]]*rngTimpris,"") -> 0 | I70: 15 | J70: LIVSMEDEL OCH FODER | K70: Livsmedel och foder av animaliska råvaror | L70: Verksamhetsgrupp Livsmedel och foder av animaliska råvaror
A71: 15.40-i, 15.45 | B71: B | C71: 90 | D71: Nej | E71: =IF(TableData[[#This Row],[Tillsynsbehov]]="Ange tillsynsbehov","Ange tillsynsbehov",IF(LEFT(TableData[[#This Row],[Tillsynsbehov]],4)="Högt",INDEX(tblTillsynsTim,1,MATCH(TableData[[#This Row],[Prövn.- nivå]],rngTillsynsNiv,0)),IF(LEFT(TableData[[#This Row],[Tillsynsbehov]],4)="Norm",INDEX(tblTillsynsTim,2,MATCH(TableData[[#This Row],[Prövn.- nivå]],rngTillsynsNiv,0)),IF(LEFT(TableData[[#This Row],[Tillsynsbehov]],4)="Lågt",INDEX(tblTillsynsTim,3,MATCH(TableData[[#This Row],[Prövn.- nivå]],rngTillsynsNiv,0)),IF(LEFT(TableData[[#This Row],[Tillsynsbehov]],4)="Spor",INDEX(tblTillsynsTim,4,MATCH(TableData[[#This Row],[Prövn.- nivå]],rngTillsynsNiv,0)),TableData[[#This Row],[Tillsynsbehov]]))))) -> 90 | F71: Årlig tillsynsavgift | G71: =IF(TableData[[#This Row],[Avgift]]="Timavgift","Bilaga 3","Bilaga 2") -> Bilaga 2 | H71: =IFERROR(TableData[[#This Row],[Timmar]]*rngTimpris,"") -> 90000 | I71: 15 | J71: LIVSMEDEL OCH FODER | K71: Livsmedel och foder av animaliska råvaror | L71: ="1. För en verksamhet som är tillståndspliktig enligt 5 kap. 4 eller 5 § miljöprövningsförordningen är tillsynstiden "&IF(ISNUMBER($E71),$E71,"x")&" timmar om verksamheten avser bearbetning av animaliska biprodukter för framställning av livsmedel eller för framställning av foder om mer än 10 000 ton animaliska biprodukter används som råvara per kalenderår."&IF(TableData[[#This Row],[IUV-tillägg]]="Ja"," "&rngIUV,"") -> 1. För en verksamhet som är tillståndspliktig enligt 5 kap. 4 eller 5 § miljöprövningsförordningen är tillsynstiden 90 timmar om verksamheten avser bearbetning av animaliska biprodukter för framställning av livsmedel eller för framställning av foder om mer än 10 000 ton animaliska biprodukter används som råvara per kalenderår.
A72: 15.40-i, 15.45 | B72: B | C72: 30 | D72: Nej | E72: =IF(TableData[[#This Row],[Tillsynsbehov]]="Ange tillsynsbehov","Ange tillsynsbehov",IF(LEFT(TableData[[#This Row],[Tillsynsbehov]],4)="Högt",INDEX(tblTillsynsTim,1,MATCH(TableData[[#This Row],[Prövn.- nivå]],rngTillsynsNiv,0)),IF(LEFT(TableData[[#This Row],[Tillsynsbehov]],4)="Norm",INDEX(tblTillsynsTim,2,MATCH(TableData[[#This Row],[Prövn.- nivå]],rngTillsynsNiv,0)),IF(LEFT(TableData[[#This Row],[Tillsynsbehov]],4)="Lågt",INDEX(tblTillsynsTim,3,MATCH(TableData[[#This Row],[Prövn.- nivå]],rngTillsynsNiv,0)),IF(LEFT(TableData[[#This Row],[Tillsynsbehov]],4)="Spor",INDEX(tblTillsynsTim,4,MATCH(TableData[[#This Row],[Prövn.- nivå]],rngTillsynsNiv,0)),TableData[[#This Row],[Tillsynsbehov]]))))) -> 30 | F72: Årlig tillsynsavgift | G72: =IF(TableData[[#This Row],[Avgift]]="Timavgift","Bilaga 3","Bilaga 2") -> Bilaga 2 | H72: =IFERROR(TableData[[#This Row],[Timmar]]*rngTimpris,"") -> 30000 | I72: 15 | J72: LIVSMEDEL OCH FODER | K72: Livsmedel och foder av animaliska råvaror | L72: ="2. För en verksamhet som är tillståndspliktig enligt 5 kap. 4 eller 5 § miljöprövningsförordningen är tillsynstiden "&IF(ISNUMBER($E72),$E72,"x")&" timmar om verksamheten avser rökning för framställning av livsmedel eller för framställning av foder om mer än 10 000 ton animaliska biprodukter används som råvara per kalenderår."&IF(TableData[[#This Row],[IUV-tillägg]]="Ja"," "&rngIUV,"") -> 2. För en verksamhet som är tillståndspliktig enligt 5 kap. 4 eller 5 § miljöprövningsförordningen är tillsynstiden 30 timmar om verksamheten avser rökning för framställning av livsmedel eller för framställning av foder om mer än 10 000 ton animaliska biprodukter används som råvara per kalenderår.
A73: 15.40-i, 15.45 | B73: B | C73: 64 | D73: Nej | E73: =IF(TableData[[#This Row],[Tillsynsbehov]]="Ange tillsynsbehov","Ange tillsynsbehov",IF(LEFT(TableData[[#This Row],[Tillsynsbehov]],4)="Högt",INDEX(tblTillsynsTim,1,MATCH(TableData[[#This Row],[Prövn.- nivå]],rngTillsynsNiv,0)),IF(LEFT(TableData[[#This Row],[Tillsynsbehov]],4)="Norm",INDEX(tblTillsynsTim,2,MATCH(TableData[[#This Row],[Prövn.- nivå]],rngTillsynsNiv,0)),IF(LEFT(TableData[[#This Row],[Tillsynsbehov]],4)="Lågt",INDEX(tblTillsynsTim,3,MATCH(TableData[[#This Row],[Prövn.- nivå]],rngTillsynsNiv,0)),IF(LEFT(TableData[[#This Row],[Tillsynsbehov]],4)="Spor",INDEX(tblTillsynsTim,4,MATCH(TableData[[#This Row],[Prövn.- nivå]],rngTillsynsNiv,0)),TableData[[#This Row],[Tillsynsbehov]]))))) -> 64 | F73: Årlig tillsynsavgift | G73: =IF(TableData[[#This Row],[Avgift]]="Timavgift","Bilaga 3","Bilaga 2") -> Bilaga 2 | H73: =IFERROR(TableData[[#This Row],[Timmar]]*rngTimpris,"") -> 64000 | I73: 15 | J73: LIVSMEDEL OCH FODER | K73: Livsmedel och foder av animaliska råvaror | L73: ="3. För en verksamhet som är tillståndspliktig enligt 5 kap. 4 eller 5 § miljöprövningsförordningen är tillsynstiden "&IF(ISNUMBER($E73),$E73,"x")&" timmar om verksamheten inte omfattas av 1 eller 2."&IF(TableData[[#This Row],[IUV-tillägg]]="Ja"," "&rngIUV,"") -> 3. För en verksamhet som är tillståndspliktig enligt 5 kap. 4 eller 5 § miljöprövningsförordningen är tillsynstiden 64 timmar om verksamheten inte omfattas av 1 eller 2.
A74: 15.50 | B74: C | C74: Ange tillsynsbehov | E74: =IF(TableData[[#This Row],[Tillsynsbehov]]="Ange tillsynsbehov","Ange tillsynsbehov",IF(SUM(LEN(TableData[[#This Row],[Tillsynsbehov]])-LEN(SUBSTITUTE(TableData[[#This Row],[Tillsynsbehov]], {"0";"1";"2";"3";"4";"5";"6";"7";"8";"9"}, "")))>0, SUMPRODUCT(MID(0&TableData[[#This Row],[Tillsynsbehov]], LARGE(INDEX(ISNUMBER(--MID(TableData[[#This Row],[Tillsynsbehov]],ROW(INDIRECT("$1:$"&LEN(TableData[[#This Row],[Tillsynsbehov]]))),1))* ROW(INDIRECT("$1:$"&LEN(TableData[[#This Row],[Tillsynsbehov]]))),0), ROW(INDIRECT("$1:$"&LEN(TableData[[#This Row],[Tillsynsbehov]]))))+1,1) * 10^ROW(INDIRECT("$1:$"&LEN(TableData[[#This Row],[Tillsynsbehov]])))/10),TableData[[#This Row],[Tillsynsbehov]])) -> Ange tillsynsbehov | F74: Årlig tillsynsavgift | G74: =IF(TableData[[#This Row],[Avgift]]="Timavgift","Bilaga 3","Bilaga 2") -> Bilaga 2 | H74: =IFERROR(TableData[[#This Row],[Timmar]]*rngTimpris,"") ->  | I74: 15 | J74: LIVSMEDEL OCH FODER | K74: Livsmedel och foder av animaliska råvaror | L74: ="För en verksamhet som är anmälningspliktig enligt 5 kap. 6 § miljöprövningsförordningen är tillsynstiden "&IF(ISNUMBER($E74),$E74,"x")&" timmar."&IF(TableData[[#This Row],[IUV-tillägg]]="Ja"," "&rngIUV,"") -> För en verksamhet som är anmälningspliktig enligt 5 kap. 6 § miljöprövningsförordningen är tillsynstiden x timmar.
A75: 15.65 | B75: C | C75: Ange tillsynsbehov | E75: =IF(TableData[[#This Row],[Tillsynsbehov]]="Ange tillsynsbehov","Ange tillsynsbehov",IF(SUM(LEN(TableData[[#This Row],[Tillsynsbehov]])-LEN(SUBSTITUTE(TableData[[#This Row],[Tillsynsbehov]], {"0";"1";"2";"3";"4";"5";"6";"7";"8";"9"}, "")))>0, SUMPRODUCT(MID(0&TableData[[#This Row],[Tillsynsbehov]], LARGE(INDEX(ISNUMBER(--MID(TableData[[#This Row],[Tillsynsbehov]],ROW(INDIRECT("$1:$"&LEN(TableData[[#This Row],[Tillsynsbehov]]))),1))* ROW(INDIRECT("$1:$"&LEN(TableData[[#This Row],[Tillsynsbehov]]))),0), ROW(INDIRECT("$1:$"&LEN(TableData[[#This Row],[Tillsynsbehov]]))))+1,1) * 10^ROW(INDIRECT("$1:$"&LEN(TableData[[#This Row],[Tillsynsbehov]])))/10),TableData[[#This Row],[Tillsynsbehov]])) -> Ange tillsynsbehov | F75: Årlig tillsynsavgift | G75: =IF(TableData[[#This Row],[Avgift]]="Timavgift","Bilaga 3","Bilaga 2") -> Bilaga 2 | H75: =IFERROR(TableData[[#This Row],[Timmar]]*rngTimpris,"") ->  | I75: 15 | J75: LIVSMEDEL OCH FODER | K75: Livsmedel och foder av animaliska råvaror | L75: ="För en verksamhet som är anmälningspliktig enligt 5 kap. 6 a § miljöprövningsförordningen är tillsynstiden "&IF(ISNUMBER($E75),$E75,"x")&" timmar."&IF(TableData[[#This Row],[IUV-tillägg]]="Ja"," "&rngIUV,"") -> För en verksamhet som är anmälningspliktig enligt 5 kap. 6 a § miljöprövningsförordningen är tillsynstiden x timmar.
B76: U | C76: Ange tillsynsbehov | E76: =IF(TableData[[#This Row],[Tillsynsbehov]]="Ange tillsynsbehov","Ange tillsynsbehov",IF(SUM(LEN(TableData[[#This Row],[Tillsynsbehov]])-LEN(SUBSTITUTE(TableData[[#This Row],[Tillsynsbehov]], {"0";"1";"2";"3";"4";"5";"6";"7";"8";"9"}, "")))>0, SUMPRODUCT(MID(0&TableData[[#This Row],[Tillsynsbehov]], LARGE(INDEX(ISNUMBER(--MID(TableData[[#This Row],[Tillsynsbehov]],ROW(INDIRECT("$1:$"&LEN(TableData[[#This Row],[Tillsynsbehov]]))),1))* ROW(INDIRECT("$1:$"&LEN(TableData[[#This Row],[Tillsynsbehov]]))),0), ROW(INDIRECT("$1:$"&LEN(TableData[[#This Row],[Tillsynsbehov]]))))+1,1) * 10^ROW(INDIRECT("$1:$"&LEN(TableData[[#This Row],[Tillsynsbehov]])))/10),TableData[[#This Row],[Tillsynsbehov]])) -> Ange tillsynsbehov | F76: Timavgift | G76: =IF(TableData[[#This Row],[Avgift]]="Timavgift","Bilaga 3","Bilaga 2") -> Bilaga 3 | H76: =IFERROR(TableData[[#This Row],[Timmar]]*rngTimpris,"") ->  | I76: 15 | J76: LIVSMEDEL OCH FODER | K76: Livsmedel och foder av animaliska råvaror | L76: ="För verksamheter under anmälningspliktig nivå är tillsynstiden "&IF(ISNUMBER($E76),$E76,"x")&" timmar."&IF(TableData[[#This Row],[IUV-tillägg]]="Ja"," "&rngIUV,"") -> För verksamheter under anmälningspliktig nivå är tillsynstiden x timmar.
A77: ="" ->  | G77: =IF(COUNTIF(G78:G79,"Bilaga 2")=0,"Bilaga 3",IF(COUNTIF(G78:G79,"Bilaga 3")=0,"Bilaga 2","")) ->  | H77: =IFERROR(TableData[[#This Row],[Timmar]]*rngTimpris,"") -> 0 | I77: 15 | J77: LIVSMEDEL OCH FODER | K77: Rökeri | L77: Verksamhetsgrupp Rökeri
A78: 15.80 | B78: C | C78: Ange tillsynsbehov | E78: =IF(TableData[[#This Row],[Tillsynsbehov]]="Ange tillsynsbehov","Ange tillsynsbehov",IF(SUM(LEN(TableData[[#This Row],[Tillsynsbehov]])-LEN(SUBSTITUTE(TableData[[#This Row],[Tillsynsbehov]], {"0";"1";"2";"3";"4";"5";"6";"7";"8";"9"}, "")))>0, SUMPRODUCT(MID(0&TableData[[#This Row],[Tillsynsbehov]], LARGE(INDEX(ISNUMBER(--MID(TableData[[#This Row],[Tillsynsbehov]],ROW(INDIRECT("$1:$"&LEN(TableData[[#This Row],[Tillsynsbehov]]))),1))* ROW(INDIRECT("$1:$"&LEN(TableData[[#This Row],[Tillsynsbehov]]))),0), ROW(INDIRECT("$1:$"&LEN(TableData[[#This Row],[Tillsynsbehov]]))))+1,1) * 10^ROW(INDIRECT("$1:$"&LEN(TableData[[#This Row],[Tillsynsbehov]])))/10),TableData[[#This Row],[Tillsynsbehov]])) -> Ange tillsynsbehov | F78: Årlig tillsynsavgift | G78: =IF(TableData[[#This Row],[Avgift]]="Timavgift","Bilaga 3","Bilaga 2") -> Bilaga 2 | H78: =IFERROR(TableData[[#This Row],[Timmar]]*rngTimpris,"") ->  | I78: 15 | J78: LIVSMEDEL OCH FODER | K78: Rökeri | L78: ="För en verksamhet som är anmälningspliktig enligt 5 kap. 7 § miljöprövningsförordningen är tillsynstiden "&IF(ISNUMBER($E78),$E78,"x")&" timmar."&IF(TableData[[#This Row],[IUV-tillägg]]="Ja"," "&rngIUV,"") -> För en verksamhet som är anmälningspliktig enligt 5 kap. 7 § miljöprövningsförordningen är tillsynstiden x timmar.
B79: U | C79: Ange tillsynsbehov | E79: =IF(TableData[[#This Row],[Tillsynsbehov]]="Ange tillsynsbehov","Ange tillsynsbehov",IF(SUM(LEN(TableData[[#This Row],[Tillsynsbehov]])-LEN(SUBSTITUTE(TableData[[#This Row],[Tillsynsbehov]], {"0";"1";"2";"3";"4";"5";"6";"7";"8";"9"}, "")))>0, SUMPRODUCT(MID(0&TableData[[#This Row],[Tillsynsbehov]], LARGE(INDEX(ISNUMBER(--MID(TableData[[#This Row],[Tillsynsbehov]],ROW(INDIRECT("$1:$"&LEN(TableData[[#This Row],[Tillsynsbehov]]))),1))* ROW(INDIRECT("$1:$"&LEN(TableData[[#This Row],[Tillsynsbehov]]))),0), ROW(INDIRECT("$1:$"&LEN(TableData[[#This Row],[Tillsynsbehov]]))))+1,1) * 10^ROW(INDIRECT("$1:$"&LEN(TableData[[#This Row],[Tillsynsbehov]])))/10),TableData[[#This Row],[Tillsynsbehov]])) -> Ange tillsynsbehov | F79: Timavgift | G79: =IF(TableData[[#This Row],[Avgift]]="Timavgift","Bilaga 3","Bilaga 2") -> Bilaga 3 | H79: =IFERROR(TableData[[#This Row],[Timmar]]*rngTimpris,"") ->  | I79: 15 | J79: LIVSMEDEL OCH FODER | K79: Rökeri | L79: ="För verksamheter under anmälningspliktig nivå är tillsynstiden "&IF(ISNUMBER($E79),$E79,"x")&" timmar."&IF(TableData[[#This Row],[IUV-tillägg]]="Ja"," "&rngIUV,"") -> För verksamheter under anmälningspliktig nivå är tillsynstiden x timmar.
A80: ="" ->  | G80: =IF(COUNTIF(G81:G87,"Bilaga 2")=0,"Bilaga 3",IF(COUNTIF(G81:G87,"Bilaga 3")=0,"Bilaga 2","")) ->  | H80: =IFERROR(TableData[[#This Row],[Timmar]]*rngTimpris,"") -> 0 | I80: 15 | J80: LIVSMEDEL OCH FODER | K80: Livsmedel och foder av vegetabiliska råvaror | L80: Verksamhetsgrupp Livsmedel och foder av vegetabiliska råvaror
A81: 15.90-i, 15.95 | B81: B | C81: 64 | D81: Nej | E81: =IF(TableData[[#This Row],[Tillsynsbehov]]="Ange tillsynsbehov","Ange tillsynsbehov",IF(LEFT(TableData[[#This Row],[Tillsynsbehov]],4)="Högt",INDEX(tblTillsynsTim,1,MATCH(TableData[[#This Row],[Prövn.- nivå]],rngTillsynsNiv,0)),IF(LEFT(TableData[[#This Row],[Tillsynsbehov]],4)="Norm",INDEX(tblTillsynsTim,2,MATCH(TableData[[#This Row],[Prövn.- nivå]],rngTillsynsNiv,0)),IF(LEFT(TableData[[#This Row],[Tillsynsbehov]],4)="Lågt",INDEX(tblTillsynsTim,3,MATCH(TableData[[#This Row],[Prövn.- nivå]],rngTillsynsNiv,0)),IF(LEFT(TableData[[#This Row],[Tillsynsbehov]],4)="Spor",INDEX(tblTillsynsTim,4,MATCH(TableData[[#This Row],[Prövn.- nivå]],rngTillsynsNiv,0)),TableData[[#This Row],[Tillsynsbehov]]))))) -> 64 | F81: Årlig tillsynsavgift | G81: =IF(TableData[[#This Row],[Avgift]]="Timavgift","Bilaga 3","Bilaga 2") -> Bilaga 2 | H81: =IFERROR(TableData[[#This Row],[Timmar]]*rngTimpris,"") -> 64000 | I81: 15 | J81: LIVSMEDEL OCH FODER | K81: Livsmedel och foder av vegetabiliska råvaror | L81: ="1. För en verksamhet som är tillståndspliktig enligt 5 kap. 8 eller 9 § miljöprövningsförordningen är tillsynstiden "&IF(ISNUMBER($E81),$E81,"x")&" timmar om verksamheten avser anläggning för tillverkning av stärkelse, stärkelsederivat eller socker."&IF(TableData[[#This Row],[IUV-tillägg]]="Ja"," "&rngIUV,"") -> 1. För en verksamhet som är tillståndspliktig enligt 5 kap. 8 eller 9 § miljöprövningsförordningen är tillsynstiden 64 timmar om verksamheten avser anläggning för tillverkning av stärkelse, stärkelsederivat eller socker.
A82: 15.90-i, 15.95 | B82: B | C82: 30 | D82: Nej | E82: =IF(TableData[[#This Row],[Tillsynsbehov]]="Ange tillsynsbehov","Ange tillsynsbehov",IF(LEFT(TableData[[#This Row],[Tillsynsbehov]],4)="Högt",INDEX(tblTillsynsTim,1,MATCH(TableData[[#This Row],[Prövn.- nivå]],rngTillsynsNiv,0)),IF(LEFT(TableData[[#This Row],[Tillsynsbehov]],4)="Norm",INDEX(tblTillsynsTim,2,MATCH(TableData[[#This Row],[Prövn.- nivå]],rngTillsynsNiv,0)),IF(LEFT(TableData[[#This Row],[Tillsynsbehov]],4)="Lågt",INDEX(tblTillsynsTim,3,MATCH(TableData[[#This Row],[Prövn.- nivå]],rngTillsynsNiv,0)),IF(LEFT(TableData[[#This Row],[Tillsynsbehov]],4)="Spor",INDEX(tblTillsynsTim,4,MATCH(TableData[[#This Row],[Prövn.- nivå]],rngTillsynsNiv,0)),TableData[[#This Row],[Tillsynsbehov]]))))) -> 30 | F82: Årlig tillsynsavgift | G82: =IF(TableData[[#This Row],[Avgift]]="Timavgift","Bilaga 3","Bilaga 2") -> Bilaga 2 | H82: =IFERROR(TableData[[#This Row],[Timmar]]*rngTimpris,"") -> 30000 | I82: 15 | J82: LIVSMEDEL OCH FODER | K82: Livsmedel och foder av vegetabiliska råvaror | L82: ="2. För en verksamhet som är tillståndspliktig enligt 5 kap. 8 eller 9 § miljöprövningsförordningen är tillsynstiden "&IF(ISNUMBER($E82),$E82,"x")&" timmar om verksamheten avser rostning av kaffe."&IF(TableData[[#This Row],[IUV-tillägg]]="Ja"," "&rngIUV,"") -> 2. För en verksamhet som är tillståndspliktig enligt 5 kap. 8 eller 9 § miljöprövningsförordningen är tillsynstiden 30 timmar om verksamheten avser rostning av kaffe.
A83: 15.90-i, 15.95 | B83: B | C83: 64 | D83: Nej | E83: =IF(TableData[[#This Row],[Tillsynsbehov]]="Ange tillsynsbehov","Ange tillsynsbehov",IF(LEFT(TableData[[#This Row],[Tillsynsbehov]],4)="Högt",INDEX(tblTillsynsTim,1,MATCH(TableData[[#This Row],[Prövn.- nivå]],rngTillsynsNiv,0)),IF(LEFT(TableData[[#This Row],[Tillsynsbehov]],4)="Norm",INDEX(tblTillsynsTim,2,MATCH(TableData[[#This Row],[Prövn.- nivå]],rngTillsynsNiv,0)),IF(LEFT(TableData[[#This Row],[Tillsynsbehov]],4)="Lågt",INDEX(tblTillsynsTim,3,MATCH(TableData[[#This Row],[Prövn.- nivå]],rngTillsynsNiv,0)),IF(LEFT(TableData[[#This Row],[Tillsynsbehov]],4)="Spor",INDEX(tblTillsynsTim,4,MATCH(TableData[[#This Row],[Prövn.- nivå]],rngTillsynsNiv,0)),TableData[[#This Row],[Tillsynsbehov]]))))) -> 64 | F83: Årlig tillsynsavgift | G83: =IF(TableData[[#This Row],[Avgift]]="Timavgift","Bilaga 3","Bilaga 2") -> Bilaga 2 | H83: =IFERROR(TableData[[#This Row],[Timmar]]*rngTimpris,"") -> 64000 | I83: 15 | J83: LIVSMEDEL OCH FODER | K83: Livsmedel och foder av vegetabiliska råvaror | L83: ="3. För en verksamhet som är tillståndspliktig enligt 5 kap. 8 eller 9 § miljöprövningsförordningen är tillsynstiden "&IF(ISNUMBER($E83),$E83,"x")&" timmar om verksamheten avser anläggning för framställning av livsmedel med beredning och behandling med en produktion av mer än 50 000 ton per kalenderår och inte omfattas av 1 eller 2."&IF(TableData[[#This Row],[IUV-tillägg]]="Ja"," "&rngIUV,"") -> 3. För en verksamhet som är tillståndspliktig enligt 5 kap. 8 eller 9 § miljöprövningsförordningen är tillsynstiden 64 timmar om verksamheten avser anläggning för framställning av livsmedel med beredning och behandling med en produktion av mer än 50 000 ton per kalenderår och inte omfattas av 1 eller 2.
A84: 15.90-i, 15.95 | B84: B | C84: 30 | D84: Nej | E84: =IF(TableData[[#This Row],[Tillsynsbehov]]="Ange tillsynsbehov","Ange tillsynsbehov",IF(LEFT(TableData[[#This Row],[Tillsynsbehov]],4)="Högt",INDEX(tblTillsynsTim,1,MATCH(TableData[[#This Row],[Prövn.- nivå]],rngTillsynsNiv,0)),IF(LEFT(TableData[[#This Row],[Tillsynsbehov]],4)="Norm",INDEX(tblTillsynsTim,2,MATCH(TableData[[#This Row],[Prövn.- nivå]],rngTillsynsNiv,0)),IF(LEFT(TableData[[#This Row],[Tillsynsbehov]],4)="Lågt",INDEX(tblTillsynsTim,3,MATCH(TableData[[#This Row],[Prövn.- nivå]],rngTillsynsNiv,0)),IF(LEFT(TableData[[#This Row],[Tillsynsbehov]],4)="Spor",INDEX(tblTillsynsTim,4,MATCH(TableData[[#This Row],[Prövn.- nivå]],rngTillsynsNiv,0)),TableData[[#This Row],[Tillsynsbehov]]))))) -> 30 | F84: Årlig tillsynsavgift | G84: =IF(TableData[[#This Row],[Avgift]]="Timavgift","Bilaga 3","Bilaga 2") -> Bilaga 2 | H84: =IFERROR(TableData[[#This Row],[Timmar]]*rngTimpris,"") -> 30000 | I84: 15 | J84: LIVSMEDEL OCH FODER | K84: Livsmedel och foder av vegetabiliska råvaror | L84: ="4. För en verksamhet som är tillståndspliktig enligt 5 kap. 8 eller 9 § miljöprövningsförordningen är tillsynstiden "&IF(ISNUMBER($E84),$E84,"x")&" timmar om verksamheten inte omfattas av någon av 1-3."&IF(TableData[[#This Row],[IUV-tillägg]]="Ja"," "&rngIUV,"") -> 4. För en verksamhet som är tillståndspliktig enligt 5 kap. 8 eller 9 § miljöprövningsförordningen är tillsynstiden 30 timmar om verksamheten inte omfattas av någon av 1-3.
A85: 15.101 | B85: C | C85: Ange tillsynsbehov | E85: =IF(TableData[[#This Row],[Tillsynsbehov]]="Ange tillsynsbehov","Ange tillsynsbehov",IF(SUM(LEN(TableData[[#This Row],[Tillsynsbehov]])-LEN(SUBSTITUTE(TableData[[#This Row],[Tillsynsbehov]], {"0";"1";"2";"3";"4";"5";"6";"7";"8";"9"}, "")))>0, SUMPRODUCT(MID(0&TableData[[#This Row],[Tillsynsbehov]], LARGE(INDEX(ISNUMBER(--MID(TableData[[#This Row],[Tillsynsbehov]],ROW(INDIRECT("$1:$"&LEN(TableData[[#This Row],[Tillsynsbehov]]))),1))* ROW(INDIRECT("$1:$"&LEN(TableData[[#This Row],[Tillsynsbehov]]))),0), ROW(INDIRECT("$1:$"&LEN(TableData[[#This Row],[Tillsynsbehov]]))))+1,1) * 10^ROW(INDIRECT("$1:$"&LEN(TableData[[#This Row],[Tillsynsbehov]])))/10),TableData[[#This Row],[Tillsynsbehov]])) -> Ange tillsynsbehov | F85: Årlig tillsynsavgift | G85: =IF(TableData[[#This Row],[Avgift]]="Timavgift","Bilaga 3","Bilaga 2") -> Bilaga 2 | H85: =IFERROR(TableData[[#This Row],[Timmar]]*rngTimpris,"") ->  | I85: 15 | J85: LIVSMEDEL OCH FODER | K85: Livsmedel och foder av vegetabiliska råvaror | L85: ="För en verksamhet som är anmälningspliktig enligt 5 kap. 10 § miljöprövningsförordningen är tillsynstiden "&IF(ISNUMBER($E85),$E85,"x")&" timmar."&IF(TableData[[#This Row],[IUV-tillägg]]="Ja"," "&rngIUV,"") -> För en verksamhet som är anmälningspliktig enligt 5 kap. 10 § miljöprövningsförordningen är tillsynstiden x timmar.
A86: 15.115 | B86: C | C86: Ange tillsynsbehov | E86: =IF(TableData[[#This Row],[Tillsynsbehov]]="Ange tillsynsbehov","Ange tillsynsbehov",IF(SUM(LEN(TableData[[#This Row],[Tillsynsbehov]])-LEN(SUBSTITUTE(TableData[[#This Row],[Tillsynsbehov]], {"0";"1";"2";"3";"4";"5";"6";"7";"8";"9"}, "")))>0, SUMPRODUCT(MID(0&TableData[[#This Row],[Tillsynsbehov]], LARGE(INDEX(ISNUMBER(--MID(TableData[[#This Row],[Tillsynsbehov]],ROW(INDIRECT("$1:$"&LEN(TableData[[#This Row],[Tillsynsbehov]]))),1))* ROW(INDIRECT("$1:$"&LEN(TableData[[#This Row],[Tillsynsbehov]]))),0), ROW(INDIRECT("$1:$"&LEN(TableData[[#This Row],[Tillsynsbehov]]))))+1,1) * 10^ROW(INDIRECT("$1:$"&LEN(TableData[[#This Row],[Tillsynsbehov]])))/10),TableData[[#This Row],[Tillsynsbehov]])) -> Ange tillsynsbehov | F86: Årlig tillsynsavgift | G86: =IF(TableData[[#This Row],[Avgift]]="Timavgift","Bilaga 3","Bilaga 2") -> Bilaga 2 | H86: =IFERROR(TableData[[#This Row],[Timmar]]*rngTimpris,"") ->  | I86: 15 | J86: LIVSMEDEL OCH FODER | K86: Livsmedel och foder av vegetabiliska råvaror | L86: ="För en verksamhet som är anmälningspliktig enligt 5 kap. 10 a § miljöprövningsförordningen är tillsynstiden "&IF(ISNUMBER($E86),$E86,"x")&" timmar."&IF(TableData[[#This Row],[IUV-tillägg]]="Ja"," "&rngIUV,"") -> För en verksamhet som är anmälningspliktig enligt 5 kap. 10 a § miljöprövningsförordningen är tillsynstiden x timmar.
B87: U | C87: Ange tillsynsbehov | E87: =IF(TableData[[#This Row],[Tillsynsbehov]]="Ange tillsynsbehov","Ange tillsynsbehov",IF(SUM(LEN(TableData[[#This Row],[Tillsynsbehov]])-LEN(SUBSTITUTE(TableData[[#This Row],[Tillsynsbehov]], {"0";"1";"2";"3";"4";"5";"6";"7";"8";"9"}, "")))>0, SUMPRODUCT(MID(0&TableData[[#This Row],[Tillsynsbehov]], LARGE(INDEX(ISNUMBER(--MID(TableData[[#This Row],[Tillsynsbehov]],ROW(INDIRECT("$1:$"&LEN(TableData[[#This Row],[Tillsynsbehov]]))),1))* ROW(INDIRECT("$1:$"&LEN(TableData[[#This Row],[Tillsynsbehov]]))),0), ROW(INDIRECT("$1:$"&LEN(TableData[[#This Row],[Tillsynsbehov]]))))+1,1) * 10^ROW(INDIRECT("$1:$"&LEN(TableData[[#This Row],[Tillsynsbehov]])))/10),TableData[[#This Row],[Tillsynsbehov]])) -> Ange tillsynsbehov | F87: Timavgift | G87: =IF(TableData[[#This Row],[Avgift]]="Timavgift","Bilaga 3","Bilaga 2") -> Bilaga 3 | H87: =IFERROR(TableData[[#This Row],[Timmar]]*rngTimpris,"") ->  | I87: 15 | J87: LIVSMEDEL OCH FODER | K87: Livsmedel och foder av vegetabiliska råvaror | L87: ="För verksamheter under anmälningspliktig nivå är tillsynstiden "&IF(ISNUMBER($E87),$E87,"x")&" timmar."&IF(TableData[[#This Row],[IUV-tillägg]]="Ja"," "&rngIUV,"") -> För verksamheter under anmälningspliktig nivå är tillsynstiden x timmar.
A88: ="" ->  | G88: =IF(COUNTIF(G89:G90,"Bilaga 2")=0,"Bilaga 3",IF(COUNTIF(G89:G90,"Bilaga 3")=0,"Bilaga 2","")) ->  | H88: =IFERROR(TableData[[#This Row],[Timmar]]*rngTimpris,"") -> 0 | I88: 15 | J88: LIVSMEDEL OCH FODER | K88: Kvarnprodukter | L88: Verksamhetsgrupp Kvarnprodukter
A89: 15.125 | B89: C | C89: Ange tillsynsbehov | E89: =IF(TableData[[#This Row],[Tillsynsbehov]]="Ange tillsynsbehov","Ange tillsynsbehov",IF(SUM(LEN(TableData[[#This Row],[Tillsynsbehov]])-LEN(SUBSTITUTE(TableData[[#This Row],[Tillsynsbehov]], {"0";"1";"2";"3";"4";"5";"6";"7";"8";"9"}, "")))>0, SUMPRODUCT(MID(0&TableData[[#This Row],[Tillsynsbehov]], LARGE(INDEX(ISNUMBER(--MID(TableData[[#This Row],[Tillsynsbehov]],ROW(INDIRECT("$1:$"&LEN(TableData[[#This Row],[Tillsynsbehov]]))),1))* ROW(INDIRECT("$1:$"&LEN(TableData[[#This Row],[Tillsynsbehov]]))),0), ROW(INDIRECT("$1:$"&LEN(TableData[[#This Row],[Tillsynsbehov]]))))+1,1) * 10^ROW(INDIRECT("$1:$"&LEN(TableData[[#This Row],[Tillsynsbehov]])))/10),TableData[[#This Row],[Tillsynsbehov]])) -> Ange tillsynsbehov | F89: Årlig tillsynsavgift | G89: =IF(TableData[[#This Row],[Avgift]]="Timavgift","Bilaga 3","Bilaga 2") -> Bilaga 2 | H89: =IFERROR(TableData[[#This Row],[Timmar]]*rngTimpris,"") ->  | I89: 15 | J89: LIVSMEDEL OCH FODER | K89: Kvarnprodukter | L89: ="För en verksamhet som är anmälningspliktig enligt 5 kap. 11 § miljöprövningsförordningen är tillsynstiden "&IF(ISNUMBER($E89),$E89,"x")&" timmar."&IF(TableData[[#This Row],[IUV-tillägg]]="Ja"," "&rngIUV,"") -> För en verksamhet som är anmälningspliktig enligt 5 kap. 11 § miljöprövningsförordningen är tillsynstiden x timmar.
B90: U | C90: Ange tillsynsbehov | E90: =IF(TableData[[#This Row],[Tillsynsbehov]]="Ange tillsynsbehov","Ange tillsynsbehov",IF(SUM(LEN(TableData[[#This Row],[Tillsynsbehov]])-LEN(SUBSTITUTE(TableData[[#This Row],[Tillsynsbehov]], {"0";"1";"2";"3";"4";"5";"6";"7";"8";"9"}, "")))>0, SUMPRODUCT(MID(0&TableData[[#This Row],[Tillsynsbehov]], LARGE(INDEX(ISNUMBER(--MID(TableData[[#This Row],[Tillsynsbehov]],ROW(INDIRECT("$1:$"&LEN(TableData[[#This Row],[Tillsynsbehov]]))),1))* ROW(INDIRECT("$1:$"&LEN(TableData[[#This Row],[Tillsynsbehov]]))),0), ROW(INDIRECT("$1:$"&LEN(TableData[[#This Row],[Tillsynsbehov]]))))+1,1) * 10^ROW(INDIRECT("$1:$"&LEN(TableData[[#This Row],[Tillsynsbehov]])))/10),TableData[[#This Row],[Tillsynsbehov]])) -> Ange tillsynsbehov | F90: Timavgift | G90: =IF(TableData[[#This Row],[Avgift]]="Timavgift","Bilaga 3","Bilaga 2") -> Bilaga 3 | H90: =IFERROR(TableData[[#This Row],[Timmar]]*rngTimpris,"") ->  | I90: 15 | J90: LIVSMEDEL OCH FODER | K90: Kvarnprodukter | L90: ="För verksamheter under anmälningspliktig nivå är tillsynstiden "&IF(ISNUMBER($E90),$E90,"x")&" timmar."&IF(TableData[[#This Row],[IUV-tillägg]]="Ja"," "&rngIUV,"") -> För verksamheter under anmälningspliktig nivå är tillsynstiden x timmar.
A91: ="" ->  | G91: =IF(COUNTIF(G92:G97,"Bilaga 2")=0,"Bilaga 3",IF(COUNTIF(G92:G97,"Bilaga 3")=0,"Bilaga 2","")) ->  | H91: =IFERROR(TableData[[#This Row],[Timmar]]*rngTimpris,"") -> 0 | I91: 15 | J91: LIVSMEDEL OCH FODER | K91: Livsmedel och foder av kombinerade råvaror | L91: Verksamhetsgrupp Livsmedel och foder av kombinerade råvaror
A92: 15.131-i, 15.141 | B92: B | C92: 90 | D92: Nej | E92: =IF(TableData[[#This Row],[Tillsynsbehov]]="Ange tillsynsbehov","Ange tillsynsbehov",IF(LEFT(TableData[[#This Row],[Tillsynsbehov]],4)="Högt",INDEX(tblTillsynsTim,1,MATCH(TableData[[#This Row],[Prövn.- nivå]],rngTillsynsNiv,0)),IF(LEFT(TableData[[#This Row],[Tillsynsbehov]],4)="Norm",INDEX(tblTillsynsTim,2,MATCH(TableData[[#This Row],[Prövn.- nivå]],rngTillsynsNiv,0)),IF(LEFT(TableData[[#This Row],[Tillsynsbehov]],4)="Lågt",INDEX(tblTillsynsTim,3,MATCH(TableData[[#This Row],[Prövn.- nivå]],rngTillsynsNiv,0)),IF(LEFT(TableData[[#This Row],[Tillsynsbehov]],4)="Spor",INDEX(tblTillsynsTim,4,MATCH(TableData[[#This Row],[Prövn.- nivå]],rngTillsynsNiv,0)),TableData[[#This Row],[Tillsynsbehov]]))))) -> 90 | F92: Årlig tillsynsavgift | G92: =IF(TableData[[#This Row],[Avgift]]="Timavgift","Bilaga 3","Bilaga 2") -> Bilaga 2 | H92: =IFERROR(TableData[[#This Row],[Timmar]]*rngTimpris,"") -> 90000 | I92: 15 | J92: LIVSMEDEL OCH FODER | K92: Livsmedel och foder av kombinerade råvaror | L92: ="1. För en verksamhet som är tillståndspliktig enligt 5 kap. 12 eller 13 § miljöprövningsförordningen är tillsynstiden "&IF(ISNUMBER($E92),$E92,"x")&" timmar om verksamheten avser bearbetning av mer än 10 000 ton animaliska biprodukter som råvara per kalenderår för framställning av foder."&IF(TableData[[#This Row],[IUV-tillägg]]="Ja"," "&rngIUV,"") -> 1. För en verksamhet som är tillståndspliktig enligt 5 kap. 12 eller 13 § miljöprövningsförordningen är tillsynstiden 90 timmar om verksamheten avser bearbetning av mer än 10 000 ton animaliska biprodukter som råvara per kalenderår för framställning av foder.
A93: 15.131-i, 15.141 | B93: B | C93: 64 | D93: Nej | E93: =IF(TableData[[#This Row],[Tillsynsbehov]]="Ange tillsynsbehov","Ange tillsynsbehov",IF(LEFT(TableData[[#This Row],[Tillsynsbehov]],4)="Högt",INDEX(tblTillsynsTim,1,MATCH(TableData[[#This Row],[Prövn.- nivå]],rngTillsynsNiv,0)),IF(LEFT(TableData[[#This Row],[Tillsynsbehov]],4)="Norm",INDEX(tblTillsynsTim,2,MATCH(TableData[[#This Row],[Prövn.- nivå]],rngTillsynsNiv,0)),IF(LEFT(TableData[[#This Row],[Tillsynsbehov]],4)="Lågt",INDEX(tblTillsynsTim,3,MATCH(TableData[[#This Row],[Prövn.- nivå]],rngTillsynsNiv,0)),IF(LEFT(TableData[[#This Row],[Tillsynsbehov]],4)="Spor",INDEX(tblTillsynsTim,4,MATCH(TableData[[#This Row],[Prövn.- nivå]],rngTillsynsNiv,0)),TableData[[#This Row],[Tillsynsbehov]]))))) -> 64 | F93: Årlig tillsynsavgift | G93: =IF(TableData[[#This Row],[Avgift]]="Timavgift","Bilaga 3","Bilaga 2") -> Bilaga 2 | H93: =IFERROR(TableData[[#This Row],[Timmar]]*rngTimpris,"") -> 64000 | I93: 15 | J93: LIVSMEDEL OCH FODER | K93: Livsmedel och foder av kombinerade råvaror | L93: ="2. För en verksamhet som är tillståndspliktig enligt 5 kap. 12 eller 13 § miljöprövningsförordningen är tillsynstiden "&IF(ISNUMBER($E93),$E93,"x")&" timmar med en produktion av mer än 10 000 ton livsmedel per kalenderår."&IF(TableData[[#This Row],[IUV-tillägg]]="Ja"," "&rngIUV,"") -> 2. För en verksamhet som är tillståndspliktig enligt 5 kap. 12 eller 13 § miljöprövningsförordningen är tillsynstiden 64 timmar med en produktion av mer än 10 000 ton livsmedel per kalenderår.
A94: 15.131-i, 15.141 | B94: B | C94: 30 | D94: Nej | E94: =IF(TableData[[#This Row],[Tillsynsbehov]]="Ange tillsynsbehov","Ange tillsynsbehov",IF(LEFT(TableData[[#This Row],[Tillsynsbehov]],4)="Högt",INDEX(tblTillsynsTim,1,MATCH(TableData[[#This Row],[Prövn.- nivå]],rngTillsynsNiv,0)),IF(LEFT(TableData[[#This Row],[Tillsynsbehov]],4)="Norm",INDEX(tblTillsynsTim,2,MATCH(TableData[[#This Row],[Prövn.- nivå]],rngTillsynsNiv,0)),IF(LEFT(TableData[[#This Row],[Tillsynsbehov]],4)="Lågt",INDEX(tblTillsynsTim,3,MATCH(TableData[[#This Row],[Prövn.- nivå]],rngTillsynsNiv,0)),IF(LEFT(TableData[[#This Row],[Tillsynsbehov]],4)="Spor",INDEX(tblTillsynsTim,4,MATCH(TableData[[#This Row],[Prövn.- nivå]],rngTillsynsNiv,0)),TableData[[#This Row],[Tillsynsbehov]]))))) -> 30 | F94: Årlig tillsynsavgift | G94: =IF(TableData[[#This Row],[Avgift]]="Timavgift","Bilaga 3","Bilaga 2") -> Bilaga 2 | H94: =IFERROR(TableData[[#This Row],[Timmar]]*rngTimpris,"") -> 30000 | I94: 15 | J94: LIVSMEDEL OCH FODER | K94: Livsmedel och foder av kombinerade råvaror | L94: ="3. För en verksamhet som är tillståndspliktig enligt 5 kap. 12 eller 13 § miljöprövningsförordningen är tillsynstiden "&IF(ISNUMBER($E94),$E94,"x")&" timmar om verksamheten inte omfattas av 1 eller 2."&IF(TableData[[#This Row],[IUV-tillägg]]="Ja"," "&rngIUV,"") -> 3. För en verksamhet som är tillståndspliktig enligt 5 kap. 12 eller 13 § miljöprövningsförordningen är tillsynstiden 30 timmar om verksamheten inte omfattas av 1 eller 2.
A95: 15.151 | B95: C | C95: Ange tillsynsbehov | E95: =IF(TableData[[#This Row],[Tillsynsbehov]]="Ange tillsynsbehov","Ange tillsynsbehov",IF(SUM(LEN(TableData[[#This Row],[Tillsynsbehov]])-LEN(SUBSTITUTE(TableData[[#This Row],[Tillsynsbehov]], {"0";"1";"2";"3";"4";"5";"6";"7";"8";"9"}, "")))>0, SUMPRODUCT(MID(0&TableData[[#This Row],[Tillsynsbehov]], LARGE(INDEX(ISNUMBER(--MID(TableData[[#This Row],[Tillsynsbehov]],ROW(INDIRECT("$1:$"&LEN(TableData[[#This Row],[Tillsynsbehov]]))),1))* ROW(INDIRECT("$1:$"&LEN(TableData[[#This Row],[Tillsynsbehov]]))),0), ROW(INDIRECT("$1:$"&LEN(TableData[[#This Row],[Tillsynsbehov]]))))+1,1) * 10^ROW(INDIRECT("$1:$"&LEN(TableData[[#This Row],[Tillsynsbehov]])))/10),TableData[[#This Row],[Tillsynsbehov]])) -> Ange tillsynsbehov | F95: Årlig tillsynsavgift | G95: =IF(TableData[[#This Row],[Avgift]]="Timavgift","Bilaga 3","Bilaga 2") -> Bilaga 2 | H95: =IFERROR(TableData[[#This Row],[Timmar]]*rngTimpris,"") ->  | I95: 15 | J95: LIVSMEDEL OCH FODER | K95: Livsmedel och foder av kombinerade råvaror | L95: ="För en verksamhet som är anmälningspliktig enligt 5 kap. 14 § miljöprövningsförordningen är tillsynstiden "&IF(ISNUMBER($E95),$E95,"x")&" timmar."&IF(TableData[[#This Row],[IUV-tillägg]]="Ja"," "&rngIUV,"") -> För en verksamhet som är anmälningspliktig enligt 5 kap. 14 § miljöprövningsförordningen är tillsynstiden x timmar.
A96: 15.155 | B96: C | C96: Ange tillsynsbehov | E96: =IF(TableData[[#This Row],[Tillsynsbehov]]="Ange tillsynsbehov","Ange tillsynsbehov",IF(SUM(LEN(TableData[[#This Row],[Tillsynsbehov]])-LEN(SUBSTITUTE(TableData[[#This Row],[Tillsynsbehov]], {"0";"1";"2";"3";"4";"5";"6";"7";"8";"9"}, "")))>0, SUMPRODUCT(MID(0&TableData[[#This Row],[Tillsynsbehov]], LARGE(INDEX(ISNUMBER(--MID(TableData[[#This Row],[Tillsynsbehov]],ROW(INDIRECT("$1:$"&LEN(TableData[[#This Row],[Tillsynsbehov]]))),1))* ROW(INDIRECT("$1:$"&LEN(TableData[[#This Row],[Tillsynsbehov]]))),0), ROW(INDIRECT("$1:$"&LEN(TableData[[#This Row],[Tillsynsbehov]]))))+1,1) * 10^ROW(INDIRECT("$1:$"&LEN(TableData[[#This Row],[Tillsynsbehov]])))/10),TableData[[#This Row],[Tillsynsbehov]])) -> Ange tillsynsbehov | F96: Årlig tillsynsavgift | G96: =IF(TableData[[#This Row],[Avgift]]="Timavgift","Bilaga 3","Bilaga 2") -> Bilaga 2 | H96: =IFERROR(TableData[[#This Row],[Timmar]]*rngTimpris,"") ->  | I96: 15 | J96: LIVSMEDEL OCH FODER | K96: Livsmedel och foder av kombinerade råvaror | L96: ="För en verksamhet som är anmälningspliktig enligt 5 kap. 14 a § miljöprövningsförordningen är tillsynstiden "&IF(ISNUMBER($E96),$E96,"x")&" timmar."&IF(TableData[[#This Row],[IUV-tillägg]]="Ja"," "&rngIUV,"") -> För en verksamhet som är anmälningspliktig enligt 5 kap. 14 a § miljöprövningsförordningen är tillsynstiden x timmar.
B97: U | C97: Ange tillsynsbehov | E97: =IF(TableData[[#This Row],[Tillsynsbehov]]="Ange tillsynsbehov","Ange tillsynsbehov",IF(SUM(LEN(TableData[[#This Row],[Tillsynsbehov]])-LEN(SUBSTITUTE(TableData[[#This Row],[Tillsynsbehov]], {"0";"1";"2";"3";"4";"5";"6";"7";"8";"9"}, "")))>0, SUMPRODUCT(MID(0&TableData[[#This Row],[Tillsynsbehov]], LARGE(INDEX(ISNUMBER(--MID(TableData[[#This Row],[Tillsynsbehov]],ROW(INDIRECT("$1:$"&LEN(TableData[[#This Row],[Tillsynsbehov]]))),1))* ROW(INDIRECT("$1:$"&LEN(TableData[[#This Row],[Tillsynsbehov]]))),0), ROW(INDIRECT("$1:$"&LEN(TableData[[#This Row],[Tillsynsbehov]]))))+1,1) * 10^ROW(INDIRECT("$1:$"&LEN(TableData[[#This Row],[Tillsynsbehov]])))/10),TableData[[#This Row],[Tillsynsbehov]])) -> Ange tillsynsbehov | F97: Timavgift | G97: =IF(TableData[[#This Row],[Avgift]]="Timavgift","Bilaga 3","Bilaga 2") -> Bilaga 3 | H97: =IFERROR(TableData[[#This Row],[Timmar]]*rngTimpris,"") ->  | I97: 15 | J97: LIVSMEDEL OCH FODER | K97: Livsmedel och foder av kombinerade råvaror | L97: ="För verksamheter under anmälningspliktig nivå är tillsynstiden "&IF(ISNUMBER($E97),$E97,"x")&" timmar."&IF(TableData[[#This Row],[IUV-tillägg]]="Ja"," "&rngIUV,"") -> För verksamheter under anmälningspliktig nivå är tillsynstiden x timmar.
A98: ="" ->  | G98: =IF(COUNTIF(G99:G101,"Bilaga 2")=0,"Bilaga 3",IF(COUNTIF(G99:G101,"Bilaga 3")=0,"Bilaga 2","")) ->  | H98: =IFERROR(TableData[[#This Row],[Timmar]]*rngTimpris,"") -> 0 | I98: 15 | J98: LIVSMEDEL OCH FODER | K98: Mjölkprodukter | L98: Verksamhetsgrupp Mjölkprodukter
A99: 15.170-i | B99: B | C99: 30 | D99: Nej | E99: =IF(TableData[[#This Row],[Tillsynsbehov]]="Ange tillsynsbehov","Ange tillsynsbehov",IF(LEFT(TableData[[#This Row],[Tillsynsbehov]],4)="Högt",INDEX(tblTillsynsTim,1,MATCH(TableData[[#This Row],[Prövn.- nivå]],rngTillsynsNiv,0)),IF(LEFT(TableData[[#This Row],[Tillsynsbehov]],4)="Norm",INDEX(tblTillsynsTim,2,MATCH(TableData[[#This Row],[Prövn.- nivå]],rngTillsynsNiv,0)),IF(LEFT(TableData[[#This Row],[Tillsynsbehov]],4)="Lågt",INDEX(tblTillsynsTim,3,MATCH(TableData[[#This Row],[Prövn.- nivå]],rngTillsynsNiv,0)),IF(LEFT(TableData[[#This Row],[Tillsynsbehov]],4)="Spor",INDEX(tblTillsynsTim,4,MATCH(TableData[[#This Row],[Prövn.- nivå]],rngTillsynsNiv,0)),TableData[[#This Row],[Tillsynsbehov]]))))) -> 30 | F99: Årlig tillsynsavgift | G99: =IF(TableData[[#This Row],[Avgift]]="Timavgift","Bilaga 3","Bilaga 2") -> Bilaga 2 | H99: =IFERROR(TableData[[#This Row],[Timmar]]*rngTimpris,"") -> 30000 | I99: 15 | J99: LIVSMEDEL OCH FODER | K99: Mjölkprodukter | L99: ="För en verksamhet som är tillståndspliktig enligt 5 kap. 15 § miljöprövningsförordningen är tillsynstiden "&IF(ISNUMBER($E99),$E99,"x")&" timmar."&IF(TableData[[#This Row],[IUV-tillägg]]="Ja"," "&rngIUV,"") -> För en verksamhet som är tillståndspliktig enligt 5 kap. 15 § miljöprövningsförordningen är tillsynstiden 30 timmar.
A100: 15.180 | B100: C | C100: Ange tillsynsbehov | E100: =IF(TableData[[#This Row],[Tillsynsbehov]]="Ange tillsynsbehov","Ange tillsynsbehov",IF(SUM(LEN(TableData[[#This Row],[Tillsynsbehov]])-LEN(SUBSTITUTE(TableData[[#This Row],[Tillsynsbehov]], {"0";"1";"2";"3";"4";"5";"6";"7";"8";"9"}, "")))>0, SUMPRODUCT(MID(0&TableData[[#This Row],[Tillsynsbehov]], LARGE(INDEX(ISNUMBER(--MID(TableData[[#This Row],[Tillsynsbehov]],ROW(INDIRECT("$1:$"&LEN(TableData[[#This Row],[Tillsynsbehov]]))),1))* ROW(INDIRECT("$1:$"&LEN(TableData[[#This Row],[Tillsynsbehov]]))),0), ROW(INDIRECT("$1:$"&LEN(TableData[[#This Row],[Tillsynsbehov]]))))+1,1) * 10^ROW(INDIRECT("$1:$"&LEN(TableData[[#This Row],[Tillsynsbehov]])))/10),TableData[[#This Row],[Tillsynsbehov]])) -> Ange tillsynsbehov | F100: Årlig tillsynsavgift | G100: =IF(TableData[[#This Row],[Avgift]]="Timavgift","Bilaga 3","Bilaga 2") -> Bilaga 2 | H100: =IFERROR(TableData[[#This Row],[Timmar]]*rngTimpris,"") ->  | I100: 15 | J100: LIVSMEDEL OCH FODER | K100: Mjölkprodukter | L100: ="För en verksamhet som är anmälningspliktig enligt 5 kap. 16 § miljöprövningsförordningen är tillsynstiden "&IF(ISNUMBER($E100),$E100,"x")&" timmar."&IF(TableData[[#This Row],[IUV-tillägg]]="Ja"," "&rngIUV,"") -> För en verksamhet som är anmälningspliktig enligt 5 kap. 16 § miljöprövningsförordningen är tillsynstiden x timmar.
B101: U | C101: Ange tillsynsbehov | E101: =IF(TableData[[#This Row],[Tillsynsbehov]]="Ange tillsynsbehov","Ange tillsynsbehov",IF(SUM(LEN(TableData[[#This Row],[Tillsynsbehov]])-LEN(SUBSTITUTE(TableData[[#This Row],[Tillsynsbehov]], {"0";"1";"2";"3";"4";"5";"6";"7";"8";"9"}, "")))>0, SUMPRODUCT(MID(0&TableData[[#This Row],[Tillsynsbehov]], LARGE(INDEX(ISNUMBER(--MID(TableData[[#This Row],[Tillsynsbehov]],ROW(INDIRECT("$1:$"&LEN(TableData[[#This Row],[Tillsynsbehov]]))),1))* ROW(INDIRECT("$1:$"&LEN(TableData[[#This Row],[Tillsynsbehov]]))),0), ROW(INDIRECT("$1:$"&LEN(TableData[[#This Row],[Tillsynsbehov]]))))+1,1) * 10^ROW(INDIRECT("$1:$"&LEN(TableData[[#This Row],[Tillsynsbehov]])))/10),TableData[[#This Row],[Tillsynsbehov]])) -> Ange tillsynsbehov | F101: Timavgift | G101: =IF(TableData[[#This Row],[Avgift]]="Timavgift","Bilaga 3","Bilaga 2") -> Bilaga 3 | H101: =IFERROR(TableData[[#This Row],[Timmar]]*rngTimpris,"") ->  | I101: 15 | J101: LIVSMEDEL OCH FODER | K101: Mjölkprodukter | L101: ="För verksamheter under anmälningspliktig nivå är tillsynstiden "&IF(ISNUMBER($E101),$E101,"x")&" timmar."&IF(TableData[[#This Row],[IUV-tillägg]]="Ja"," "&rngIUV,"") -> För verksamheter under anmälningspliktig nivå är tillsynstiden x timmar.
A102: ="" ->  | G102: =IF(COUNTIF(G103:G120,"Bilaga 2")=0,"Bilaga 3",IF(COUNTIF(G103:G120,"Bilaga 3")=0,"Bilaga 2","")) ->  | H102: =IFERROR(TableData[[#This Row],[Timmar]]*rngTimpris,"") -> 0 | I102: 15 | J102: LIVSMEDEL OCH FODER | K102: Annan livsmedelstillverkning | L102: Verksamhetsgrupp Annan livsmedelstillverkning
A103: 15.185-i och 15.190 | B103: B | C103: 90 | D103: Nej | E103: =IF(TableData[[#This Row],[Tillsynsbehov]]="Ange tillsynsbehov","Ange tillsynsbehov",IF(LEFT(TableData[[#This Row],[Tillsynsbehov]],4)="Högt",INDEX(tblTillsynsTim,1,MATCH(TableData[[#This Row],[Prövn.- nivå]],rngTillsynsNiv,0)),IF(LEFT(TableData[[#This Row],[Tillsynsbehov]],4)="Norm",INDEX(tblTillsynsTim,2,MATCH(TableData[[#This Row],[Prövn.- nivå]],rngTillsynsNiv,0)),IF(LEFT(TableData[[#This Row],[Tillsynsbehov]],4)="Lågt",INDEX(tblTillsynsTim,3,MATCH(TableData[[#This Row],[Prövn.- nivå]],rngTillsynsNiv,0)),IF(LEFT(TableData[[#This Row],[Tillsynsbehov]],4)="Spor",INDEX(tblTillsynsTim,4,MATCH(TableData[[#This Row],[Prövn.- nivå]],rngTillsynsNiv,0)),TableData[[#This Row],[Tillsynsbehov]]))))) -> 90 | F103: Årlig tillsynsavgift | G103: =IF(TableData[[#This Row],[Avgift]]="Timavgift","Bilaga 3","Bilaga 2") -> Bilaga 2 | H103: =IFERROR(TableData[[#This Row],[Timmar]]*rngTimpris,"") -> 90000 | I103: 15 | J103: LIVSMEDEL OCH FODER | K103: Annan livsmedelstillverkning | L103: ="1. För en verksamhet som är tillståndspliktig enligt 5 kap. 17 eller 18 § miljöprövningsförordningen är tillsynstiden "&IF(ISNUMBER($E103),$E103,"x")&" timmar om verksamheten avser framställning eller raffinering av vegetabiliska eller animaliska oljor eller fetter med en produktion av mer än 100 000 ton per kalenderår."&IF(TableData[[#This Row],[IUV-tillägg]]="Ja"," "&rngIUV,"") -> 1. För en verksamhet som är tillståndspliktig enligt 5 kap. 17 eller 18 § miljöprövningsförordningen är tillsynstiden 90 timmar om verksamheten avser framställning eller raffinering av vegetabiliska eller animaliska oljor eller fetter med en produktion av mer än 100 000 ton per kalenderår.
A104: 15.185-i och 15.190 | B104: B | C104: 64 | D104: Nej | E104: =IF(TableData[[#This Row],[Tillsynsbehov]]="Ange tillsynsbehov","Ange tillsynsbehov",IF(LEFT(TableData[[#This Row],[Tillsynsbehov]],4)="Högt",INDEX(tblTillsynsTim,1,MATCH(TableData[[#This Row],[Prövn.- nivå]],rngTillsynsNiv,0)),IF(LEFT(TableData[[#This Row],[Tillsynsbehov]],4)="Norm",INDEX(tblTillsynsTim,2,MATCH(TableData[[#This Row],[Prövn.- nivå]],rngTillsynsNiv,0)),IF(LEFT(TableData[[#This Row],[Tillsynsbehov]],4)="Lågt",INDEX(tblTillsynsTim,3,MATCH(TableData[[#This Row],[Prövn.- nivå]],rngTillsynsNiv,0)),IF(LEFT(TableData[[#This Row],[Tillsynsbehov]],4)="Spor",INDEX(tblTillsynsTim,4,MATCH(TableData[[#This Row],[Prövn.- nivå]],rngTillsynsNiv,0)),TableData[[#This Row],[Tillsynsbehov]]))))) -> 64 | F104: Årlig tillsynsavgift | G104: =IF(TableData[[#This Row],[Avgift]]="Timavgift","Bilaga 3","Bilaga 2") -> Bilaga 2 | H104: =IFERROR(TableData[[#This Row],[Timmar]]*rngTimpris,"") -> 64000 | I104: 15 | J104: LIVSMEDEL OCH FODER | K104: Annan livsmedelstillverkning | L104: ="2. För en verksamhet som är tillståndspliktig enligt 5 kap. 17 eller 18 § miljöprövningsförordningen är tillsynstiden "&IF(ISNUMBER($E104),$E104,"x")&" timmar om verksamheten avser framställning eller raffinering av vegetabiliska eller animaliska oljor eller fetter med en produktion av mer än 50 000 ton men högst 100 000 ton per kalenderår."&IF(TableData[[#This Row],[IUV-tillägg]]="Ja"," "&rngIUV,"") -> 2. För en verksamhet som är tillståndspliktig enligt 5 kap. 17 eller 18 § miljöprövningsförordningen är tillsynstiden 64 timmar om verksamheten avser framställning eller raffinering av vegetabiliska eller animaliska oljor eller fetter med en produktion av mer än 50 000 ton men högst 100 000 ton per kalenderår.
A105: 15.185-i och 15.190 | B105: B | C105: 30 | D105: Nej | E105: =IF(TableData[[#This Row],[Tillsynsbehov]]="Ange tillsynsbehov","Ange tillsynsbehov",IF(LEFT(TableData[[#This Row],[Tillsynsbehov]],4)="Högt",INDEX(tblTillsynsTim,1,MATCH(TableData[[#This Row],[Prövn.- nivå]],rngTillsynsNiv,0)),IF(LEFT(TableData[[#This Row],[Tillsynsbehov]],4)="Norm",INDEX(tblTillsynsTim,2,MATCH(TableData[[#This Row],[Prövn.- nivå]],rngTillsynsNiv,0)),IF(LEFT(TableData[[#This Row],[Tillsynsbehov]],4)="Lågt",INDEX(tblTillsynsTim,3,MATCH(TableData[[#This Row],[Prövn.- nivå]],rngTillsynsNiv,0)),IF(LEFT(TableData[[#This Row],[Tillsynsbehov]],4)="Spor",INDEX(tblTillsynsTim,4,MATCH(TableData[[#This Row],[Prövn.- nivå]],rngTillsynsNiv,0)),TableData[[#This Row],[Tillsynsbehov]]))))) -> 30 | F105: Årlig tillsynsavgift | G105: =IF(TableData[[#This Row],[Avgift]]="Timavgift","Bilaga 3","Bilaga 2") -> Bilaga 2 | H105: =IFERROR(TableData[[#This Row],[Timmar]]*rngTimpris,"") -> 30000 | I105: 15 | J105: LIVSMEDEL OCH FODER | K105: Annan livsmedelstillverkning | L105: ="3. För en verksamhet som är tillståndspliktig enligt 5 kap. 17 eller 18 § miljöprövningsförordningen är tillsynstiden "&IF(ISNUMBER($E105),$E105,"x")&" timmar om verksamheten avser framställning eller raffinering av vegetabiliska eller animaliska oljor eller fetter med en produktion av högst 50 000 ton per kalenderår."&IF(TableData[[#This Row],[IUV-tillägg]]="Ja"," "&rngIUV,"") -> 3. För en verksamhet som är tillståndspliktig enligt 5 kap. 17 eller 18 § miljöprövningsförordningen är tillsynstiden 30 timmar om verksamheten avser framställning eller raffinering av vegetabiliska eller animaliska oljor eller fetter med en produktion av högst 50 000 ton per kalenderår.
A106: 15.185-i och 15.190 | B106: B | C106: 30 | D106: Nej | E106: =IF(TableData[[#This Row],[Tillsynsbehov]]="Ange tillsynsbehov","Ange tillsynsbehov",IF(LEFT(TableData[[#This Row],[Tillsynsbehov]],4)="Högt",INDEX(tblTillsynsTim,1,MATCH(TableData[[#This Row],[Prövn.- nivå]],rngTillsynsNiv,0)),IF(LEFT(TableData[[#This Row],[Tillsynsbehov]],4)="Norm",INDEX(tblTillsynsTim,2,MATCH(TableData[[#This Row],[Prövn.- nivå]],rngTillsynsNiv,0)),IF(LEFT(TableData[[#This Row],[Tillsynsbehov]],4)="Lågt",INDEX(tblTillsynsTim,3,MATCH(TableData[[#This Row],[Prövn.- nivå]],rngTillsynsNiv,0)),IF(LEFT(TableData[[#This Row],[Tillsynsbehov]],4)="Spor",INDEX(tblTillsynsTim,4,MATCH(TableData[[#This Row],[Prövn.- nivå]],rngTillsynsNiv,0)),TableData[[#This Row],[Tillsynsbehov]]))))) -> 30 | F106: Årlig tillsynsavgift | G106: =IF(TableData[[#This Row],[Avgift]]="Timavgift","Bilaga 3","Bilaga 2") -> Bilaga 2 | H106: =IFERROR(TableData[[#This Row],[Timmar]]*rngTimpris,"") -> 30000 | I106: 15 | J106: LIVSMEDEL OCH FODER | K106: Annan livsmedelstillverkning | L106: ="4. För en verksamhet som är tillståndspliktig enligt 5 kap. 17 eller 18 § miljöprövningsförordningen är tillsynstiden "&IF(ISNUMBER($E106),$E106,"x")&" timmar för annan verksamhet som inte omfattas av någon av 1-3."&IF(TableData[[#This Row],[IUV-tillägg]]="Ja"," "&rngIUV,"") -> 4. För en verksamhet som är tillståndspliktig enligt 5 kap. 17 eller 18 § miljöprövningsförordningen är tillsynstiden 30 timmar för annan verksamhet som inte omfattas av någon av 1-3.
A107: 15.200 | B107: C | C107: Ange tillsynsbehov | E107: =IF(TableData[[#This Row],[Tillsynsbehov]]="Ange tillsynsbehov","Ange tillsynsbehov",IF(SUM(LEN(TableData[[#This Row],[Tillsynsbehov]])-LEN(SUBSTITUTE(TableData[[#This Row],[Tillsynsbehov]], {"0";"1";"2";"3";"4";"5";"6";"7";"8";"9"}, "")))>0, SUMPRODUCT(MID(0&TableData[[#This Row],[Tillsynsbehov]], LARGE(INDEX(ISNUMBER(--MID(TableData[[#This Row],[Tillsynsbehov]],ROW(INDIRECT("$1:$"&LEN(TableData[[#This Row],[Tillsynsbehov]]))),1))* ROW(INDIRECT("$1:$"&LEN(TableData[[#This Row],[Tillsynsbehov]]))),0), ROW(INDIRECT("$1:$"&LEN(TableData[[#This Row],[Tillsynsbehov]]))))+1,1) * 10^ROW(INDIRECT("$1:$"&LEN(TableData[[#This Row],[Tillsynsbehov]])))/10),TableData[[#This Row],[Tillsynsbehov]])) -> Ange tillsynsbehov | F107: Årlig tillsynsavgift | G107: =IF(TableData[[#This Row],[Avgift]]="Timavgift","Bilaga 3","Bilaga 2") -> Bilaga 2 | H107: =IFERROR(TableData[[#This Row],[Timmar]]*rngTimpris,"") ->  | I107: 15 | J107: LIVSMEDEL OCH FODER | K107: Annan livsmedelstillverkning | L107: ="För en verksamhet som är anmälningspliktig enligt 5 kap. 19 § miljöprövningsförordningen är tillsynstiden "&IF(ISNUMBER($E107),$E107,"x")&" timmar."&IF(TableData[[#This Row],[IUV-tillägg]]="Ja"," "&rngIUV,"") -> För en verksamhet som är anmälningspliktig enligt 5 kap. 19 § miljöprövningsförordningen är tillsynstiden x timmar.
A108: 15.210 | B108: B | C108: 30 | E108: =IF(TableData[[#This Row],[Tillsynsbehov]]="Ange tillsynsbehov","Ange tillsynsbehov",IF(LEFT(TableData[[#This Row],[Tillsynsbehov]],4)="Högt",INDEX(tblTillsynsTim,1,MATCH(TableData[[#This Row],[Prövn.- nivå]],rngTillsynsNiv,0)),IF(LEFT(TableData[[#This Row],[Tillsynsbehov]],4)="Norm",INDEX(tblTillsynsTim,2,MATCH(TableData[[#This Row],[Prövn.- nivå]],rngTillsynsNiv,0)),IF(LEFT(TableData[[#This Row],[Tillsynsbehov]],4)="Lågt",INDEX(tblTillsynsTim,3,MATCH(TableData[[#This Row],[Prövn.- nivå]],rngTillsynsNiv,0)),IF(LEFT(TableData[[#This Row],[Tillsynsbehov]],4)="Spor",INDEX(tblTillsynsTim,4,MATCH(TableData[[#This Row],[Prövn.- nivå]],rngTillsynsNiv,0)),TableData[[#This Row],[Tillsynsbehov]]))))) -> 30 | F108: Årlig tillsynsavgift | G108: =IF(TableData[[#This Row],[Avgift]]="Timavgift","Bilaga 3","Bilaga 2") -> Bilaga 2 | H108: =IFERROR(TableData[[#This Row],[Timmar]]*rngTimpris,"") -> 30000 | I108: 15 | J108: LIVSMEDEL OCH FODER | K108: Annan livsmedelstillverkning | L108: ="För en verksamhet som är tillståndspliktig enligt 5 kap. 20 § miljöprövningsförordningen är tillsynstiden "&IF(ISNUMBER($E108),$E108,"x")&" timmar."&IF(TableData[[#This Row],[IUV-tillägg]]="Ja"," "&rngIUV,"") -> För en verksamhet som är tillståndspliktig enligt 5 kap. 20 § miljöprövningsförordningen är tillsynstiden 30 timmar.
A109: 15.220 | B109: C | C109: Ange tillsynsbehov | E109: =IF(TableData[[#This Row],[Tillsynsbehov]]="Ange tillsynsbehov","Ange tillsynsbehov",IF(SUM(LEN(TableData[[#This Row],[Tillsynsbehov]])-LEN(SUBSTITUTE(TableData[[#This Row],[Tillsynsbehov]], {"0";"1";"2";"3";"4";"5";"6";"7";"8";"9"}, "")))>0, SUMPRODUCT(MID(0&TableData[[#This Row],[Tillsynsbehov]], LARGE(INDEX(ISNUMBER(--MID(TableData[[#This Row],[Tillsynsbehov]],ROW(INDIRECT("$1:$"&LEN(TableData[[#This Row],[Tillsynsbehov]]))),1))* ROW(INDIRECT("$1:$"&LEN(TableData[[#This Row],[Tillsynsbehov]]))),0), ROW(INDIRECT("$1:$"&LEN(TableData[[#This Row],[Tillsynsbehov]]))))+1,1) * 10^ROW(INDIRECT("$1:$"&LEN(TableData[[#This Row],[Tillsynsbehov]])))/10),TableData[[#This Row],[Tillsynsbehov]])) -> Ange tillsynsbehov | F109: Årlig tillsynsavgift | G109: =IF(TableData[[#This Row],[Avgift]]="Timavgift","Bilaga 3","Bilaga 2") -> Bilaga 2 | H109: =IFERROR(TableData[[#This Row],[Timmar]]*rngTimpris,"") ->  | I109: 15 | J109: LIVSMEDEL OCH FODER | K109: Annan livsmedelstillverkning | L109: ="För en verksamhet som är anmälningspliktig enligt 5 kap. 21 § miljöprövningsförordningen är tillsynstiden "&IF(ISNUMBER($E109),$E109,"x")&" timmar."&IF(TableData[[#This Row],[IUV-tillägg]]="Ja"," "&rngIUV,"") -> För en verksamhet som är anmälningspliktig enligt 5 kap. 21 § miljöprövningsförordningen är tillsynstiden x timmar.
A110: 15.230 | B110: B | C110: 64 | E110: =IF(TableData[[#This Row],[Tillsynsbehov]]="Ange tillsynsbehov","Ange tillsynsbehov",IF(LEFT(TableData[[#This Row],[Tillsynsbehov]],4)="Högt",INDEX(tblTillsynsTim,1,MATCH(TableData[[#This Row],[Prövn.- nivå]],rngTillsynsNiv,0)),IF(LEFT(TableData[[#This Row],[Tillsynsbehov]],4)="Norm",INDEX(tblTillsynsTim,2,MATCH(TableData[[#This Row],[Prövn.- nivå]],rngTillsynsNiv,0)),IF(LEFT(TableData[[#This Row],[Tillsynsbehov]],4)="Lågt",INDEX(tblTillsynsTim,3,MATCH(TableData[[#This Row],[Prövn.- nivå]],rngTillsynsNiv,0)),IF(LEFT(TableData[[#This Row],[Tillsynsbehov]],4)="Spor",INDEX(tblTillsynsTim,4,MATCH(TableData[[#This Row],[Prövn.- nivå]],rngTillsynsNiv,0)),TableData[[#This Row],[Tillsynsbehov]]))))) -> 64 | F110: Årlig tillsynsavgift | G110: =IF(TableData[[#This Row],[Avgift]]="Timavgift","Bilaga 3","Bilaga 2") -> Bilaga 2 | H110: =IFERROR(TableData[[#This Row],[Timmar]]*rngTimpris,"") -> 64000 | I110: 15 | J110: LIVSMEDEL OCH FODER | K110: Annan livsmedelstillverkning | L110: ="För en verksamhet som är tillståndspliktig enligt 5 kap. 22 § miljöprövningsförordningen är tillsynstiden "&IF(ISNUMBER($E110),$E110,"x")&" timmar."&IF(TableData[[#This Row],[IUV-tillägg]]="Ja"," "&rngIUV,"") -> För en verksamhet som är tillståndspliktig enligt 5 kap. 22 § miljöprövningsförordningen är tillsynstiden 64 timmar.
A111: 15.240 | B111: C | C111: Ange tillsynsbehov | E111: =IF(TableData[[#This Row],[Tillsynsbehov]]="Ange tillsynsbehov","Ange tillsynsbehov",IF(SUM(LEN(TableData[[#This Row],[Tillsynsbehov]])-LEN(SUBSTITUTE(TableData[[#This Row],[Tillsynsbehov]], {"0";"1";"2";"3";"4";"5";"6";"7";"8";"9"}, "")))>0, SUMPRODUCT(MID(0&TableData[[#This Row],[Tillsynsbehov]], LARGE(INDEX(ISNUMBER(--MID(TableData[[#This Row],[Tillsynsbehov]],ROW(INDIRECT("$1:$"&LEN(TableData[[#This Row],[Tillsynsbehov]]))),1))* ROW(INDIRECT("$1:$"&LEN(TableData[[#This Row],[Tillsynsbehov]]))),0), ROW(INDIRECT("$1:$"&LEN(TableData[[#This Row],[Tillsynsbehov]]))))+1,1) * 10^ROW(INDIRECT("$1:$"&LEN(TableData[[#This Row],[Tillsynsbehov]])))/10),TableData[[#This Row],[Tillsynsbehov]])) -> Ange tillsynsbehov | F111: Årlig tillsynsavgift | G111: =IF(TableData[[#This Row],[Avgift]]="Timavgift","Bilaga 3","Bilaga 2") -> Bilaga 2 | H111: =IFERROR(TableData[[#This Row],[Timmar]]*rngTimpris,"") ->  | I111: 15 | J111: LIVSMEDEL OCH FODER | K111: Annan livsmedelstillverkning | L111: ="För en verksamhet som är anmälningspliktig enligt 5 kap. 23 § miljöprövningsförordningen är tillsynstiden "&IF(ISNUMBER($E111),$E111,"x")&" timmar."&IF(TableData[[#This Row],[IUV-tillägg]]="Ja"," "&rngIUV,"") -> För en verksamhet som är anmälningspliktig enligt 5 kap. 23 § miljöprövningsförordningen är tillsynstiden x timmar.
A112: 15.250 | B112: B | C112: 13 | E112: =IF(TableData[[#This Row],[Tillsynsbehov]]="Ange tillsynsbehov","Ange tillsynsbehov",IF(LEFT(TableData[[#This Row],[Tillsynsbehov]],4)="Högt",INDEX(tblTillsynsTim,1,MATCH(TableData[[#This Row],[Prövn.- nivå]],rngTillsynsNiv,0)),IF(LEFT(TableData[[#This Row],[Tillsynsbehov]],4)="Norm",INDEX(tblTillsynsTim,2,MATCH(TableData[[#This Row],[Prövn.- nivå]],rngTillsynsNiv,0)),IF(LEFT(TableData[[#This Row],[Tillsynsbehov]],4)="Lågt",INDEX(tblTillsynsTim,3,MATCH(TableData[[#This Row],[Prövn.- nivå]],rngTillsynsNiv,0)),IF(LEFT(TableData[[#This Row],[Tillsynsbehov]],4)="Spor",INDEX(tblTillsynsTim,4,MATCH(TableData[[#This Row],[Prövn.- nivå]],rngTillsynsNiv,0)),TableData[[#This Row],[Tillsynsbehov]]))))) -> 13 | F112: Årlig tillsynsavgift | G112: =IF(TableData[[#This Row],[Avgift]]="Timavgift","Bilaga 3","Bilaga 2") -> Bilaga 2 | H112: =IFERROR(TableData[[#This Row],[Timmar]]*rngTimpris,"") -> 13000 | I112: 15 | J112: LIVSMEDEL OCH FODER | K112: Annan livsmedelstillverkning | L112: ="1. För en verksamhet som är tillståndspliktig enligt 5 kap. 24 § miljöprövningsförordningen är tillsynstiden "&IF(ISNUMBER($E112),$E112,"x")&" timmar för framställning av malt."&IF(TableData[[#This Row],[IUV-tillägg]]="Ja"," "&rngIUV,"") -> 1. För en verksamhet som är tillståndspliktig enligt 5 kap. 24 § miljöprövningsförordningen är tillsynstiden 13 timmar för framställning av malt.
A113: 15.250 | B113: B | C113: 64 | E113: =IF(TableData[[#This Row],[Tillsynsbehov]]="Ange tillsynsbehov","Ange tillsynsbehov",IF(LEFT(TableData[[#This Row],[Tillsynsbehov]],4)="Högt",INDEX(tblTillsynsTim,1,MATCH(TableData[[#This Row],[Prövn.- nivå]],rngTillsynsNiv,0)),IF(LEFT(TableData[[#This Row],[Tillsynsbehov]],4)="Norm",INDEX(tblTillsynsTim,2,MATCH(TableData[[#This Row],[Prövn.- nivå]],rngTillsynsNiv,0)),IF(LEFT(TableData[[#This Row],[Tillsynsbehov]],4)="Lågt",INDEX(tblTillsynsTim,3,MATCH(TableData[[#This Row],[Prövn.- nivå]],rngTillsynsNiv,0)),IF(LEFT(TableData[[#This Row],[Tillsynsbehov]],4)="Spor",INDEX(tblTillsynsTim,4,MATCH(TableData[[#This Row],[Prövn.- nivå]],rngTillsynsNiv,0)),TableData[[#This Row],[Tillsynsbehov]]))))) -> 64 | F113: Årlig tillsynsavgift | G113: =IF(TableData[[#This Row],[Avgift]]="Timavgift","Bilaga 3","Bilaga 2") -> Bilaga 2 | H113: =IFERROR(TableData[[#This Row],[Timmar]]*rngTimpris,"") -> 64000 | I113: 15 | J113: LIVSMEDEL OCH FODER | K113: Annan livsmedelstillverkning | L113: ="2. För en verksamhet som är tillståndspliktig enligt 5 kap. 24 § miljöprövningsförordningen är tillsynstiden "&IF(ISNUMBER($E113),$E113,"x")&" timmar för framställning av mer än 20 000 ton läskedryck eller maltdryck per kalenderår."&IF(TableData[[#This Row],[IUV-tillägg]]="Ja"," "&rngIUV,"") -> 2. För en verksamhet som är tillståndspliktig enligt 5 kap. 24 § miljöprövningsförordningen är tillsynstiden 64 timmar för framställning av mer än 20 000 ton läskedryck eller maltdryck per kalenderår.
A114: 15.250 | B114: B | C114: 30 | E114: =IF(TableData[[#This Row],[Tillsynsbehov]]="Ange tillsynsbehov","Ange tillsynsbehov",IF(LEFT(TableData[[#This Row],[Tillsynsbehov]],4)="Högt",INDEX(tblTillsynsTim,1,MATCH(TableData[[#This Row],[Prövn.- nivå]],rngTillsynsNiv,0)),IF(LEFT(TableData[[#This Row],[Tillsynsbehov]],4)="Norm",INDEX(tblTillsynsTim,2,MATCH(TableData[[#This Row],[Prövn.- nivå]],rngTillsynsNiv,0)),IF(LEFT(TableData[[#This Row],[Tillsynsbehov]],4)="Lågt",INDEX(tblTillsynsTim,3,MATCH(TableData[[#This Row],[Prövn.- nivå]],rngTillsynsNiv,0)),IF(LEFT(TableData[[#This Row],[Tillsynsbehov]],4)="Spor",INDEX(tblTillsynsTim,4,MATCH(TableData[[#This Row],[Prövn.- nivå]],rngTillsynsNiv,0)),TableData[[#This Row],[Tillsynsbehov]]))))) -> 30 | F114: Årlig tillsynsavgift | G114: =IF(TableData[[#This Row],[Avgift]]="Timavgift","Bilaga 3","Bilaga 2") -> Bilaga 2 | H114: =IFERROR(TableData[[#This Row],[Timmar]]*rngTimpris,"") -> 30000 | I114: 15 | J114: LIVSMEDEL OCH FODER | K114: Annan livsmedelstillverkning | L114: ="3. För en verksamhet som är tillståndspliktig enligt 5 kap. 24 § miljöprövningsförordningen är tillsynstiden "&IF(ISNUMBER($E114),$E114,"x")&" timmar för framställning av mer än 10 000 ton men högst 20 000 ton läskedryck eller maltdryck per kalenderår."&IF(TableData[[#This Row],[IUV-tillägg]]="Ja"," "&rngIUV,"") -> 3. För en verksamhet som är tillståndspliktig enligt 5 kap. 24 § miljöprövningsförordningen är tillsynstiden 30 timmar för framställning av mer än 10 000 ton men högst 20 000 ton läskedryck eller maltdryck per kalenderår.
A115: 15.260 | B115: C | C115: Ange tillsynsbehov | E115: =IF(TableData[[#This Row],[Tillsynsbehov]]="Ange tillsynsbehov","Ange tillsynsbehov",IF(SUM(LEN(TableData[[#This Row],[Tillsynsbehov]])-LEN(SUBSTITUTE(TableData[[#This Row],[Tillsynsbehov]], {"0";"1";"2";"3";"4";"5";"6";"7";"8";"9"}, "")))>0, SUMPRODUCT(MID(0&TableData[[#This Row],[Tillsynsbehov]], LARGE(INDEX(ISNUMBER(--MID(TableData[[#This Row],[Tillsynsbehov]],ROW(INDIRECT("$1:$"&LEN(TableData[[#This Row],[Tillsynsbehov]]))),1))* ROW(INDIRECT("$1:$"&LEN(TableData[[#This Row],[Tillsynsbehov]]))),0), ROW(INDIRECT("$1:$"&LEN(TableData[[#This Row],[Tillsynsbehov]]))))+1,1) * 10^ROW(INDIRECT("$1:$"&LEN(TableData[[#This Row],[Tillsynsbehov]])))/10),TableData[[#This Row],[Tillsynsbehov]])) -> Ange tillsynsbehov | F115: Årlig tillsynsavgift | G115: =IF(TableData[[#This Row],[Avgift]]="Timavgift","Bilaga 3","Bilaga 2") -> Bilaga 2 | H115: =IFERROR(TableData[[#This Row],[Timmar]]*rngTimpris,"") ->  | I115: 15 | J115: LIVSMEDEL OCH FODER | K115: Annan livsmedelstillverkning | L115: ="För en verksamhet som är anmälningspliktig enligt 5 kap. 25 § miljöprövningsförordningen är tillsynstiden "&IF(ISNUMBER($E115),$E115,"x")&" timmar."&IF(TableData[[#This Row],[IUV-tillägg]]="Ja"," "&rngIUV,"") -> För en verksamhet som är anmälningspliktig enligt 5 kap. 25 § miljöprövningsförordningen är tillsynstiden x timmar.
A116: 15.270 | B116: B | C116: 90 | E116: =IF(TableData[[#This Row],[Tillsynsbehov]]="Ange tillsynsbehov","Ange tillsynsbehov",IF(LEFT(TableData[[#This Row],[Tillsynsbehov]],4)="Högt",INDEX(tblTillsynsTim,1,MATCH(TableData[[#This Row],[Prövn.- nivå]],rngTillsynsNiv,0)),IF(LEFT(TableData[[#This Row],[Tillsynsbehov]],4)="Norm",INDEX(tblTillsynsTim,2,MATCH(TableData[[#This Row],[Prövn.- nivå]],rngTillsynsNiv,0)),IF(LEFT(TableData[[#This Row],[Tillsynsbehov]],4)="Lågt",INDEX(tblTillsynsTim,3,MATCH(TableData[[#This Row],[Prövn.- nivå]],rngTillsynsNiv,0)),IF(LEFT(TableData[[#This Row],[Tillsynsbehov]],4)="Spor",INDEX(tblTillsynsTim,4,MATCH(TableData[[#This Row],[Prövn.- nivå]],rngTillsynsNiv,0)),TableData[[#This Row],[Tillsynsbehov]]))))) -> 90 | F116: Årlig tillsynsavgift | G116: =IF(TableData[[#This Row],[Avgift]]="Timavgift","Bilaga 3","Bilaga 2") -> Bilaga 2 | H116: =IFERROR(TableData[[#This Row],[Timmar]]*rngTimpris,"") -> 90000 | I116: 15 | J116: LIVSMEDEL OCH FODER | K116: Annan livsmedelstillverkning | L116: ="1. För en verksamhet som är tillståndspliktig enligt 5 kap. 26 § miljöprövningsförordningen är tillsynstiden "&IF(ISNUMBER($E116),$E116,"x")&" timmar för anläggning för tillverkning av jäst. "&IF(TableData[[#This Row],[IUV-tillägg]]="Ja"," "&rngIUV,"") -> 1. För en verksamhet som är tillståndspliktig enligt 5 kap. 26 § miljöprövningsförordningen är tillsynstiden 90 timmar för anläggning för tillverkning av jäst.
A117: 15.270 | B117: B | C117: 47 | E117: =IF(TableData[[#This Row],[Tillsynsbehov]]="Ange tillsynsbehov","Ange tillsynsbehov",IF(LEFT(TableData[[#This Row],[Tillsynsbehov]],4)="Högt",INDEX(tblTillsynsTim,1,MATCH(TableData[[#This Row],[Prövn.- nivå]],rngTillsynsNiv,0)),IF(LEFT(TableData[[#This Row],[Tillsynsbehov]],4)="Norm",INDEX(tblTillsynsTim,2,MATCH(TableData[[#This Row],[Prövn.- nivå]],rngTillsynsNiv,0)),IF(LEFT(TableData[[#This Row],[Tillsynsbehov]],4)="Lågt",INDEX(tblTillsynsTim,3,MATCH(TableData[[#This Row],[Prövn.- nivå]],rngTillsynsNiv,0)),IF(LEFT(TableData[[#This Row],[Tillsynsbehov]],4)="Spor",INDEX(tblTillsynsTim,4,MATCH(TableData[[#This Row],[Prövn.- nivå]],rngTillsynsNiv,0)),TableData[[#This Row],[Tillsynsbehov]]))))) -> 47 | F117: Årlig tillsynsavgift | G117: =IF(TableData[[#This Row],[Avgift]]="Timavgift","Bilaga 3","Bilaga 2") -> Bilaga 2 | H117: =IFERROR(TableData[[#This Row],[Timmar]]*rngTimpris,"") -> 47000 | I117: 15 | J117: LIVSMEDEL OCH FODER | K117: Annan livsmedelstillverkning | L117: ="2. För en verksamhet som är tillståndspliktig enligt 5 kap. 26 § miljöprövningsförordningen är tillsynstiden "&IF(ISNUMBER($E117),$E117,"x")&" timmar för anläggning för tillverkning av startkulturer av mikroorganismer."&IF(TableData[[#This Row],[IUV-tillägg]]="Ja"," "&rngIUV,"") -> 2. För en verksamhet som är tillståndspliktig enligt 5 kap. 26 § miljöprövningsförordningen är tillsynstiden 47 timmar för anläggning för tillverkning av startkulturer av mikroorganismer.
A118: 15.280 | B118: C | C118: Ange tillsynsbehov | E118: =IF(TableData[[#This Row],[Tillsynsbehov]]="Ange tillsynsbehov","Ange tillsynsbehov",IF(SUM(LEN(TableData[[#This Row],[Tillsynsbehov]])-LEN(SUBSTITUTE(TableData[[#This Row],[Tillsynsbehov]], {"0";"1";"2";"3";"4";"5";"6";"7";"8";"9"}, "")))>0, SUMPRODUCT(MID(0&TableData[[#This Row],[Tillsynsbehov]], LARGE(INDEX(ISNUMBER(--MID(TableData[[#This Row],[Tillsynsbehov]],ROW(INDIRECT("$1:$"&LEN(TableData[[#This Row],[Tillsynsbehov]]))),1))* ROW(INDIRECT("$1:$"&LEN(TableData[[#This Row],[Tillsynsbehov]]))),0), ROW(INDIRECT("$1:$"&LEN(TableData[[#This Row],[Tillsynsbehov]]))))+1,1) * 10^ROW(INDIRECT("$1:$"&LEN(TableData[[#This Row],[Tillsynsbehov]])))/10),TableData[[#This Row],[Tillsynsbehov]])) -> Ange tillsynsbehov | F118: Årlig tillsynsavgift | G118: =IF(TableData[[#This Row],[Avgift]]="Timavgift","Bilaga 3","Bilaga 2") -> Bilaga 2 | H118: =IFERROR(TableData[[#This Row],[Timmar]]*rngTimpris,"") ->  | I118: 15 | J118: LIVSMEDEL OCH FODER | K118: Annan livsmedelstillverkning | L118: ="För en verksamhet som är anmälningspliktig enligt 5 kap. 27 § miljöprövningsförordningen är tillsynstiden "&IF(ISNUMBER($E118),$E118,"x")&" timmar."&IF(TableData[[#This Row],[IUV-tillägg]]="Ja"," "&rngIUV,"") -> För en verksamhet som är anmälningspliktig enligt 5 kap. 27 § miljöprövningsförordningen är tillsynstiden x timmar.
A119: 15.310 | B119: C | C119: Ange tillsynsbehov | E119: =IF(TableData[[#This Row],[Tillsynsbehov]]="Ange tillsynsbehov","Ange tillsynsbehov",IF(SUM(LEN(TableData[[#This Row],[Tillsynsbehov]])-LEN(SUBSTITUTE(TableData[[#This Row],[Tillsynsbehov]], {"0";"1";"2";"3";"4";"5";"6";"7";"8";"9"}, "")))>0, SUMPRODUCT(MID(0&TableData[[#This Row],[Tillsynsbehov]], LARGE(INDEX(ISNUMBER(--MID(TableData[[#This Row],[Tillsynsbehov]],ROW(INDIRECT("$1:$"&LEN(TableData[[#This Row],[Tillsynsbehov]]))),1))* ROW(INDIRECT("$1:$"&LEN(TableData[[#This Row],[Tillsynsbehov]]))),0), ROW(INDIRECT("$1:$"&LEN(TableData[[#This Row],[Tillsynsbehov]]))))+1,1) * 10^ROW(INDIRECT("$1:$"&LEN(TableData[[#This Row],[Tillsynsbehov]])))/10),TableData[[#This Row],[Tillsynsbehov]])) -> Ange tillsynsbehov | F119: Årlig tillsynsavgift | G119: =IF(TableData[[#This Row],[Avgift]]="Timavgift","Bilaga 3","Bilaga 2") -> Bilaga 2 | H119: =IFERROR(TableData[[#This Row],[Timmar]]*rngTimpris,"") ->  | I119: 15 | J119: LIVSMEDEL OCH FODER | K119: Annan livsmedelstillverkning | L119: ="För en verksamhet som är anmälningspliktig enligt 5 kap. 28 § miljöprövningsförordningen är tillsynstiden "&IF(ISNUMBER($E119),$E119,"x")&" timmar."&IF(TableData[[#This Row],[IUV-tillägg]]="Ja"," "&rngIUV,"") -> För en verksamhet som är anmälningspliktig enligt 5 kap. 28 § miljöprövningsförordningen är tillsynstiden x timmar.
B120: U | C120: Ange tillsynsbehov | E120: =IF(TableData[[#This Row],[Tillsynsbehov]]="Ange tillsynsbehov","Ange tillsynsbehov",IF(SUM(LEN(TableData[[#This Row],[Tillsynsbehov]])-LEN(SUBSTITUTE(TableData[[#This Row],[Tillsynsbehov]], {"0";"1";"2";"3";"4";"5";"6";"7";"8";"9"}, "")))>0, SUMPRODUCT(MID(0&TableData[[#This Row],[Tillsynsbehov]], LARGE(INDEX(ISNUMBER(--MID(TableData[[#This Row],[Tillsynsbehov]],ROW(INDIRECT("$1:$"&LEN(TableData[[#This Row],[Tillsynsbehov]]))),1))* ROW(INDIRECT("$1:$"&LEN(TableData[[#This Row],[Tillsynsbehov]]))),0), ROW(INDIRECT("$1:$"&LEN(TableData[[#This Row],[Tillsynsbehov]]))))+1,1) * 10^ROW(INDIRECT("$1:$"&LEN(TableData[[#This Row],[Tillsynsbehov]])))/10),TableData[[#This Row],[Tillsynsbehov]])) -> Ange tillsynsbehov | F120: Timavgift | G120: =IF(TableData[[#This Row],[Avgift]]="Timavgift","Bilaga 3","Bilaga 2") -> Bilaga 3 | H120: =IFERROR(TableData[[#This Row],[Timmar]]*rngTimpris,"") ->  | I120: 15 | J120: LIVSMEDEL OCH FODER | K120: Annan livsmedelstillverkning | L120: ="För verksamheter under anmälningspliktig nivå är tillsynstiden "&IF(ISNUMBER($E120),$E120,"x")&" timmar."&IF(TableData[[#This Row],[IUV-tillägg]]="Ja"," "&rngIUV,"") -> För verksamheter under anmälningspliktig nivå är tillsynstiden x timmar.
A121: ="" ->  | G121: =IF(COUNTIF(G122:G126,"Bilaga 2")=0,"Bilaga 3",IF(COUNTIF(G122:G126,"Bilaga 3")=0,"Bilaga 2","")) ->  | H121: =IFERROR(TableData[[#This Row],[Timmar]]*rngTimpris,"") -> 0 | I121: 15 | J121: LIVSMEDEL OCH FODER | K121: Foder av animaliska och vegetabiliska råvaror | L121: Verksamhetsgrupp Foder av animaliska och vegetabiliska råvaror
A122: 15.330-i, 15.350-i och 15.370-i | B122: B | C122: 90 | D122: Nej | E122: =IF(TableData[[#This Row],[Tillsynsbehov]]="Ange tillsynsbehov","Ange tillsynsbehov",IF(LEFT(TableData[[#This Row],[Tillsynsbehov]],4)="Högt",INDEX(tblTillsynsTim,1,MATCH(TableData[[#This Row],[Prövn.- nivå]],rngTillsynsNiv,0)),IF(LEFT(TableData[[#This Row],[Tillsynsbehov]],4)="Norm",INDEX(tblTillsynsTim,2,MATCH(TableData[[#This Row],[Prövn.- nivå]],rngTillsynsNiv,0)),IF(LEFT(TableData[[#This Row],[Tillsynsbehov]],4)="Lågt",INDEX(tblTillsynsTim,3,MATCH(TableData[[#This Row],[Prövn.- nivå]],rngTillsynsNiv,0)),IF(LEFT(TableData[[#This Row],[Tillsynsbehov]],4)="Spor",INDEX(tblTillsynsTim,4,MATCH(TableData[[#This Row],[Prövn.- nivå]],rngTillsynsNiv,0)),TableData[[#This Row],[Tillsynsbehov]]))))) -> 90 | F122: Årlig tillsynsavgift | G122: =IF(TableData[[#This Row],[Avgift]]="Timavgift","Bilaga 3","Bilaga 2") -> Bilaga 2 | H122: =IFERROR(TableData[[#This Row],[Timmar]]*rngTimpris,"") -> 90000 | I122: 15 | J122: LIVSMEDEL OCH FODER | K122: Foder av animaliska och vegetabiliska råvaror | L122: ="1. För en verksamhet som är tillståndspliktig enligt 5 kap. 29, 31 eller 33 § miljöprövningsförordningen är tillsynstiden "&IF(ISNUMBER($E122),$E122,"x")&" timmar för anläggning för bearbetning av animaliska biprodukter med en produktion baserad på mer än 10 000 ton råvara per kalenderår."&IF(TableData[[#This Row],[IUV-tillägg]]="Ja"," "&rngIUV,"") -> 1. För en verksamhet som är tillståndspliktig enligt 5 kap. 29, 31 eller 33 § miljöprövningsförordningen är tillsynstiden 90 timmar för anläggning för bearbetning av animaliska biprodukter med en produktion baserad på mer än 10 000 ton råvara per kalenderår.
A123: 15.330-i, 15.350-i och 15.370-i | B123: B | C123: 30 | D123: Nej | E123: =IF(TableData[[#This Row],[Tillsynsbehov]]="Ange tillsynsbehov","Ange tillsynsbehov",IF(LEFT(TableData[[#This Row],[Tillsynsbehov]],4)="Högt",INDEX(tblTillsynsTim,1,MATCH(TableData[[#This Row],[Prövn.- nivå]],rngTillsynsNiv,0)),IF(LEFT(TableData[[#This Row],[Tillsynsbehov]],4)="Norm",INDEX(tblTillsynsTim,2,MATCH(TableData[[#This Row],[Prövn.- nivå]],rngTillsynsNiv,0)),IF(LEFT(TableData[[#This Row],[Tillsynsbehov]],4)="Lågt",INDEX(tblTillsynsTim,3,MATCH(TableData[[#This Row],[Prövn.- nivå]],rngTillsynsNiv,0)),IF(LEFT(TableData[[#This Row],[Tillsynsbehov]],4)="Spor",INDEX(tblTillsynsTim,4,MATCH(TableData[[#This Row],[Prövn.- nivå]],rngTillsynsNiv,0)),TableData[[#This Row],[Tillsynsbehov]]))))) -> 30 | F123: Årlig tillsynsavgift | G123: =IF(TableData[[#This Row],[Avgift]]="Timavgift","Bilaga 3","Bilaga 2") -> Bilaga 2 | H123: =IFERROR(TableData[[#This Row],[Timmar]]*rngTimpris,"") -> 30000 | I123: 15 | J123: LIVSMEDEL OCH FODER | K123: Foder av animaliska och vegetabiliska råvaror | L123: ="2. För en verksamhet som är tillståndspliktig enligt 5 kap. 29, 31 eller 33 § miljöprövningsförordningen är tillsynstiden "&IF(ISNUMBER($E123),$E123,"x")&" timmar för anläggning som inte omfattas av 1."&IF(TableData[[#This Row],[IUV-tillägg]]="Ja"," "&rngIUV,"") -> 2. För en verksamhet som är tillståndspliktig enligt 5 kap. 29, 31 eller 33 § miljöprövningsförordningen är tillsynstiden 30 timmar för anläggning som inte omfattas av 1.
A124: 15.340 | B124: C | C124: Ange tillsynsbehov | E124: =IF(TableData[[#This Row],[Tillsynsbehov]]="Ange tillsynsbehov","Ange tillsynsbehov",IF(SUM(LEN(TableData[[#This Row],[Tillsynsbehov]])-LEN(SUBSTITUTE(TableData[[#This Row],[Tillsynsbehov]], {"0";"1";"2";"3";"4";"5";"6";"7";"8";"9"}, "")))>0, SUMPRODUCT(MID(0&TableData[[#This Row],[Tillsynsbehov]], LARGE(INDEX(ISNUMBER(--MID(TableData[[#This Row],[Tillsynsbehov]],ROW(INDIRECT("$1:$"&LEN(TableData[[#This Row],[Tillsynsbehov]]))),1))* ROW(INDIRECT("$1:$"&LEN(TableData[[#This Row],[Tillsynsbehov]]))),0), ROW(INDIRECT("$1:$"&LEN(TableData[[#This Row],[Tillsynsbehov]]))))+1,1) * 10^ROW(INDIRECT("$1:$"&LEN(TableData[[#This Row],[Tillsynsbehov]])))/10),TableData[[#This Row],[Tillsynsbehov]])) -> Ange tillsynsbehov | F124: Årlig tillsynsavgift | G124: =IF(TableData[[#This Row],[Avgift]]="Timavgift","Bilaga 3","Bilaga 2") -> Bilaga 2 | H124: =IFERROR(TableData[[#This Row],[Timmar]]*rngTimpris,"") ->  | I124: 15 | J124: LIVSMEDEL OCH FODER | K124: Foder av animaliska och vegetabiliska råvaror | L124: ="För en verksamhet som är anmälningspliktig enligt 5 kap. 30 § miljöprövningsförordningen är tillsynstiden "&IF(ISNUMBER($E124),$E124,"x")&" timmar."&IF(TableData[[#This Row],[IUV-tillägg]]="Ja"," "&rngIUV,"") -> För en verksamhet som är anmälningspliktig enligt 5 kap. 30 § miljöprövningsförordningen är tillsynstiden x timmar.
A125: 15.360 | B125: C | C125: Ange tillsynsbehov | E125: =IF(TableData[[#This Row],[Tillsynsbehov]]="Ange tillsynsbehov","Ange tillsynsbehov",IF(SUM(LEN(TableData[[#This Row],[Tillsynsbehov]])-LEN(SUBSTITUTE(TableData[[#This Row],[Tillsynsbehov]], {"0";"1";"2";"3";"4";"5";"6";"7";"8";"9"}, "")))>0, SUMPRODUCT(MID(0&TableData[[#This Row],[Tillsynsbehov]], LARGE(INDEX(ISNUMBER(--MID(TableData[[#This Row],[Tillsynsbehov]],ROW(INDIRECT("$1:$"&LEN(TableData[[#This Row],[Tillsynsbehov]]))),1))* ROW(INDIRECT("$1:$"&LEN(TableData[[#This Row],[Tillsynsbehov]]))),0), ROW(INDIRECT("$1:$"&LEN(TableData[[#This Row],[Tillsynsbehov]]))))+1,1) * 10^ROW(INDIRECT("$1:$"&LEN(TableData[[#This Row],[Tillsynsbehov]])))/10),TableData[[#This Row],[Tillsynsbehov]])) -> Ange tillsynsbehov | F125: Årlig tillsynsavgift | G125: =IF(TableData[[#This Row],[Avgift]]="Timavgift","Bilaga 3","Bilaga 2") -> Bilaga 2 | H125: =IFERROR(TableData[[#This Row],[Timmar]]*rngTimpris,"") ->  | I125: 15 | J125: LIVSMEDEL OCH FODER | K125: Foder av animaliska och vegetabiliska råvaror | L125: ="För en verksamhet som är anmälningspliktig enligt 5 kap. 32 § miljöprövningsförordningen är tillsynstiden "&IF(ISNUMBER($E125),$E125,"x")&" timmar."&IF(TableData[[#This Row],[IUV-tillägg]]="Ja"," "&rngIUV,"") -> För en verksamhet som är anmälningspliktig enligt 5 kap. 32 § miljöprövningsförordningen är tillsynstiden x timmar.
B126: U | C126: Ange tillsynsbehov | E126: =IF(TableData[[#This Row],[Tillsynsbehov]]="Ange tillsynsbehov","Ange tillsynsbehov",IF(SUM(LEN(TableData[[#This Row],[Tillsynsbehov]])-LEN(SUBSTITUTE(TableData[[#This Row],[Tillsynsbehov]], {"0";"1";"2";"3";"4";"5";"6";"7";"8";"9"}, "")))>0, SUMPRODUCT(MID(0&TableData[[#This Row],[Tillsynsbehov]], LARGE(INDEX(ISNUMBER(--MID(TableData[[#This Row],[Tillsynsbehov]],ROW(INDIRECT("$1:$"&LEN(TableData[[#This Row],[Tillsynsbehov]]))),1))* ROW(INDIRECT("$1:$"&LEN(TableData[[#This Row],[Tillsynsbehov]]))),0), ROW(INDIRECT("$1:$"&LEN(TableData[[#This Row],[Tillsynsbehov]]))))+1,1) * 10^ROW(INDIRECT("$1:$"&LEN(TableData[[#This Row],[Tillsynsbehov]])))/10),TableData[[#This Row],[Tillsynsbehov]])) -> Ange tillsynsbehov | F126: Timavgift | G126: =IF(TableData[[#This Row],[Avgift]]="Timavgift","Bilaga 3","Bilaga 2") -> Bilaga 3 | H126: =IFERROR(TableData[[#This Row],[Timmar]]*rngTimpris,"") ->  | I126: 15 | J126: LIVSMEDEL OCH FODER | K126: Foder av animaliska och vegetabiliska råvaror | L126: ="För verksamheter under anmälningspliktig nivå är tillsynstiden "&IF(ISNUMBER($E126),$E126,"x")&" timmar."&IF(TableData[[#This Row],[IUV-tillägg]]="Ja"," "&rngIUV,"") -> För verksamheter under anmälningspliktig nivå är tillsynstiden x timmar.
A127: ="" ->  | G127: =IF(COUNTIF(G128:G132,"Bilaga 2")=0,"Bilaga 3",IF(COUNTIF(G128:G132,"Bilaga 3")=0,"Bilaga 2","")) ->  | H127: =IFERROR(TableData[[#This Row],[Timmar]]*rngTimpris,"") -> 0 | I127: 17 | J127: TEXTILVAROR | K127: ="" ->  | L127: VERKSAMHETSGRUPP TEXTILVAROR
A128: 17.10-i | B128: B | C128: 90 | D128: Nej | E128: =IF(TableData[[#This Row],[Tillsynsbehov]]="Ange tillsynsbehov","Ange tillsynsbehov",IF(LEFT(TableData[[#This Row],[Tillsynsbehov]],4)="Högt",INDEX(tblTillsynsTim,1,MATCH(TableData[[#This Row],[Prövn.- nivå]],rngTillsynsNiv,0)),IF(LEFT(TableData[[#This Row],[Tillsynsbehov]],4)="Norm",INDEX(tblTillsynsTim,2,MATCH(TableData[[#This Row],[Prövn.- nivå]],rngTillsynsNiv,0)),IF(LEFT(TableData[[#This Row],[Tillsynsbehov]],4)="Lågt",INDEX(tblTillsynsTim,3,MATCH(TableData[[#This Row],[Prövn.- nivå]],rngTillsynsNiv,0)),IF(LEFT(TableData[[#This Row],[Tillsynsbehov]],4)="Spor",INDEX(tblTillsynsTim,4,MATCH(TableData[[#This Row],[Prövn.- nivå]],rngTillsynsNiv,0)),TableData[[#This Row],[Tillsynsbehov]]))))) -> 90 | F128: Årlig tillsynsavgift | G128: =IF(TableData[[#This Row],[Avgift]]="Timavgift","Bilaga 3","Bilaga 2") -> Bilaga 2 | H128: =IFERROR(TableData[[#This Row],[Timmar]]*rngTimpris,"") -> 90000 | I128: 17 | J128: TEXTILVAROR | K128: ="" ->  | L128: ="För en verksamhet som är tillståndspliktig enligt 6 kap. 1 § miljöprövningsförordningen är tillsynstiden "&IF(ISNUMBER($E128),$E128,"x")&" timmar."&IF(TableData[[#This Row],[IUV-tillägg]]="Ja"," "&rngIUV,"") -> För en verksamhet som är tillståndspliktig enligt 6 kap. 1 § miljöprövningsförordningen är tillsynstiden 90 timmar.
A129: 17.20 | B129: B | C129: 64 | E129: =IF(TableData[[#This Row],[Tillsynsbehov]]="Ange tillsynsbehov","Ange tillsynsbehov",IF(LEFT(TableData[[#This Row],[Tillsynsbehov]],4)="Högt",INDEX(tblTillsynsTim,1,MATCH(TableData[[#This Row],[Prövn.- nivå]],rngTillsynsNiv,0)),IF(LEFT(TableData[[#This Row],[Tillsynsbehov]],4)="Norm",INDEX(tblTillsynsTim,2,MATCH(TableData[[#This Row],[Prövn.- nivå]],rngTillsynsNiv,0)),IF(LEFT(TableData[[#This Row],[Tillsynsbehov]],4)="Lågt",INDEX(tblTillsynsTim,3,MATCH(TableData[[#This Row],[Prövn.- nivå]],rngTillsynsNiv,0)),IF(LEFT(TableData[[#This Row],[Tillsynsbehov]],4)="Spor",INDEX(tblTillsynsTim,4,MATCH(TableData[[#This Row],[Prövn.- nivå]],rngTillsynsNiv,0)),TableData[[#This Row],[Tillsynsbehov]]))))) -> 64 | F129: Årlig tillsynsavgift | G129: =IF(TableData[[#This Row],[Avgift]]="Timavgift","Bilaga 3","Bilaga 2") -> Bilaga 2 | H129: =IFERROR(TableData[[#This Row],[Timmar]]*rngTimpris,"") -> 64000 | I129: 17 | J129: TEXTILVAROR | K129: ="" ->  | L129: ="1. För en verksamhet som är tillståndspliktig enligt 6 kap. 2 § miljöprövningsförordningen är tillsynstiden "&IF(ISNUMBER($E129),$E129,"x")&" timmar för anläggning för hantering av mer än 1 000 ton men högst 2 500 ton textilfibrer eller textilier per kalenderår."&IF(TableData[[#This Row],[IUV-tillägg]]="Ja"," "&rngIUV,"") -> 1. För en verksamhet som är tillståndspliktig enligt 6 kap. 2 § miljöprövningsförordningen är tillsynstiden 64 timmar för anläggning för hantering av mer än 1 000 ton men högst 2 500 ton textilfibrer eller textilier per kalenderår.
A130: 17.20 | B130: B | C130: 30 | E130: =IF(TableData[[#This Row],[Tillsynsbehov]]="Ange tillsynsbehov","Ange tillsynsbehov",IF(LEFT(TableData[[#This Row],[Tillsynsbehov]],4)="Högt",INDEX(tblTillsynsTim,1,MATCH(TableData[[#This Row],[Prövn.- nivå]],rngTillsynsNiv,0)),IF(LEFT(TableData[[#This Row],[Tillsynsbehov]],4)="Norm",INDEX(tblTillsynsTim,2,MATCH(TableData[[#This Row],[Prövn.- nivå]],rngTillsynsNiv,0)),IF(LEFT(TableData[[#This Row],[Tillsynsbehov]],4)="Lågt",INDEX(tblTillsynsTim,3,MATCH(TableData[[#This Row],[Prövn.- nivå]],rngTillsynsNiv,0)),IF(LEFT(TableData[[#This Row],[Tillsynsbehov]],4)="Spor",INDEX(tblTillsynsTim,4,MATCH(TableData[[#This Row],[Prövn.- nivå]],rngTillsynsNiv,0)),TableData[[#This Row],[Tillsynsbehov]]))))) -> 30 | F130: Årlig tillsynsavgift | G130: =IF(TableData[[#This Row],[Avgift]]="Timavgift","Bilaga 3","Bilaga 2") -> Bilaga 2 | H130: =IFERROR(TableData[[#This Row],[Timmar]]*rngTimpris,"") -> 30000 | I130: 17 | J130: TEXTILVAROR | K130: ="" ->  | L130: ="2. För en verksamhet som är tillståndspliktig enligt 6 kap. 2 § miljöprövningsförordningen är tillsynstiden "&IF(ISNUMBER($E130),$E130,"x")&" timmar för anläggning som inte omfattas av 1."&IF(TableData[[#This Row],[IUV-tillägg]]="Ja"," "&rngIUV,"") -> 2. För en verksamhet som är tillståndspliktig enligt 6 kap. 2 § miljöprövningsförordningen är tillsynstiden 30 timmar för anläggning som inte omfattas av 1.
A131: 17.30 | B131: C | C131: Ange tillsynsbehov | E131: =IF(TableData[[#This Row],[Tillsynsbehov]]="Ange tillsynsbehov","Ange tillsynsbehov",IF(SUM(LEN(TableData[[#This Row],[Tillsynsbehov]])-LEN(SUBSTITUTE(TableData[[#This Row],[Tillsynsbehov]], {"0";"1";"2";"3";"4";"5";"6";"7";"8";"9"}, "")))>0, SUMPRODUCT(MID(0&TableData[[#This Row],[Tillsynsbehov]], LARGE(INDEX(ISNUMBER(--MID(TableData[[#This Row],[Tillsynsbehov]],ROW(INDIRECT("$1:$"&LEN(TableData[[#This Row],[Tillsynsbehov]]))),1))* ROW(INDIRECT("$1:$"&LEN(TableData[[#This Row],[Tillsynsbehov]]))),0), ROW(INDIRECT("$1:$"&LEN(TableData[[#This Row],[Tillsynsbehov]]))))+1,1) * 10^ROW(INDIRECT("$1:$"&LEN(TableData[[#This Row],[Tillsynsbehov]])))/10),TableData[[#This Row],[Tillsynsbehov]])) -> Ange tillsynsbehov | F131: Årlig tillsynsavgift | G131: =IF(TableData[[#This Row],[Avgift]]="Timavgift","Bilaga 3","Bilaga 2") -> Bilaga 2 | H131: =IFERROR(TableData[[#This Row],[Timmar]]*rngTimpris,"") ->  | I131: 17 | J131: TEXTILVAROR | K131: ="" ->  | L131: ="För en verksamhet som är anmälningspliktig enligt 6 kap. 3 § miljöprövningsförordningen är tillsynstiden "&IF(ISNUMBER($E131),$E131,"x")&" timmar."&IF(TableData[[#This Row],[IUV-tillägg]]="Ja"," "&rngIUV,"") -> För en verksamhet som är anmälningspliktig enligt 6 kap. 3 § miljöprövningsförordningen är tillsynstiden x timmar.
B132: U | C132: Ange tillsynsbehov | E132: =IF(TableData[[#This Row],[Tillsynsbehov]]="Ange tillsynsbehov","Ange tillsynsbehov",IF(SUM(LEN(TableData[[#This Row],[Tillsynsbehov]])-LEN(SUBSTITUTE(TableData[[#This Row],[Tillsynsbehov]], {"0";"1";"2";"3";"4";"5";"6";"7";"8";"9"}, "")))>0, SUMPRODUCT(MID(0&TableData[[#This Row],[Tillsynsbehov]], LARGE(INDEX(ISNUMBER(--MID(TableData[[#This Row],[Tillsynsbehov]],ROW(INDIRECT("$1:$"&LEN(TableData[[#This Row],[Tillsynsbehov]]))),1))* ROW(INDIRECT("$1:$"&LEN(TableData[[#This Row],[Tillsynsbehov]]))),0), ROW(INDIRECT("$1:$"&LEN(TableData[[#This Row],[Tillsynsbehov]]))))+1,1) * 10^ROW(INDIRECT("$1:$"&LEN(TableData[[#This Row],[Tillsynsbehov]])))/10),TableData[[#This Row],[Tillsynsbehov]])) -> Ange tillsynsbehov | F132: Timavgift | G132: =IF(TableData[[#This Row],[Avgift]]="Timavgift","Bilaga 3","Bilaga 2") -> Bilaga 3 | H132: =IFERROR(TableData[[#This Row],[Timmar]]*rngTimpris,"") ->  | I132: 17 | J132: TEXTILVAROR | K132: ="" ->  | L132: ="För verksamheter under anmälningspliktig nivå är tillsynstiden "&IF(ISNUMBER($E132),$E132,"x")&" timmar."&IF(TableData[[#This Row],[IUV-tillägg]]="Ja"," "&rngIUV,"") -> För verksamheter under anmälningspliktig nivå är tillsynstiden x timmar.
A133: ="" ->  | G133: =IF(COUNTIF(G134:G139,"Bilaga 2")=0,"Bilaga 3",IF(COUNTIF(G134:G139,"Bilaga 3")=0,"Bilaga 2","")) ->  | H133: =IFERROR(TableData[[#This Row],[Timmar]]*rngTimpris,"") -> 0 | I133: 18 | J133: PÄLS, SKINN OCH LÄDER | K133: ="" ->  | L133: VERKSAMHETSGRUPP PÄLS, SKINN OCH LÄDER
A134: 18.10-i | B134: B | C134: 90 | D134: Nej | E134: =IF(TableData[[#This Row],[Tillsynsbehov]]="Ange tillsynsbehov","Ange tillsynsbehov",IF(LEFT(TableData[[#This Row],[Tillsynsbehov]],4)="Högt",INDEX(tblTillsynsTim,1,MATCH(TableData[[#This Row],[Prövn.- nivå]],rngTillsynsNiv,0)),IF(LEFT(TableData[[#This Row],[Tillsynsbehov]],4)="Norm",INDEX(tblTillsynsTim,2,MATCH(TableData[[#This Row],[Prövn.- nivå]],rngTillsynsNiv,0)),IF(LEFT(TableData[[#This Row],[Tillsynsbehov]],4)="Lågt",INDEX(tblTillsynsTim,3,MATCH(TableData[[#This Row],[Prövn.- nivå]],rngTillsynsNiv,0)),IF(LEFT(TableData[[#This Row],[Tillsynsbehov]],4)="Spor",INDEX(tblTillsynsTim,4,MATCH(TableData[[#This Row],[Prövn.- nivå]],rngTillsynsNiv,0)),TableData[[#This Row],[Tillsynsbehov]]))))) -> 90 | F134: Årlig tillsynsavgift | G134: =IF(TableData[[#This Row],[Avgift]]="Timavgift","Bilaga 3","Bilaga 2") -> Bilaga 2 | H134: =IFERROR(TableData[[#This Row],[Timmar]]*rngTimpris,"") -> 90000 | I134: 18 | J134: PÄLS, SKINN OCH LÄDER | K134: ="" ->  | L134: ="För en verksamhet som är tillståndspliktig enligt 7 kap. 1 § miljöprövningsförordningen är tillsynstiden "&IF(ISNUMBER($E134),$E134,"x")&" timmar."&IF(TableData[[#This Row],[IUV-tillägg]]="Ja"," "&rngIUV,"") -> För en verksamhet som är tillståndspliktig enligt 7 kap. 1 § miljöprövningsförordningen är tillsynstiden 90 timmar.
A135: 18.20 | B135: B | C135: 90 | E135: =IF(TableData[[#This Row],[Tillsynsbehov]]="Ange tillsynsbehov","Ange tillsynsbehov",IF(LEFT(TableData[[#This Row],[Tillsynsbehov]],4)="Högt",INDEX(tblTillsynsTim,1,MATCH(TableData[[#This Row],[Prövn.- nivå]],rngTillsynsNiv,0)),IF(LEFT(TableData[[#This Row],[Tillsynsbehov]],4)="Norm",INDEX(tblTillsynsTim,2,MATCH(TableData[[#This Row],[Prövn.- nivå]],rngTillsynsNiv,0)),IF(LEFT(TableData[[#This Row],[Tillsynsbehov]],4)="Lågt",INDEX(tblTillsynsTim,3,MATCH(TableData[[#This Row],[Prövn.- nivå]],rngTillsynsNiv,0)),IF(LEFT(TableData[[#This Row],[Tillsynsbehov]],4)="Spor",INDEX(tblTillsynsTim,4,MATCH(TableData[[#This Row],[Prövn.- nivå]],rngTillsynsNiv,0)),TableData[[#This Row],[Tillsynsbehov]]))))) -> 90 | F135: Årlig tillsynsavgift | G135: =IF(TableData[[#This Row],[Avgift]]="Timavgift","Bilaga 3","Bilaga 2") -> Bilaga 2 | H135: =IFERROR(TableData[[#This Row],[Timmar]]*rngTimpris,"") -> 90000 | I135: 18 | J135: PÄLS, SKINN OCH LÄDER | K135: ="" ->  | L135: ="1. För en verksamhet som är tillståndspliktig enligt 7 kap. 2 § miljöprövningsförordningen är tillsynstiden "&IF(ISNUMBER($E135),$E135,"x")&" timmar om verksamheten avser garvning av mer än 1 000 ton produkter per kalenderår."&IF(TableData[[#This Row],[IUV-tillägg]]="Ja"," "&rngIUV,"") -> 1. För en verksamhet som är tillståndspliktig enligt 7 kap. 2 § miljöprövningsförordningen är tillsynstiden 90 timmar om verksamheten avser garvning av mer än 1 000 ton produkter per kalenderår.
A136: 18.20 | B136: B | C136: 30 | E136: =IF(TableData[[#This Row],[Tillsynsbehov]]="Ange tillsynsbehov","Ange tillsynsbehov",IF(LEFT(TableData[[#This Row],[Tillsynsbehov]],4)="Högt",INDEX(tblTillsynsTim,1,MATCH(TableData[[#This Row],[Prövn.- nivå]],rngTillsynsNiv,0)),IF(LEFT(TableData[[#This Row],[Tillsynsbehov]],4)="Norm",INDEX(tblTillsynsTim,2,MATCH(TableData[[#This Row],[Prövn.- nivå]],rngTillsynsNiv,0)),IF(LEFT(TableData[[#This Row],[Tillsynsbehov]],4)="Lågt",INDEX(tblTillsynsTim,3,MATCH(TableData[[#This Row],[Prövn.- nivå]],rngTillsynsNiv,0)),IF(LEFT(TableData[[#This Row],[Tillsynsbehov]],4)="Spor",INDEX(tblTillsynsTim,4,MATCH(TableData[[#This Row],[Prövn.- nivå]],rngTillsynsNiv,0)),TableData[[#This Row],[Tillsynsbehov]]))))) -> 30 | F136: Årlig tillsynsavgift | G136: =IF(TableData[[#This Row],[Avgift]]="Timavgift","Bilaga 3","Bilaga 2") -> Bilaga 2 | H136: =IFERROR(TableData[[#This Row],[Timmar]]*rngTimpris,"") -> 30000 | I136: 18 | J136: PÄLS, SKINN OCH LÄDER | K136: ="" ->  | L136: ="2. För en verksamhet som är tillståndspliktig enligt 7 kap. 2 § miljöprövningsförordningen är tillsynstiden "&IF(ISNUMBER($E136),$E136,"x")&" timmar om verksamheten avser garvning av högst 1 000 ton produkter per kalenderår."&IF(TableData[[#This Row],[IUV-tillägg]]="Ja"," "&rngIUV,"") -> 2. För en verksamhet som är tillståndspliktig enligt 7 kap. 2 § miljöprövningsförordningen är tillsynstiden 30 timmar om verksamheten avser garvning av högst 1 000 ton produkter per kalenderår.
A137: 18.20 | B137: B | C137: 23 | E137: =IF(TableData[[#This Row],[Tillsynsbehov]]="Ange tillsynsbehov","Ange tillsynsbehov",IF(LEFT(TableData[[#This Row],[Tillsynsbehov]],4)="Högt",INDEX(tblTillsynsTim,1,MATCH(TableData[[#This Row],[Prövn.- nivå]],rngTillsynsNiv,0)),IF(LEFT(TableData[[#This Row],[Tillsynsbehov]],4)="Norm",INDEX(tblTillsynsTim,2,MATCH(TableData[[#This Row],[Prövn.- nivå]],rngTillsynsNiv,0)),IF(LEFT(TableData[[#This Row],[Tillsynsbehov]],4)="Lågt",INDEX(tblTillsynsTim,3,MATCH(TableData[[#This Row],[Prövn.- nivå]],rngTillsynsNiv,0)),IF(LEFT(TableData[[#This Row],[Tillsynsbehov]],4)="Spor",INDEX(tblTillsynsTim,4,MATCH(TableData[[#This Row],[Prövn.- nivå]],rngTillsynsNiv,0)),TableData[[#This Row],[Tillsynsbehov]]))))) -> 23 | F137: Årlig tillsynsavgift | G137: =IF(TableData[[#This Row],[Avgift]]="Timavgift","Bilaga 3","Bilaga 2") -> Bilaga 2 | H137: =IFERROR(TableData[[#This Row],[Timmar]]*rngTimpris,"") -> 23000 | I137: 18 | J137: PÄLS, SKINN OCH LÄDER | K137: ="" ->  | L137: ="3. För en verksamhet som är tillståndspliktig enligt 7 kap. 2 § miljöprövningsförordningen är tillsynstiden "&IF(ISNUMBER($E137),$E137,"x")&" timmar om verksamheten avser annan beredning av hudar och skinn än garvning."&IF(TableData[[#This Row],[IUV-tillägg]]="Ja"," "&rngIUV,"") -> 3. För en verksamhet som är tillståndspliktig enligt 7 kap. 2 § miljöprövningsförordningen är tillsynstiden 23 timmar om verksamheten avser annan beredning av hudar och skinn än garvning.
A138: 18.30 | B138: C | C138: Ange tillsynsbehov | E138: =IF(TableData[[#This Row],[Tillsynsbehov]]="Ange tillsynsbehov","Ange tillsynsbehov",IF(SUM(LEN(TableData[[#This Row],[Tillsynsbehov]])-LEN(SUBSTITUTE(TableData[[#This Row],[Tillsynsbehov]], {"0";"1";"2";"3";"4";"5";"6";"7";"8";"9"}, "")))>0, SUMPRODUCT(MID(0&TableData[[#This Row],[Tillsynsbehov]], LARGE(INDEX(ISNUMBER(--MID(TableData[[#This Row],[Tillsynsbehov]],ROW(INDIRECT("$1:$"&LEN(TableData[[#This Row],[Tillsynsbehov]]))),1))* ROW(INDIRECT("$1:$"&LEN(TableData[[#This Row],[Tillsynsbehov]]))),0), ROW(INDIRECT("$1:$"&LEN(TableData[[#This Row],[Tillsynsbehov]]))))+1,1) * 10^ROW(INDIRECT("$1:$"&LEN(TableData[[#This Row],[Tillsynsbehov]])))/10),TableData[[#This Row],[Tillsynsbehov]])) -> Ange tillsynsbehov | F138: Årlig tillsynsavgift | G138: =IF(TableData[[#This Row],[Avgift]]="Timavgift","Bilaga 3","Bilaga 2") -> Bilaga 2 | H138: =IFERROR(TableData[[#This Row],[Timmar]]*rngTimpris,"") ->  | I138: 18 | J138: PÄLS, SKINN OCH LÄDER | K138: ="" ->  | L138: ="För en verksamhet som är anmälningspliktig enligt 7 kap. 3 § miljöprövningsförordningen är tillsynstiden "&IF(ISNUMBER($E138),$E138,"x")&" timmar."&IF(TableData[[#This Row],[IUV-tillägg]]="Ja"," "&rngIUV,"") -> För en verksamhet som är anmälningspliktig enligt 7 kap. 3 § miljöprövningsförordningen är tillsynstiden x timmar.
B139: U | C139: Ange tillsynsbehov | E139: =IF(TableData[[#This Row],[Tillsynsbehov]]="Ange tillsynsbehov","Ange tillsynsbehov",IF(SUM(LEN(TableData[[#This Row],[Tillsynsbehov]])-LEN(SUBSTITUTE(TableData[[#This Row],[Tillsynsbehov]], {"0";"1";"2";"3";"4";"5";"6";"7";"8";"9"}, "")))>0, SUMPRODUCT(MID(0&TableData[[#This Row],[Tillsynsbehov]], LARGE(INDEX(ISNUMBER(--MID(TableData[[#This Row],[Tillsynsbehov]],ROW(INDIRECT("$1:$"&LEN(TableData[[#This Row],[Tillsynsbehov]]))),1))* ROW(INDIRECT("$1:$"&LEN(TableData[[#This Row],[Tillsynsbehov]]))),0), ROW(INDIRECT("$1:$"&LEN(TableData[[#This Row],[Tillsynsbehov]]))))+1,1) * 10^ROW(INDIRECT("$1:$"&LEN(TableData[[#This Row],[Tillsynsbehov]])))/10),TableData[[#This Row],[Tillsynsbehov]])) -> Ange tillsynsbehov | F139: Timavgift | G139: =IF(TableData[[#This Row],[Avgift]]="Timavgift","Bilaga 3","Bilaga 2") -> Bilaga 3 | H139: =IFERROR(TableData[[#This Row],[Timmar]]*rngTimpris,"") ->  | I139: 18 | J139: PÄLS, SKINN OCH LÄDER | K139: ="" ->  | L139: ="För verksamheter under anmälningspliktig nivå är tillsynstiden "&IF(ISNUMBER($E139),$E139,"x")&" timmar."&IF(TableData[[#This Row],[IUV-tillägg]]="Ja"," "&rngIUV,"") -> För verksamheter under anmälningspliktig nivå är tillsynstiden x timmar.
A140: ="" ->  | G140: =IF(COUNTIF(G141:G154,"Bilaga 2")=0,"Bilaga 3",IF(COUNTIF(G141:G154,"Bilaga 3")=0,"Bilaga 2","")) ->  | H140: =IFERROR(TableData[[#This Row],[Timmar]]*rngTimpris,"") -> 0 | I140: 20 | J140: TRÄVAROR | K140: ="" ->  | L140: VERKSAMHETSGRUPP TRÄVAROR
A141: 20.05-i | B141: B | C141: 64 | D141: Nej | E141: =IF(TableData[[#This Row],[Tillsynsbehov]]="Ange tillsynsbehov","Ange tillsynsbehov",IF(LEFT(TableData[[#This Row],[Tillsynsbehov]],4)="Högt",INDEX(tblTillsynsTim,1,MATCH(TableData[[#This Row],[Prövn.- nivå]],rngTillsynsNiv,0)),IF(LEFT(TableData[[#This Row],[Tillsynsbehov]],4)="Norm",INDEX(tblTillsynsTim,2,MATCH(TableData[[#This Row],[Prövn.- nivå]],rngTillsynsNiv,0)),IF(LEFT(TableData[[#This Row],[Tillsynsbehov]],4)="Lågt",INDEX(tblTillsynsTim,3,MATCH(TableData[[#This Row],[Prövn.- nivå]],rngTillsynsNiv,0)),IF(LEFT(TableData[[#This Row],[Tillsynsbehov]],4)="Spor",INDEX(tblTillsynsTim,4,MATCH(TableData[[#This Row],[Prövn.- nivå]],rngTillsynsNiv,0)),TableData[[#This Row],[Tillsynsbehov]]))))) -> 64 | F141: Årlig tillsynsavgift | G141: =IF(TableData[[#This Row],[Avgift]]="Timavgift","Bilaga 3","Bilaga 2") -> Bilaga 2 | H141: =IFERROR(TableData[[#This Row],[Timmar]]*rngTimpris,"") -> 64000 | I141: 20 | J141: TRÄVAROR | K141: ="" ->  | L141: ="För en verksamhet som är tillståndspliktig enligt 8 kap. 1 § miljöprövningsförordningen är tillsynstiden "&IF(ISNUMBER($E141),$E141,"x")&" timmar."&IF(TableData[[#This Row],[IUV-tillägg]]="Ja"," "&rngIUV,"") -> För en verksamhet som är tillståndspliktig enligt 8 kap. 1 § miljöprövningsförordningen är tillsynstiden 64 timmar.
A142: 20.10 | B142: C | C142: Ange tillsynsbehov | E142: =IF(TableData[[#This Row],[Tillsynsbehov]]="Ange tillsynsbehov","Ange tillsynsbehov",IF(SUM(LEN(TableData[[#This Row],[Tillsynsbehov]])-LEN(SUBSTITUTE(TableData[[#This Row],[Tillsynsbehov]], {"0";"1";"2";"3";"4";"5";"6";"7";"8";"9"}, "")))>0, SUMPRODUCT(MID(0&TableData[[#This Row],[Tillsynsbehov]], LARGE(INDEX(ISNUMBER(--MID(TableData[[#This Row],[Tillsynsbehov]],ROW(INDIRECT("$1:$"&LEN(TableData[[#This Row],[Tillsynsbehov]]))),1))* ROW(INDIRECT("$1:$"&LEN(TableData[[#This Row],[Tillsynsbehov]]))),0), ROW(INDIRECT("$1:$"&LEN(TableData[[#This Row],[Tillsynsbehov]]))))+1,1) * 10^ROW(INDIRECT("$1:$"&LEN(TableData[[#This Row],[Tillsynsbehov]])))/10),TableData[[#This Row],[Tillsynsbehov]])) -> Ange tillsynsbehov | F142: Årlig tillsynsavgift | G142: =IF(TableData[[#This Row],[Avgift]]="Timavgift","Bilaga 3","Bilaga 2") -> Bilaga 2 | H142: =IFERROR(TableData[[#This Row],[Timmar]]*rngTimpris,"") ->  | I142: 20 | J142: TRÄVAROR | K142: ="" ->  | L142: ="För en verksamhet som är anmälningspliktig enligt 8 kap. 2 § miljöprövningsförordningen är tillsynstiden "&IF(ISNUMBER($E142),$E142,"x")&" timmar."&IF(TableData[[#This Row],[IUV-tillägg]]="Ja"," "&rngIUV,"") -> För en verksamhet som är anmälningspliktig enligt 8 kap. 2 § miljöprövningsförordningen är tillsynstiden x timmar.
A143: 20.20 | B143: B | C143: 64 | E143: =IF(TableData[[#This Row],[Tillsynsbehov]]="Ange tillsynsbehov","Ange tillsynsbehov",IF(LEFT(TableData[[#This Row],[Tillsynsbehov]],4)="Högt",INDEX(tblTillsynsTim,1,MATCH(TableData[[#This Row],[Prövn.- nivå]],rngTillsynsNiv,0)),IF(LEFT(TableData[[#This Row],[Tillsynsbehov]],4)="Norm",INDEX(tblTillsynsTim,2,MATCH(TableData[[#This Row],[Prövn.- nivå]],rngTillsynsNiv,0)),IF(LEFT(TableData[[#This Row],[Tillsynsbehov]],4)="Lågt",INDEX(tblTillsynsTim,3,MATCH(TableData[[#This Row],[Prövn.- nivå]],rngTillsynsNiv,0)),IF(LEFT(TableData[[#This Row],[Tillsynsbehov]],4)="Spor",INDEX(tblTillsynsTim,4,MATCH(TableData[[#This Row],[Prövn.- nivå]],rngTillsynsNiv,0)),TableData[[#This Row],[Tillsynsbehov]]))))) -> 64 | F143: Årlig tillsynsavgift | G143: =IF(TableData[[#This Row],[Avgift]]="Timavgift","Bilaga 3","Bilaga 2") -> Bilaga 2 | H143: =IFERROR(TableData[[#This Row],[Timmar]]*rngTimpris,"") -> 64000 | I143: 20 | J143: TRÄVAROR | K143: ="" ->  | L143: ="1. För en verksamhet som är tillståndspliktig enligt 8 kap. 3 § miljöprövningsförordningen är tillsynstiden "&IF(ISNUMBER($E143),$E143,"x")&" timmar för produktion som omfattar mer än 200 000 kubikmeter per kalenderår."&IF(TableData[[#This Row],[IUV-tillägg]]="Ja"," "&rngIUV,"") -> 1. För en verksamhet som är tillståndspliktig enligt 8 kap. 3 § miljöprövningsförordningen är tillsynstiden 64 timmar för produktion som omfattar mer än 200 000 kubikmeter per kalenderår.
A144: 20.20 | B144: B | C144: 30 | E144: =IF(TableData[[#This Row],[Tillsynsbehov]]="Ange tillsynsbehov","Ange tillsynsbehov",IF(LEFT(TableData[[#This Row],[Tillsynsbehov]],4)="Högt",INDEX(tblTillsynsTim,1,MATCH(TableData[[#This Row],[Prövn.- nivå]],rngTillsynsNiv,0)),IF(LEFT(TableData[[#This Row],[Tillsynsbehov]],4)="Norm",INDEX(tblTillsynsTim,2,MATCH(TableData[[#This Row],[Prövn.- nivå]],rngTillsynsNiv,0)),IF(LEFT(TableData[[#This Row],[Tillsynsbehov]],4)="Lågt",INDEX(tblTillsynsTim,3,MATCH(TableData[[#This Row],[Prövn.- nivå]],rngTillsynsNiv,0)),IF(LEFT(TableData[[#This Row],[Tillsynsbehov]],4)="Spor",INDEX(tblTillsynsTim,4,MATCH(TableData[[#This Row],[Prövn.- nivå]],rngTillsynsNiv,0)),TableData[[#This Row],[Tillsynsbehov]]))))) -> 30 | F144: Årlig tillsynsavgift | G144: =IF(TableData[[#This Row],[Avgift]]="Timavgift","Bilaga 3","Bilaga 2") -> Bilaga 2 | H144: =IFERROR(TableData[[#This Row],[Timmar]]*rngTimpris,"") -> 30000 | I144: 20 | J144: TRÄVAROR | K144: ="" ->  | L144: ="2. För en verksamhet som är tillståndspliktig enligt 8 kap. 3 § miljöprövningsförordningen är tillsynstiden "&IF(ISNUMBER($E144),$E144,"x")&" timmar för produktion som inte omfattas av 1."&IF(TableData[[#This Row],[IUV-tillägg]]="Ja"," "&rngIUV,"") -> 2. För en verksamhet som är tillståndspliktig enligt 8 kap. 3 § miljöprövningsförordningen är tillsynstiden 30 timmar för produktion som inte omfattas av 1.
A145: 20.30 | B145: C | C145: Ange tillsynsbehov | E145: =IF(TableData[[#This Row],[Tillsynsbehov]]="Ange tillsynsbehov","Ange tillsynsbehov",IF(SUM(LEN(TableData[[#This Row],[Tillsynsbehov]])-LEN(SUBSTITUTE(TableData[[#This Row],[Tillsynsbehov]], {"0";"1";"2";"3";"4";"5";"6";"7";"8";"9"}, "")))>0, SUMPRODUCT(MID(0&TableData[[#This Row],[Tillsynsbehov]], LARGE(INDEX(ISNUMBER(--MID(TableData[[#This Row],[Tillsynsbehov]],ROW(INDIRECT("$1:$"&LEN(TableData[[#This Row],[Tillsynsbehov]]))),1))* ROW(INDIRECT("$1:$"&LEN(TableData[[#This Row],[Tillsynsbehov]]))),0), ROW(INDIRECT("$1:$"&LEN(TableData[[#This Row],[Tillsynsbehov]]))))+1,1) * 10^ROW(INDIRECT("$1:$"&LEN(TableData[[#This Row],[Tillsynsbehov]])))/10),TableData[[#This Row],[Tillsynsbehov]])) -> Ange tillsynsbehov | F145: Årlig tillsynsavgift | G145: =IF(TableData[[#This Row],[Avgift]]="Timavgift","Bilaga 3","Bilaga 2") -> Bilaga 2 | H145: =IFERROR(TableData[[#This Row],[Timmar]]*rngTimpris,"") ->  | I145: 20 | J145: TRÄVAROR | K145: ="" ->  | L145: ="För en verksamhet som är anmälningspliktig enligt 8 kap. 4 § miljöprövningsförordningen är tillsynstiden "&IF(ISNUMBER($E145),$E145,"x")&" timmar."&IF(TableData[[#This Row],[IUV-tillägg]]="Ja"," "&rngIUV,"") -> För en verksamhet som är anmälningspliktig enligt 8 kap. 4 § miljöprövningsförordningen är tillsynstiden x timmar.
A146: 20.40 | B146: C | C146: Ange tillsynsbehov | E146: =IF(TableData[[#This Row],[Tillsynsbehov]]="Ange tillsynsbehov","Ange tillsynsbehov",IF(SUM(LEN(TableData[[#This Row],[Tillsynsbehov]])-LEN(SUBSTITUTE(TableData[[#This Row],[Tillsynsbehov]], {"0";"1";"2";"3";"4";"5";"6";"7";"8";"9"}, "")))>0, SUMPRODUCT(MID(0&TableData[[#This Row],[Tillsynsbehov]], LARGE(INDEX(ISNUMBER(--MID(TableData[[#This Row],[Tillsynsbehov]],ROW(INDIRECT("$1:$"&LEN(TableData[[#This Row],[Tillsynsbehov]]))),1))* ROW(INDIRECT("$1:$"&LEN(TableData[[#This Row],[Tillsynsbehov]]))),0), ROW(INDIRECT("$1:$"&LEN(TableData[[#This Row],[Tillsynsbehov]]))))+1,1) * 10^ROW(INDIRECT("$1:$"&LEN(TableData[[#This Row],[Tillsynsbehov]])))/10),TableData[[#This Row],[Tillsynsbehov]])) -> Ange tillsynsbehov | F146: Årlig tillsynsavgift | G146: =IF(TableData[[#This Row],[Avgift]]="Timavgift","Bilaga 3","Bilaga 2") -> Bilaga 2 | H146: =IFERROR(TableData[[#This Row],[Timmar]]*rngTimpris,"") ->  | I146: 20 | J146: TRÄVAROR | K146: ="" ->  | L146: ="För en verksamhet som är anmälningspliktig enligt 8 kap. 5 § miljöprövningsförordningen är tillsynstiden "&IF(ISNUMBER($E146),$E146,"x")&" timmar."&IF(TableData[[#This Row],[IUV-tillägg]]="Ja"," "&rngIUV,"") -> För en verksamhet som är anmälningspliktig enligt 8 kap. 5 § miljöprövningsförordningen är tillsynstiden x timmar.
A147: 20.50-i | B147: B | C147: 137 | D147: Nej | E147: =IF(TableData[[#This Row],[Tillsynsbehov]]="Ange tillsynsbehov","Ange tillsynsbehov",IF(LEFT(TableData[[#This Row],[Tillsynsbehov]],4)="Högt",INDEX(tblTillsynsTim,1,MATCH(TableData[[#This Row],[Prövn.- nivå]],rngTillsynsNiv,0)),IF(LEFT(TableData[[#This Row],[Tillsynsbehov]],4)="Norm",INDEX(tblTillsynsTim,2,MATCH(TableData[[#This Row],[Prövn.- nivå]],rngTillsynsNiv,0)),IF(LEFT(TableData[[#This Row],[Tillsynsbehov]],4)="Lågt",INDEX(tblTillsynsTim,3,MATCH(TableData[[#This Row],[Prövn.- nivå]],rngTillsynsNiv,0)),IF(LEFT(TableData[[#This Row],[Tillsynsbehov]],4)="Spor",INDEX(tblTillsynsTim,4,MATCH(TableData[[#This Row],[Prövn.- nivå]],rngTillsynsNiv,0)),TableData[[#This Row],[Tillsynsbehov]]))))) -> 137 | F147: Årlig tillsynsavgift | G147: =IF(TableData[[#This Row],[Avgift]]="Timavgift","Bilaga 3","Bilaga 2") -> Bilaga 2 | H147: =IFERROR(TableData[[#This Row],[Timmar]]*rngTimpris,"") -> 137000 | I147: 20 | J147: TRÄVAROR | K147: ="" ->  | L147: ="1. För en verksamhet som är tillståndspliktig enligt 8 kap. 6 § miljöprövningsförordningen är tillsynstiden "&IF(ISNUMBER($E147),$E147,"x")&" timmar för produktion som omfattar mer än 20 000 ton per kalenderår."&IF(TableData[[#This Row],[IUV-tillägg]]="Ja"," "&rngIUV,"") -> 1. För en verksamhet som är tillståndspliktig enligt 8 kap. 6 § miljöprövningsförordningen är tillsynstiden 137 timmar för produktion som omfattar mer än 20 000 ton per kalenderår.
A148: 20.50-i | B148: B | C148: 64 | D148: Nej | E148: =IF(TableData[[#This Row],[Tillsynsbehov]]="Ange tillsynsbehov","Ange tillsynsbehov",IF(LEFT(TableData[[#This Row],[Tillsynsbehov]],4)="Högt",INDEX(tblTillsynsTim,1,MATCH(TableData[[#This Row],[Prövn.- nivå]],rngTillsynsNiv,0)),IF(LEFT(TableData[[#This Row],[Tillsynsbehov]],4)="Norm",INDEX(tblTillsynsTim,2,MATCH(TableData[[#This Row],[Prövn.- nivå]],rngTillsynsNiv,0)),IF(LEFT(TableData[[#This Row],[Tillsynsbehov]],4)="Lågt",INDEX(tblTillsynsTim,3,MATCH(TableData[[#This Row],[Prövn.- nivå]],rngTillsynsNiv,0)),IF(LEFT(TableData[[#This Row],[Tillsynsbehov]],4)="Spor",INDEX(tblTillsynsTim,4,MATCH(TableData[[#This Row],[Prövn.- nivå]],rngTillsynsNiv,0)),TableData[[#This Row],[Tillsynsbehov]]))))) -> 64 | F148: Årlig tillsynsavgift | G148: =IF(TableData[[#This Row],[Avgift]]="Timavgift","Bilaga 3","Bilaga 2") -> Bilaga 2 | H148: =IFERROR(TableData[[#This Row],[Timmar]]*rngTimpris,"") -> 64000 | I148: 20 | J148: TRÄVAROR | K148: ="" ->  | L148: ="2. För en verksamhet som är tillståndspliktig enligt 8 kap. 6 § miljöprövningsförordningen är tillsynstiden "&IF(ISNUMBER($E148),$E148,"x")&" timmar för produktion som inte omfattas av 1."&IF(TableData[[#This Row],[IUV-tillägg]]="Ja"," "&rngIUV,"") -> 2. För en verksamhet som är tillståndspliktig enligt 8 kap. 6 § miljöprövningsförordningen är tillsynstiden 64 timmar för produktion som inte omfattas av 1.
A149: 20.60 | B149: C | C149: Ange tillsynsbehov | E149: =IF(TableData[[#This Row],[Tillsynsbehov]]="Ange tillsynsbehov","Ange tillsynsbehov",IF(SUM(LEN(TableData[[#This Row],[Tillsynsbehov]])-LEN(SUBSTITUTE(TableData[[#This Row],[Tillsynsbehov]], {"0";"1";"2";"3";"4";"5";"6";"7";"8";"9"}, "")))>0, SUMPRODUCT(MID(0&TableData[[#This Row],[Tillsynsbehov]], LARGE(INDEX(ISNUMBER(--MID(TableData[[#This Row],[Tillsynsbehov]],ROW(INDIRECT("$1:$"&LEN(TableData[[#This Row],[Tillsynsbehov]]))),1))* ROW(INDIRECT("$1:$"&LEN(TableData[[#This Row],[Tillsynsbehov]]))),0), ROW(INDIRECT("$1:$"&LEN(TableData[[#This Row],[Tillsynsbehov]]))))+1,1) * 10^ROW(INDIRECT("$1:$"&LEN(TableData[[#This Row],[Tillsynsbehov]])))/10),TableData[[#This Row],[Tillsynsbehov]])) -> Ange tillsynsbehov | F149: Årlig tillsynsavgift | G149: =IF(TableData[[#This Row],[Avgift]]="Timavgift","Bilaga 3","Bilaga 2") -> Bilaga 2 | H149: =IFERROR(TableData[[#This Row],[Timmar]]*rngTimpris,"") ->  | I149: 20 | J149: TRÄVAROR | K149: ="" ->  | L149: ="För en verksamhet som är anmälningspliktig enligt 8 kap. 7 § miljöprövningsförordningen är tillsynstiden "&IF(ISNUMBER($E149),$E149,"x")&" timmar."&IF(TableData[[#This Row],[IUV-tillägg]]="Ja"," "&rngIUV,"") -> För en verksamhet som är anmälningspliktig enligt 8 kap. 7 § miljöprövningsförordningen är tillsynstiden x timmar.
A150: 20.70 | B150: B | C150: 13 | E150: =IF(TableData[[#This Row],[Tillsynsbehov]]="Ange tillsynsbehov","Ange tillsynsbehov",IF(LEFT(TableData[[#This Row],[Tillsynsbehov]],4)="Högt",INDEX(tblTillsynsTim,1,MATCH(TableData[[#This Row],[Prövn.- nivå]],rngTillsynsNiv,0)),IF(LEFT(TableData[[#This Row],[Tillsynsbehov]],4)="Norm",INDEX(tblTillsynsTim,2,MATCH(TableData[[#This Row],[Prövn.- nivå]],rngTillsynsNiv,0)),IF(LEFT(TableData[[#This Row],[Tillsynsbehov]],4)="Lågt",INDEX(tblTillsynsTim,3,MATCH(TableData[[#This Row],[Prövn.- nivå]],rngTillsynsNiv,0)),IF(LEFT(TableData[[#This Row],[Tillsynsbehov]],4)="Spor",INDEX(tblTillsynsTim,4,MATCH(TableData[[#This Row],[Prövn.- nivå]],rngTillsynsNiv,0)),TableData[[#This Row],[Tillsynsbehov]]))))) -> 13 | F150: Årlig tillsynsavgift | G150: =IF(TableData[[#This Row],[Avgift]]="Timavgift","Bilaga 3","Bilaga 2") -> Bilaga 2 | H150: =IFERROR(TableData[[#This Row],[Timmar]]*rngTimpris,"") -> 13000 | I150: 20 | J150: TRÄVAROR | K150: ="" ->  | L150: ="För en verksamhet som är tillståndspliktig enligt 8 kap. 8 § miljöprövningsförordningen är tillsynstiden "&IF(ISNUMBER($E150),$E150,"x")&" timmar."&IF(TableData[[#This Row],[IUV-tillägg]]="Ja"," "&rngIUV,"") -> För en verksamhet som är tillståndspliktig enligt 8 kap. 8 § miljöprövningsförordningen är tillsynstiden 13 timmar.
A151: 20.80 | B151: C | C151: Ange tillsynsbehov | E151: =IF(TableData[[#This Row],[Tillsynsbehov]]="Ange tillsynsbehov","Ange tillsynsbehov",IF(SUM(LEN(TableData[[#This Row],[Tillsynsbehov]])-LEN(SUBSTITUTE(TableData[[#This Row],[Tillsynsbehov]], {"0";"1";"2";"3";"4";"5";"6";"7";"8";"9"}, "")))>0, SUMPRODUCT(MID(0&TableData[[#This Row],[Tillsynsbehov]], LARGE(INDEX(ISNUMBER(--MID(TableData[[#This Row],[Tillsynsbehov]],ROW(INDIRECT("$1:$"&LEN(TableData[[#This Row],[Tillsynsbehov]]))),1))* ROW(INDIRECT("$1:$"&LEN(TableData[[#This Row],[Tillsynsbehov]]))),0), ROW(INDIRECT("$1:$"&LEN(TableData[[#This Row],[Tillsynsbehov]]))))+1,1) * 10^ROW(INDIRECT("$1:$"&LEN(TableData[[#This Row],[Tillsynsbehov]])))/10),TableData[[#This Row],[Tillsynsbehov]])) -> Ange tillsynsbehov | F151: Årlig tillsynsavgift | G151: =IF(TableData[[#This Row],[Avgift]]="Timavgift","Bilaga 3","Bilaga 2") -> Bilaga 2 | H151: =IFERROR(TableData[[#This Row],[Timmar]]*rngTimpris,"") ->  | I151: 20 | J151: TRÄVAROR | K151: ="" ->  | L151: ="För en verksamhet som är anmälningspliktig enligt 8 kap. 9 § miljöprövningsförordningen är tillsynstiden "&IF(ISNUMBER($E151),$E151,"x")&" timmar."&IF(TableData[[#This Row],[IUV-tillägg]]="Ja"," "&rngIUV,"") -> För en verksamhet som är anmälningspliktig enligt 8 kap. 9 § miljöprövningsförordningen är tillsynstiden x timmar.
A152: 20.90 | B152: C | C152: Ange tillsynsbehov | E152: =IF(TableData[[#This Row],[Tillsynsbehov]]="Ange tillsynsbehov","Ange tillsynsbehov",IF(SUM(LEN(TableData[[#This Row],[Tillsynsbehov]])-LEN(SUBSTITUTE(TableData[[#This Row],[Tillsynsbehov]], {"0";"1";"2";"3";"4";"5";"6";"7";"8";"9"}, "")))>0, SUMPRODUCT(MID(0&TableData[[#This Row],[Tillsynsbehov]], LARGE(INDEX(ISNUMBER(--MID(TableData[[#This Row],[Tillsynsbehov]],ROW(INDIRECT("$1:$"&LEN(TableData[[#This Row],[Tillsynsbehov]]))),1))* ROW(INDIRECT("$1:$"&LEN(TableData[[#This Row],[Tillsynsbehov]]))),0), ROW(INDIRECT("$1:$"&LEN(TableData[[#This Row],[Tillsynsbehov]]))))+1,1) * 10^ROW(INDIRECT("$1:$"&LEN(TableData[[#This Row],[Tillsynsbehov]])))/10),TableData[[#This Row],[Tillsynsbehov]])) -> Ange tillsynsbehov | F152: Årlig tillsynsavgift | G152: =IF(TableData[[#This Row],[Avgift]]="Timavgift","Bilaga 3","Bilaga 2") -> Bilaga 2 | H152: =IFERROR(TableData[[#This Row],[Timmar]]*rngTimpris,"") ->  | I152: 20 | J152: TRÄVAROR | K152: ="" ->  | L152: ="För en verksamhet som är anmälningspliktig enligt 8 kap. 10 § miljöprövningsförordningen är tillsynstiden "&IF(ISNUMBER($E152),$E152,"x")&" timmar."&IF(TableData[[#This Row],[IUV-tillägg]]="Ja"," "&rngIUV,"") -> För en verksamhet som är anmälningspliktig enligt 8 kap. 10 § miljöprövningsförordningen är tillsynstiden x timmar.
A153: 20.91 | B153: C | C153: Ange tillsynsbehov | E153: =IF(TableData[[#This Row],[Tillsynsbehov]]="Ange tillsynsbehov","Ange tillsynsbehov",IF(SUM(LEN(TableData[[#This Row],[Tillsynsbehov]])-LEN(SUBSTITUTE(TableData[[#This Row],[Tillsynsbehov]], {"0";"1";"2";"3";"4";"5";"6";"7";"8";"9"}, "")))>0, SUMPRODUCT(MID(0&TableData[[#This Row],[Tillsynsbehov]], LARGE(INDEX(ISNUMBER(--MID(TableData[[#This Row],[Tillsynsbehov]],ROW(INDIRECT("$1:$"&LEN(TableData[[#This Row],[Tillsynsbehov]]))),1))* ROW(INDIRECT("$1:$"&LEN(TableData[[#This Row],[Tillsynsbehov]]))),0), ROW(INDIRECT("$1:$"&LEN(TableData[[#This Row],[Tillsynsbehov]]))))+1,1) * 10^ROW(INDIRECT("$1:$"&LEN(TableData[[#This Row],[Tillsynsbehov]])))/10),TableData[[#This Row],[Tillsynsbehov]])) -> Ange tillsynsbehov | F153: Årlig tillsynsavgift | G153: =IF(TableData[[#This Row],[Avgift]]="Timavgift","Bilaga 3","Bilaga 2") -> Bilaga 2 | H153: =IFERROR(TableData[[#This Row],[Timmar]]*rngTimpris,"") ->  | I153: 20 | J153: TRÄVAROR | K153: ="" ->  | L153: ="För en verksamhet som är anmälningspliktig enligt 8 kap. 11 § miljöprövningsförordningen är tillsynstiden "&IF(ISNUMBER($E153),$E153,"x")&" timmar."&IF(TableData[[#This Row],[IUV-tillägg]]="Ja"," "&rngIUV,"") -> För en verksamhet som är anmälningspliktig enligt 8 kap. 11 § miljöprövningsförordningen är tillsynstiden x timmar.
B154: U | C154: Ange tillsynsbehov | E154: =IF(TableData[[#This Row],[Tillsynsbehov]]="Ange tillsynsbehov","Ange tillsynsbehov",IF(SUM(LEN(TableData[[#This Row],[Tillsynsbehov]])-LEN(SUBSTITUTE(TableData[[#This Row],[Tillsynsbehov]], {"0";"1";"2";"3";"4";"5";"6";"7";"8";"9"}, "")))>0, SUMPRODUCT(MID(0&TableData[[#This Row],[Tillsynsbehov]], LARGE(INDEX(ISNUMBER(--MID(TableData[[#This Row],[Tillsynsbehov]],ROW(INDIRECT("$1:$"&LEN(TableData[[#This Row],[Tillsynsbehov]]))),1))* ROW(INDIRECT("$1:$"&LEN(TableData[[#This Row],[Tillsynsbehov]]))),0), ROW(INDIRECT("$1:$"&LEN(TableData[[#This Row],[Tillsynsbehov]]))))+1,1) * 10^ROW(INDIRECT("$1:$"&LEN(TableData[[#This Row],[Tillsynsbehov]])))/10),TableData[[#This Row],[Tillsynsbehov]])) -> Ange tillsynsbehov | F154: Timavgift | G154: =IF(TableData[[#This Row],[Avgift]]="Timavgift","Bilaga 3","Bilaga 2") -> Bilaga 3 | H154: =IFERROR(TableData[[#This Row],[Timmar]]*rngTimpris,"") ->  | I154: 20 | J154: TRÄVAROR | K154: ="" ->  | L154: ="För verksamheter under anmälningspliktig nivå är tillsynstiden "&IF(ISNUMBER($E154),$E154,"x")&" timmar."&IF(TableData[[#This Row],[IUV-tillägg]]="Ja"," "&rngIUV,"") -> För verksamheter under anmälningspliktig nivå är tillsynstiden x timmar.
A155: ="" ->  | G155: =IF(COUNTIF(G156:G165,"Bilaga 2")=0,"Bilaga 3",IF(COUNTIF(G156:G165,"Bilaga 3")=0,"Bilaga 2","")) ->  | H155: =IFERROR(TableData[[#This Row],[Timmar]]*rngTimpris,"") -> 0 | I155: 21 | J155: MASSA, PAPPER OCH PAPPERSVAROR | K155: ="" ->  | L155: VERKSAMHETSGRUPP MASSA, PAPPER OCH PAPPERSVAROR
A156: 21.10-i | B156: A | C156: 306 | D156: Nej | E156: =IF(TableData[[#This Row],[Tillsynsbehov]]="Ange tillsynsbehov","Ange tillsynsbehov",IF(LEFT(TableData[[#This Row],[Tillsynsbehov]],4)="Högt",INDEX(tblTillsynsTim,1,MATCH(TableData[[#This Row],[Prövn.- nivå]],rngTillsynsNiv,0)),IF(LEFT(TableData[[#This Row],[Tillsynsbehov]],4)="Norm",INDEX(tblTillsynsTim,2,MATCH(TableData[[#This Row],[Prövn.- nivå]],rngTillsynsNiv,0)),IF(LEFT(TableData[[#This Row],[Tillsynsbehov]],4)="Lågt",INDEX(tblTillsynsTim,3,MATCH(TableData[[#This Row],[Prövn.- nivå]],rngTillsynsNiv,0)),IF(LEFT(TableData[[#This Row],[Tillsynsbehov]],4)="Spor",INDEX(tblTillsynsTim,4,MATCH(TableData[[#This Row],[Prövn.- nivå]],rngTillsynsNiv,0)),TableData[[#This Row],[Tillsynsbehov]]))))) -> 306 | F156: Årlig tillsynsavgift | G156: =IF(TableData[[#This Row],[Avgift]]="Timavgift","Bilaga 3","Bilaga 2") -> Bilaga 2 | H156: =IFERROR(TableData[[#This Row],[Timmar]]*rngTimpris,"") -> 306000 | I156: 21 | J156: MASSA, PAPPER OCH PAPPERSVAROR | K156: ="" ->  | L156: ="1. För en verksamhet som är tillståndspliktig enligt 9 kap. 1 § miljöprövningsförordningen är tillsynstiden "&IF(ISNUMBER($E156),$E156,"x")&" timmar för anläggning för en produktion av mer än 300 000 ton sulfat- eller sulfitmassa per kalenderår om verksamheten har blekeri."&IF(TableData[[#This Row],[IUV-tillägg]]="Ja"," "&rngIUV,"") -> 1. För en verksamhet som är tillståndspliktig enligt 9 kap. 1 § miljöprövningsförordningen är tillsynstiden 306 timmar för anläggning för en produktion av mer än 300 000 ton sulfat- eller sulfitmassa per kalenderår om verksamheten har blekeri.
A157: 21.10-i | B157: A | C157: 227 | D157: Nej | E157: =IF(TableData[[#This Row],[Tillsynsbehov]]="Ange tillsynsbehov","Ange tillsynsbehov",IF(LEFT(TableData[[#This Row],[Tillsynsbehov]],4)="Högt",INDEX(tblTillsynsTim,1,MATCH(TableData[[#This Row],[Prövn.- nivå]],rngTillsynsNiv,0)),IF(LEFT(TableData[[#This Row],[Tillsynsbehov]],4)="Norm",INDEX(tblTillsynsTim,2,MATCH(TableData[[#This Row],[Prövn.- nivå]],rngTillsynsNiv,0)),IF(LEFT(TableData[[#This Row],[Tillsynsbehov]],4)="Lågt",INDEX(tblTillsynsTim,3,MATCH(TableData[[#This Row],[Prövn.- nivå]],rngTillsynsNiv,0)),IF(LEFT(TableData[[#This Row],[Tillsynsbehov]],4)="Spor",INDEX(tblTillsynsTim,4,MATCH(TableData[[#This Row],[Prövn.- nivå]],rngTillsynsNiv,0)),TableData[[#This Row],[Tillsynsbehov]]))))) -> 227 | F157: Årlig tillsynsavgift | G157: =IF(TableData[[#This Row],[Avgift]]="Timavgift","Bilaga 3","Bilaga 2") -> Bilaga 2 | H157: =IFERROR(TableData[[#This Row],[Timmar]]*rngTimpris,"") -> 227000 | I157: 21 | J157: MASSA, PAPPER OCH PAPPERSVAROR | K157: ="" ->  | L157: ="2. För en verksamhet som är tillståndspliktig enligt 9 kap. 1 § miljöprövningsförordningen är tillsynstiden "&IF(ISNUMBER($E157),$E157,"x")&" timmar för en produktion av högst 300 000 ton sulfat- eller sulfitmassa om verksamheten har blekeri."&IF(TableData[[#This Row],[IUV-tillägg]]="Ja"," "&rngIUV,"") -> 2. För en verksamhet som är tillståndspliktig enligt 9 kap. 1 § miljöprövningsförordningen är tillsynstiden 227 timmar för en produktion av högst 300 000 ton sulfat- eller sulfitmassa om verksamheten har blekeri.
A158: 21.10-i | B158: A | C158: 184 | D158: Nej | E158: =IF(TableData[[#This Row],[Tillsynsbehov]]="Ange tillsynsbehov","Ange tillsynsbehov",IF(LEFT(TableData[[#This Row],[Tillsynsbehov]],4)="Högt",INDEX(tblTillsynsTim,1,MATCH(TableData[[#This Row],[Prövn.- nivå]],rngTillsynsNiv,0)),IF(LEFT(TableData[[#This Row],[Tillsynsbehov]],4)="Norm",INDEX(tblTillsynsTim,2,MATCH(TableData[[#This Row],[Prövn.- nivå]],rngTillsynsNiv,0)),IF(LEFT(TableData[[#This Row],[Tillsynsbehov]],4)="Lågt",INDEX(tblTillsynsTim,3,MATCH(TableData[[#This Row],[Prövn.- nivå]],rngTillsynsNiv,0)),IF(LEFT(TableData[[#This Row],[Tillsynsbehov]],4)="Spor",INDEX(tblTillsynsTim,4,MATCH(TableData[[#This Row],[Prövn.- nivå]],rngTillsynsNiv,0)),TableData[[#This Row],[Tillsynsbehov]]))))) -> 184 | F158: Årlig tillsynsavgift | G158: =IF(TableData[[#This Row],[Avgift]]="Timavgift","Bilaga 3","Bilaga 2") -> Bilaga 2 | H158: =IFERROR(TableData[[#This Row],[Timmar]]*rngTimpris,"") -> 184000 | I158: 21 | J158: MASSA, PAPPER OCH PAPPERSVAROR | K158: ="" ->  | L158: ="3. För en verksamhet som är tillståndspliktig enligt 9 kap. 1 § miljöprövningsförordningen är tillsynstiden "&IF(ISNUMBER($E158),$E158,"x")&" timmar för en produktion av sulfat- eller sulfitmassa om verksamheten inte har blekeri."&IF(TableData[[#This Row],[IUV-tillägg]]="Ja"," "&rngIUV,"") -> 3. För en verksamhet som är tillståndspliktig enligt 9 kap. 1 § miljöprövningsförordningen är tillsynstiden 184 timmar för en produktion av sulfat- eller sulfitmassa om verksamheten inte har blekeri.
A159: 21.10-i | B159: A | C159: 137 | D159: Nej | E159: =IF(TableData[[#This Row],[Tillsynsbehov]]="Ange tillsynsbehov","Ange tillsynsbehov",IF(LEFT(TableData[[#This Row],[Tillsynsbehov]],4)="Högt",INDEX(tblTillsynsTim,1,MATCH(TableData[[#This Row],[Prövn.- nivå]],rngTillsynsNiv,0)),IF(LEFT(TableData[[#This Row],[Tillsynsbehov]],4)="Norm",INDEX(tblTillsynsTim,2,MATCH(TableData[[#This Row],[Prövn.- nivå]],rngTillsynsNiv,0)),IF(LEFT(TableData[[#This Row],[Tillsynsbehov]],4)="Lågt",INDEX(tblTillsynsTim,3,MATCH(TableData[[#This Row],[Prövn.- nivå]],rngTillsynsNiv,0)),IF(LEFT(TableData[[#This Row],[Tillsynsbehov]],4)="Spor",INDEX(tblTillsynsTim,4,MATCH(TableData[[#This Row],[Prövn.- nivå]],rngTillsynsNiv,0)),TableData[[#This Row],[Tillsynsbehov]]))))) -> 137 | F159: Årlig tillsynsavgift | G159: =IF(TableData[[#This Row],[Avgift]]="Timavgift","Bilaga 3","Bilaga 2") -> Bilaga 2 | H159: =IFERROR(TableData[[#This Row],[Timmar]]*rngTimpris,"") -> 137000 | I159: 21 | J159: MASSA, PAPPER OCH PAPPERSVAROR | K159: ="" ->  | L159: ="4. För en verksamhet som är tillståndspliktig enligt 9 kap. 1 § miljöprövningsförordningen är tillsynstiden "&IF(ISNUMBER($E159),$E159,"x")&" timmar om verksamheten avser framställning av halvkemisk massa."&IF(TableData[[#This Row],[IUV-tillägg]]="Ja"," "&rngIUV,"") -> 4. För en verksamhet som är tillståndspliktig enligt 9 kap. 1 § miljöprövningsförordningen är tillsynstiden 137 timmar om verksamheten avser framställning av halvkemisk massa.
A160: 21.10-i | B160: A | C160: 137 | D160: Nej | E160: =IF(TableData[[#This Row],[Tillsynsbehov]]="Ange tillsynsbehov","Ange tillsynsbehov",IF(LEFT(TableData[[#This Row],[Tillsynsbehov]],4)="Högt",INDEX(tblTillsynsTim,1,MATCH(TableData[[#This Row],[Prövn.- nivå]],rngTillsynsNiv,0)),IF(LEFT(TableData[[#This Row],[Tillsynsbehov]],4)="Norm",INDEX(tblTillsynsTim,2,MATCH(TableData[[#This Row],[Prövn.- nivå]],rngTillsynsNiv,0)),IF(LEFT(TableData[[#This Row],[Tillsynsbehov]],4)="Lågt",INDEX(tblTillsynsTim,3,MATCH(TableData[[#This Row],[Prövn.- nivå]],rngTillsynsNiv,0)),IF(LEFT(TableData[[#This Row],[Tillsynsbehov]],4)="Spor",INDEX(tblTillsynsTim,4,MATCH(TableData[[#This Row],[Prövn.- nivå]],rngTillsynsNiv,0)),TableData[[#This Row],[Tillsynsbehov]]))))) -> 137 | F160: Årlig tillsynsavgift | G160: =IF(TableData[[#This Row],[Avgift]]="Timavgift","Bilaga 3","Bilaga 2") -> Bilaga 2 | H160: =IFERROR(TableData[[#This Row],[Timmar]]*rngTimpris,"") -> 137000 | I160: 21 | J160: MASSA, PAPPER OCH PAPPERSVAROR | K160: ="" ->  | L160: ="5. För en verksamhet som är tillståndspliktig enligt 9 kap. 1 § miljöprövningsförordningen är tillsynstiden "&IF(ISNUMBER($E160),$E160,"x")&" timmar för annan anläggning än de som avses i 1-4 med en produktion av mer än 200 000 ton per kalenderår."&IF(TableData[[#This Row],[IUV-tillägg]]="Ja"," "&rngIUV,"") -> 5. För en verksamhet som är tillståndspliktig enligt 9 kap. 1 § miljöprövningsförordningen är tillsynstiden 137 timmar för annan anläggning än de som avses i 1-4 med en produktion av mer än 200 000 ton per kalenderår.
A161: 21.10-i | B161: A | C161: 90 | D161: Nej | E161: =IF(TableData[[#This Row],[Tillsynsbehov]]="Ange tillsynsbehov","Ange tillsynsbehov",IF(LEFT(TableData[[#This Row],[Tillsynsbehov]],4)="Högt",INDEX(tblTillsynsTim,1,MATCH(TableData[[#This Row],[Prövn.- nivå]],rngTillsynsNiv,0)),IF(LEFT(TableData[[#This Row],[Tillsynsbehov]],4)="Norm",INDEX(tblTillsynsTim,2,MATCH(TableData[[#This Row],[Prövn.- nivå]],rngTillsynsNiv,0)),IF(LEFT(TableData[[#This Row],[Tillsynsbehov]],4)="Lågt",INDEX(tblTillsynsTim,3,MATCH(TableData[[#This Row],[Prövn.- nivå]],rngTillsynsNiv,0)),IF(LEFT(TableData[[#This Row],[Tillsynsbehov]],4)="Spor",INDEX(tblTillsynsTim,4,MATCH(TableData[[#This Row],[Prövn.- nivå]],rngTillsynsNiv,0)),TableData[[#This Row],[Tillsynsbehov]]))))) -> 90 | F161: Årlig tillsynsavgift | G161: =IF(TableData[[#This Row],[Avgift]]="Timavgift","Bilaga 3","Bilaga 2") -> Bilaga 2 | H161: =IFERROR(TableData[[#This Row],[Timmar]]*rngTimpris,"") -> 90000 | I161: 21 | J161: MASSA, PAPPER OCH PAPPERSVAROR | K161: ="" ->  | L161: ="6. För en verksamhet som är tillståndspliktig enligt 9 kap. 1 § miljöprövningsförordningen är tillsynstiden "&IF(ISNUMBER($E161),$E161,"x")&" timmar för anläggning som inte omfattas av någon av 1-5."&IF(TableData[[#This Row],[IUV-tillägg]]="Ja"," "&rngIUV,"") -> 6. För en verksamhet som är tillståndspliktig enligt 9 kap. 1 § miljöprövningsförordningen är tillsynstiden 90 timmar för anläggning som inte omfattas av någon av 1-5.
A162: 21.30-i | B162: A | C162: 90 | D162: Nej | E162: =IF(TableData[[#This Row],[Tillsynsbehov]]="Ange tillsynsbehov","Ange tillsynsbehov",IF(LEFT(TableData[[#This Row],[Tillsynsbehov]],4)="Högt",INDEX(tblTillsynsTim,1,MATCH(TableData[[#This Row],[Prövn.- nivå]],rngTillsynsNiv,0)),IF(LEFT(TableData[[#This Row],[Tillsynsbehov]],4)="Norm",INDEX(tblTillsynsTim,2,MATCH(TableData[[#This Row],[Prövn.- nivå]],rngTillsynsNiv,0)),IF(LEFT(TableData[[#This Row],[Tillsynsbehov]],4)="Lågt",INDEX(tblTillsynsTim,3,MATCH(TableData[[#This Row],[Prövn.- nivå]],rngTillsynsNiv,0)),IF(LEFT(TableData[[#This Row],[Tillsynsbehov]],4)="Spor",INDEX(tblTillsynsTim,4,MATCH(TableData[[#This Row],[Prövn.- nivå]],rngTillsynsNiv,0)),TableData[[#This Row],[Tillsynsbehov]]))))) -> 90 | F162: Årlig tillsynsavgift | G162: =IF(TableData[[#This Row],[Avgift]]="Timavgift","Bilaga 3","Bilaga 2") -> Bilaga 2 | H162: =IFERROR(TableData[[#This Row],[Timmar]]*rngTimpris,"") -> 90000 | I162: 21 | J162: MASSA, PAPPER OCH PAPPERSVAROR | K162: ="" ->  | L162: ="1. För en verksamhet som är tillståndspliktig enligt 9 kap. 2 § miljöprövningsförordningen är tillsynstiden "&IF(ISNUMBER($E162),$E162,"x")&" timmar för framställning av mer än 10 000 ton per kalenderår."&IF(TableData[[#This Row],[IUV-tillägg]]="Ja"," "&rngIUV,"") -> 1. För en verksamhet som är tillståndspliktig enligt 9 kap. 2 § miljöprövningsförordningen är tillsynstiden 90 timmar för framställning av mer än 10 000 ton per kalenderår.
A163: 21.30-i | B163: A | C163: 47 | D163: Nej | E163: =IF(TableData[[#This Row],[Tillsynsbehov]]="Ange tillsynsbehov","Ange tillsynsbehov",IF(LEFT(TableData[[#This Row],[Tillsynsbehov]],4)="Högt",INDEX(tblTillsynsTim,1,MATCH(TableData[[#This Row],[Prövn.- nivå]],rngTillsynsNiv,0)),IF(LEFT(TableData[[#This Row],[Tillsynsbehov]],4)="Norm",INDEX(tblTillsynsTim,2,MATCH(TableData[[#This Row],[Prövn.- nivå]],rngTillsynsNiv,0)),IF(LEFT(TableData[[#This Row],[Tillsynsbehov]],4)="Lågt",INDEX(tblTillsynsTim,3,MATCH(TableData[[#This Row],[Prövn.- nivå]],rngTillsynsNiv,0)),IF(LEFT(TableData[[#This Row],[Tillsynsbehov]],4)="Spor",INDEX(tblTillsynsTim,4,MATCH(TableData[[#This Row],[Prövn.- nivå]],rngTillsynsNiv,0)),TableData[[#This Row],[Tillsynsbehov]]))))) -> 47 | F163: Årlig tillsynsavgift | G163: =IF(TableData[[#This Row],[Avgift]]="Timavgift","Bilaga 3","Bilaga 2") -> Bilaga 2 | H163: =IFERROR(TableData[[#This Row],[Timmar]]*rngTimpris,"") -> 47000 | I163: 21 | J163: MASSA, PAPPER OCH PAPPERSVAROR | K163: ="" ->  | L163: ="2. För en verksamhet som är tillståndspliktig enligt 9 kap. 2 § miljöprövningsförordningen är tillsynstiden "&IF(ISNUMBER($E163),$E163,"x")&" timmar för framställning som inte omfattas av 1."&IF(TableData[[#This Row],[IUV-tillägg]]="Ja"," "&rngIUV,"") -> 2. För en verksamhet som är tillståndspliktig enligt 9 kap. 2 § miljöprövningsförordningen är tillsynstiden 47 timmar för framställning som inte omfattas av 1.
A164: 21.40 | B164: B | C164: 47 | E164: =IF(TableData[[#This Row],[Tillsynsbehov]]="Ange tillsynsbehov","Ange tillsynsbehov",IF(LEFT(TableData[[#This Row],[Tillsynsbehov]],4)="Högt",INDEX(tblTillsynsTim,1,MATCH(TableData[[#This Row],[Prövn.- nivå]],rngTillsynsNiv,0)),IF(LEFT(TableData[[#This Row],[Tillsynsbehov]],4)="Norm",INDEX(tblTillsynsTim,2,MATCH(TableData[[#This Row],[Prövn.- nivå]],rngTillsynsNiv,0)),IF(LEFT(TableData[[#This Row],[Tillsynsbehov]],4)="Lågt",INDEX(tblTillsynsTim,3,MATCH(TableData[[#This Row],[Prövn.- nivå]],rngTillsynsNiv,0)),IF(LEFT(TableData[[#This Row],[Tillsynsbehov]],4)="Spor",INDEX(tblTillsynsTim,4,MATCH(TableData[[#This Row],[Prövn.- nivå]],rngTillsynsNiv,0)),TableData[[#This Row],[Tillsynsbehov]]))))) -> 47 | F164: Årlig tillsynsavgift | G164: =IF(TableData[[#This Row],[Avgift]]="Timavgift","Bilaga 3","Bilaga 2") -> Bilaga 2 | H164: =IFERROR(TableData[[#This Row],[Timmar]]*rngTimpris,"") -> 47000 | I164: 21 | J164: MASSA, PAPPER OCH PAPPERSVAROR | K164: ="" ->  | L164: ="För en verksamhet som är tillståndspliktig enligt 9 kap. 3 § miljöprövningsförordningen är tillsynstiden "&IF(ISNUMBER($E164),$E164,"x")&" timmar."&IF(TableData[[#This Row],[IUV-tillägg]]="Ja"," "&rngIUV,"") -> För en verksamhet som är tillståndspliktig enligt 9 kap. 3 § miljöprövningsförordningen är tillsynstiden 47 timmar.
B165: U | C165: Ange tillsynsbehov | E165: =IF(TableData[[#This Row],[Tillsynsbehov]]="Ange tillsynsbehov","Ange tillsynsbehov",IF(SUM(LEN(TableData[[#This Row],[Tillsynsbehov]])-LEN(SUBSTITUTE(TableData[[#This Row],[Tillsynsbehov]], {"0";"1";"2";"3";"4";"5";"6";"7";"8";"9"}, "")))>0, SUMPRODUCT(MID(0&TableData[[#This Row],[Tillsynsbehov]], LARGE(INDEX(ISNUMBER(--MID(TableData[[#This Row],[Tillsynsbehov]],ROW(INDIRECT("$1:$"&LEN(TableData[[#This Row],[Tillsynsbehov]]))),1))* ROW(INDIRECT("$1:$"&LEN(TableData[[#This Row],[Tillsynsbehov]]))),0), ROW(INDIRECT("$1:$"&LEN(TableData[[#This Row],[Tillsynsbehov]]))))+1,1) * 10^ROW(INDIRECT("$1:$"&LEN(TableData[[#This Row],[Tillsynsbehov]])))/10),TableData[[#This Row],[Tillsynsbehov]])) -> Ange tillsynsbehov | F165: Timavgift | G165: =IF(TableData[[#This Row],[Avgift]]="Timavgift","Bilaga 3","Bilaga 2") -> Bilaga 3 | H165: =IFERROR(TableData[[#This Row],[Timmar]]*rngTimpris,"") ->  | I165: 21 | J165: MASSA, PAPPER OCH PAPPERSVAROR | K165: ="" ->  | L165: ="För verksamheter under anmälningspliktig nivå är tillsynstiden "&IF(ISNUMBER($E165),$E165,"x")&" timmar."&IF(TableData[[#This Row],[IUV-tillägg]]="Ja"," "&rngIUV,"") -> För verksamheter under anmälningspliktig nivå är tillsynstiden x timmar.
A166: ="" ->  | G166: =IF(COUNTIF(G167:G171,"Bilaga 2")=0,"Bilaga 3",IF(COUNTIF(G167:G171,"Bilaga 3")=0,"Bilaga 2","")) ->  | H166: =IFERROR(TableData[[#This Row],[Timmar]]*rngTimpris,"") -> 0 | I166: 22 | J166: FOTOGRAFISK OCH GRAFISK PRODUKTION | K166: ="" ->  | L166: VERKSAMHETSGRUPP FOTOGRAFISK OCH GRAFISK PRODUKTION
A167: 22.10 | B167: C | C167: Ange tillsynsbehov | E167: =IF(TableData[[#This Row],[Tillsynsbehov]]="Ange tillsynsbehov","Ange tillsynsbehov",IF(SUM(LEN(TableData[[#This Row],[Tillsynsbehov]])-LEN(SUBSTITUTE(TableData[[#This Row],[Tillsynsbehov]], {"0";"1";"2";"3";"4";"5";"6";"7";"8";"9"}, "")))>0, SUMPRODUCT(MID(0&TableData[[#This Row],[Tillsynsbehov]], LARGE(INDEX(ISNUMBER(--MID(TableData[[#This Row],[Tillsynsbehov]],ROW(INDIRECT("$1:$"&LEN(TableData[[#This Row],[Tillsynsbehov]]))),1))* ROW(INDIRECT("$1:$"&LEN(TableData[[#This Row],[Tillsynsbehov]]))),0), ROW(INDIRECT("$1:$"&LEN(TableData[[#This Row],[Tillsynsbehov]]))))+1,1) * 10^ROW(INDIRECT("$1:$"&LEN(TableData[[#This Row],[Tillsynsbehov]])))/10),TableData[[#This Row],[Tillsynsbehov]])) -> Ange tillsynsbehov | F167: Årlig tillsynsavgift | G167: =IF(TableData[[#This Row],[Avgift]]="Timavgift","Bilaga 3","Bilaga 2") -> Bilaga 2 | H167: =IFERROR(TableData[[#This Row],[Timmar]]*rngTimpris,"") ->  | I167: 22 | J167: FOTOGRAFISK OCH GRAFISK PRODUKTION | K167: ="" ->  | L167: ="För en verksamhet som är anmälningspliktig enligt 10 kap. 1 § miljöprövningsförordningen är tillsynstiden "&IF(ISNUMBER($E167),$E167,"x")&" timmar."&IF(TableData[[#This Row],[IUV-tillägg]]="Ja"," "&rngIUV,"") -> För en verksamhet som är anmälningspliktig enligt 10 kap. 1 § miljöprövningsförordningen är tillsynstiden x timmar.
A168: 22.20 | B168: C | C168: Ange tillsynsbehov | E168: =IF(TableData[[#This Row],[Tillsynsbehov]]="Ange tillsynsbehov","Ange tillsynsbehov",IF(SUM(LEN(TableData[[#This Row],[Tillsynsbehov]])-LEN(SUBSTITUTE(TableData[[#This Row],[Tillsynsbehov]], {"0";"1";"2";"3";"4";"5";"6";"7";"8";"9"}, "")))>0, SUMPRODUCT(MID(0&TableData[[#This Row],[Tillsynsbehov]], LARGE(INDEX(ISNUMBER(--MID(TableData[[#This Row],[Tillsynsbehov]],ROW(INDIRECT("$1:$"&LEN(TableData[[#This Row],[Tillsynsbehov]]))),1))* ROW(INDIRECT("$1:$"&LEN(TableData[[#This Row],[Tillsynsbehov]]))),0), ROW(INDIRECT("$1:$"&LEN(TableData[[#This Row],[Tillsynsbehov]]))))+1,1) * 10^ROW(INDIRECT("$1:$"&LEN(TableData[[#This Row],[Tillsynsbehov]])))/10),TableData[[#This Row],[Tillsynsbehov]])) -> Ange tillsynsbehov | F168: Årlig tillsynsavgift | G168: =IF(TableData[[#This Row],[Avgift]]="Timavgift","Bilaga 3","Bilaga 2") -> Bilaga 2 | H168: =IFERROR(TableData[[#This Row],[Timmar]]*rngTimpris,"") ->  | I168: 22 | J168: FOTOGRAFISK OCH GRAFISK PRODUKTION | K168: ="" ->  | L168: ="För en verksamhet som är anmälningspliktig enligt 10 kap. 2 § miljöprövningsförordningen är tillsynstiden "&IF(ISNUMBER($E168),$E168,"x")&" timmar."&IF(TableData[[#This Row],[IUV-tillägg]]="Ja"," "&rngIUV,"") -> För en verksamhet som är anmälningspliktig enligt 10 kap. 2 § miljöprövningsförordningen är tillsynstiden x timmar.
A169: 22.30 | B169: B | C169: 30 | E169: =IF(TableData[[#This Row],[Tillsynsbehov]]="Ange tillsynsbehov","Ange tillsynsbehov",IF(LEFT(TableData[[#This Row],[Tillsynsbehov]],4)="Högt",INDEX(tblTillsynsTim,1,MATCH(TableData[[#This Row],[Prövn.- nivå]],rngTillsynsNiv,0)),IF(LEFT(TableData[[#This Row],[Tillsynsbehov]],4)="Norm",INDEX(tblTillsynsTim,2,MATCH(TableData[[#This Row],[Prövn.- nivå]],rngTillsynsNiv,0)),IF(LEFT(TableData[[#This Row],[Tillsynsbehov]],4)="Lågt",INDEX(tblTillsynsTim,3,MATCH(TableData[[#This Row],[Prövn.- nivå]],rngTillsynsNiv,0)),IF(LEFT(TableData[[#This Row],[Tillsynsbehov]],4)="Spor",INDEX(tblTillsynsTim,4,MATCH(TableData[[#This Row],[Prövn.- nivå]],rngTillsynsNiv,0)),TableData[[#This Row],[Tillsynsbehov]]))))) -> 30 | F169: Årlig tillsynsavgift | G169: =IF(TableData[[#This Row],[Avgift]]="Timavgift","Bilaga 3","Bilaga 2") -> Bilaga 2 | H169: =IFERROR(TableData[[#This Row],[Timmar]]*rngTimpris,"") -> 30000 | I169: 22 | J169: FOTOGRAFISK OCH GRAFISK PRODUKTION | K169: ="" ->  | L169: ="För en verksamhet som är tillståndspliktig enligt 10 kap. 3 § miljöprövningsförordningen är tillsynstiden "&IF(ISNUMBER($E169),$E169,"x")&" timmar."&IF(TableData[[#This Row],[IUV-tillägg]]="Ja"," "&rngIUV,"") -> För en verksamhet som är tillståndspliktig enligt 10 kap. 3 § miljöprövningsförordningen är tillsynstiden 30 timmar.
A170: 22.40 | B170: C | C170: Ange tillsynsbehov | E170: =IF(TableData[[#This Row],[Tillsynsbehov]]="Ange tillsynsbehov","Ange tillsynsbehov",IF(SUM(LEN(TableData[[#This Row],[Tillsynsbehov]])-LEN(SUBSTITUTE(TableData[[#This Row],[Tillsynsbehov]], {"0";"1";"2";"3";"4";"5";"6";"7";"8";"9"}, "")))>0, SUMPRODUCT(MID(0&TableData[[#This Row],[Tillsynsbehov]], LARGE(INDEX(ISNUMBER(--MID(TableData[[#This Row],[Tillsynsbehov]],ROW(INDIRECT("$1:$"&LEN(TableData[[#This Row],[Tillsynsbehov]]))),1))* ROW(INDIRECT("$1:$"&LEN(TableData[[#This Row],[Tillsynsbehov]]))),0), ROW(INDIRECT("$1:$"&LEN(TableData[[#This Row],[Tillsynsbehov]]))))+1,1) * 10^ROW(INDIRECT("$1:$"&LEN(TableData[[#This Row],[Tillsynsbehov]])))/10),TableData[[#This Row],[Tillsynsbehov]])) -> Ange tillsynsbehov | F170: Årlig tillsynsavgift | G170: =IF(TableData[[#This Row],[Avgift]]="Timavgift","Bilaga 3","Bilaga 2") -> Bilaga 2 | H170: =IFERROR(TableData[[#This Row],[Timmar]]*rngTimpris,"") ->  | I170: 22 | J170: FOTOGRAFISK OCH GRAFISK PRODUKTION | K170: ="" ->  | L170: ="För en verksamhet som är anmälningspliktig enligt 10 kap. 4 § miljöprövningsförordningen är tillsynstiden "&IF(ISNUMBER($E170),$E170,"x")&" timmar."&IF(TableData[[#This Row],[IUV-tillägg]]="Ja"," "&rngIUV,"") -> För en verksamhet som är anmälningspliktig enligt 10 kap. 4 § miljöprövningsförordningen är tillsynstiden x timmar.
B171: U | C171: Ange tillsynsbehov | E171: =IF(TableData[[#This Row],[Tillsynsbehov]]="Ange tillsynsbehov","Ange tillsynsbehov",IF(SUM(LEN(TableData[[#This Row],[Tillsynsbehov]])-LEN(SUBSTITUTE(TableData[[#This Row],[Tillsynsbehov]], {"0";"1";"2";"3";"4";"5";"6";"7";"8";"9"}, "")))>0, SUMPRODUCT(MID(0&TableData[[#This Row],[Tillsynsbehov]], LARGE(INDEX(ISNUMBER(--MID(TableData[[#This Row],[Tillsynsbehov]],ROW(INDIRECT("$1:$"&LEN(TableData[[#This Row],[Tillsynsbehov]]))),1))* ROW(INDIRECT("$1:$"&LEN(TableData[[#This Row],[Tillsynsbehov]]))),0), ROW(INDIRECT("$1:$"&LEN(TableData[[#This Row],[Tillsynsbehov]]))))+1,1) * 10^ROW(INDIRECT("$1:$"&LEN(TableData[[#This Row],[Tillsynsbehov]])))/10),TableData[[#This Row],[Tillsynsbehov]])) -> Ange tillsynsbehov | F171: Timavgift | G171: =IF(TableData[[#This Row],[Avgift]]="Timavgift","Bilaga 3","Bilaga 2") -> Bilaga 3 | H171: =IFERROR(TableData[[#This Row],[Timmar]]*rngTimpris,"") ->  | I171: 22 | J171: FOTOGRAFISK OCH GRAFISK PRODUKTION | K171: ="" ->  | L171: ="För verksamheter under anmälningspliktig nivå är tillsynstiden "&IF(ISNUMBER($E171),$E171,"x")&" timmar."&IF(TableData[[#This Row],[IUV-tillägg]]="Ja"," "&rngIUV,"") -> För verksamheter under anmälningspliktig nivå är tillsynstiden x timmar.
A172: ="" ->  | G172: Bilaga 2 | H172: =IFERROR(TableData[[#This Row],[Timmar]]*rngTimpris,"") -> 0 | I172: 23 | J172: STENKOLSPRODUKTER, RAFFINERADE PETROLEUMPRODUKTER OCH KÄRNBRÄNSLE | K172: ="" ->  | L172: VERKSAMHETSGRUPP STENKOLSPRODUKTER, RAFFINERADE PETROLEUMPRODUKTER OCH KÄRNBRÄNSLE
A173: 23.05 | B173: A | C173: 137 | E173: =IF(TableData[[#This Row],[Tillsynsbehov]]="Ange tillsynsbehov","Ange tillsynsbehov",IF(LEFT(TableData[[#This Row],[Tillsynsbehov]],4)="Högt",INDEX(tblTillsynsTim,1,MATCH(TableData[[#This Row],[Prövn.- nivå]],rngTillsynsNiv,0)),IF(LEFT(TableData[[#This Row],[Tillsynsbehov]],4)="Norm",INDEX(tblTillsynsTim,2,MATCH(TableData[[#This Row],[Prövn.- nivå]],rngTillsynsNiv,0)),IF(LEFT(TableData[[#This Row],[Tillsynsbehov]],4)="Lågt",INDEX(tblTillsynsTim,3,MATCH(TableData[[#This Row],[Prövn.- nivå]],rngTillsynsNiv,0)),IF(LEFT(TableData[[#This Row],[Tillsynsbehov]],4)="Spor",INDEX(tblTillsynsTim,4,MATCH(TableData[[#This Row],[Prövn.- nivå]],rngTillsynsNiv,0)),TableData[[#This Row],[Tillsynsbehov]]))))) -> 137 | F173: Årlig tillsynsavgift | G173: =IF(TableData[[#This Row],[Avgift]]="Timavgift","Bilaga 3","Bilaga 2") -> Bilaga 2 | H173: =IFERROR(TableData[[#This Row],[Timmar]]*rngTimpris,"") -> 137000 | I173: 23 | J173: STENKOLSPRODUKTER, RAFFINERADE PETROLEUMPRODUKTER OCH KÄRNBRÄNSLE | K173: ="" ->  | L173: ="1. För en verksamhet som är tillståndspliktig enligt 11 kap. 1 § miljöprövningsförordningen är tillsynstiden "&IF(ISNUMBER($E173),$E173,"x")&" timmar för en anläggning med en total installerad effekt om mer än 200 megawatt. "&IF(TableData[[#This Row],[IUV-tillägg]]="Ja"," "&rngIUV,"") -> 1. För en verksamhet som är tillståndspliktig enligt 11 kap. 1 § miljöprövningsförordningen är tillsynstiden 137 timmar för en anläggning med en total installerad effekt om mer än 200 megawatt.
A174: 23.05 | B174: A | C174: 64 | E174: =IF(TableData[[#This Row],[Tillsynsbehov]]="Ange tillsynsbehov","Ange tillsynsbehov",IF(LEFT(TableData[[#This Row],[Tillsynsbehov]],4)="Högt",INDEX(tblTillsynsTim,1,MATCH(TableData[[#This Row],[Prövn.- nivå]],rngTillsynsNiv,0)),IF(LEFT(TableData[[#This Row],[Tillsynsbehov]],4)="Norm",INDEX(tblTillsynsTim,2,MATCH(TableData[[#This Row],[Prövn.- nivå]],rngTillsynsNiv,0)),IF(LEFT(TableData[[#This Row],[Tillsynsbehov]],4)="Lågt",INDEX(tblTillsynsTim,3,MATCH(TableData[[#This Row],[Prövn.- nivå]],rngTillsynsNiv,0)),IF(LEFT(TableData[[#This Row],[Tillsynsbehov]],4)="Spor",INDEX(tblTillsynsTim,4,MATCH(TableData[[#This Row],[Prövn.- nivå]],rngTillsynsNiv,0)),TableData[[#This Row],[Tillsynsbehov]]))))) -> 64 | F174: Årlig tillsynsavgift | G174: =IF(TableData[[#This Row],[Avgift]]="Timavgift","Bilaga 3","Bilaga 2") -> Bilaga 2 | H174: =IFERROR(TableData[[#This Row],[Timmar]]*rngTimpris,"") -> 64000 | I174: 23 | J174: STENKOLSPRODUKTER, RAFFINERADE PETROLEUMPRODUKTER OCH KÄRNBRÄNSLE | K174: ="" ->  | L174: ="2. För en verksamhet som är tillståndspliktig enligt 11 kap. 1 § miljöprövningsförordningen är tillsynstiden "&IF(ISNUMBER($E174),$E174,"x")&" timmar för en anläggning med en total installerad effekt om mer än 100 megawatt men högst 200 megawatt."&IF(TableData[[#This Row],[IUV-tillägg]]="Ja"," "&rngIUV,"") -> 2. För en verksamhet som är tillståndspliktig enligt 11 kap. 1 § miljöprövningsförordningen är tillsynstiden 64 timmar för en anläggning med en total installerad effekt om mer än 100 megawatt men högst 200 megawatt.
A175: 23.05 | B175: A | C175: 30 | E175: =IF(TableData[[#This Row],[Tillsynsbehov]]="Ange tillsynsbehov","Ange tillsynsbehov",IF(LEFT(TableData[[#This Row],[Tillsynsbehov]],4)="Högt",INDEX(tblTillsynsTim,1,MATCH(TableData[[#This Row],[Prövn.- nivå]],rngTillsynsNiv,0)),IF(LEFT(TableData[[#This Row],[Tillsynsbehov]],4)="Norm",INDEX(tblTillsynsTim,2,MATCH(TableData[[#This Row],[Prövn.- nivå]],rngTillsynsNiv,0)),IF(LEFT(TableData[[#This Row],[Tillsynsbehov]],4)="Lågt",INDEX(tblTillsynsTim,3,MATCH(TableData[[#This Row],[Prövn.- nivå]],rngTillsynsNiv,0)),IF(LEFT(TableData[[#This Row],[Tillsynsbehov]],4)="Spor",INDEX(tblTillsynsTim,4,MATCH(TableData[[#This Row],[Prövn.- nivå]],rngTillsynsNiv,0)),TableData[[#This Row],[Tillsynsbehov]]))))) -> 30 | F175: Årlig tillsynsavgift | G175: =IF(TableData[[#This Row],[Avgift]]="Timavgift","Bilaga 3","Bilaga 2") -> Bilaga 2 | H175: =IFERROR(TableData[[#This Row],[Timmar]]*rngTimpris,"") -> 30000 | I175: 23 | J175: STENKOLSPRODUKTER, RAFFINERADE PETROLEUMPRODUKTER OCH KÄRNBRÄNSLE | K175: ="" ->  | L175: ="3. För en verksamhet som är tillståndspliktig enligt 11 kap. 1 § miljöprövningsförordningen är tillsynstiden "&IF(ISNUMBER($E175),$E175,"x")&" timmar för en anläggning med en total installerad effekt om mer än 10 megawatt men högst 100 megawatt. "&IF(TableData[[#This Row],[IUV-tillägg]]="Ja"," "&rngIUV,"") -> 3. För en verksamhet som är tillståndspliktig enligt 11 kap. 1 § miljöprövningsförordningen är tillsynstiden 30 timmar för en anläggning med en total installerad effekt om mer än 10 megawatt men högst 100 megawatt.
A176: 23.05 | B176: A | C176: 13 | E176: =IF(TableData[[#This Row],[Tillsynsbehov]]="Ange tillsynsbehov","Ange tillsynsbehov",IF(LEFT(TableData[[#This Row],[Tillsynsbehov]],4)="Högt",INDEX(tblTillsynsTim,1,MATCH(TableData[[#This Row],[Prövn.- nivå]],rngTillsynsNiv,0)),IF(LEFT(TableData[[#This Row],[Tillsynsbehov]],4)="Norm",INDEX(tblTillsynsTim,2,MATCH(TableData[[#This Row],[Prövn.- nivå]],rngTillsynsNiv,0)),IF(LEFT(TableData[[#This Row],[Tillsynsbehov]],4)="Lågt",INDEX(tblTillsynsTim,3,MATCH(TableData[[#This Row],[Prövn.- nivå]],rngTillsynsNiv,0)),IF(LEFT(TableData[[#This Row],[Tillsynsbehov]],4)="Spor",INDEX(tblTillsynsTim,4,MATCH(TableData[[#This Row],[Prövn.- nivå]],rngTillsynsNiv,0)),TableData[[#This Row],[Tillsynsbehov]]))))) -> 13 | F176: Årlig tillsynsavgift | G176: =IF(TableData[[#This Row],[Avgift]]="Timavgift","Bilaga 3","Bilaga 2") -> Bilaga 2 | H176: =IFERROR(TableData[[#This Row],[Timmar]]*rngTimpris,"") -> 13000 | I176: 23 | J176: STENKOLSPRODUKTER, RAFFINERADE PETROLEUMPRODUKTER OCH KÄRNBRÄNSLE | K176: ="" ->  | L176: ="4. För en verksamhet som är tillståndspliktig enligt 11 kap. 1 § miljöprövningsförordningen är tillsynstiden "&IF(ISNUMBER($E176),$E176,"x")&" timmar för en anläggning med en total installerad effekt om högst 10 megawatt."&IF(TableData[[#This Row],[IUV-tillägg]]="Ja"," "&rngIUV,"") -> 4. För en verksamhet som är tillståndspliktig enligt 11 kap. 1 § miljöprövningsförordningen är tillsynstiden 13 timmar för en anläggning med en total installerad effekt om högst 10 megawatt.
A177: 23.10-i | B177: A | C177: 90 | D177: Nej | E177: =IF(TableData[[#This Row],[Tillsynsbehov]]="Ange tillsynsbehov","Ange tillsynsbehov",IF(LEFT(TableData[[#This Row],[Tillsynsbehov]],4)="Högt",INDEX(tblTillsynsTim,1,MATCH(TableData[[#This Row],[Prövn.- nivå]],rngTillsynsNiv,0)),IF(LEFT(TableData[[#This Row],[Tillsynsbehov]],4)="Norm",INDEX(tblTillsynsTim,2,MATCH(TableData[[#This Row],[Prövn.- nivå]],rngTillsynsNiv,0)),IF(LEFT(TableData[[#This Row],[Tillsynsbehov]],4)="Lågt",INDEX(tblTillsynsTim,3,MATCH(TableData[[#This Row],[Prövn.- nivå]],rngTillsynsNiv,0)),IF(LEFT(TableData[[#This Row],[Tillsynsbehov]],4)="Spor",INDEX(tblTillsynsTim,4,MATCH(TableData[[#This Row],[Prövn.- nivå]],rngTillsynsNiv,0)),TableData[[#This Row],[Tillsynsbehov]]))))) -> 90 | F177: Årlig tillsynsavgift | G177: =IF(TableData[[#This Row],[Avgift]]="Timavgift","Bilaga 3","Bilaga 2") -> Bilaga 2 | H177: =IFERROR(TableData[[#This Row],[Timmar]]*rngTimpris,"") -> 90000 | I177: 23 | J177: STENKOLSPRODUKTER, RAFFINERADE PETROLEUMPRODUKTER OCH KÄRNBRÄNSLE | K177: ="" ->  | L177: ="För en verksamhet som är tillståndspliktig enligt 11 kap. 2 § miljöprövningsförordningen är tillsynstiden "&IF(ISNUMBER($E177),$E177,"x")&" timmar."&IF(TableData[[#This Row],[IUV-tillägg]]="Ja"," "&rngIUV,"") -> För en verksamhet som är tillståndspliktig enligt 11 kap. 2 § miljöprövningsförordningen är tillsynstiden 90 timmar.
A178: 23.11-i | B178: A | C178: 90 | D178: Nej | E178: =IF(TableData[[#This Row],[Tillsynsbehov]]="Ange tillsynsbehov","Ange tillsynsbehov",IF(LEFT(TableData[[#This Row],[Tillsynsbehov]],4)="Högt",INDEX(tblTillsynsTim,1,MATCH(TableData[[#This Row],[Prövn.- nivå]],rngTillsynsNiv,0)),IF(LEFT(TableData[[#This Row],[Tillsynsbehov]],4)="Norm",INDEX(tblTillsynsTim,2,MATCH(TableData[[#This Row],[Prövn.- nivå]],rngTillsynsNiv,0)),IF(LEFT(TableData[[#This Row],[Tillsynsbehov]],4)="Lågt",INDEX(tblTillsynsTim,3,MATCH(TableData[[#This Row],[Prövn.- nivå]],rngTillsynsNiv,0)),IF(LEFT(TableData[[#This Row],[Tillsynsbehov]],4)="Spor",INDEX(tblTillsynsTim,4,MATCH(TableData[[#This Row],[Prövn.- nivå]],rngTillsynsNiv,0)),TableData[[#This Row],[Tillsynsbehov]]))))) -> 90 | F178: Årlig tillsynsavgift | G178: =IF(TableData[[#This Row],[Avgift]]="Timavgift","Bilaga 3","Bilaga 2") -> Bilaga 2 | H178: =IFERROR(TableData[[#This Row],[Timmar]]*rngTimpris,"") -> 90000 | I178: 23 | J178: STENKOLSPRODUKTER, RAFFINERADE PETROLEUMPRODUKTER OCH KÄRNBRÄNSLE | K178: ="" ->  | L178: ="1. För en verksamhet som är tillståndspliktig enligt 11 kap. 3 § miljöprövningsförordningen är tillsynstiden "&IF(ISNUMBER($E178),$E178,"x")&" timmar om verksamheten avser överföring till vätskeformigt bränsle."&IF(TableData[[#This Row],[IUV-tillägg]]="Ja"," "&rngIUV,"") -> 1. För en verksamhet som är tillståndspliktig enligt 11 kap. 3 § miljöprövningsförordningen är tillsynstiden 90 timmar om verksamheten avser överföring till vätskeformigt bränsle.
A179: 23.11-i | B179: A | C179: 64 | D179: Nej | E179: =IF(TableData[[#This Row],[Tillsynsbehov]]="Ange tillsynsbehov","Ange tillsynsbehov",IF(LEFT(TableData[[#This Row],[Tillsynsbehov]],4)="Högt",INDEX(tblTillsynsTim,1,MATCH(TableData[[#This Row],[Prövn.- nivå]],rngTillsynsNiv,0)),IF(LEFT(TableData[[#This Row],[Tillsynsbehov]],4)="Norm",INDEX(tblTillsynsTim,2,MATCH(TableData[[#This Row],[Prövn.- nivå]],rngTillsynsNiv,0)),IF(LEFT(TableData[[#This Row],[Tillsynsbehov]],4)="Lågt",INDEX(tblTillsynsTim,3,MATCH(TableData[[#This Row],[Prövn.- nivå]],rngTillsynsNiv,0)),IF(LEFT(TableData[[#This Row],[Tillsynsbehov]],4)="Spor",INDEX(tblTillsynsTim,4,MATCH(TableData[[#This Row],[Prövn.- nivå]],rngTillsynsNiv,0)),TableData[[#This Row],[Tillsynsbehov]]))))) -> 64 | F179: Årlig tillsynsavgift | G179: =IF(TableData[[#This Row],[Avgift]]="Timavgift","Bilaga 3","Bilaga 2") -> Bilaga 2 | H179: =IFERROR(TableData[[#This Row],[Timmar]]*rngTimpris,"") -> 64000 | I179: 23 | J179: STENKOLSPRODUKTER, RAFFINERADE PETROLEUMPRODUKTER OCH KÄRNBRÄNSLE | K179: ="" ->  | L179: ="2. För en verksamhet som är tillståndspliktig enligt 11 kap. 3 § miljöprövningsförordningen är tillsynstiden "&IF(ISNUMBER($E179),$E179,"x")&" timmar om verksamheten avser överföring till gasbränsle för en produktion av mer än 150 000 kubikmeter gas per kalenderår i anläggning med en installerad effekt av mer än 100 megawatt."&IF(TableData[[#This Row],[IUV-tillägg]]="Ja"," "&rngIUV,"") -> 2. För en verksamhet som är tillståndspliktig enligt 11 kap. 3 § miljöprövningsförordningen är tillsynstiden 64 timmar om verksamheten avser överföring till gasbränsle för en produktion av mer än 150 000 kubikmeter gas per kalenderår i anläggning med en installerad effekt av mer än 100 megawatt.
A180: 23.11-i | B180: A | C180: 30 | D180: Nej | E180: =IF(TableData[[#This Row],[Tillsynsbehov]]="Ange tillsynsbehov","Ange tillsynsbehov",IF(LEFT(TableData[[#This Row],[Tillsynsbehov]],4)="Högt",INDEX(tblTillsynsTim,1,MATCH(TableData[[#This Row],[Prövn.- nivå]],rngTillsynsNiv,0)),IF(LEFT(TableData[[#This Row],[Tillsynsbehov]],4)="Norm",INDEX(tblTillsynsTim,2,MATCH(TableData[[#This Row],[Prövn.- nivå]],rngTillsynsNiv,0)),IF(LEFT(TableData[[#This Row],[Tillsynsbehov]],4)="Lågt",INDEX(tblTillsynsTim,3,MATCH(TableData[[#This Row],[Prövn.- nivå]],rngTillsynsNiv,0)),IF(LEFT(TableData[[#This Row],[Tillsynsbehov]],4)="Spor",INDEX(tblTillsynsTim,4,MATCH(TableData[[#This Row],[Prövn.- nivå]],rngTillsynsNiv,0)),TableData[[#This Row],[Tillsynsbehov]]))))) -> 30 | F180: Årlig tillsynsavgift | G180: =IF(TableData[[#This Row],[Avgift]]="Timavgift","Bilaga 3","Bilaga 2") -> Bilaga 2 | H180: =IFERROR(TableData[[#This Row],[Timmar]]*rngTimpris,"") -> 30000 | I180: 23 | J180: STENKOLSPRODUKTER, RAFFINERADE PETROLEUMPRODUKTER OCH KÄRNBRÄNSLE | K180: ="" ->  | L180: ="3. För en verksamhet som är tillståndspliktig enligt 11 kap. 3 § miljöprövningsförordningen är tillsynstiden "&IF(ISNUMBER($E180),$E180,"x")&" timmar om verksamheten avser överföring till gasbränsle för en produktion av mer än 150 000 kubikmeter gas per kalenderår i anläggning med en installerad effekt av mer än 10 megawatt men högst 100 megawatt."&IF(TableData[[#This Row],[IUV-tillägg]]="Ja"," "&rngIUV,"") -> 3. För en verksamhet som är tillståndspliktig enligt 11 kap. 3 § miljöprövningsförordningen är tillsynstiden 30 timmar om verksamheten avser överföring till gasbränsle för en produktion av mer än 150 000 kubikmeter gas per kalenderår i anläggning med en installerad effekt av mer än 10 megawatt men högst 100 megawatt.
A181: 23.11-i | B181: A | C181: 13 | D181: Nej | E181: =IF(TableData[[#This Row],[Tillsynsbehov]]="Ange tillsynsbehov","Ange tillsynsbehov",IF(LEFT(TableData[[#This Row],[Tillsynsbehov]],4)="Högt",INDEX(tblTillsynsTim,1,MATCH(TableData[[#This Row],[Prövn.- nivå]],rngTillsynsNiv,0)),IF(LEFT(TableData[[#This Row],[Tillsynsbehov]],4)="Norm",INDEX(tblTillsynsTim,2,MATCH(TableData[[#This Row],[Prövn.- nivå]],rngTillsynsNiv,0)),IF(LEFT(TableData[[#This Row],[Tillsynsbehov]],4)="Lågt",INDEX(tblTillsynsTim,3,MATCH(TableData[[#This Row],[Prövn.- nivå]],rngTillsynsNiv,0)),IF(LEFT(TableData[[#This Row],[Tillsynsbehov]],4)="Spor",INDEX(tblTillsynsTim,4,MATCH(TableData[[#This Row],[Prövn.- nivå]],rngTillsynsNiv,0)),TableData[[#This Row],[Tillsynsbehov]]))))) -> 13 | F181: Årlig tillsynsavgift | G181: =IF(TableData[[#This Row],[Avgift]]="Timavgift","Bilaga 3","Bilaga 2") -> Bilaga 2 | H181: =IFERROR(TableData[[#This Row],[Timmar]]*rngTimpris,"") -> 13000 | I181: 23 | J181: STENKOLSPRODUKTER, RAFFINERADE PETROLEUMPRODUKTER OCH KÄRNBRÄNSLE | K181: ="" ->  | L181: ="4. För en verksamhet som är tillståndspliktig enligt 11 kap. 3 § miljöprövningsförordningen är tillsynstiden "&IF(ISNUMBER($E181),$E181,"x")&" timmar om verksamheten avser överföring till gasbränsle för en produktion av mer än 150 000 kubikmeter gas per kalenderår i anläggning med en installerad effekt av högst 10 megawatt."&IF(TableData[[#This Row],[IUV-tillägg]]="Ja"," "&rngIUV,"") -> 4. För en verksamhet som är tillståndspliktig enligt 11 kap. 3 § miljöprövningsförordningen är tillsynstiden 13 timmar om verksamheten avser överföring till gasbränsle för en produktion av mer än 150 000 kubikmeter gas per kalenderår i anläggning med en installerad effekt av högst 10 megawatt.
A182: 23.12-i | B182: A | C182: 184 | D182: Nej | E182: =IF(TableData[[#This Row],[Tillsynsbehov]]="Ange tillsynsbehov","Ange tillsynsbehov",IF(LEFT(TableData[[#This Row],[Tillsynsbehov]],4)="Högt",INDEX(tblTillsynsTim,1,MATCH(TableData[[#This Row],[Prövn.- nivå]],rngTillsynsNiv,0)),IF(LEFT(TableData[[#This Row],[Tillsynsbehov]],4)="Norm",INDEX(tblTillsynsTim,2,MATCH(TableData[[#This Row],[Prövn.- nivå]],rngTillsynsNiv,0)),IF(LEFT(TableData[[#This Row],[Tillsynsbehov]],4)="Lågt",INDEX(tblTillsynsTim,3,MATCH(TableData[[#This Row],[Prövn.- nivå]],rngTillsynsNiv,0)),IF(LEFT(TableData[[#This Row],[Tillsynsbehov]],4)="Spor",INDEX(tblTillsynsTim,4,MATCH(TableData[[#This Row],[Prövn.- nivå]],rngTillsynsNiv,0)),TableData[[#This Row],[Tillsynsbehov]]))))) -> 184 | F182: Årlig tillsynsavgift | G182: =IF(TableData[[#This Row],[Avgift]]="Timavgift","Bilaga 3","Bilaga 2") -> Bilaga 2 | H182: =IFERROR(TableData[[#This Row],[Timmar]]*rngTimpris,"") -> 184000 | I182: 23 | J182: STENKOLSPRODUKTER, RAFFINERADE PETROLEUMPRODUKTER OCH KÄRNBRÄNSLE | K182: ="" ->  | L182: ="För en verksamhet som är tillståndspliktig enligt 11 kap.4 § miljöprövningsförordningen är tillsynstiden "&IF(ISNUMBER($E182),$E182,"x")&" timmar."&IF(TableData[[#This Row],[IUV-tillägg]]="Ja"," "&rngIUV,"") -> För en verksamhet som är tillståndspliktig enligt 11 kap.4 § miljöprövningsförordningen är tillsynstiden 184 timmar.
A183: 23.13 | B183: A | C183: 90 | E183: =IF(TableData[[#This Row],[Tillsynsbehov]]="Ange tillsynsbehov","Ange tillsynsbehov",IF(LEFT(TableData[[#This Row],[Tillsynsbehov]],4)="Högt",INDEX(tblTillsynsTim,1,MATCH(TableData[[#This Row],[Prövn.- nivå]],rngTillsynsNiv,0)),IF(LEFT(TableData[[#This Row],[Tillsynsbehov]],4)="Norm",INDEX(tblTillsynsTim,2,MATCH(TableData[[#This Row],[Prövn.- nivå]],rngTillsynsNiv,0)),IF(LEFT(TableData[[#This Row],[Tillsynsbehov]],4)="Lågt",INDEX(tblTillsynsTim,3,MATCH(TableData[[#This Row],[Prövn.- nivå]],rngTillsynsNiv,0)),IF(LEFT(TableData[[#This Row],[Tillsynsbehov]],4)="Spor",INDEX(tblTillsynsTim,4,MATCH(TableData[[#This Row],[Prövn.- nivå]],rngTillsynsNiv,0)),TableData[[#This Row],[Tillsynsbehov]]))))) -> 90 | F183: Årlig tillsynsavgift | G183: =IF(TableData[[#This Row],[Avgift]]="Timavgift","Bilaga 3","Bilaga 2") -> Bilaga 2 | H183: =IFERROR(TableData[[#This Row],[Timmar]]*rngTimpris,"") -> 90000 | I183: 23 | J183: STENKOLSPRODUKTER, RAFFINERADE PETROLEUMPRODUKTER OCH KÄRNBRÄNSLE | K183: ="" ->  | L183: ="För en verksamhet som är tillståndspliktig enligt 11 kap. 5 § miljöprövningsförordningen är tillsynstiden "&IF(ISNUMBER($E183),$E183,"x")&" timmar."&IF(TableData[[#This Row],[IUV-tillägg]]="Ja"," "&rngIUV,"") -> För en verksamhet som är tillståndspliktig enligt 11 kap. 5 § miljöprövningsförordningen är tillsynstiden 90 timmar.
A184: 23.20 | B184: B | C184: 90 | E184: =IF(TableData[[#This Row],[Tillsynsbehov]]="Ange tillsynsbehov","Ange tillsynsbehov",IF(LEFT(TableData[[#This Row],[Tillsynsbehov]],4)="Högt",INDEX(tblTillsynsTim,1,MATCH(TableData[[#This Row],[Prövn.- nivå]],rngTillsynsNiv,0)),IF(LEFT(TableData[[#This Row],[Tillsynsbehov]],4)="Norm",INDEX(tblTillsynsTim,2,MATCH(TableData[[#This Row],[Prövn.- nivå]],rngTillsynsNiv,0)),IF(LEFT(TableData[[#This Row],[Tillsynsbehov]],4)="Lågt",INDEX(tblTillsynsTim,3,MATCH(TableData[[#This Row],[Prövn.- nivå]],rngTillsynsNiv,0)),IF(LEFT(TableData[[#This Row],[Tillsynsbehov]],4)="Spor",INDEX(tblTillsynsTim,4,MATCH(TableData[[#This Row],[Prövn.- nivå]],rngTillsynsNiv,0)),TableData[[#This Row],[Tillsynsbehov]]))))) -> 90 | F184: Årlig tillsynsavgift | G184: =IF(TableData[[#This Row],[Avgift]]="Timavgift","Bilaga 3","Bilaga 2") -> Bilaga 2 | H184: =IFERROR(TableData[[#This Row],[Timmar]]*rngTimpris,"") -> 90000 | I184: 23 | J184: STENKOLSPRODUKTER, RAFFINERADE PETROLEUMPRODUKTER OCH KÄRNBRÄNSLE | K184: ="" ->  | L184: ="För en verksamhet som är tillståndspliktig enligt 11 kap. 6 § miljöprövningsförordningen är tillsynstiden "&IF(ISNUMBER($E184),$E184,"x")&" timmar."&IF(TableData[[#This Row],[IUV-tillägg]]="Ja"," "&rngIUV,"") -> För en verksamhet som är tillståndspliktig enligt 11 kap. 6 § miljöprövningsförordningen är tillsynstiden 90 timmar.
A185: 23.30-i | B185: A | C185: 306 | D185: Nej | E185: =IF(TableData[[#This Row],[Tillsynsbehov]]="Ange tillsynsbehov","Ange tillsynsbehov",IF(LEFT(TableData[[#This Row],[Tillsynsbehov]],4)="Högt",INDEX(tblTillsynsTim,1,MATCH(TableData[[#This Row],[Prövn.- nivå]],rngTillsynsNiv,0)),IF(LEFT(TableData[[#This Row],[Tillsynsbehov]],4)="Norm",INDEX(tblTillsynsTim,2,MATCH(TableData[[#This Row],[Prövn.- nivå]],rngTillsynsNiv,0)),IF(LEFT(TableData[[#This Row],[Tillsynsbehov]],4)="Lågt",INDEX(tblTillsynsTim,3,MATCH(TableData[[#This Row],[Prövn.- nivå]],rngTillsynsNiv,0)),IF(LEFT(TableData[[#This Row],[Tillsynsbehov]],4)="Spor",INDEX(tblTillsynsTim,4,MATCH(TableData[[#This Row],[Prövn.- nivå]],rngTillsynsNiv,0)),TableData[[#This Row],[Tillsynsbehov]]))))) -> 306 | F185: Årlig tillsynsavgift | G185: =IF(TableData[[#This Row],[Avgift]]="Timavgift","Bilaga 3","Bilaga 2") -> Bilaga 2 | H185: =IFERROR(TableData[[#This Row],[Timmar]]*rngTimpris,"") -> 306000 | I185: 23 | J185: STENKOLSPRODUKTER, RAFFINERADE PETROLEUMPRODUKTER OCH KÄRNBRÄNSLE | K185: ="" ->  | L185: ="1. För en verksamhet som är tillståndspliktig enligt 11 kap. 7 § miljöprövningsförordningen är tillsynstiden "&IF(ISNUMBER($E185),$E185,"x")&" timmar om verksamheten avser en produktion av mer än 500 000 ton per kalenderår."&IF(TableData[[#This Row],[IUV-tillägg]]="Ja"," "&rngIUV,"") -> 1. För en verksamhet som är tillståndspliktig enligt 11 kap. 7 § miljöprövningsförordningen är tillsynstiden 306 timmar om verksamheten avser en produktion av mer än 500 000 ton per kalenderår.
A186: 23.30-i | B186: A | C186: 306 | D186: Nej | E186: =IF(TableData[[#This Row],[Tillsynsbehov]]="Ange tillsynsbehov","Ange tillsynsbehov",IF(LEFT(TableData[[#This Row],[Tillsynsbehov]],4)="Högt",INDEX(tblTillsynsTim,1,MATCH(TableData[[#This Row],[Prövn.- nivå]],rngTillsynsNiv,0)),IF(LEFT(TableData[[#This Row],[Tillsynsbehov]],4)="Norm",INDEX(tblTillsynsTim,2,MATCH(TableData[[#This Row],[Prövn.- nivå]],rngTillsynsNiv,0)),IF(LEFT(TableData[[#This Row],[Tillsynsbehov]],4)="Lågt",INDEX(tblTillsynsTim,3,MATCH(TableData[[#This Row],[Prövn.- nivå]],rngTillsynsNiv,0)),IF(LEFT(TableData[[#This Row],[Tillsynsbehov]],4)="Spor",INDEX(tblTillsynsTim,4,MATCH(TableData[[#This Row],[Prövn.- nivå]],rngTillsynsNiv,0)),TableData[[#This Row],[Tillsynsbehov]]))))) -> 306 | F186: Årlig tillsynsavgift | G186: =IF(TableData[[#This Row],[Avgift]]="Timavgift","Bilaga 3","Bilaga 2") -> Bilaga 2 | H186: =IFERROR(TableData[[#This Row],[Timmar]]*rngTimpris,"") -> 306000 | I186: 23 | J186: STENKOLSPRODUKTER, RAFFINERADE PETROLEUMPRODUKTER OCH KÄRNBRÄNSLE | K186: ="" ->  | L186: ="2. För en verksamhet som är tillståndspliktig enligt 11 kap. 7 § miljöprövningsförordningen är tillsynstiden "&IF(ISNUMBER($E186),$E186,"x")&" timmar för en verksamhet med produktion som inte omfattas av 1."&IF(TableData[[#This Row],[IUV-tillägg]]="Ja"," "&rngIUV,"") -> 2. För en verksamhet som är tillståndspliktig enligt 11 kap. 7 § miljöprövningsförordningen är tillsynstiden 306 timmar för en verksamhet med produktion som inte omfattas av 1.
A187: 23.40 och 23.50 | B187: A | C187: 90 | E187: =IF(TableData[[#This Row],[Tillsynsbehov]]="Ange tillsynsbehov","Ange tillsynsbehov",IF(LEFT(TableData[[#This Row],[Tillsynsbehov]],4)="Högt",INDEX(tblTillsynsTim,1,MATCH(TableData[[#This Row],[Prövn.- nivå]],rngTillsynsNiv,0)),IF(LEFT(TableData[[#This Row],[Tillsynsbehov]],4)="Norm",INDEX(tblTillsynsTim,2,MATCH(TableData[[#This Row],[Prövn.- nivå]],rngTillsynsNiv,0)),IF(LEFT(TableData[[#This Row],[Tillsynsbehov]],4)="Lågt",INDEX(tblTillsynsTim,3,MATCH(TableData[[#This Row],[Prövn.- nivå]],rngTillsynsNiv,0)),IF(LEFT(TableData[[#This Row],[Tillsynsbehov]],4)="Spor",INDEX(tblTillsynsTim,4,MATCH(TableData[[#This Row],[Prövn.- nivå]],rngTillsynsNiv,0)),TableData[[#This Row],[Tillsynsbehov]]))))) -> 90 | F187: Årlig tillsynsavgift | G187: =IF(TableData[[#This Row],[Avgift]]="Timavgift","Bilaga 3","Bilaga 2") -> Bilaga 2 | H187: =IFERROR(TableData[[#This Row],[Timmar]]*rngTimpris,"") -> 90000 | I187: 23 | J187: STENKOLSPRODUKTER, RAFFINERADE PETROLEUMPRODUKTER OCH KÄRNBRÄNSLE | K187: ="" ->  | L187: ="För en verksamhet som är tillståndspliktig enligt 11 kap. 8 eller 9 § miljöprövningsförordningen är tillsynstiden "&IF(ISNUMBER($E187),$E187,"x")&" timmar."&IF(TableData[[#This Row],[IUV-tillägg]]="Ja"," "&rngIUV,"") -> För en verksamhet som är tillståndspliktig enligt 11 kap. 8 eller 9 § miljöprövningsförordningen är tillsynstiden 90 timmar.
A188: ="" ->  | H188: =IFERROR(TableData[[#This Row],[Timmar]]*rngTimpris,"") -> 0 | I188: 24 | J188: KEMISKA PRODUKTER | K188: ="" ->  | L188: VERKSAMHETSGRUPP KEMISKA PRODUKTER
A189: ="" ->  | G189: Bilaga 2 | H189: =IFERROR(TableData[[#This Row],[Timmar]]*rngTimpris,"") -> 0 | I189: 24 | J189: KEMISKA PRODUKTER | K189: Organiska kemikalier | L189: Verksamhetsgrupp Organiska kemikalier
A190: 24.01-i, 24.02-i, 24.03-i, 24.04-i, 24.05-i, 24.06-i, 24.07-i, 24.08-i, 24.09-i, 24.10-i, 24.11-i, 24.12-i, 24.13-i, 24.14-i, 24.15-i, 24.16-i, 24.17-i, 24.18-i, 24.19-i, 24.20-i, 24.21-i och 24.22-i | B190: A/B | C190: 137 | D190: Nej | E190: =IF(TableData[[#This Row],[Tillsynsbehov]]="Ange tillsynsbehov","Ange tillsynsbehov",IF(LEFT(TableData[[#This Row],[Tillsynsbehov]],4)="Högt",INDEX(tblTillsynsTim,1,MATCH(TableData[[#This Row],[Prövn.- nivå]],rngTillsynsNiv,0)),IF(LEFT(TableData[[#This Row],[Tillsynsbehov]],4)="Norm",INDEX(tblTillsynsTim,2,MATCH(TableData[[#This Row],[Prövn.- nivå]],rngTillsynsNiv,0)),IF(LEFT(TableData[[#This Row],[Tillsynsbehov]],4)="Lågt",INDEX(tblTillsynsTim,3,MATCH(TableData[[#This Row],[Prövn.- nivå]],rngTillsynsNiv,0)),IF(LEFT(TableData[[#This Row],[Tillsynsbehov]],4)="Spor",INDEX(tblTillsynsTim,4,MATCH(TableData[[#This Row],[Prövn.- nivå]],rngTillsynsNiv,0)),TableData[[#This Row],[Tillsynsbehov]]))))) -> 137 | F190: Årlig tillsynsavgift | G190: =IF(TableData[[#This Row],[Avgift]]="Timavgift","Bilaga 3","Bilaga 2") -> Bilaga 2 | H190: =IFERROR(TableData[[#This Row],[Timmar]]*rngTimpris,"") -> 137000 | I190: 24 | J190: KEMISKA PRODUKTER | K190: Organiska kemikalier | L190: ="1. För en verksamhet som är tillståndspliktig enligt någon av 12 kap. 1-22 § miljöprövningsförordningen är tillsynstiden "&IF(ISNUMBER($E190),$E190,"x")&" timmar för anläggning med en produktionsmängd på mer än 20 000 ton per kalenderår."&IF(TableData[[#This Row],[IUV-tillägg]]="Ja"," "&rngIUV,"") -> 1. För en verksamhet som är tillståndspliktig enligt någon av 12 kap. 1-22 § miljöprövningsförordningen är tillsynstiden 137 timmar för anläggning med en produktionsmängd på mer än 20 000 ton per kalenderår.
A191: 24.01-i, 24.02-i, 24.03-i, 24.04-i, 24.05-i, 24.06-i, 24.07-i, 24.08-i, 24.09-i, 24.10-i, 24.11-i, 24.12-i, 24.13-i, 24.14-i, 24.15-i, 24.16-i, 24.17-i, 24.18-i, 24.19-i, 24.20-i, 24.21-i och 24.22-i | B191: A/B | C191: 90 | D191: Nej | E191: 90 | F191: Årlig tillsynsavgift | G191: =IF(TableData[[#This Row],[Avgift]]="Timavgift","Bilaga 3","Bilaga 2") -> Bilaga 2 | H191: =IFERROR(TableData[[#This Row],[Timmar]]*rngTimpris,"") -> 90000 | I191: 24 | J191: KEMISKA PRODUKTER | K191: Organiska kemikalier | L191: ="2. För en verksamhet som är tillståndspliktig enligt någon av 12 kap. 1-22 § miljöprövningsförordningen är tillsynstiden "&IF(ISNUMBER($E191),$E191,"x")&" timmar för anläggning med en produktionsmängd på högst 20 000 ton per kalenderår."&IF(TableData[[#This Row],[IUV-tillägg]]="Ja"," "&rngIUV,"") -> 2. För en verksamhet som är tillståndspliktig enligt någon av 12 kap. 1-22 § miljöprövningsförordningen är tillsynstiden 90 timmar för anläggning med en produktionsmängd på högst 20 000 ton per kalenderår.
A192: ="" ->  | G192: Bilaga 2 | H192: =IFERROR(TableData[[#This Row],[Timmar]]*rngTimpris,"") -> 0 | I192: 24 | J192: KEMISKA PRODUKTER | K192: Oorganiska kemikalier | L192: Verksamhetsgrupp Oorganiska kemikalier
A193: 24.23-i | B193: A | C193: 227 | D193: Nej | E193: =IF(TableData[[#This Row],[Tillsynsbehov]]="Ange tillsynsbehov","Ange tillsynsbehov",IF(LEFT(TableData[[#This Row],[Tillsynsbehov]],4)="Högt",INDEX(tblTillsynsTim,1,MATCH(TableData[[#This Row],[Prövn.- nivå]],rngTillsynsNiv,0)),IF(LEFT(TableData[[#This Row],[Tillsynsbehov]],4)="Norm",INDEX(tblTillsynsTim,2,MATCH(TableData[[#This Row],[Prövn.- nivå]],rngTillsynsNiv,0)),IF(LEFT(TableData[[#This Row],[Tillsynsbehov]],4)="Lågt",INDEX(tblTillsynsTim,3,MATCH(TableData[[#This Row],[Prövn.- nivå]],rngTillsynsNiv,0)),IF(LEFT(TableData[[#This Row],[Tillsynsbehov]],4)="Spor",INDEX(tblTillsynsTim,4,MATCH(TableData[[#This Row],[Prövn.- nivå]],rngTillsynsNiv,0)),TableData[[#This Row],[Tillsynsbehov]]))))) -> 227 | F193: Årlig tillsynsavgift | G193: =IF(TableData[[#This Row],[Avgift]]="Timavgift","Bilaga 3","Bilaga 2") -> Bilaga 2 | H193: =IFERROR(TableData[[#This Row],[Timmar]]*rngTimpris,"") -> 227000 | I193: 24 | J193: KEMISKA PRODUKTER | K193: Oorganiska kemikalier | L193: ="1. För en verksamhet som är tillståndspliktig enligt 12 kap. 23 § miljöprövningsförordningen är tillsynstiden "&IF(ISNUMBER($E193),$E193,"x")&" timmar om verksamheten avser kloralkali med användning av amalgammetoden."&IF(TableData[[#This Row],[IUV-tillägg]]="Ja"," "&rngIUV,"") -> 1. För en verksamhet som är tillståndspliktig enligt 12 kap. 23 § miljöprövningsförordningen är tillsynstiden 227 timmar om verksamheten avser kloralkali med användning av amalgammetoden.
A194: 24.23-i | B194: A | C194: 184 | D194: Nej | E194: 184 | F194: Årlig tillsynsavgift | G194: =IF(TableData[[#This Row],[Avgift]]="Timavgift","Bilaga 3","Bilaga 2") -> Bilaga 2 | H194: =IFERROR(TableData[[#This Row],[Timmar]]*rngTimpris,"") -> 184000 | I194: 24 | J194: KEMISKA PRODUKTER | K194: Oorganiska kemikalier | L194: ="2. För en verksamhet som är tillståndspliktig enligt 12 kap. 23 § miljöprövningsförordningen är tillsynstiden "&IF(ISNUMBER($E194),$E194,"x")&" timmar om verksamheten avser annan tillverkning av gas än den som omfattas av 1."&IF(TableData[[#This Row],[IUV-tillägg]]="Ja"," "&rngIUV,"") -> 2. För en verksamhet som är tillståndspliktig enligt 12 kap. 23 § miljöprövningsförordningen är tillsynstiden 184 timmar om verksamheten avser annan tillverkning av gas än den som omfattas av 1.
A195: 24.24-i | B195: B | C195: 90 | D195: Nej | E195: =IF(TableData[[#This Row],[Tillsynsbehov]]="Ange tillsynsbehov","Ange tillsynsbehov",IF(LEFT(TableData[[#This Row],[Tillsynsbehov]],4)="Högt",INDEX(tblTillsynsTim,1,MATCH(TableData[[#This Row],[Prövn.- nivå]],rngTillsynsNiv,0)),IF(LEFT(TableData[[#This Row],[Tillsynsbehov]],4)="Norm",INDEX(tblTillsynsTim,2,MATCH(TableData[[#This Row],[Prövn.- nivå]],rngTillsynsNiv,0)),IF(LEFT(TableData[[#This Row],[Tillsynsbehov]],4)="Lågt",INDEX(tblTillsynsTim,3,MATCH(TableData[[#This Row],[Prövn.- nivå]],rngTillsynsNiv,0)),IF(LEFT(TableData[[#This Row],[Tillsynsbehov]],4)="Spor",INDEX(tblTillsynsTim,4,MATCH(TableData[[#This Row],[Prövn.- nivå]],rngTillsynsNiv,0)),TableData[[#This Row],[Tillsynsbehov]]))))) -> 90 | F195: Årlig tillsynsavgift | G195: =IF(TableData[[#This Row],[Avgift]]="Timavgift","Bilaga 3","Bilaga 2") -> Bilaga 2 | H195: =IFERROR(TableData[[#This Row],[Timmar]]*rngTimpris,"") -> 90000 | I195: 24 | J195: KEMISKA PRODUKTER | K195: Oorganiska kemikalier | L195: ="För en verksamhet som är tillståndspliktig enligt 12 kap. 24 § miljöprövningsförordningen är tillsynstiden "&IF(ISNUMBER($E195),$E195,"x")&" timmar."&IF(TableData[[#This Row],[IUV-tillägg]]="Ja"," "&rngIUV,"") -> För en verksamhet som är tillståndspliktig enligt 12 kap. 24 § miljöprövningsförordningen är tillsynstiden 90 timmar.
A196: 24.25-i, 24.26-i, 24.27-i, 24.28-i, 24.29-i, 24.30-i, 24.31-i och 24.32-i | B196: A/B | C196: 137 | D196: Nej | E196: =IF(TableData[[#This Row],[Tillsynsbehov]]="Ange tillsynsbehov","Ange tillsynsbehov",IF(LEFT(TableData[[#This Row],[Tillsynsbehov]],4)="Högt",INDEX(tblTillsynsTim,1,MATCH(TableData[[#This Row],[Prövn.- nivå]],rngTillsynsNiv,0)),IF(LEFT(TableData[[#This Row],[Tillsynsbehov]],4)="Norm",INDEX(tblTillsynsTim,2,MATCH(TableData[[#This Row],[Prövn.- nivå]],rngTillsynsNiv,0)),IF(LEFT(TableData[[#This Row],[Tillsynsbehov]],4)="Lågt",INDEX(tblTillsynsTim,3,MATCH(TableData[[#This Row],[Prövn.- nivå]],rngTillsynsNiv,0)),IF(LEFT(TableData[[#This Row],[Tillsynsbehov]],4)="Spor",INDEX(tblTillsynsTim,4,MATCH(TableData[[#This Row],[Prövn.- nivå]],rngTillsynsNiv,0)),TableData[[#This Row],[Tillsynsbehov]]))))) -> 137 | F196: Årlig tillsynsavgift | G196: =IF(TableData[[#This Row],[Avgift]]="Timavgift","Bilaga 3","Bilaga 2") -> Bilaga 2 | H196: =IFERROR(TableData[[#This Row],[Timmar]]*rngTimpris,"") -> 137000 | I196: 24 | J196: KEMISKA PRODUKTER | K196: Oorganiska kemikalier | L196: ="1. För en verksamhet som är tillståndspliktig enligt någon av 12 kap. 25-32 § miljöprövningsförordningen är tillsynstiden "&IF(ISNUMBER($E196),$E196,"x")&" timmar för anläggning med en produktionsmängd på mer än 20 000 ton per kalenderår."&IF(TableData[[#This Row],[IUV-tillägg]]="Ja"," "&rngIUV,"") -> 1. För en verksamhet som är tillståndspliktig enligt någon av 12 kap. 25-32 § miljöprövningsförordningen är tillsynstiden 137 timmar för anläggning med en produktionsmängd på mer än 20 000 ton per kalenderår.
A197: 24.25-i, 24.26-i, 24.27-i, 24.28-i, 24.29-i, 24.30-i, 24.31-i och 24.32-i | B197: A/B | C197: 90 | D197: Nej | E197: =IF(TableData[[#This Row],[Tillsynsbehov]]="Ange tillsynsbehov","Ange tillsynsbehov",IF(LEFT(TableData[[#This Row],[Tillsynsbehov]],4)="Högt",INDEX(tblTillsynsTim,1,MATCH(TableData[[#This Row],[Prövn.- nivå]],rngTillsynsNiv,0)),IF(LEFT(TableData[[#This Row],[Tillsynsbehov]],4)="Norm",INDEX(tblTillsynsTim,2,MATCH(TableData[[#This Row],[Prövn.- nivå]],rngTillsynsNiv,0)),IF(LEFT(TableData[[#This Row],[Tillsynsbehov]],4)="Lågt",INDEX(tblTillsynsTim,3,MATCH(TableData[[#This Row],[Prövn.- nivå]],rngTillsynsNiv,0)),IF(LEFT(TableData[[#This Row],[Tillsynsbehov]],4)="Spor",INDEX(tblTillsynsTim,4,MATCH(TableData[[#This Row],[Prövn.- nivå]],rngTillsynsNiv,0)),TableData[[#This Row],[Tillsynsbehov]]))))) -> 90 | F197: Årlig tillsynsavgift | G197: =IF(TableData[[#This Row],[Avgift]]="Timavgift","Bilaga 3","Bilaga 2") -> Bilaga 2 | H197: =IFERROR(TableData[[#This Row],[Timmar]]*rngTimpris,"") -> 90000 | I197: 24 | J197: KEMISKA PRODUKTER | K197: Oorganiska kemikalier | L197: ="2. För en verksamhet som är tillståndspliktig enligt någon av 12 kap. 25-32 § miljöprövningsförordningen är tillsynstiden "&IF(ISNUMBER($E197),$E197,"x")&" timmar för anläggning med en produktionsmängd på högst 20 000 ton per kalenderår."&IF(TableData[[#This Row],[IUV-tillägg]]="Ja"," "&rngIUV,"") -> 2. För en verksamhet som är tillståndspliktig enligt någon av 12 kap. 25-32 § miljöprövningsförordningen är tillsynstiden 90 timmar för anläggning med en produktionsmängd på högst 20 000 ton per kalenderår.
A198: ="" ->  | G198: Bilaga 2 | H198: =IFERROR(TableData[[#This Row],[Timmar]]*rngTimpris,"") -> 0 | I198: 24 | J198: KEMISKA PRODUKTER | K198: Gödselmedel | L198: Verksamhetsgrupp Gödselmedel
A199: 24.33-i och 24.34-i | B199: A/B | C199: 184 | D199: Nej | E199: =IF(TableData[[#This Row],[Tillsynsbehov]]="Ange tillsynsbehov","Ange tillsynsbehov",IF(LEFT(TableData[[#This Row],[Tillsynsbehov]],4)="Högt",INDEX(tblTillsynsTim,1,MATCH(TableData[[#This Row],[Prövn.- nivå]],rngTillsynsNiv,0)),IF(LEFT(TableData[[#This Row],[Tillsynsbehov]],4)="Norm",INDEX(tblTillsynsTim,2,MATCH(TableData[[#This Row],[Prövn.- nivå]],rngTillsynsNiv,0)),IF(LEFT(TableData[[#This Row],[Tillsynsbehov]],4)="Lågt",INDEX(tblTillsynsTim,3,MATCH(TableData[[#This Row],[Prövn.- nivå]],rngTillsynsNiv,0)),IF(LEFT(TableData[[#This Row],[Tillsynsbehov]],4)="Spor",INDEX(tblTillsynsTim,4,MATCH(TableData[[#This Row],[Prövn.- nivå]],rngTillsynsNiv,0)),TableData[[#This Row],[Tillsynsbehov]]))))) -> 184 | F199: Årlig tillsynsavgift | G199: =IF(TableData[[#This Row],[Avgift]]="Timavgift","Bilaga 3","Bilaga 2") -> Bilaga 2 | H199: =IFERROR(TableData[[#This Row],[Timmar]]*rngTimpris,"") -> 184000 | I199: 24 | J199: KEMISKA PRODUKTER | K199: Gödselmedel | L199: ="1. För en verksamhet som är tillståndspliktig enligt 12 kap. 33 eller 34 § miljöprövningsförordningen är tillsynstiden "&IF(ISNUMBER($E199),$E199,"x")&" timmar för anläggning med en produktionsmängd på mer än 20 000 ton per kalenderår."&IF(TableData[[#This Row],[IUV-tillägg]]="Ja"," "&rngIUV,"") -> 1. För en verksamhet som är tillståndspliktig enligt 12 kap. 33 eller 34 § miljöprövningsförordningen är tillsynstiden 184 timmar för anläggning med en produktionsmängd på mer än 20 000 ton per kalenderår.
A200: 24.33-i och 24.34-i | B200: A/B | C200: 90 | D200: Nej | E200: =IF(TableData[[#This Row],[Tillsynsbehov]]="Ange tillsynsbehov","Ange tillsynsbehov",IF(LEFT(TableData[[#This Row],[Tillsynsbehov]],4)="Högt",INDEX(tblTillsynsTim,1,MATCH(TableData[[#This Row],[Prövn.- nivå]],rngTillsynsNiv,0)),IF(LEFT(TableData[[#This Row],[Tillsynsbehov]],4)="Norm",INDEX(tblTillsynsTim,2,MATCH(TableData[[#This Row],[Prövn.- nivå]],rngTillsynsNiv,0)),IF(LEFT(TableData[[#This Row],[Tillsynsbehov]],4)="Lågt",INDEX(tblTillsynsTim,3,MATCH(TableData[[#This Row],[Prövn.- nivå]],rngTillsynsNiv,0)),IF(LEFT(TableData[[#This Row],[Tillsynsbehov]],4)="Spor",INDEX(tblTillsynsTim,4,MATCH(TableData[[#This Row],[Prövn.- nivå]],rngTillsynsNiv,0)),TableData[[#This Row],[Tillsynsbehov]]))))) -> 90 | F200: Årlig tillsynsavgift | G200: =IF(TableData[[#This Row],[Avgift]]="Timavgift","Bilaga 3","Bilaga 2") -> Bilaga 2 | H200: =IFERROR(TableData[[#This Row],[Timmar]]*rngTimpris,"") -> 90000 | I200: 24 | J200: KEMISKA PRODUKTER | K200: Gödselmedel | L200: ="2. För en verksamhet som är tillståndspliktig enligt 12 kap. 33 eller 34 § miljöprövningsförordningen är tillsynstiden "&IF(ISNUMBER($E200),$E200,"x")&" timmar för anläggning med en produktionsmängd på högst 20 000 ton per kalenderår."&IF(TableData[[#This Row],[IUV-tillägg]]="Ja"," "&rngIUV,"") -> 2. För en verksamhet som är tillståndspliktig enligt 12 kap. 33 eller 34 § miljöprövningsförordningen är tillsynstiden 90 timmar för anläggning med en produktionsmängd på högst 20 000 ton per kalenderår.
... 452 more rows

Sheet Taxebilaga 2 (hidden)
A1: Taxebilaga 2 | C1: Fast årlig avgift (förskottsbetalning)
A3: ="För så kallade industriutsläppsverksamheter (IUV, markerade med ""-I"" efter koden) så tillkommer ett generellt tillägg med "&Planering!D20&" timmar." -> För så kallade industriutsläppsverksamheter (IUV, markerade med "-I" efter koden) så tillkommer ett generellt tillägg med 20 timmar.
A5: Verksamhets- kod | B5: Prövn.- nivå | C5: Timmar | D5: Beskrivning
D6: VERKSAMHETSGRUPP JORDBRUK
D7: Verksamhetsgrupp Djurhållning
A8: 1.10-i och 1.11 | B8: B | C8: 9 | D8: För en verksamhet som är tillståndspliktig enligt 2 kap. 1 eller 2 § miljöprövningsförordningen är tillsynstiden 9 timmar.
A9: 1.20 | B9: C | C9: Ange tillsynsbehov | D9: För en verksamhet som är anmälningspliktig enligt 2 kap. 3 § miljöprövningsförordningen är tillsynstiden x timmar.
D10: Verksamhetsgrupp Uppodling av annan mark än jordbruksmark för jordbruksproduktion
A11: 1.30 | B11: C | C11: Ange tillsynsbehov | D11: För en verksamhet som är anmälningspliktig enligt 2 kap. 4 § miljöprövningsförordningen är tillsynstiden x timmar.
D12: VERKSAMHETSGRUPP FISKODLING OCH ÖVERVINTRING AV FISK
A13: 5.10 | B13: B | C13: 9 | D13: För en verksamhet som är tillståndspliktig enligt 3 kap. 1 § miljöprövningsförordningen är tillsynstiden 9 timmar.
A14: 5.20 | B14: C | C14: Ange tillsynsbehov | D14: För en verksamhet som är anmälningspliktig enligt 3 kap. 2 § miljöprövningsförordningen är tillsynstiden x timmar.
D15: VERKSAMHETSGRUPP UTVINNING, BRYTNING OCH BEARBETNING AV TORV, OLJA, GAS, KOL, MALM, MINERAL, BERG, NATURGRUS OCH ANNAT
D16: Verksamhetsgrupp Berg, naturgrus och andra jordarter
A17: 10.10 | B17: B | C17: 9 | D17: För en verksamhet som är tillståndspliktig enligt 4 kap. 1 § miljöprövningsförordningen är tillsynstiden 9 timmar.
A18: 10.11 | B18: B | C18: 18 | D18: 1. För en verksamhet som är tillståndspliktig enligt 4 kap. 2 § miljöprövningsförordningen är tillsynstiden 18 timmar om tillståndet gäller för mer än 200 000 ton.
A19: 10.11 | B19: B | C19: 18 | D19: 2. För en verksamhet som är tillståndspliktig enligt 4 kap. 2 § miljöprövningsförordningen är tillsynstiden 18 timmar om tillståndet gäller för mer än 50 000 ton men högst 200 000 ton.
A20: 10.11 | B20: B | C20: 9 | D20: 3. För en verksamhet som är tillståndspliktig enligt 4 kap. 2 § miljöprövningsförordningen är tillsynstiden 9 timmar om tillståndet gäller för mer än 10 000 ton men högst 50 000 ton.
A21: 10.11 | B21: B | C21: 9 | D21: 4. För en verksamhet som är tillståndspliktig enligt 4 kap. 2 § miljöprövningsförordningen är tillsynstiden 9 timmar, om tillståndet gäller för mer än 5 000 ton men högst 10 000 ton.
A22: 10.11 | B22: B | C22: 6 | D22: 5. För en verksamhet som är tillståndspliktig enligt 4 kap. 2 § miljöprövningsförordningen är tillsynstiden 6 timmar om tillståndet gäller för mer än 1 000 ton men högst 5 000 ton.
A23: 10.11 | B23: B | C23: 6 | D23: 6. För en verksamhet som är tillståndspliktig enligt 4 kap. 2 § miljöprövningsförordningen är tillsynstiden 6 timmar om tillståndet inte omfattas av någon av 1-5.
A24: 10.20 | B24: B | C24: 9 | D24: 1. För en verksamhet som är tillståndspliktig enligt 4 kap. 3 § miljöprövningsförordningen är tillsynstiden 9 timmar för täkt av torv.
A25: 10.20 | B25: B | C25: 18 | D25: 2. För en verksamhet som är tillståndspliktig enligt 4 kap. 3 § miljöprövningsförordningen är tillsynstiden 18 timmar för annan täkt än som avses i 1, om tillståndet gäller för mer än 200 000 ton.
A26: 10.20 | B26: B | C26: 18 | D26: 3. För en verksamhet som är tillståndspliktig enligt 4 kap. 3 § miljöprövningsförordningen är tillsynstiden 18 timmar för annan täkt än som avses i 1, om tillståndet gäller för mer än 50 000 ton men högst 200 000 ton.
A27: 10.20 | B27: B | C27: 9 | D27: 4. För en verksamhet som är tillståndspliktig enligt 4 kap. 3 § miljöprövningsförordningen är tillsynstiden 9 timmar för annan täkt än som avses i 1, om tillståndet gäller för mer än 10 000 ton men högst 50 000 ton.
A28: 10.20 | B28: B | C28: 9 | D28: 5. För en verksamhet som är tillståndspliktig enligt 4 kap. 3 § miljöprövningsförordningen är tillsynstiden 9 timmar för annan täkt än som avses i 1, om tillståndet gäller för mer än 5 000 ton men högst 10 000 ton.
A29: 10.20 | B29: B | C29: 6 | D29: 6. För en verksamhet som är tillståndspliktig enligt 4 kap. 3 § miljöprövningsförordningen är tillsynstiden 6 timmar för annan täkt än som avses i 1, om tillståndet gäller för mer än 1 000 ton men högst 5 000 ton.
A30: 10.20 | B30: B | C30: 6 | D30: 7. För en verksamhet som är tillståndspliktig enligt 4 kap. 3 § miljöprövningsförordningen är tillsynstiden 6 timmar för annan täkt än som avses i 1, om tillståndet inte omfattas av någon av 1-6.
A31: 10.30 | B31: C | C31: Ange tillsynsbehov | D31: För en verksamhet som är anmälningspliktig enligt 4 kap. 4 § miljöprövningsförordningen är tillsynstiden x timmar.
A32: 10.40 | B32: C | C32: Ange tillsynsbehov | D32: För en verksamhet som är anmälningspliktig enligt 4 kap. 5 § miljöprövningsförordningen är tillsynstiden x timmar.
A33: 10.50 | B33: C | C33: Ange tillsynsbehov | D33: För en verksamhet som är anmälningspliktig enligt 4 kap. 6 § miljöprövningsförordningen är tillsynstiden x timmar.
A34: 10.60 | B34: C | C34: Ange tillsynsbehov | D34: För en verksamhet som är anmälningspliktig enligt 4 kap. 7 § miljöprövningsförordningen är tillsynstiden x timmar.
D35: Verksamhetsgrupp Råpetroleum, naturgas och kol
A36: 11.10 | B36: A | C36: 30 | D36: För en verksamhet som är tillståndspliktig enligt 4 kap. 8 § miljöprövningsförordningen är tillsynstiden 30 timmar.
A37: 11.20 | B37: B | C37: 13 | D37: 1. För en verksamhet som är tillståndspliktig enligt 4 kap. 9 § miljöprövningsförordningen är tillsynstiden 13 timmar för utvinning i vattenområde.
A38: 11.20 | B38: B | C38: 6 | D38: 2. För en verksamhet som är tillståndspliktig enligt 4 kap. 9 § miljöprövningsförordningen är tillsynstiden 6 timmar för utvinning på land.
A39: 11.30 | B39: C | C39: Ange tillsynsbehov | D39: För en verksamhet som är anmälningspliktig enligt 4 kap. 10 § miljöprövningsförordningen är tillsynstiden x timmar.
D40: Verksamhetsgrupp Malm och mineral
A41: 13.10 | B41: A | C41: 90 | D41: 1. För en verksamhet som är tillståndspliktig enligt 4 kap. 11 § miljöprövningsförordningen är tillsynstiden 90 timmar om verksamheten avser järnmalm.
A42: 13.10 | B42: A | C42: 90 | D42: 2. För en verksamhet som är tillståndspliktig enligt 4 kap. 11 § miljöprövningsförordningen är tillsynstiden 90 timmar om verksamheten avser kol inom de områden som anges i 4 kap. 5 § miljöbalken.
A43: 13.10 | B43: A | C43: 64 | D43: 3. För en verksamhet som är tillståndspliktig enligt 4 kap. 11 § miljöprövningsförordningen är tillsynstiden 64 timmar om verksamheten avser kol inom de områden som anges i 4 kap. 5 § miljöbalken.
A44: 13.10 | B44: A | C44: 227 | D44: 4. För en verksamhet som är tillståndspliktig enligt 4 kap. 11 § miljöprövningsförordningen är tillsynstiden 227 timmar om verksamheten avser uran- eller toriummalm.
A45: 13.10 | B45: A | C45: 184 | D45: 5. För en verksamhet som är tillståndspliktig enligt 4 kap. 11 § miljöprövningsförordningen är tillsynstiden 184 timmar, om verksamheten inte omfattas av någon av 1-4.
A46: 13.20-i | B46: A | C46: 90 | D46: 1. För en verksamhet som är tillståndspliktig enligt 4 kap. 12 § miljöprövningsförordningen är tillsynstiden 90 timmar om verksamheten avser järnmalm.
A47: 13.20-i | B47: A | C47: 184 | D47: 2. För en verksamhet som är tillståndspliktig enligt 4 kap. 12 § miljöprövningsförordningen är tillsynstiden 184 timmar om verksamheten inte omfattas av 1.
A48: 13.30 | B48: B | C48: 90 | D48: För en verksamhet som är tillståndspliktig enligt 4 kap. 13 § miljöprövningsförordningen är tillsynstiden 90 timmar.
A49: 13.40 | B49: A | C49: 90 | D49: 1. För en verksamhet som är tillståndspliktig enligt 4 kap. 14 § miljöprövningsförordningen är tillsynstiden 90 timmar om verksamheten avser järnmalm.
A50: 13.40 | B50: A | C50: 64 | D50: 2. För en verksamhet som är tillståndspliktig enligt 4 kap. 14 § miljöprövningsförordningen är tillsynstiden 64 timmar om verksamheten avser kol.
A51: 13.40 | B51: A | C51: 227 | D51: 3. För en verksamhet som är tillståndspliktig enligt 4 kap. 14 § miljöprövningsförordningen är tillsynstiden 227 timmar om verksamheten avser uran- eller toriummalm.
A52: 13.40 | B52: A | C52: 184 | D52: 4. För en verksamhet som är tillståndspliktig enligt 4 kap. 14 § miljöprövningsförordningen är tillsynstiden 184 timmar om verksamheten inte omfattas av 1-3.
A53: 13.50 | B53: B | C53: 227 | D53: 1. För en verksamhet som är tillståndspliktig enligt 4 kap. 15 § miljöprövningsförordningen är tillsynstiden 227 timmar om verksamheten avser uran- eller toriummalm.
A54: 13.50 | B54: B | C54: 64 | D54: 2. För en verksamhet som är tillståndspliktig enligt 4 kap. 15 § miljöprövningsförordningen är tillsynstiden 64 timmar om verksamheten inte omfattas av 1.
A55: 13.60 | B55: B | C55: 64 | D55: För en verksamhet som är tillståndspliktig enligt 4 kap. 16 § miljöprövningsförordningen är tillsynstiden 64 timmar.
D56: Verksamhetsgrupp Annan utvinningsindustri
A57: 13.70 | B57: C | C57: Ange tillsynsbehov | D57: För en verksamhet som är anmälningspliktig enligt 4 kap. 17 § miljöprövningsförordningen är tillsynstiden x timmar.
D58: VERKSAMHETSGRUPP LIVSMEDEL OCH FODER
D59: Verksamhetsgrupp Slakterier
A60: 15.10-i | B60: B | C60: 90 | D60: 1. För en verksamhet som är tillståndspliktig enligt 5 kap. 1 § miljöprövningsförordningen är tillsynstiden 90 timmar för produktion baserad på slaktvikt som omfattar mer än 50 000 ton per kalenderår.
A61: 15.10-i | B61: B | C61: 30 | D61: 2. För en verksamhet som är tillståndspliktig enligt 5 kap. 1 § miljöprövningsförordningen är tillsynstiden 30 timmar för produktion som inte omfattas av 1.
A62: 15.20 | B62: B | C62: 30 | D62: För en verksamhet som är tillståndspliktig enligt 5 kap. 2 § miljöprövningsförordningen är tillsynstiden 30 timmar.
A63: 15.30 | B63: C | C63: Ange tillsynsbehov | D63: För en verksamhet som är anmälningspliktig enligt 5 kap. 3 § miljöprövningsförordningen är tillsynstiden x timmar.
D64: Verksamhetsgrupp Livsmedel och foder av animaliska råvaror
A65: 15.40-i, 15.45 | B65: B | C65: 90 | D65: 1. För en verksamhet som är tillståndspliktig enligt 5 kap. 4 eller 5 § miljöprövningsförordningen är tillsynstiden 90 timmar om verksamheten avser bearbetning av animaliska biprodukter för framställning av livsmedel eller för framställning av foder om mer än 10 000 ton animaliska biprodukter används som råvara per kalenderår.
A66: 15.40-i, 15.45 | B66: B | C66: 30 | D66: 2. För en verksamhet som är tillståndspliktig enligt 5 kap. 4 eller 5 § miljöprövningsförordningen är tillsynstiden 30 timmar om verksamheten avser rökning för framställning av livsmedel eller för framställning av foder om mer än 10 000 ton animaliska biprodukter används som råvara per kalenderår.
A67: 15.40-i, 15.45 | B67: B | C67: 64 | D67: 3. För en verksamhet som är tillståndspliktig enligt 5 kap. 4 eller 5 § miljöprövningsförordningen är tillsynstiden 64 timmar om verksamheten inte omfattas av 1 eller 2.
A68: 15.50 | B68: C | C68: Ange tillsynsbehov | D68: För en verksamhet som är anmälningspliktig enligt 5 kap. 6 § miljöprövningsförordningen är tillsynstiden x timmar.
A69: 15.65 | B69: C | C69: Ange tillsynsbehov | D69: För en verksamhet som är anmälningspliktig enligt 5 kap. 6 a § miljöprövningsförordningen är tillsynstiden x timmar.
D70: Verksamhetsgrupp Rökeri
A71: 15.80 | B71: C | C71: Ange tillsynsbehov | D71: För en verksamhet som är anmälningspliktig enligt 5 kap. 7 § miljöprövningsförordningen är tillsynstiden x timmar.
D72: Verksamhetsgrupp Livsmedel och foder av vegetabiliska råvaror
A73: 15.90-i, 15.95 | B73: B | C73: 64 | D73: 1. För en verksamhet som är tillståndspliktig enligt 5 kap. 8 eller 9 § miljöprövningsförordningen är tillsynstiden 64 timmar om verksamheten avser anläggning för tillverkning av stärkelse, stärkelsederivat eller socker.
A74: 15.90-i, 15.95 | B74: B | C74: 30 | D74: 2. För en verksamhet som är tillståndspliktig enligt 5 kap. 8 eller 9 § miljöprövningsförordningen är tillsynstiden 30 timmar om verksamheten avser rostning av kaffe.
A75: 15.90-i, 15.95 | B75: B | C75: 64 | D75: 3. För en verksamhet som är tillståndspliktig enligt 5 kap. 8 eller 9 § miljöprövningsförordningen är tillsynstiden 64 timmar om verksamheten avser anläggning för framställning av livsmedel med beredning och behandling med en produktion av mer än 50 000 ton per kalenderår och inte omfattas av 1 eller 2.
A76: 15.90-i, 15.95 | B76: B | C76: 30 | D76: 4. För en verksamhet som är tillståndspliktig enligt 5 kap. 8 eller 9 § miljöprövningsförordningen är tillsynstiden 30 timmar om verksamheten inte omfattas av någon av 1-3.
A77: 15.101 | B77: C | C77: Ange tillsynsbehov | D77: För en verksamhet som är anmälningspliktig enligt 5 kap. 10 § miljöprövningsförordningen är tillsynstiden x timmar.
A78: 15.115 | B78: C | C78: Ange tillsynsbehov | D78: För en verksamhet som är anmälningspliktig enligt 5 kap. 10 a § miljöprövningsförordningen är tillsynstiden x timmar.
D79: Verksamhetsgrupp Kvarnprodukter
A80: 15.125 | B80: C | C80: Ange tillsynsbehov | D80: För en verksamhet som är anmälningspliktig enligt 5 kap. 11 § miljöprövningsförordningen är tillsynstiden x timmar.
D81: Verksamhetsgrupp Livsmedel och foder av kombinerade råvaror
A82: 15.131-i, 15.141 | B82: B | C82: 90 | D82: 1. För en verksamhet som är tillståndspliktig enligt 5 kap. 12 eller 13 § miljöprövningsförordningen är tillsynstiden 90 timmar om verksamheten avser bearbetning av mer än 10 000 ton animaliska biprodukter som råvara per kalenderår för framställning av foder.
A83: 15.131-i, 15.141 | B83: B | C83: 64 | D83: 2. För en verksamhet som är tillståndspliktig enligt 5 kap. 12 eller 13 § miljöprövningsförordningen är tillsynstiden 64 timmar med en produktion av mer än 10 000 ton livsmedel per kalenderår.
A84: 15.131-i, 15.141 | B84: B | C84: 30 | D84: 3. För en verksamhet som är tillståndspliktig enligt 5 kap. 12 eller 13 § miljöprövningsförordningen är tillsynstiden 30 timmar om verksamheten inte omfattas av 1 eller 2.
A85: 15.151 | B85: C | C85: Ange tillsynsbehov | D85: För en verksamhet som är anmälningspliktig enligt 5 kap. 14 § miljöprövningsförordningen är tillsynstiden x timmar.
A86: 15.155 | B86: C | C86: Ange tillsynsbehov | D86: För en verksamhet som är anmälningspliktig enligt 5 kap. 14 a § miljöprövningsförordningen är tillsynstiden x timmar.
D87: Verksamhetsgrupp Mjölkprodukter
A88: 15.170-i | B88: B | C88: 30 | D88: För en verksamhet som är tillståndspliktig enligt 5 kap. 15 § miljöprövningsförordningen är tillsynstiden 30 timmar.
A89: 15.180 | B89: C | C89: Ange tillsynsbehov | D89: För en verksamhet som är anmälningspliktig enligt 5 kap. 16 § miljöprövningsförordningen är tillsynstiden x timmar.
D90: Verksamhetsgrupp Annan livsmedelstillverkning
A91: 15.185-i och 15.190 | B91: B | C91: 90 | D91: 1. För en verksamhet som är tillståndspliktig enligt 5 kap. 17 eller 18 § miljöprövningsförordningen är tillsynstiden 90 timmar om verksamheten avser framställning eller raffinering av vegetabiliska eller animaliska oljor eller fetter med en produktion av mer än 100 000 ton per kalenderår.
A92: 15.185-i och 15.190 | B92: B | C92: 64 | D92: 2. För en verksamhet som är tillståndspliktig enligt 5 kap. 17 eller 18 § miljöprövningsförordningen är tillsynstiden 64 timmar om verksamheten avser framställning eller raffinering av vegetabiliska eller animaliska oljor eller fetter med en produktion av mer än 50 000 ton men högst 100 000 ton per kalenderår.
A93: 15.185-i och 15.190 | B93: B | C93: 30 | D93: 3. För en verksamhet som är tillståndspliktig enligt 5 kap. 17 eller 18 § miljöprövningsförordningen är tillsynstiden 30 timmar om verksamheten avser framställning eller raffinering av vegetabiliska eller animaliska oljor eller fetter med en produktion av högst 50 000 ton per kalenderår.
A94: 15.185-i och 15.190 | B94: B | C94: 30 | D94: 4. För en verksamhet som är tillståndspliktig enligt 5 kap. 17 eller 18 § miljöprövningsförordningen är tillsynstiden 30 timmar för annan verksamhet som inte omfattas av någon av 1-3.
A95: 15.200 | B95: C | C95: Ange tillsynsbehov | D95: För en verksamhet som är anmälningspliktig enligt 5 kap. 19 § miljöprövningsförordningen är tillsynstiden x timmar.
A96: 15.210 | B96: B | C96: 30 | D96: För en verksamhet som är tillståndspliktig enligt 5 kap. 20 § miljöprövningsförordningen är tillsynstiden 30 timmar.
A97: 15.220 | B97: C | C97: Ange tillsynsbehov | D97: För en verksamhet som är anmälningspliktig enligt 5 kap. 21 § miljöprövningsförordningen är tillsynstiden x timmar.
A98: 15.230 | B98: B | C98: 64 | D98: För en verksamhet som är tillståndspliktig enligt 5 kap. 22 § miljöprövningsförordningen är tillsynstiden 64 timmar.
A99: 15.240 | B99: C | C99: Ange tillsynsbehov | D99: För en verksamhet som är anmälningspliktig enligt 5 kap. 23 § miljöprövningsförordningen är tillsynstiden x timmar.
A100: 15.250 | B100: B | C100: 13 | D100: 1. För en verksamhet som är tillståndspliktig enligt 5 kap. 24 § miljöprövningsförordningen är tillsynstiden 13 timmar för framställning av malt.
A101: 15.250 | B101: B | C101: 64 | D101: 2. För en verksamhet som är tillståndspliktig enligt 5 kap. 24 § miljöprövningsförordningen är tillsynstiden 64 timmar för framställning av mer än 20 000 ton läskedryck eller maltdryck per kalenderår.
A102: 15.250 | B102: B | C102: 30 | D102: 3. För en verksamhet som är tillståndspliktig enligt 5 kap. 24 § miljöprövningsförordningen är tillsynstiden 30 timmar för framställning av mer än 10 000 ton men högst 20 000 ton läskedryck eller maltdryck per kalenderår.
A103: 15.260 | B103: C | C103: Ange tillsynsbehov | D103: För en verksamhet som är anmälningspliktig enligt 5 kap. 25 § miljöprövningsförordningen är tillsynstiden x timmar.
A104: 15.270 | B104: B | C104: 90 | D104: 1. För en verksamhet som är tillståndspliktig enligt 5 kap. 26 § miljöprövningsförordningen är tillsynstiden 90 timmar för anläggning för tillverkning av jäst.
A105: 15.270 | B105: B | C105: 47 | D105: 2. För en verksamhet som är tillståndspliktig enligt 5 kap. 26 § miljöprövningsförordningen är tillsynstiden 47 timmar för anläggning för tillverkning av startkulturer av mikroorganismer.
A106: 15.280 | B106: C | C106: Ange tillsynsbehov | D106: För en verksamhet som är anmälningspliktig enligt 5 kap. 27 § miljöprövningsförordningen är tillsynstiden x timmar.
A107: 15.310 | B107: C | C107: Ange tillsynsbehov | D107: För en verksamhet som är anmälningspliktig enligt 5 kap. 28 § miljöprövningsförordningen är tillsynstiden x timmar.
D108: Verksamhetsgrupp Foder av animaliska och vegetabiliska råvaror
A109: 15.330-i, 15.350-i och 15.370-i | B109: B | C109: 90 | D109: 1. För en verksamhet som är tillståndspliktig enligt 5 kap. 29, 31 eller 33 § miljöprövningsförordningen är tillsynstiden 90 timmar för anläggning för bearbetning av animaliska biprodukter med en produktion baserad på mer än 10 000 ton råvara per kalenderår.
A110: 15.330-i, 15.350-i och 15.370-i | B110: B | C110: 30 | D110: 2. För en verksamhet som är tillståndspliktig enligt 5 kap. 29, 31 eller 33 § miljöprövningsförordningen är tillsynstiden 30 timmar för anläggning som inte omfattas av 1.
A111: 15.340 | B111: C | C111: Ange tillsynsbehov | D111: För en verksamhet som är anmälningspliktig enligt 5 kap. 30 § miljöprövningsförordningen är tillsynstiden x timmar.
A112: 15.360 | B112: C | C112: Ange tillsynsbehov | D112: För en verksamhet som är anmälningspliktig enligt 5 kap. 32 § miljöprövningsförordningen är tillsynstiden x timmar.
D113: VERKSAMHETSGRUPP TEXTILVAROR
A114: 17.10-i | B114: B | C114: 90 | D114: För en verksamhet som är tillståndspliktig enligt 6 kap. 1 § miljöprövningsförordningen är tillsynstiden 90 timmar.
A115: 17.20 | B115: B | C115: 64 | D115: 1. För en verksamhet som är tillståndspliktig enligt 6 kap. 2 § miljöprövningsförordningen är tillsynstiden 64 timmar för anläggning för hantering av mer än 1 000 ton men högst 2 500 ton textilfibrer eller textilier per kalenderår.
A116: 17.20 | B116: B | C116: 30 | D116: 2. För en verksamhet som är tillståndspliktig enligt 6 kap. 2 § miljöprövningsförordningen är tillsynstiden 30 timmar för anläggning som inte omfattas av 1.
A117: 17.30 | B117: C | C117: Ange tillsynsbehov | D117: För en verksamhet som är anmälningspliktig enligt 6 kap. 3 § miljöprövningsförordningen är tillsynstiden x timmar.
D118: VERKSAMHETSGRUPP PÄLS, SKINN OCH LÄDER
A119: 18.10-i | B119: B | C119: 90 | D119: För en verksamhet som är tillståndspliktig enligt 7 kap. 1 § miljöprövningsförordningen är tillsynstiden 90 timmar.
A120: 18.20 | B120: B | C120: 90 | D120: 1. För en verksamhet som är tillståndspliktig enligt 7 kap. 2 § miljöprövningsförordningen är tillsynstiden 90 timmar om verksamheten avser garvning av mer än 1 000 ton produkter per kalenderår.
A121: 18.20 | B121: B | C121: 30 | D121: 2. För en verksamhet som är tillståndspliktig enligt 7 kap. 2 § miljöprövningsförordningen är tillsynstiden 30 timmar om verksamheten avser garvning av högst 1 000 ton produkter per kalenderår.
A122: 18.20 | B122: B | C122: 23 | D122: 3. För en verksamhet som är tillståndspliktig enligt 7 kap. 2 § miljöprövningsförordningen är tillsynstiden 23 timmar om verksamheten avser annan beredning av hudar och skinn än garvning.
A123: 18.30 | B123: C | C123: Ange tillsynsbehov | D123: För en verksamhet som är anmälningspliktig enligt 7 kap. 3 § miljöprövningsförordningen är tillsynstiden x timmar.
D124: VERKSAMHETSGRUPP TRÄVAROR
A125: 20.05-i | B125: B | C125: 64 | D125: För en verksamhet som är tillståndspliktig enligt 8 kap. 1 § miljöprövningsförordningen är tillsynstiden 64 timmar.
A126: 20.10 | B126: C | C126: Ange tillsynsbehov | D126: För en verksamhet som är anmälningspliktig enligt 8 kap. 2 § miljöprövningsförordningen är tillsynstiden x timmar.
A127: 20.20 | B127: B | C127: 64 | D127: 1. För en verksamhet som är tillståndspliktig enligt 8 kap. 3 § miljöprövningsförordningen är tillsynstiden 64 timmar för produktion som omfattar mer än 200 000 kubikmeter per kalenderår.
A128: 20.20 | B128: B | C128: 30 | D128: 2. För en verksamhet som är tillståndspliktig enligt 8 kap. 3 § miljöprövningsförordningen är tillsynstiden 30 timmar för produktion som inte omfattas av 1.
A129: 20.30 | B129: C | C129: Ange tillsynsbehov | D129: För en verksamhet som är anmälningspliktig enligt 8 kap. 4 § miljöprövningsförordningen är tillsynstiden x timmar.
A130: 20.40 | B130: C | C130: Ange tillsynsbehov | D130: För en verksamhet som är anmälningspliktig enligt 8 kap. 5 § miljöprövningsförordningen är tillsynstiden x timmar.
A131: 20.50-i | B131: B | C131: 137 | D131: 1. För en verksamhet som är tillståndspliktig enligt 8 kap. 6 § miljöprövningsförordningen är tillsynstiden 137 timmar för produktion som omfattar mer än 20 000 ton per kalenderår.
A132: 20.50-i | B132: B | C132: 64 | D132: 2. För en verksamhet som är tillståndspliktig enligt 8 kap. 6 § miljöprövningsförordningen är tillsynstiden 64 timmar för produktion som inte omfattas av 1.
A133: 20.60 | B133: C | C133: Ange tillsynsbehov | D133: För en verksamhet som är anmälningspliktig enligt 8 kap. 7 § miljöprövningsförordningen är tillsynstiden x timmar.
A134: 20.70 | B134: B | C134: 13 | D134: För en verksamhet som är tillståndspliktig enligt 8 kap. 8 § miljöprövningsförordningen är tillsynstiden 13 timmar.
A135: 20.80 | B135: C | C135: Ange tillsynsbehov | D135: För en verksamhet som är anmälningspliktig enligt 8 kap. 9 § miljöprövningsförordningen är tillsynstiden x timmar.
A136: 20.90 | B136: C | C136: Ange tillsynsbehov | D136: För en verksamhet som är anmälningspliktig enligt 8 kap. 10 § miljöprövningsförordningen är tillsynstiden x timmar.
A137: 20.91 | B137: C | C137: Ange tillsynsbehov | D137: För en verksamhet som är anmälningspliktig enligt 8 kap. 11 § miljöprövningsförordningen är tillsynstiden x timmar.
D138: VERKSAMHETSGRUPP MASSA, PAPPER OCH PAPPERSVAROR
A139: 21.10-i | B139: A | C139: 306 | D139: 1. För en verksamhet som är tillståndspliktig enligt 9 kap. 1 § miljöprövningsförordningen är tillsynstiden 306 timmar för anläggning för en produktion av mer än 300 000 ton sulfat- eller sulfitmassa per kalenderår om verksamheten har blekeri.
A140: 21.10-i | B140: A | C140: 227 | D140: 2. För en verksamhet som är tillståndspliktig enligt 9 kap. 1 § miljöprövningsförordningen är tillsynstiden 227 timmar för en produktion av högst 300 000 ton sulfat- eller sulfitmassa om verksamheten har blekeri.
A141: 21.10-i | B141: A | C141: 184 | D141: 3. För en verksamhet som är tillståndspliktig enligt 9 kap. 1 § miljöprövningsförordningen är tillsynstiden 184 timmar för en produktion av sulfat- eller sulfitmassa om verksamheten inte har blekeri.
A142: 21.10-i | B142: A | C142: 137 | D142: 4. För en verksamhet som är tillståndspliktig enligt 9 kap. 1 § miljöprövningsförordningen är tillsynstiden 137 timmar om verksamheten avser framställning av halvkemisk massa.
A143: 21.10-i | B143: A | C143: 137 | D143: 5. För en verksamhet som är tillståndspliktig enligt 9 kap. 1 § miljöprövningsförordningen är tillsynstiden 137 timmar för annan anläggning än de som avses i 1-4 med en produktion av mer än 200 000 ton per kalenderår.
A144: 21.10-i | B144: A | C144: 90 | D144: 6. För en verksamhet som är tillståndspliktig enligt 9 kap. 1 § miljöprövningsförordningen är tillsynstiden 90 timmar för anläggning som inte omfattas av någon av 1-5.
A145: 21.30-i | B145: A | C145: 90 | D145: 1. För en verksamhet som är tillståndspliktig enligt 9 kap. 2 § miljöprövningsförordningen är tillsynstiden 90 timmar för framställning av mer än 10 000 ton per kalenderår.
A146: 21.30-i | B146: A | C146: 47 | D146: 2. För en verksamhet som är tillståndspliktig enligt 9 kap. 2 § miljöprövningsförordningen är tillsynstiden 47 timmar för framställning som inte omfattas av 1.
A147: 21.40 | B147: B | C147: 47 | D147: För en verksamhet som är tillståndspliktig enligt 9 kap. 3 § miljöprövningsförordningen är tillsynstiden 47 timmar.
D148: VERKSAMHETSGRUPP FOTOGRAFISK OCH GRAFISK PRODUKTION
A149: 22.10 | B149: C | C149: Ange tillsynsbehov | D149: För en verksamhet som är anmälningspliktig enligt 10 kap. 1 § miljöprövningsförordningen är tillsynstiden x timmar.
A150: 22.20 | B150: C | C150: Ange tillsynsbehov | D150: För en verksamhet som är anmälningspliktig enligt 10 kap. 2 § miljöprövningsförordningen är tillsynstiden x timmar.
A151: 22.30 | B151: B | C151: 30 | D151: För en verksamhet som är tillståndspliktig enligt 10 kap. 3 § miljöprövningsförordningen är tillsynstiden 30 timmar.
A152: 22.40 | B152: C | C152: Ange tillsynsbehov | D152: För en verksamhet som är anmälningspliktig enligt 10 kap. 4 § miljöprövningsförordningen är tillsynstiden x timmar.
D153: VERKSAMHETSGRUPP STENKOLSPRODUKTER, RAFFINERADE PETROLEUMPRODUKTER OCH KÄRNBRÄNSLE
A154: 23.05 | B154: A | C154: 137 | D154: 1. För en verksamhet som är tillståndspliktig enligt 11 kap. 1 § miljöprövningsförordningen är tillsynstiden 137 timmar för en anläggning med en total installerad effekt om mer än 200 megawatt.
A155: 23.05 | B155: A | C155: 64 | D155: 2. För en verksamhet som är tillståndspliktig enligt 11 kap. 1 § miljöprövningsförordningen är tillsynstiden 64 timmar för en anläggning med en total installerad effekt om mer än 100 megawatt men högst 200 megawatt.
A156: 23.05 | B156: A | C156: 30 | D156: 3. För en verksamhet som är tillståndspliktig enligt 11 kap. 1 § miljöprövningsförordningen är tillsynstiden 30 timmar för en anläggning med en total installerad effekt om mer än 10 megawatt men högst 100 megawatt.
A157: 23.05 | B157: A | C157: 13 | D157: 4. För en verksamhet som är tillståndspliktig enligt 11 kap. 1 § miljöprövningsförordningen är tillsynstiden 13 timmar för en anläggning med en total installerad effekt om högst 10 megawatt.
A158: 23.10-i | B158: A | C158: 90 | D158: För en verksamhet som är tillståndspliktig enligt 11 kap. 2 § miljöprövningsförordningen är tillsynstiden 90 timmar.
A159: 23.11-i | B159: A | C159: 90 | D159: 1. För en verksamhet som är tillståndspliktig enligt 11 kap. 3 § miljöprövningsförordningen är tillsynstiden 90 timmar om verksamheten avser överföring till vätskeformigt bränsle.
A160: 23.11-i | B160: A | C160: 64 | D160: 2. För en verksamhet som är tillståndspliktig enligt 11 kap. 3 § miljöprövningsförordningen är tillsynstiden 64 timmar om verksamheten avser överföring till gasbränsle för en produktion av mer än 150 000 kubikmeter gas per kalenderår i anläggning med en installerad effekt av mer än 100 megawatt.
A161: 23.11-i | B161: A | C161: 30 | D161: 3. För en verksamhet som är tillståndspliktig enligt 11 kap. 3 § miljöprövningsförordningen är tillsynstiden 30 timmar om verksamheten avser överföring till gasbränsle för en produktion av mer än 150 000 kubikmeter gas per kalenderår i anläggning med en installerad effekt av mer än 10 megawatt men högst 100 megawatt.
A162: 23.11-i | B162: A | C162: 13 | D162: 4. För en verksamhet som är tillståndspliktig enligt 11 kap. 3 § miljöprövningsförordningen är tillsynstiden 13 timmar om verksamheten avser överföring till gasbränsle för en produktion av mer än 150 000 kubikmeter gas per kalenderår i anläggning med en installerad effekt av högst 10 megawatt.
A163: 23.12-i | B163: A | C163: 184 | D163: För en verksamhet som är tillståndspliktig enligt 11 kap.4 § miljöprövningsförordningen är tillsynstiden 184 timmar.
A164: 23.13 | B164: A | C164: 90 | D164: För en verksamhet som är tillståndspliktig enligt 11 kap. 5 § miljöprövningsförordningen är tillsynstiden 90 timmar.
A165: 23.20 | B165: B | C165: 90 | D165: För en verksamhet som är tillståndspliktig enligt 11 kap. 6 § miljöprövningsförordningen är tillsynstiden 90 timmar.
A166: 23.30-i | B166: A | C166: 306 | D166: 1. För en verksamhet som är tillståndspliktig enligt 11 kap. 7 § miljöprövningsförordningen är tillsynstiden 306 timmar om verksamheten avser en produktion av mer än 500 000 ton per kalenderår.
A167: 23.30-i | B167: A | C167: 306 | D167: 2. För en verksamhet som är tillståndspliktig enligt 11 kap. 7 § miljöprövningsförordningen är tillsynstiden 306 timmar för en verksamhet med produktion som inte omfattas av 1.
A168: 23.40 och 23.50 | B168: A | C168: 90 | D168: För en verksamhet som är tillståndspliktig enligt 11 kap. 8 eller 9 § miljöprövningsförordningen är tillsynstiden 90 timmar.
D169: VERKSAMHETSGRUPP KEMISKA PRODUKTER
D170: Verksamhetsgrupp Organiska kemikalier
A171: 24.01-i, 24.02-i, 24.03-i, 24.04-i, 24.05-i, 24.06-i, 24.07-i, 24.08-i, 24.09-i, 24.10-i, 24.11-i, 24.12-i, 24.13-i, 24.14-i, 24.15-i, 24.16-i, 24.17-i, 24.18-i, 24.19-i, 24.20-i, 24.21-i och 24.22-i | B171: A/B | C171: 137 | D171: 1. För en verksamhet som är tillståndspliktig enligt någon av 12 kap. 1-22 § miljöprövningsförordningen är tillsynstiden 137 timmar för anläggning med en produktionsmängd på mer än 20 000 ton per kalenderår.
A172: 24.01-i, 24.02-i, 24.03-i, 24.04-i, 24.05-i, 24.06-i, 24.07-i, 24.08-i, 24.09-i, 24.10-i, 24.11-i, 24.12-i, 24.13-i, 24.14-i, 24.15-i, 24.16-i, 24.17-i, 24.18-i, 24.19-i, 24.20-i, 24.21-i och 24.22-i | B172: A/B | C172: 90 | D172: 2. För en verksamhet som är tillståndspliktig enligt någon av 12 kap. 1-22 § miljöprövningsförordningen är tillsynstiden 90 timmar för anläggning med en produktionsmängd på högst 20 000 ton per kalenderår.
D173: Verksamhetsgrupp Oorganiska kemikalier
A174: 24.23-i | B174: A | C174: 227 | D174: 1. För en verksamhet som är tillståndspliktig enligt 12 kap. 23 § miljöprövningsförordningen är tillsynstiden 227 timmar om verksamheten avser kloralkali med användning av amalgammetoden.
A175: 24.23-i | B175: A | C175: 184 | D175: 2. För en verksamhet som är tillståndspliktig enligt 12 kap. 23 § miljöprövningsförordningen är tillsynstiden 184 timmar om verksamheten avser annan tillverkning av gas än den som omfattas av 1.
A176: 24.24-i | B176: B | C176: 90 | D176: För en verksamhet som är tillståndspliktig enligt 12 kap. 24 § miljöprövningsförordningen är tillsynstiden 90 timmar.
A177: 24.25-i, 24.26-i, 24.27-i, 24.28-i, 24.29-i, 24.30-i, 24.31-i och 24.32-i | B177: A/B | C177: 137 | D177: 1. För en verksamhet som är tillståndspliktig enligt någon av 12 kap. 25-32 § miljöprövningsförordningen är tillsynstiden 137 timmar för anläggning med en produktionsmängd på mer än 20 000 ton per kalenderår.
A178: 24.25-i, 24.26-i, 24.27-i, 24.28-i, 24.29-i, 24.30-i, 24.31-i och 24.32-i | B178: A/B | C178: 90 | D178: 2. För en verksamhet som är tillståndspliktig enligt någon av 12 kap. 25-32 § miljöprövningsförordningen är tillsynstiden 90 timmar för anläggning med en produktionsmängd på högst 20 000 ton per kalenderår.
D179: Verksamhetsgrupp Gödselmedel
A180: 24.33-i och 24.34-i | B180: A/B | C180: 184 | D180: 1. För en verksamhet som är tillståndspliktig enligt 12 kap. 33 eller 34 § miljöprövningsförordningen är tillsynstiden 184 timmar för anläggning med en produktionsmängd på mer än 20 000 ton per kalenderår.
A181: 24.33-i och 24.34-i | B181: A/B | C181: 90 | D181: 2. För en verksamhet som är tillståndspliktig enligt 12 kap. 33 eller 34 § miljöprövningsförordningen är tillsynstiden 90 timmar för anläggning med en produktionsmängd på högst 20 000 ton per kalenderår.
D182: Verksamhetsgrupp Växtskyddsmedel och biocider
A183: 24.35-i och 24.36-i | B183: A/B | C183: 184 | D183: 1. För en verksamhet som är tillståndspliktig enligt 12 kap. 35 eller 36 § miljöprövningsförordningen är tillsynstiden 184 timmar för anläggning med en produktionsmängd på mer än 1 000 ton per kalenderår.
A184: 24.35-i och 24.36-i | B184: A/B | C184: 90 | D184: 1. För en verksamhet som är tillståndspliktig enligt 12 kap. 35 eller 36 § miljöprövningsförordningen är tillsynstiden 90 timmar för anläggning med en produktionsmängd på mer än 1 000 ton per kalenderår.
A185: 24.37 | B185: B | C185: 137 | D185: För en verksamhet som är tillståndspliktig enligt 12 kap. 37 § miljöprövningsförordningen är tillsynstiden 137 timmar.
D186: Verksamhetsgrupp Läkemedel
A187: 24.38-i och 24.39-i | B187: A/B | C187: 137 | D187: 1. För en verksamhet som är tillståndspliktig enligt 12 kap. 38 eller 39 § miljöprövningsförordningen är tillsynstiden 137 timmar för anläggning med en produktionsmängd på mer än 20 000 ton per kalenderår.
A188: 24.38-i och 24.39-i | B188: A/B | C188: 90 | D188: 2. För en verksamhet som är tillståndspliktig enligt 12 kap. 38 eller 39 § miljöprövningsförordningen är tillsynstiden 90 timmar för anläggning med en produktionsmängd på högst 1 000 ton per kalenderår.
A189: 24.40 | B189: C | C189: Ange tillsynsbehov | D189: För en verksamhet som är anmälningspliktig enligt 12 kap. 40 § miljöprövningsförordningen är tillsynstiden x timmar.
A190: 24.41 | B190: C | C190: Ange tillsynsbehov | D190: För en verksamhet som är anmälningspliktig enligt 12 kap. 41 § miljöprövningsförordningen är tillsynstiden x timmar.
D191: Verksamhetsgrupp Sprängämnen
A192: 24.42-i och 24.43-i | B192: A/B | C192: 137 | D192: 1. För en verksamhet som är tillståndspliktig enligt 12 kap. 42 eller 43 § miljöprövningsförordningen är tillsynstiden 137 timmar för anläggning med en produktionsmängd på mer än 1 000 ton per kalenderår.
A193: 24.42-i och 24.43-i | B193: A/B | C193: 90 | D193: 2. För en verksamhet som är tillståndspliktig enligt 12 kap. 42 eller 43 § miljöprövningsförordningen är tillsynstiden 90 timmar för anläggning med en produktionsmängd på högst 1 000 ton per kalenderår.
D194: Verksamhetsgrupp Annan kemisk tillverkning
A195: 24.44 | B195: C | C195: Ange tillsynsbehov | D195: För en verksamhet som är anmälningspliktig enligt 12 kap. 44 § miljöprövningsförordningen är tillsynstiden x timmar.
A196: 24.45 | B196: B | C196: 30 | D196: 1. För en verksamhet som är tillståndspliktig enligt 12 kap. 45 § miljöprövningsförordningen är tillsynstiden 30 timmar om verksamheten avser tillverkning av gas- eller vätskeformiga kemiska produkter.
A197: 24.45 | B197: B | C197: 64 | D197: 2. För en verksamhet som är tillståndspliktig enligt 12 kap. 45 § miljöprövningsförordningen är tillsynstiden 64 timmar om verksamheten avser tillverkning av läkemedelssubstanser genom extraktion ur biologiskt material.
A198: 24.45 | B198: B | C198: 30 | D198: 3. För en verksamhet som är tillståndspliktig enligt 12 kap. 45 § miljöprövningsförordningen är tillsynstiden 30 timmar om verksamheten avser tillverkning av sprängämnen.
A199: 24.45 | B199: B | C199: 30 | D199: 4. För en verksamhet som är tillståndspliktig enligt 12 kap. 45 § miljöprövningsförordningen är tillsynstiden 30 timmar om verksamheten avser tillverkning av pyrotekniska artiklar.
A200: 24.45 | B200: B | C200: 13 | D200: 5. För en verksamhet som är tillståndspliktig enligt 12 kap. 45 § miljöprövningsförordningen är tillsynstiden 13 timmar om verksamheten avser tillverkning av ammunition.
A201: 24.46 | B201: C | C201: Ange tillsynsbehov | D201: För en verksamhet som är anmälningspliktig enligt 12 kap. 46 § miljöprövningsförordningen är tillsynstiden x timmar.
A202: 24.47 | B202: C | C202: Ange tillsynsbehov | D202: För en verksamhet som är anmälningspliktig enligt 12 kap. 47 § miljöprövningsförordningen är tillsynstiden x timmar.
... 381 more rows

Sheet Taxebilaga 3 (hidden)
A1: Taxebilaga 3 | B1: Timavgift (efterskottsbetalning)
A3: Bransch | B3: Verksamhet | C3: Verksamhets- kod | D3: Prövn.- nivå | E3: Avgift
A4: JORDBRUK | B4: Djurhållning | D4: U | E4: Timavgift
B5: Uppodling av annan mark än jordbruksmark för jordbruksproduktion | D5: U | E5: Timavgift
B6: Övriga jordbruks- och trädgårdsföretag | C6: 1.4001 | D6: U | E6: Timavgift
A7: FISKODLING OCH ÖVERVINTRING AV FISK | D7: U | E7: Timavgift
A8: UTVINNING, BRYTNING OCH BEARBETNING AV TORV, OLJA, GAS, KOL, MALM, MINERAL, BERG, NATURGRUS OCH ANNAT | B8: Berg, naturgrus och andra jordarter | D8: U | E8: Timavgift
B9: Råpetroleum, naturgas och kol | D9: U | E9: Timavgift
B10: Annan utvinningsindustri | D10: U | E10: Timavgift
A11: LIVSMEDEL OCH FODER | B11: Slakterier | D11: U | E11: Timavgift
B12: Livsmedel och foder av animaliska råvaror | D12: U | E12: Timavgift
B13: Rökeri | D13: U | E13: Timavgift
B14: Livsmedel och foder av vegetabiliska råvaror | D14: U | E14: Timavgift
B15: Kvarnprodukter | D15: U | E15: Timavgift
B16: Livsmedel och foder av kombinerade råvaror | D16: U | E16: Timavgift
B17: Mjölkprodukter | D17: U | E17: Timavgift
B18: Annan livsmedelstillverkning | D18: U | E18: Timavgift
B19: Foder av animaliska och vegetabiliska råvaror | D19: U | E19: Timavgift
A20: TEXTILVAROR | D20: U | E20: Timavgift
A21: PÄLS, SKINN OCH LÄDER | D21: U | E21: Timavgift
A22: TRÄVAROR | D22: U | E22: Timavgift
A23: MASSA, PAPPER OCH PAPPERSVAROR | D23: U | E23: Timavgift
A24: FOTOGRAFISK OCH GRAFISK PRODUKTION | D24: U | E24: Timavgift
A25: KEMISKA PRODUKTER | B25: Annan kemisk tillverkning | D25: U | E25: Timavgift
A26: GUMMI- OCH PLASTVAROR | D26: U | E26: Timavgift
A27: MINERALISKA PRODUKTER | B27: Glas, glasvaror och keramiska produkter | D27: U | E27: Timavgift
B28: Cement, betong, kalk, krita och gips | D28: U | E28: Timavgift
B29: Andra mineraliska produkter | D29: U | E29: Timavgift
A30: STÅL OCH METALL | D30: U | E30: Timavgift
A31: METALL- OCH PLASTYTBEHANDLING, AVFETTNING OCH FÄRGBORTTAGNING | D31: U | E31: Timavgift
A32: METALLBEARBETNING | B32: Motorer, turbiner och reaktorer | D32: U | E32: Timavgift
B33: Motorfordon | D33: U | E33: Timavgift
B34: Maskinell bearbetning | D34: U | E34: Timavgift
B35: Gas- och oljeplattformar | D35: U | E35: Timavgift
A36: FÖRBRUKNING AV ORGANISKA LÖSNINGSMEDEL | D36: U | E36: Timavgift
A37: HANTERING AV BRÄNSLEN OCH ANDRA KEMISKA PRODUKTER | D37: U | E37: Timavgift
A38: GAS- OCH VÄTSKEFORMIGA BRÄNSLEN, EL, VÄRME OCH KYLA | B38: Förbränning | D38: U | E38: Timavgift
B39: Vindkraft | D39: U | E39: Timavgift
B40: Värme- och kylanläggningar | D40: U | E40: Timavgift
A41: VATTENFÖRSÖRJNING | D41: U | E41: Timavgift
A42: FORDONSSERVICE OCH DRIVMEDELSHANTERING | D42: U | E42: Timavgift
A43: HAMNAR OCH FLYGPLATSER | B43: Annan trafikinfrastruktur | D43: U | E43: Timavgift
B44: Hamnar | D44: U | E44: Timavgift
B45: Flygplatser | D45: U | E45: Timavgift
A46: LABORATORIER | D46: U | E46: Timavgift
A47: HÄLSO- OCH SJUKVÅRD | D47: U | E47: Timavgift
A48: RENING AV AVLOPPSVATTEN | D48: U | E48: Timavgift
A49: AVFALL | B49: Biologisk behandling | D49: U | E49: Timavgift
B50: Deponering | D50: U | E50: Timavgift
B51: Förbränning | D51: U | E51: Timavgift
B52: Lagring som en del av att samla in avfall | D52: U | E52: Timavgift
B53: Mekanisk bearbetning och sortering | D53: U | E53: Timavgift
A54: SKJUTFÄLT, SKJUTBANOR OCH SPORTANLÄGGNINGAR | D54: U | E54: Timavgift
A55: TEXTILTVÄTTERIER | D55: U | E55: Timavgift
A56: ÖVRIGA MILJÖFARLIGA VERKSAMHETER | D56: U | E56: Timavgift
A57: EJ ANMÄLNINGSPLIKTIGA HÄLSOSKYDDSVERKSAMHETER | B57: Bostäder m.m. | C57: 45 § FMH, punkt 1 | D57: UH | E57: Timavgift
A58: EJ ANMÄLNINGSPLIKTIGA HÄLSOSKYDDSVERKSAMHETER | B58: Undervisning, vård m.m. | C58: 45 § FMH, punkt 2 | D58: UH | E58: Timavgift
A59: EJ ANMÄLNINGSPLIKTIGA HÄLSOSKYDDSVERKSAMHETER | B59: Samlingslokaler m.m. | C59: 45 § FMH, punkt 3 | D59: UH | E59: Timavgift
A60: EJ ANMÄLNINGSPLIKTIGA HÄLSOSKYDDSVERKSAMHETER | B60: Hotell m.m. | C60: 45 § FMH, punkt 4 | D60: UH | E60: Timavgift
A61: EJ ANMÄLNINGSPLIKTIGA HÄLSOSKYDDSVERKSAMHETER | B61: Idrottsanläggningar, camping, bad m.m. | C61: 45 § FMH, punkt 5 | D61: UH | E61: Timavgift
A62: EJ ANMÄLNINGSPLIKTIGA HÄLSOSKYDDSVERKSAMHETER | B62: Lokaler för hygienisk behandling | C62: 45 § FMH, punkt 6 | D62: UH | E62: Timavgift
A63: EJ ANMÄLNINGSPLIKTIGA HÄLSOSKYDDSVERKSAMHETER | B63: Lokaler för förvaring av djur | C63: 45 § FMH, punkt 7 | D63: UH | E63: Timavgift

Sheet Ej frekvensstyrt behov (hidden)
A1: Ej frekvensstyrt behov
A3: Bransch | B3: Verksamhet | C3: Tillsynsbehov | D3: Prövn.- nivå

Sheet Admin (hidden)
B4: rngCritTaxa2 | F4: rngTillsynsListA | G4: rngTillsynsListB | H4: rngTillsynsListC | I4: rngTillsynsListH | J4: rngTillsynsListU | K4: rngTillsynsList
B5: Taxebilaga | C5: Tillsynsbehov | D5: Tillsynsbehov | F5: Ange tillsynsbehov | G5: Ange tillsynsbehov | H5: Ange tillsynsbehov | I5: Ange tillsynsbehov | J5: Ange tillsynsbehov | K5: Ange tillsynsbehov
B6: <>Bilaga 3 | C6: <>Ej aktuellt | D6: <>Ej frekvensstyrt behov | F6: Ej aktuellt | G6: Ej aktuellt | H6: Högt (18 tim/år) | I6: Högt (12 tim/år) | J6: Högt (12 tim/år) | K6: Ej aktuellt
H7: Normalt (9 tim/år) | I7: Normalt (6 tim/år) | J7: Normalt (6 tim/år)
H8: Lågt (6 tim/år) | I8: Lågt (3 tim/år) | J8: Lågt (3 tim/år)
H9: Sporadiskt (tillsyn vid behov) | I9: Sporadiskt (tillsyn vid behov) | J9: Sporadiskt (tillsyn vid behov)
B10: rngCritTaxa3 | H10: Ej aktuellt | I10: Ej aktuellt | J10: Ej aktuellt
B11: Avgift | C11: Tillsynsbehov | D11: Tillsynsbehov
B12: Timavgift | C12: <>Ej aktuellt | D12: <>Ej frekvensstyrt behov
B14: rngCritOther | G14: rngTillsynsNiv
B15: Tillsynsbehov | H15: C | I15: H | J15: U | K15: UH
B16: Ej frekvensstyrt behov | G16: tblTillsynsTim
H17: 18 | I17: 12 | J17: 12 | K17: 12
H18: 9 | I18: 6 | J18: 6 | K18: 6
B19: Ej frekvensstyrd tillsyn | H19: 6 | I19: 3 | J19: 3 | K19: 3
H20: Tillsyn vid behov | I20: Tillsyn vid behov | J20: Tillsyn vid behov | K20: Tillsyn vid behov
B21: rngIUV
B22: IUV-tillägg tillämpas.
